{"text_format":"1","workbook":"xlsx","n_sheets":9,"sheets":["Accueil","Listes","BD articles menus","Propositions MMR","Propositions MJ","Propositions MVMWE","Propositions MMR f","Propositions MJ f","Propositions MVMWE f"],"not_rendered":{"charts":0,"images":0,"macros":1,"external_links":1,"defined_names":16,"comments":0,"pivot_tables":0},"unopened":[],"bounds":{"document_bytes":16777216,"sheet_cells":100000,"rows_first":2000,"rows_last":500,"rows_between":2000,"halvings":0,"cell_chars":16384,"cell_head_chars":4096},"cells_cut":0,"cells_raw":0,"read":"whole","date_system":"1900"}

{"sheet":"Accueil","index":0,"n_rows":134,"n_cols":11,"rows_kept":134,"cut":false,"hidden":false,"merged":[]}
[null,null,null,null,null,null,2024,null,null,"Open","Save"]
[null,null,null,null,null,null,null,null,null,"2024-10-15T18:26:13","2024-10-15T11:34:50"]
[null,null,null,null,null,null,null,null,null,"2024-10-16T12:00:47","2024-10-15T11:39:16"]
[null,null,null,null,null,null,null,null,null,"2024-10-16T16:39:44","2024-10-15T21:43:16"]
[null,null,null,null,null,null,null,null,null,"2024-10-16T17:12:32","2024-10-15T21:51:39"]
[null,null,null,null,null,null,null,null,null,"2024-10-16T17:51:15","2024-10-16T14:30:19"]
[null,null,null,null,null,null,null,null,null,"2024-10-16T21:03:28","2024-10-16T17:05:36"]
[null,null,null,null,null,null,null,null,null,"2024-10-17T10:53:02","2024-10-16T17:10:34"]
[null,null,null,null,null,null,null,null,null,"2024-10-17T16:14:32","2024-10-16T17:11:23"]
[null,null,null,null,null,null,null,null,null,"2024-10-17T21:28:03","2024-10-16T17:36:38"]
[null,null,null,null,null,null,null,null,null,"2024-10-17T21:41:34","2024-10-16T17:38:16"]
[null,null,null,null,null,null,null,null,null,"2024-10-18T16:37:12","2024-10-16T17:54:53"]
[null,null,null,null,null,null,null,null,null,"2024-10-18T17:46:14","2024-10-16T18:02:11"]
[null,null,null,null,null,null,null,null,null,"2024-10-18T19:19:28","2024-10-16T21:56:07"]
[null,null,null,null,null,null,null,null,null,"2024-10-19T11:48:51","2024-10-17T13:44:05"]
[null,null,null,null,null,null,null,null,null,"2024-10-19T11:53:07","2024-10-17T16:25:44"]
[null,null,null,null,null,null,null,null,null,"2024-10-19T12:30:04","2024-10-17T16:43:03"]
[null,null,null,null,null,null,null,null,null,"2024-10-19T18:34:22","2024-10-17T16:55:33"]
[null,null,null,null,null,null,null,null,null,"2024-10-19T22:20:10","2024-10-17T17:15:14"]
[null,null,null,null,null,null,null,null,null,"2024-10-20T10:52:00","2024-10-17T19:07:30"]
[null,null,null,null,null,null,null,null,null,"2024-10-20T11:32:40","2024-10-17T19:14:34"]
[null,null,null,null,null,null,null,null,null,"2024-10-20T12:20:39","2024-10-17T19:46:10"]
[null,null,null,null,null,null,null,null,null,"2024-10-20T19:15:07","2024-10-17T21:20:28"]
[null,null,null,null,null,null,null,null,null,"2024-10-20T20:06:15","2024-10-17T21:20:50"]
[null,null,null,null,null,null,null,null,null,"2024-10-20T20:44:50","2024-10-17T21:28:16"]
[null,null,null,null,null,null,null,null,null,"2024-10-20T20:47:31","2024-10-17T21:32:14"]
[null,null,null,null,null,null,null,null,null,"2024-10-20T20:59:28","2024-10-17T21:33:54"]
[null,null,null,null,null,null,null,null,null,"2024-10-21T11:52:30","2024-10-17T21:36:00"]
[null,null,null,null,null,null,null,null,null,"2024-10-21T23:10:40","2024-10-17T21:37:53"]
[null,null,null,null,null,null,null,null,null,"2024-10-22T10:11:39","2024-10-17T21:41:40"]
[null,null,null,null,null,null,null,null,null,"2024-10-22T22:23:17","2024-10-17T21:48:43"]
[null,null,null,null,null,null,null,null,null,"2024-10-23T10:36:15","2024-10-17T21:50:01"]
[null,null,null,null,null,null,null,null,null,"2024-10-23T10:38:40","2024-10-18T17:00:28"]
[null,null,null,null,null,null,null,null,null,"2024-10-23T16:00:30","2024-10-18T17:16:03"]
[null,null,null,null,null,null,null,null,null,"2024-10-23T18:45:01","2024-10-18T17:44:06"]
[null,null,null,null,null,null,null,null,null,"2024-10-24T10:35:19","2024-10-18T18:10:52"]
[null,null,null,null,null,null,null,null,null,"2024-10-24T11:24:24","2024-10-18T21:27:18"]
[null,null,null,null,null,null,null,null,null,"2024-10-24T18:44:16","2024-10-18T22:34:33"]
[null,null,null,null,null,null,null,null,null,"2024-10-25T08:52:42","2024-10-19T11:49:48"]
[null,null,null,null,null,null,null,null,null,"2024-10-25T15:24:19","2024-10-19T12:07:27"]
[null,null,null,null,null,null,null,null,null,"2024-10-25T21:28:07","2024-10-19T12:35:02"]
[null,null,null,null,null,null,null,null,null,"2024-10-26T11:34:05","2024-10-19T13:11:28"]
[null,null,null,null,null,null,null,null,null,"2024-10-26T18:15:53","2024-10-19T18:45:25"]
[null,null,null,null,null,null,null,null,null,"2024-10-26T20:28:48","2024-10-19T22:35:36"]
[null,null,null,null,null,null,null,null,null,"2024-10-26T21:21:38","2024-10-20T11:06:45"]
[null,null,null,null,null,null,null,null,null,"2024-10-27T11:30:25","2024-10-20T11:25:26"]
[null,null,null,null,null,null,null,null,null,"2024-10-27T11:37:16","2024-10-20T11:48:14"]
[null,null,null,null,null,null,null,null,null,"2024-10-27T14:38:38","2024-10-20T12:17:38"]
[null,null,null,null,null,null,null,null,null,"2024-10-27T15:40:56","2024-10-20T12:45:27"]
[null,null,null,null,null,null,null,null,null,"2024-10-27T15:47:35","2024-10-20T12:58:43"]
[null,null,null,null,null,null,null,null,null,"2024-10-28T11:07:07","2024-10-20T19:18:54"]
[null,null,null,null,null,null,null,null,null,"2024-10-29T06:44:43","2024-10-20T20:44:13"]
[null,null,null,null,null,null,null,null,null,"2024-10-30T10:46:18","2024-10-20T20:47:02"]
[null,null,null,null,null,null,null,null,null,"2024-10-30T12:09:15","2024-10-20T20:48:21"]
[null,null,null,null,null,null,null,null,null,"2024-10-30T17:50:32","2024-10-20T21:32:59"]
[null,null,null,null,null,null,null,null,null,"2024-10-31T11:21:15","2024-10-20T21:33:16"]
[null,null,null,null,null,null,null,null,null,"2024-11-02T19:12:19","2024-10-20T21:36:54"]
[null,null,null,null,null,null,null,null,null,"2024-11-02T21:29:28","2024-10-20T21:37:10"]
[null,null,null,null,null,null,null,null,null,"2024-11-04T11:26:49","2024-10-21T12:38:25"]
[null,null,null,null,null,null,null,null,null,"2024-11-04T11:56:06","2024-10-21T13:38:42"]
[null,null,null,null,null,null,null,null,null,"2024-11-04T16:44:20","2024-10-21T14:03:16"]
[null,null,null,null,null,null,null,null,null,"2024-11-04T18:37:04","2024-10-21T23:38:18"]
[null,null,null,null,null,null,null,null,null,"2024-11-04T19:48:26","2024-10-21T23:44:46"]
[null,null,null,null,null,null,null,null,null,"2024-11-10T10:11:24","2024-10-22T12:17:51"]
[null,null,null,null,null,null,null,null,null,"2024-11-13T13:11:24","2024-10-22T22:54:31"]
[null,null,null,null,null,null,null,null,null,"2024-11-14T11:10:32","2024-10-23T10:37:38"]
[null,null,null,null,null,null,null,null,null,"2024-11-15T16:56:36","2024-10-23T11:09:57"]
[null,null,null,null,null,null,null,null,null,null,"2024-10-23T11:17:51"]
[null,null,null,null,null,null,null,null,null,null,"2024-10-23T11:50:55"]
[null,null,null,null,null,null,null,null,null,null,"2024-10-23T11:54:45"]
[null,null,null,null,null,null,null,null,null,null,"2024-10-23T16:07:29"]
[null,null,null,null,null,null,null,null,null,null,"2024-10-23T16:38:43"]
[null,null,null,null,null,null,null,null,null,null,"2024-10-23T16:50:21"]
[null,null,null,null,null,null,null,null,null,null,"2024-10-23T17:23:07"]
[null,null,null,null,null,null,null,null,null,null,"2024-10-23T19:01:42"]
[null,null,null,null,null,null,null,null,null,null,"2024-10-23T21:14:24"]
[null,null,null,null,null,null,null,null,null,null,"2024-10-24T11:07:16"]
[null,null,null,null,null,null,null,null,null,null,"2024-10-24T12:14:28"]
[null,null,null,null,null,null,null,null,null,null,"2024-10-24T12:36:27"]
[null,null,null,null,null,null,null,null,null,null,"2024-10-24T19:18:56"]
[null,null,null,null,null,null,null,null,null,null,"2024-10-25T09:07:03"]
[null,null,null,null,null,null,null,null,null,null,"2024-10-25T09:07:29"]
[null,null,null,null,null,null,null,null,null,null,"2024-10-25T15:26:29"]
[null,null,null,null,null,null,null,null,null,null,"2024-10-25T16:31:03"]
[null,null,null,null,null,null,null,null,null,null,"2024-10-25T22:02:05"]
[null,null,null,null,null,null,null,null,null,null,"2024-10-26T12:25:01"]
[null,null,null,null,null,null,null,null,null,null,"2024-10-26T12:55:12"]
[null,null,null,null,null,null,null,null,null,null,"2024-10-26T19:37:11"]
[null,null,null,null,null,null,null,null,null,null,"2024-10-26T19:46:41"]
[null,null,null,null,null,null,null,null,null,null,"2024-10-26T20:34:25"]
[null,null,null,null,null,null,null,null,null,null,"2024-10-26T21:21:41"]
[null,null,null,null,null,null,null,null,null,null,"2024-10-26T21:42:44"]
[null,null,null,null,null,null,null,null,null,null,"2024-10-27T11:33:39"]
[null,null,null,null,null,null,null,null,null,null,"2024-10-27T12:15:22"]
[null,null,null,null,null,null,null,null,null,null,"2024-10-27T12:32:56"]
[null,null,null,null,null,null,null,null,null,null,"2024-10-27T14:54:41"]
[null,null,null,null,null,null,null,null,null,null,"2024-10-27T15:38:48"]
[null,null,null,null,null,null,null,null,null,null,"2024-10-27T15:44:41"]
[null,null,null,null,null,null,null,null,null,null,"2024-10-27T16:13:05"]
[null,null,null,null,null,null,null,null,null,null,"2024-10-27T16:32:58"]
[null,null,null,null,null,null,null,null,null,null,"2024-10-27T16:37:16"]
[null,null,null,null,null,null,null,null,null,null,"2024-10-28T11:42:47"]
[null,null,null,null,null,null,null,null,null,null,"2024-10-28T11:52:16"]
[null,null,null,null,null,null,null,null,null,null,"2024-10-28T11:58:22"]
[null,null,null,null,null,null,null,null,null,null,"2024-10-29T06:46:38"]
[null,null,null,null,null,null,null,null,null,null,"2024-10-30T11:24:52"]
[null,null,null,null,null,null,null,null,null,null,"2024-10-30T11:45:11"]
[null,null,null,null,null,null,null,null,null,null,"2024-10-30T12:12:18"]
[null,null,null,null,null,null,null,null,null,null,"2024-10-30T14:29:08"]
[null,null,null,null,null,null,null,null,null,null,"2024-10-30T18:13:23"]
[null,null,null,null,null,null,null,null,null,null,"2024-10-31T12:02:17"]
[null,null,null,null,null,null,null,null,null,null,"2024-10-31T12:11:57"]
[null,null,null,null,null,null,null,null,null,null,"2024-11-02T19:24:24"]
[null,null,null,null,null,null,null,null,null,null,"2024-11-02T20:02:20"]
[null,null,null,null,null,null,null,null,null,null,"2024-11-02T21:29:32"]
[null,null,null,null,null,null,null,null,null,null,"2024-11-02T21:30:00"]
[null,null,null,null,null,null,null,null,null,null,"2024-11-04T11:31:21"]
[null,null,null,null,null,null,null,null,null,null,"2024-11-04T11:31:44"]
[null,null,null,null,null,null,null,null,null,null,"2024-11-04T11:34:42"]
[null,null,null,null,null,null,null,null,null,null,"2024-11-04T12:52:23"]
[null,null,null,null,null,null,null,null,null,null,"2024-11-04T16:52:02"]
[null,null,null,null,null,null,null,null,null,null,"2024-11-04T16:52:10"]
[null,null,null,null,null,null,null,null,null,null,"2024-11-04T17:04:30"]
[null,null,null,null,null,null,null,null,null,null,"2024-11-04T17:06:03"]
[null,null,null,null,null,null,null,null,null,null,"2024-11-04T18:37:27"]
[null,null,null,null,null,null,null,null,null,null,"2024-11-04T18:37:39"]
[null,null,null,null,null,null,null,null,null,null,"2024-11-04T18:42:27"]
[null,null,null,null,null,null,null,null,null,null,"2024-11-04T20:04:38"]
[null,null,null,null,null,null,null,null,null,null,"2024-11-04T20:04:59"]
[null,null,null,null,null,null,null,null,null,null,"2024-11-04T20:05:32"]
[null,null,null,null,null,null,null,null,null,null,"2024-11-12T17:28:29"]
[null,null,null,null,null,null,null,null,null,null,"2024-11-13T14:36:45"]
[null,null,null,null,null,null,null,null,null,null,"2024-11-14T11:21:02"]
[null,null,null,null,null,null,null,null,null,null,"2024-11-15T16:57:01"]

{"sheet":"Listes","index":1,"n_rows":34,"n_cols":54,"rows_kept":34,"cut":false,"hidden":false,"merged":[[2,30,2,31],[2,52,2,53],[2,0,2,1],[2,39,2,40],[2,42,2,43],[2,45,2,46],[2,3,2,4],[2,6,2,7],[2,9,2,10],[2,12,2,13],[2,15,2,16],[2,33,2,34],[2,36,2,37],[2,18,2,19],[2,21,2,22],[2,24,2,25],[2,27,2,28]]}
["Listes.",null,null,null,null,null,null,null,null,null,null,null,null,null,null,null,null,null,null,null,null,null,null,null,null,null,null,null,null,null,null,null,null,null,null,null,null,null,null,null,null,null,null,null,null,null,null,null,null,null,null,null,null,{"$f":"Accueil!$G$1","v":2024}]
[]
["TabNatureCréation",null,null,"TabCatégorie",null,null,"TabDMR",null,null,"TabDS",null,null,"TabDWE",null,null,"TabLMR",null,null,"TabLSLM",null,null,"TabLSMJ",null,null,"TabLSV",null,null,"TabLWES",null,null,"TabLWED",null,null,"TabVMR",null,null,"TabVMWE",null,null,"TabVS",null,null,"TabPAM",null,null,"TabCAM",null,null,"TabPMVWE",null,"TabMois",null,"TabJF"]
["Nature création","Code nature création",null,"Catégorie","Code catégorie",null,"Dessert DMR","Code dessert DMR",null,"Dessert soir","Code dessert soir",null,"Desserts weekend","Code desserts weekend",null,"Légumes midi retraite","Code légumes midi retraite",null,"Légumes soirs lundi mardi","Code légumes soirs lundi mardi",null,"Légumes soirs mercredi jeudi","Code légumes soirs mercredi jeudi",null,"Légumes soirs vendredi","Code légumes soirs vendredi",null,"Légumes weekend samedi","Code légumes weekend samedi",null,"Légumes weekend dimanche","Code légumes weekend dimanche",null,"Viandes midi retraite","Code viandes midi retraite",null,"Viandes midi weekend","Code viandes midi weekend",null,"Viandes soirs","Code viandes soirs",null,"Période articles menus","Code période articlesmenus",null,"Conditionnement articles menus","Code conditionnement articles menus",null,"Période menu viande weekend",null,"Mois",null,"Jour férié","Date jour férié"]
["Création articles menus","CAM",null,"Dessert midi retraite","DMR",null,"Pomme","DMR01",null,"Pomme","DS01",null,"Ananas","DWE01",null,"Asperges","LMR01",null,"Cassoulet","LSLM01",null,"Macédoine de légumes","LSMJ01",null,"Asperges","LSV01",null,"Pâtes à la sauce tomates weekend samedi","LWES01",null,"Asperges","LWED01",null,"Rôti d'agneau","VMR01",null,"Agneau","VMWE01",null,"Bifteck haché de bœuf","VS01",null,"Dimanche midi","PAM01",null,"1 boîte de 2 pour 2 repas (Avocats, Gâteaux samedi dimanche)","CAM01",null,"Premier semestre 2024",null,{"$f":"\"Janvier \"&Accueil!$G$1","v":"Janvier 2024"},null,"Jour de l'an",{"$f":"DATE($BB$1,1,1)","v":"2024-01-01"}]
["Création menus midi retraite","CMMR",null,"Dessert soir","DS",null,null,null,null,null,null,null,"Autres fruits","DWE02",null,"Avocat","LMR02",null,"Choucroute","LSLM02",null,"Petits pois","LSMJ02",null,"Avocat","LSV02",null,"Pâtes au beurre weekend samedi","LWES02",null,"Chips","LWED02",null,"Rôti de bœuf","VMR02",null,"Bœuf","VMWE02",null,"Bifteck haché de cheval","VS02",null,"Dimanche midi et soir","PAM02",null,"1 boîte de 2, 4 ou 6 œufs. 1, 2 ou 3 œufs pour 1 repas","CAM02",null,"Deuxième semestre 2024",null,{"$f":"\"Février \"&Accueil!$G$1","v":"Février 2024"},null,"Pâques",{"$f":"DATE(YEAR(BB5),3,29.56+0.979*MOD(204-11*MOD(YEAR(BB5),19),30)-WEEKDAY(DATE(YEAR(BB5),3,28.56+0.979*MOD(204-11*MOD(YEAR(BB5),19),30))))","v":"2024-03-31"}]
["Création menus journaliers","CMJ",null,"Desserts weekend","DWE",null,null,null,null,null,null,null,"Avocats","DWE03",null,"Carottes","LMR03",null,"Chou-fleur","LSLM03",null,"Petits pois et jeunes carottes","LSMJ03",null,"Betteraves rouges","LSV03",null,"Pâtes au fromage râpé weekend samedi","LWES03",null,"Frites","LWED03",null,"Rôti de cheval","VMR03",null,"Cheval","VMWE03",null,"Bifteck haché de veau","VS03",null,"Dimanche soir","PAM03",null,"1 boîte de 8. 1 pour 1 repas (Quiche lorraine)","CAM03",null,null,null,{"$f":"\"Mars \"&Accueil!$G$1","v":"Mars 2024"},null,"Lundi de Pâques",{"$f":"BB6+1","v":"2024-04-01"}]
["Création menus viande midi weekend","CMVMWE",null,"Légumes midi retraite","LMR",null,null,null,null,null,null,null,"Bananes","DWE04",null,"Céleri","LMR04",null,"Choux de Bruxelles","LSLM04",null,"Ratatouille","LSMJ04",null,"Carottes","LSV04",null,null,null,null,"Haricots verts","LWED04",null,"Rôti de porc","VMR04",null,"Dinde","VMWE04",null,"Bouchées à la reine","VS04",null,"Lundi à dimanche soirs","PAM04",null,"1 boîte pour 1 repas (Champignons, Salsifis, Thon)","CAM04",null,null,null,{"$f":"\"Avril \"&Accueil!$G$1","v":"Avril 2024"},null,"Fête du travail",{"$f":"DATE($BB$1,5,1)","v":"2024-05-01"}]
[null,null,null,"Légumes soirs lundi mardi","LSLM",null,null,null,null,null,null,null,"Clémentines","DWE05",null,"Champignons","LMR05",null,"Couscous","LSLM05",null,"Raviolis","LSMJ05",null,"Céleri","LSV05",null,null,null,null,null,null,null,"Rôti de veau","VMR05",null,"Poisson","VMWE05",null,"Boudin","VS05",null,"Lundi à vendredi midis","PAM05",null,"1 boîte pour 2 repas (Fruits au sirop, Bouchées à la reine, Croque-monsieur)","CAM05",null,null,null,{"$f":"\"Mai \"&Accueil!$G$1","v":"Mai 2024"},null,"Victoire 1945",{"$f":"DATE($BB$1,5,8)","v":"2024-05-08"}]
[null,null,null,"Légumes soirs mercredi jeudi","LSMJ",null,null,null,null,null,null,null,"Crème","DWE06",null,"Concombre","LMR06",null,"Endives","LSLM06",null,"Tomates pelées","LSMJ06",null,"Champignons","LSV06",null,null,null,null,null,null,null,null,null,null,"Porc","VMWE06",null,"Cervelas","VS06",null,"Lundi à vendredi soirs","PAM06",null,"1 morceau pour 5 repas (Rôti d'agneau, Rôti de bœuf, Rôti de cheval, Rôti de porc, Rôti de cheval)","CAM06",null,null,null,{"$f":"\"Juin \"&Accueil!$G$1","v":"Juin 2024"},null,"Jeudi de l'ascension",{"$f":"BB7+38","v":"2024-05-09"}]
[null,null,null,"Légumes soirs vendredi","LSV",null,null,null,null,null,null,null,"Dattes","DWE07",null,"Couscous","LMR07",null,"Haricots verts","LSLM07",null,null,null,null,"Concombre","LSV07",null,null,null,null,null,null,null,null,null,null,"Veau","VMWE07",null,"Cœur","VS07",null,"Lundi et mardi soirs","PAM07",null,"1 pack de 4 pots pour le weekend. 1 pot pour 1 repas (Crème, Fromage blanc, Gâteau de riz, Gâteau de semoule, Mousse au chocolat, Riz au lait, Yaourts dessert )","CAM07",null,null,null,{"$f":"\"Juillet \"&Accueil!$G$1","v":"Juillet 2024"},null,"Pentecôte",{"$f":"BB6+49","v":"2024-05-19"}]
[null,null,null,"Légumes weekend dimanche","LWED",null,null,null,null,null,null,null,"Figues","DWE08",null,"Maïs","LMR08",null,"Maïs","LSLM08",null,null,null,null,"Radis vendredi soir","LSV08",null,null,null,null,null,null,null,null,null,null,null,null,null,"Croque-monsieur","VS08",null,"Mercredi et jeudi soirs","PAM08",null,"1 pack de 6 pots pour la journée. 3 pots pour 1 repas (Petits suisses)","CAM08",null,null,null,{"$f":"\"Août \"&Accueil!$G$1","v":"Août 2024"},null,"Lundi de Pentecôte",{"$f":"BB11+1","v":"2024-05-20"}]
[null,null,null,"Légumes weekend samedi","LWES",null,null,null,null,null,null,null,"Fromage blanc","DWE09",null,"Pâtes à la sauce tomates midi retraite","LMR09",null,"Paella","LSLM09",null,null,null,null,"Salsifis","LSV09",null,null,null,null,null,null,null,null,null,null,null,null,null,"Foie","VS09",null,"Samedi et dimanche midis","PAM09",null,"1 paquet pour 2 repas (Bifteck haché de bœuf, Bifteck haché de veau, Cœur, Foie, Jambon, Mortadelle, Pizza, Salami, Saucisses)","CAM09",null,null,null,{"$f":"\"Septembre \"&Accueil!$G$1","v":"Septembre 2024"},null,"Fête nationale",{"$f":"DATE(BB1,7,14)","v":"2024-07-14"}]
[null,null,null,"Viandes midi retraite","VMR",null,null,null,null,null,null,null,"Fruits au sirop","DWE10",null,"Pâtes au beurre midi retraite","LMR10",null,"Poireau","LSLM10",null,null,null,null,"Salade","LSV10",null,null,null,null,null,null,null,null,null,null,null,null,null,"Fromage de tête","VS10",null,"Samedi et dimanche midis et soirs","PAM10",null,"1 paquet pour 5 repas (Betteraves rouges)","CAM10",null,null,null,{"$f":"\"Octobre \"&Accueil!$G$1","v":"Octobre 2024"},null,"Assomption",{"$f":"DATE(BB1,8,15)","v":"2024-08-15"}]
[null,null,null,"Viandes midi weekend","VMWE",null,null,null,null,null,null,null,"Fruits de saison","DWE11",null,"Poireau","LMR11",null,"Pomme de terre","LSLM11",null,null,null,null,"Tomates","LSV11",null,null,null,null,null,null,null,null,null,null,null,null,null,"Jambon","VS11",null,"Samedi midi et soir","PAM11",null,"1 pot pour 1 repas (Asperges)","CAM11",null,null,null,{"$f":"\"Novembre \"&Accueil!$G$1","v":"Novembre 2024"},null,"Toussaint",{"$f":"DATE(BB1,11,1)","v":"2024-11-01"}]
[null,null,null,"Viandes soirs","VS",null,null,null,null,null,null,null,"Gâteau de riz","DWE12",null,"Pomme de terre","LMR12",null,"Purée","LSLM12",null,null,null,null,null,null,null,null,null,null,null,null,null,null,null,null,null,null,null,"Jambonneau","VS12",null,"Vendredi soirs","PAM12",null,"1 pour 1 repas (Bananes, Oranges, Poireau, Pomme de terre, Concombre)","CAM12",null,null,null,{"$f":"\"Décembre \"&Accueil!$G$1","v":"Décembre 2024"},null,"Armistice 1918",{"$f":"DATE(BB1,11,11)","v":"2024-11-11"}]
[null,null,null,null,null,null,null,null,null,null,null,null,"Gâteau de semoule","DWE13",null,"Purée","LMR13",null,"Quenelles","LSLM13",null,null,null,null,null,null,null,null,null,null,null,null,null,null,null,null,null,null,null,"Mortadelle","VS13",null,null,null,null,"1 sachet de 2 kilogrammes. 1 pomme pour 1 repas","CAM13",null,null,null,null,null,"Noël",{"$f":"DATE(BB1,12,25)","v":"2024-12-25"}]
[null,null,null,null,null,null,null,null,null,null,null,null,"Gâteaux samedi dimanche","DWE14",null,"Radis midi retraite","LMR14",null,"Riz","LSLM14",null,null,null,null,null,null,null,null,null,null,null,null,null,null,null,null,null,null,null,"Œufs","VS14",null,null,null,null,"1 sachet de 30 tranches ou de 32 tranches.  5 Tranches pour 1 repas (Saucisson)","CAM14"]
[null,null,null,null,null,null,null,null,null,null,null,null,"Mousse au chocolat","DWE15",null,"Riz","LMR15",null,null,null,null,null,null,null,null,null,null,null,null,null,null,null,null,null,null,null,null,null,null,"Pizza","VS15",null,null,null,null,"1 sachet pour 1 repas (Radis vendredi soir, Salade)","CAM15"]
[null,null,null,null,null,null,null,null,null,null,null,null,"Oranges","DWE16",null,"Salade","LMR16",null,null,null,null,null,null,null,null,null,null,null,null,null,null,null,null,null,null,null,null,null,null,"Poisson","VS16",null,null,null,null,"1 sachet pour 2 repas (Radis midi retraite, Chips, Croque-monsieur)","CAM16"]
[null,null,null,null,null,null,null,null,null,null,null,null,"Petits suisses","DWE17",null,"Tomates","LMR17",null,null,null,null,null,null,null,null,null,null,null,null,null,null,null,null,null,null,null,null,null,null,"Quiche lorraine","VS17",null,null,null,null,"1 sachet pour 4 repas (Dattes, Figues, Pruneaux)","CAM17"]
[null,null,null,null,null,null,null,null,null,null,null,null,"Pruneaux","DWE18",null,null,null,null,null,null,null,null,null,null,null,null,null,null,null,null,null,null,null,null,null,null,null,null,null,"Roulade à la pistache","VS18",null,null,null,null,"1 tranche por 2 repas (Fromage de tête, Tête persillée)","CAM18"]
[null,null,null,null,null,null,null,null,null,null,null,null,"Riz au lait","DWE19",null,null,null,null,null,null,null,null,null,null,null,null,null,null,null,null,null,null,null,null,null,null,null,null,null,"Roulés au fromage","VS19",null,null,null,null,"1 tranche pour 1 repas (Agneau, Bœuf, Cheval, Dinde, Porc, Veau : Midi weekend)","CAM19"]
[null,null,null,null,null,null,null,null,null,null,null,null,"Tapioca","DWE20",null,null,null,null,null,null,null,null,null,null,null,null,null,null,null,null,null,null,null,null,null,null,null,null,null,"Salami","VS20",null,null,null,null,"125 grammes pour 1 repas (Bifteck haché de cheval)","CAM20"]
[null,null,null,null,null,null,null,null,null,null,null,null,"Yaourts dessert","DWE21",null,null,null,null,null,null,null,null,null,null,null,null,null,null,null,null,null,null,null,null,null,null,null,null,null,"Saucisses","VS21",null,null,null,null,"20 frites pour 1 repas (Frites)","CAM21"]
[null,null,null,null,null,null,null,null,null,null,null,null,null,null,null,null,null,null,null,null,null,null,null,null,null,null,null,null,null,null,null,null,null,null,null,null,null,null,null,"Saucisson","VS22",null,null,null,null,"25 grammes pour 1 repas (Tapioca, Couscous, Purée, Riz)","CAM22"]
[null,null,null,null,null,null,null,null,null,null,null,null,null,null,null,null,null,null,null,null,null,null,null,null,null,null,null,null,null,null,null,null,null,null,null,null,null,null,null,"Tête persillée","VS23",null,null,null,null,"3 tranches pour 1 repas (Roulade à la pistache, Tête roulée)","CAM23"]
[null,null,null,null,null,null,null,null,null,null,null,null,null,null,null,null,null,null,null,null,null,null,null,null,null,null,null,null,null,null,null,null,null,null,null,null,null,null,null,"Tête roulée","VS24",null,null,null,null,"5 cuillères pour 1 repas (Pâtes à la sauce tomates, Pâtes au beurre, Pâtes au fromage râpé)","CAM24"]
[null,null,null,null,null,null,null,null,null,null,null,null,null,null,null,null,null,null,null,null,null,null,null,null,null,null,null,null,null,null,null,null,null,null,null,null,null,null,null,"Thon","VS25",null,null,null,null,"Unité : 1 branche pour 1 repas (Céleri)","CAM25"]
[null,null,null,null,null,null,null,null,null,null,null,null,null,null,null,null,null,null,null,null,null,null,null,null,null,null,null,null,null,null,null,null,null,null,null,null,null,null,null,"Viande cassoulet","VS26",null,null,null,null,"Unité : 1 pour 1 repas (Avocat, Poisson)","CAM26"]
[null,null,null,null,null,null,null,null,null,null,null,null,null,null,null,null,null,null,null,null,null,null,null,null,null,null,null,null,null,null,null,null,null,null,null,null,null,null,null,"Viande choucroute","VS27",null,null,null,null,"Unité : 1 pour 2 repas (Chou-fleur)","CAM27"]
[null,null,null,null,null,null,null,null,null,null,null,null,null,null,null,null,null,null,null,null,null,null,null,null,null,null,null,null,null,null,null,null,null,null,null,null,null,null,null,"Viande paella","VS28",null,null,null,null,"Unité : 1 pour 4 repas (Ananas)","CAM28"]
[null,null,null,null,null,null,null,null,null,null,null,null,null,null,null,null,null,null,null,null,null,null,null,null,null,null,null,null,null,null,null,null,null,null,null,null,null,null,null,null,null,null,null,null,null,"Unité : 2 à 4 pour 1 repas (Autres fruits, Clémentines, fruits de saison)","CAM29"]
[null,null,null,null,null,null,null,null,null,null,null,null,null,null,null,null,null,null,null,null,null,null,null,null,null,null,null,null,null,null,null,null,null,null,null,null,null,null,null,null,null,null,null,null,null,"Unité : 2 pour 1 repas (Carottes, Tomates)","CAM30"]

{"sheet":"BD articles menus","index":2,"n_rows":5,"n_cols":15,"rows_kept":5,"cut":false,"hidden":false,"merged":[[0,0,0,14],[2,0,2,14]]}
["BD articles menus."]
[]
["TabBDArticlesMenus"]
["Nature création","Code nature création","Catégorie","Code catégorie","Articles","Code articles","Période","Code période","Conditionnement","Code conditionnement","Quantité pour un repas","Quantité pour la journée","Date création","Numéro création","Clé article"]
["Création articles menus","CAM","Dessert midi retraite","DMR","Pomme","DMR01",null,null,null,null,null,null,null,null,{"$f":"TabBDArticlesMenus[[#This Row],[Code articles]]&\" \"&TabBDArticlesMenus[[#This Row],[Articles]]","v":"DMR01 Pomme"}]

{"sheet":"Propositions MMR","index":3,"n_rows":532,"n_cols":8,"rows_kept":532,"cut":false,"hidden":false,"merged":[[70,0,70,7],[0,0,0,7],[14,0,14,7],[28,0,28,7],[42,0,42,7],[56,0,56,7],[238,0,238,7],[84,0,84,7],[98,0,98,7],[112,0,112,7],[126,0,126,7],[140,0,140,7],[154,0,154,7],[168,0,168,7],[182,0,182,7],[196,0,196,7],[210,0,210,7],[224,0,224,7],[406,0,406,7],[252,0,252,7],[266,0,266,7],[280,0,280,7],[294,0,294,7],[308,0,308,7],[322,0,322,7],[336,0,336,7],[350,0,350,7],[364,0,364,7],[378,0,378,7],[392,0,392,7],[504,0,504,7],[518,0,518,3],[420,0,420,7],[434,0,434,7],[448,0,448,7],[462,0,462,7],[476,0,476,7],[490,0,490,7]]}
["Proposition menus midi retraite."]
["Numéro du menu","MMR01","MMR02","MMR03","MMR04","MMR05","MMR06","MMR07"]
["Date du menu","2024-01-01","2024-01-02","2024-01-03","2024-01-04","2024-01-05","2024-01-08","2024-01-09"]
["Référence légume","LMR","LMR","LMR","LMR","LMR","LMR","LMR"]
["Légume"]
["Quantité légume"]
["Référence viande","VMR","VMR","VMR","VMR","VMR","VMR","VMR"]
["Viande"]
["Quantité viande",100,100,100,100,100,100,100]
["Référence dessert","DMR01","DMR01","DMR01","DMR01","DMR01","DMR01","DMR01"]
["Dessert","Pomme","Pomme","Pomme","Pomme","Pomme","Pomme","Pomme"]
["Quantité dessert",1,1,1,1,1,1,1]
["Référence jour férié","JF01"]
["Jour férié","Jour de l'an"]
["Proposition menus midi retraite."]
["Numéro du menu","MMR08","MMR09","MMR10","MMR11","MMR12","MMR13","MMR14"]
["Date du menu","2024-01-10","2024-01-11","2024-01-12","2024-01-15","2024-01-16","2024-01-17","2024-01-18"]
["Référence légume","LMR","LMR","LMR","LMR","LMR","LMR","LMR"]
["Légume"]
["Quantité légume"]
["Référence viande","VMR","VMR","VMR","VMR","VMR","VMR","VMR"]
["Viande"]
["Quantité viande",100,100,100,100,100,100,100]
["Référence dessert","DMR01","DMR01","DMR01","DMR01","DMR01","DMR01","DMR01"]
["Dessert","Pomme","Pomme","Pomme","Pomme","Pomme","Pomme","Pomme"]
["Quantité dessert",1,1,1,1,1,1,1]
["Référence jour férié"]
["Jour férié"]
["Proposition menus midi retraite."]
["Numéro du menu","MMR15","MMR16","MMR17","MMR18","MMR19","MMR20","MMR21"]
["Date du menu","2024-01-19","2024-01-22","2024-01-23","2024-01-24","2024-01-25","2024-01-26","2024-01-29"]
["Référence légume","LMR","LMR","LMR","LMR","LMR","LMR","LMR"]
["Légume"]
["Quantité légume"]
["Référence viande","VMR","VMR","VMR","VMR","VMR","VMR","VMR"]
["Viande"]
["Quantité viande",100,100,100,100,100,100,100]
["Référence dessert","DMR01","DMR01","DMR01","DMR01","DMR01","DMR01","DMR01"]
["Dessert","Pomme","Pomme","Pomme","Pomme","Pomme","Pomme","Pomme"]
["Quantité dessert",1,1,1,1,1,1,1]
["Référence jour férié"]
["Jour férié"]
["Proposition menus midi retraite."]
["Numéro du menu","MMR22","MMR23","MMR24","MMR25","MMR26","MMR27","MMR28"]
["Date du menu","2024-01-30","2024-01-31","2024-02-01","2024-02-02","2024-02-05","2024-02-06","2024-02-07"]
["Référence légume","LMR","LMR","LMR","LMR","LMR","LMR","LMR"]
["Légume"]
["Quantité légume"]
["Référence viande","VMR","VMR","VMR","VMR","VMR","VMR","VMR"]
["Viande"]
["Quantité viande",100,100,100,100,100,100,100]
["Référence dessert","DMR01","DMR01","DMR01","DMR01","DMR01","DMR01","DMR01"]
["Dessert","Pomme","Pomme","Pomme","Pomme","Pomme","Pomme","Pomme"]
["Quantité dessert",1,1,1,1,1,1,1]
["Référence jour férié"]
["Jour férié"]
["Proposition menus midi retraite."]
["Numéro du menu","MMR29","MMR30","MMR31","MMR32","MMR33","MMR34","MMR35"]
["Date du menu","2024-02-08","2024-02-09","2024-02-12","2024-02-13","2024-02-14","2024-02-15","2024-02-16"]
["Référence légume","LMR","LMR","LMR","LMR","LMR","LMR","LMR"]
["Légume"]
["Quantité légume"]
["Référence viande","VMR","VMR","VMR","VMR","VMR","VMR","VMR"]
["Viande"]
["Quantité viande",100,100,100,100,100,100,100]
["Référence dessert","DMR01","DMR01","DMR01","DMR01","DMR01","DMR01","DMR01"]
["Dessert","Pomme","Pomme","Pomme","Pomme","Pomme","Pomme","Pomme"]
["Quantité dessert",1,1,1,1,1,1,1]
["Référence jour férié"]
["Jour férié"]
["Proposition menus midi retraite."]
["Numéro du menu","MMR36","MMR37","MMR38","MMR39","MMR40","MMR41","MMR42"]
["Date du menu","2024-02-19","2024-02-20","2024-02-21","2024-02-22","2024-02-23","2024-02-26","2024-02-27"]
["Référence légume","LMR","LMR","LMR","LMR","LMR","LMR","LMR"]
["Légume"]
["Quantité légume"]
["Référence viande","VMR","VMR","VMR","VMR","VMR","VMR","VMR"]
["Viande"]
["Quantité viande",100,100,100,100,100,100,100]
["Référence dessert","DMR01","DMR01","DMR01","DMR01","DMR01","DMR01","DMR01"]
["Dessert","Pomme","Pomme","Pomme","Pomme","Pomme","Pomme","Pomme"]
["Quantité dessert",1,1,1,1,1,1,1]
["Référence jour férié"]
["Jour férié"]
["Proposition menus midi retraite."]
["Numéro du menu","MMR43","MMR44","MMR45","MMR46","MMR47","MMR48","MMR49"]
["Date du menu","2024-02-28","2024-02-29","2024-03-01","2024-03-04","2024-03-05","2024-03-06","2024-03-07"]
["Référence légume","LMR","LMR","LMR","LMR","LMR","LMR","LMR"]
["Légume"]
["Quantité légume"]
["Référence viande","VMR","VMR","VMR","VMR","VMR","VMR","VMR"]
["Viande"]
["Quantité viande",100,100,100,100,100,100,100]
["Référence dessert","DMR01","DMR01","DMR01","DMR01","DMR01","DMR01","DMR01"]
["Dessert","Pomme","Pomme","Pomme","Pomme","Pomme","Pomme","Pomme"]
["Quantité dessert",1,1,1,1,1,1,1]
["Référence jour férié"]
["Jour férié"]
["Proposition menus midi retraite."]
["Numéro du menu","MMR50","MMR51","MMR52","MMR53","MMR54","MMR55","MMR56"]
["Date du menu","2024-03-08","2024-03-11","2024-03-12","2024-03-13","2024-03-14","2024-03-15","2024-03-18"]
["Référence légume","LMR","LMR","LMR","LMR","LMR","LMR","LMR"]
["Légume"]
["Quantité légume"]
["Référence viande","VMR","VMR","VMR","VMR","VMR","VMR","VMR"]
["Viande"]
["Quantité viande",100,100,100,100,100,100,100]
["Référence dessert","DMR01","DMR01","DMR01","DMR01","DMR01","DMR01","DMR01"]
["Dessert","Pomme","Pomme","Pomme","Pomme","Pomme","Pomme","Pomme"]
["Quantité dessert",1,1,1,1,1,1,1]
["Référence jour férié"]
["Jour férié"]
["Proposition menus midi retraite."]
["Numéro du menu","MMR57","MMR58","MMR59","MMR60","MMR61","MMR62","MMR63"]
["Date du menu","2024-03-19","2024-03-20","2024-03-21","2024-03-22","2024-03-25","2024-03-26","2024-03-27"]
["Référence légume","LMR","LMR","LMR","LMR","LMR","LMR","LMR"]
["Légume"]
["Quantité légume"]
["Référence viande","VMR","VMR","VMR","VMR","VMR","VMR","VMR"]
["Viande"]
["Quantité viande",100,100,100,100,100,100,100]
["Référence dessert","DMR01","DMR01","DMR01","DMR01","DMR01","DMR01","DMR01"]
["Dessert","Pomme","Pomme","Pomme","Pomme","Pomme","Pomme","Pomme"]
["Quantité dessert",1,1,1,1,1,1,1]
["Référence jour férié"]
["Jour férié"]
["Proposition menus midi retraite."]
["Numéro du menu","MMR64","MMR65","MMR66","MMR67","MMR68","MMR69","MMR70"]
["Date du menu","2024-03-28","2024-03-29","2024-04-01","2024-04-02","2024-04-03","2024-04-04","2024-04-05"]
["Référence légume","LMR","LMR","LMR","LMR","LMR","LMR","LMR"]
["Légume"]
["Quantité légume"]
["Référence viande","VMR","VMR","VMR","VMR","VMR","VMR","VMR"]
["Viande"]
["Quantité viande",100,100,100,100,100,100,100]
["Référence dessert","DMR01","DMR01","DMR01","DMR01","DMR01","DMR01","DMR01"]
["Dessert","Pomme","Pomme","Pomme","Pomme","Pomme","Pomme","Pomme"]
["Quantité dessert",1,1,1,1,1,1,1]
["Référence jour férié",null,null,"JF03"]
["Jour férié",null,null,"Lundi de Pâques"]
["Proposition menus midi retraite."]
["Numéro du menu","MMR71","MMR72","MMR73","MMR74","MMR75","MMR76","MMR77"]
["Date du menu","2024-04-08","2024-04-09","2024-04-10","2024-04-11","2024-04-12","2024-04-15","2024-04-16"]
["Référence légume","LMR","LMR","LMR","LMR","LMR","LMR","LMR"]
["Légume"]
["Quantité légume"]
["Référence viande","VMR","VMR","VMR","VMR","VMR","VMR","VMR"]
["Viande"]
["Quantité viande",100,100,100,100,100,100,100]
["Référence dessert","DMR01","DMR01","DMR01","DMR01","DMR01","DMR01","DMR01"]
["Dessert","Pomme","Pomme","Pomme","Pomme","Pomme","Pomme","Pomme"]
["Quantité dessert",1,1,1,1,1,1,1]
["Référence jour férié"]
["Jour férié"]
["Proposition menus midi retraite."]
["Numéro du menu","MMR78","MMR79","MMR80","MMR81","MMR82","MMR83","MMR84"]
["Date du menu","2024-04-17","2024-04-18","2024-04-19","2024-04-22","2024-04-23","2024-04-24","2024-04-25"]
["Référence légume","LMR","LMR","LMR","LMR","LMR","LMR","LMR"]
["Légume"]
["Quantité légume"]
["Référence viande","VMR","VMR","VMR","VMR","VMR","VMR","VMR"]
["Viande"]
["Quantité viande",100,100,100,100,100,100,100]
["Référence dessert","DMR01","DMR01","DMR01","DMR01","DMR01","DMR01","DMR01"]
["Dessert","Pomme","Pomme","Pomme","Pomme","Pomme","Pomme","Pomme"]
["Quantité dessert",1,1,1,1,1,1,1]
["Référence jour férié"]
["Jour férié"]
["Proposition menus midi retraite."]
["Numéro du menu","MMR85","MMR86","MMR87","MMR88","MMR89","MMR90","MMR91"]
["Date du menu","2024-04-26","2024-04-29","2024-04-30","2024-05-01","2024-05-02","2024-05-03","2024-05-06"]
["Référence légume","LMR","LMR","LMR","LMR","LMR","LMR","LMR"]
["Légume"]
["Quantité légume"]
["Référence viande","VMR","VMR","VMR","VMR","VMR","VMR","VMR"]
["Viande"]
["Quantité viande",100,100,100,100,100,100,100]
["Référence dessert","DMR01","DMR01","DMR01","DMR01","DMR01","DMR01","DMR01"]
["Dessert","Pomme","Pomme","Pomme","Pomme","Pomme","Pomme","Pomme"]
["Quantité dessert",1,1,1,1,1,1,1]
["Référence jour férié",null,null,null,"JF04"]
["Jour férié",null,null,null,"Fête du travail"]
["Proposition menus midi retraite."]
["Numéro du menu","MMR92","MMR93","MMR94","MMR95","MMR96","MMR97","MMR98"]
["Date du menu","2024-05-07","2024-05-08","2024-05-09","2024-05-10","2024-05-13","2024-05-14","2024-05-15"]
["Référence légume","LMR","LMR","LMR","LMR","LMR","LMR","LMR"]
["Légume"]
["Quantité légume"]
["Référence viande","VMR","VMR","VMR","VMR","VMR","VMR","VMR"]
["Viande"]
["Quantité viande",100,100,100,100,100,100,100]
["Référence dessert","DMR01","DMR01","DMR01","DMR01","DMR01","DMR01","DMR01"]
["Dessert","Pomme","Pomme","Pomme","Pomme","Pomme","Pomme","Pomme"]
["Quantité dessert",1,1,1,1,1,1,1]
["Référence jour férié",null,"JF05","JF06"]
["Jour férié",null,"Victoire 1945","Jeudi de l'ascension"]
["Proposition menus midi retraite."]
["Numéro du menu","MMR99","MMR100","MMR101","MMR102","MMR103","MMR104","MMR105"]
["Date du menu","2024-05-16","2024-05-17","2024-05-20","2024-05-21","2024-05-22","2024-05-23","2024-05-24"]
["Référence légume","LMR","LMR","LMR","LMR","LMR","LMR","LMR"]
["Légume"]
["Quantité légume"]
["Référence viande","VMR","VMR","VMR","VMR","VMR","VMR","VMR"]
["Viande"]
["Quantité viande",100,100,100,100,100,100,100]
["Référence dessert","DMR01","DMR01","DMR01","DMR01","DMR01","DMR01","DMR01"]
["Dessert","Pomme","Pomme","Pomme","Pomme","Pomme","Pomme","Pomme"]
["Quantité dessert",1,1,1,1,1,1,1]
["Référence jour férié",null,null,"JF08"]
["Jour férié",null,null,"Lundi de Pentecôte"]
["Proposition menus midi retraite."]
["Numéro du menu","MMR106","MMR107","MMR108","MMR109","MMR110","MMR111","MMR112"]
["Date du menu","2024-05-27","2024-05-28","2024-05-29","2024-05-30","2024-05-31","2024-06-03","2024-06-04"]
["Référence légume","LMR","LMR","LMR","LMR","LMR","LMR","LMR"]
["Légume"]
["Quantité légume"]
["Référence viande","VMR","VMR","VMR","VMR","VMR","VMR","VMR"]
["Viande"]
["Quantité viande",100,100,100,100,100,100,100]
["Référence dessert","DMR01","DMR01","DMR01","DMR01","DMR01","DMR01","DMR01"]
["Dessert","Pomme","Pomme","Pomme","Pomme","Pomme","Pomme","Pomme"]
["Quantité dessert",1,1,1,1,1,1,1]
["Référence jour férié"]
["Jour férié"]
["Proposition menus midi retraite."]
["Numéro du menu","MMR113","MMR114","MMR115","MMR116","MMR117","MMR118","MMR119"]
["Date du menu","2024-06-05","2024-06-06","2024-06-07","2024-06-10","2024-06-11","2024-06-12","2024-06-13"]
["Référence légume","LMR","LMR","LMR","LMR","LMR","LMR","LMR"]
["Légume"]
["Quantité légume"]
["Référence viande","VMR","VMR","VMR","VMR","VMR","VMR","VMR"]
["Viande"]
["Quantité viande",100,100,100,100,100,100,100]
["Référence dessert","DMR01","DMR01","DMR01","DMR01","DMR01","DMR01","DMR01"]
["Dessert","Pomme","Pomme","Pomme","Pomme","Pomme","Pomme","Pomme"]
["Quantité dessert",1,1,1,1,1,1,1]
["Référence jour férié"]
["Jour férié"]
["Proposition menus midi retraite."]
["Numéro du menu","MMR120","MMR121","MMR122","MMR123","MMR124","MMR125","MMR126"]
["Date du menu","2024-06-14","2024-06-17","2024-06-18","2024-06-19","2024-06-20","2024-06-21","2024-06-24"]
["Référence légume","LMR","LMR","LMR","LMR","LMR","LMR","LMR"]
["Légume"]
["Quantité légume"]
["Référence viande","VMR","VMR","VMR","VMR","VMR","VMR","VMR"]
["Viande"]
["Quantité viande",100,100,100,100,100,100,100]
["Référence dessert","DMR01","DMR01","DMR01","DMR01","DMR01","DMR01","DMR01"]
["Dessert","Pomme","Pomme","Pomme","Pomme","Pomme","Pomme","Pomme"]
["Quantité dessert",1,1,1,1,1,1,1]
["Référence jour férié"]
["Jour férié"]
["Proposition menus midi retraite."]
["Numéro du menu","MMR127","MMR128","MMR129","MMR130","MMR131","MMR132","MMR133"]
["Date du menu","2024-06-25","2024-06-26","2024-06-27","2024-06-28","2024-07-01","2024-07-02","2024-07-03"]
["Référence légume","LMR","LMR","LMR","LMR","LMR","LMR","LMR"]
["Légume"]
["Quantité légume"]
["Référence viande","VMR","VMR","VMR","VMR","VMR","VMR","VMR"]
["Viande"]
["Quantité viande",100,100,100,100,100,100,100]
["Référence dessert","DMR01","DMR01","DMR01","DMR01","DMR01","DMR01","DMR01"]
["Dessert","Pomme","Pomme","Pomme","Pomme","Pomme","Pomme","Pomme"]
["Quantité dessert",1,1,1,1,1,1,1]
["Référence jour férié"]
["Jour férié"]
["Proposition menus midi retraite."]
["Numéro du menu","MMR134","MMR135","MMR136","MMR137","MMR138","MMR139","MMR140"]
["Date du menu","2024-07-04","2024-07-05","2024-07-08","2024-07-09","2024-07-10","2024-07-11","2024-07-12"]
["Référence légume","LMR","LMR","LMR","LMR","LMR","LMR","LMR"]
["Légume"]
["Quantité légume"]
["Référence viande","VMR","VMR","VMR","VMR","VMR","VMR","VMR"]
["Viande"]
["Quantité viande",100,100,100,100,100,100,100]
["Référence dessert","DMR01","DMR01","DMR01","DMR01","DMR01","DMR01","DMR01"]
["Dessert","Pomme","Pomme","Pomme","Pomme","Pomme","Pomme","Pomme"]
["Quantité dessert",1,1,1,1,1,1,1]
["Référence jour férié"]
["Jour férié"]
["Proposition menus midi retraite."]
["Numéro du menu","MMR141","MMR142","MMR143","MMR144","MMR145","MMR146","MMR147"]
["Date du menu","2024-07-15","2024-07-16","2024-07-17","2024-07-18","2024-07-19","2024-07-22","2024-07-23"]
["Référence légume","LMR","LMR","LMR","LMR","LMR","LMR","LMR"]
["Légume"]
["Quantité légume"]
["Référence viande","VMR","VMR","VMR","VMR","VMR","VMR","VMR"]
["Viande"]
["Quantité viande",100,100,100,100,100,100,100]
["Référence dessert","DMR01","DMR01","DMR01","DMR01","DMR01","DMR01","DMR01"]
["Dessert","Pomme","Pomme","Pomme","Pomme","Pomme","Pomme","Pomme"]
["Quantité dessert",1,1,1,1,1,1,1]
["Référence jour férié"]
["Jour férié"]
["Proposition menus midi retraite."]
["Numéro du menu","MMR148","MMR149","MMR150","MMR151","MMR152","MMR153","MMR154"]
["Date du menu","2024-07-24","2024-07-25","2024-07-26","2024-07-29","2024-07-30","2024-07-31","2024-08-01"]
["Référence légume","LMR","LMR","LMR","LMR","LMR","LMR","LMR"]
["Légume"]
["Quantité légume"]
["Référence viande","VMR","VMR","VMR","VMR","VMR","VMR","VMR"]
["Viande"]
["Quantité viande",100,100,100,100,100,100,100]
["Référence dessert","DMR01","DMR01","DMR01","DMR01","DMR01","DMR01","DMR01"]
["Dessert","Pomme","Pomme","Pomme","Pomme","Pomme","Pomme","Pomme"]
["Quantité dessert",1,1,1,1,1,1,1]
["Référence jour férié"]
["Jour férié"]
["Proposition menus midi retraite."]
["Numéro du menu","MMR155","MMR156","MMR157","MMR158","MMR159","MMR160","MMR161"]
["Date du menu","2024-08-02","2024-08-05","2024-08-06","2024-08-07","2024-08-08","2024-08-09","2024-08-12"]
["Référence légume","LMR","LMR","LMR","LMR","LMR","LMR","LMR"]
["Légume"]
["Quantité légume"]
["Référence viande","VMR","VMR","VMR","VMR","VMR","VMR","VMR"]
["Viande"]
["Quantité viande",100,100,100,100,100,100,100]
["Référence dessert","DMR01","DMR01","DMR01","DMR01","DMR01","DMR01","DMR01"]
["Dessert","Pomme","Pomme","Pomme","Pomme","Pomme","Pomme","Pomme"]
["Quantité dessert",1,1,1,1,1,1,1]
["Référence jour férié"]
["Jour férié"]
["Proposition menus midi retraite."]
["Numéro du menu","MMR162","MMR163","MMR164","MMR165","MMR166","MMR167","MMR168"]
["Date du menu","2024-08-13","2024-08-14","2024-08-15","2024-08-16","2024-08-19","2024-08-20","2024-08-21"]
["Référence légume","LMR","LMR","LMR","LMR","LMR","LMR","LMR"]
["Légume"]
["Quantité légume"]
["Référence viande","VMR","VMR","VMR","VMR","VMR","VMR","VMR"]
["Viande"]
["Quantité viande",100,100,100,100,100,100,100]
["Référence dessert","DMR01","DMR01","DMR01","DMR01","DMR01","DMR01","DMR01"]
["Dessert","Pomme","Pomme","Pomme","Pomme","Pomme","Pomme","Pomme"]
["Quantité dessert",1,1,1,1,1,1,1]
["Référence jour férié",null,null,"JF10"]
["Jour férié",null,null,"Assomption"]
["Proposition menus midi retraite."]
["Numéro du menu","MMR169","MMR170","MMR171","MMR172","MMR173","MMR174","MMR175"]
["Date du menu","2024-08-22","2024-08-23","2024-08-26","2024-08-27","2024-08-28","2024-08-29","2024-08-30"]
["Référence légume","LMR","LMR","LMR","LMR","LMR","LMR","LMR"]
["Légume"]
["Quantité légume"]
["Référence viande","VMR","VMR","VMR","VMR","VMR","VMR","VMR"]
["Viande"]
["Quantité viande",100,100,100,100,100,100,100]
["Référence dessert","DMR01","DMR01","DMR01","DMR01","DMR01","DMR01","DMR01"]
["Dessert","Pomme","Pomme","Pomme","Pomme","Pomme","Pomme","Pomme"]
["Quantité dessert",1,1,1,1,1,1,1]
["Référence jour férié"]
["Jour férié"]
["Proposition menus midi retraite."]
["Numéro du menu","MMR176","MMR177","MMR178","MMR179","MMR180","MMR181","MMR182"]
["Date du menu","2024-09-02","2024-09-03","2024-09-04","2024-09-05","2024-09-06","2024-09-09","2024-09-10"]
["Référence légume","LMR","LMR","LMR","LMR","LMR","LMR","LMR"]
["Légume"]
["Quantité légume"]
["Référence viande","VMR","VMR","VMR","VMR","VMR","VMR","VMR"]
["Viande"]
["Quantité viande",100,100,100,100,100,100,100]
["Référence dessert","DMR01","DMR01","DMR01","DMR01","DMR01","DMR01","DMR01"]
["Dessert","Pomme","Pomme","Pomme","Pomme","Pomme","Pomme","Pomme"]
["Quantité dessert",1,1,1,1,1,1,1]
["Référence jour férié"]
["Jour férié"]
["Proposition menus midi retraite."]
["Numéro du menu","MMR183","MMR184","MMR185","MMR186","MMR187","MMR188","MMR189"]
["Date du menu","2024-09-11","2024-09-12","2024-09-13","2024-09-16","2024-09-17","2024-09-18","2024-09-19"]
["Référence légume","LMR","LMR","LMR","LMR","LMR","LMR","LMR"]
["Légume"]
["Quantité légume"]
["Référence viande","VMR","VMR","VMR","VMR","VMR","VMR","VMR"]
["Viande"]
["Quantité viande",100,100,100,100,100,100,100]
["Référence dessert","DMR01","DMR01","DMR01","DMR01","DMR01","DMR01","DMR01"]
["Dessert","Pomme","Pomme","Pomme","Pomme","Pomme","Pomme","Pomme"]
["Quantité dessert",1,1,1,1,1,1,1]
["Référence jour férié"]
["Jour férié"]
["Proposition menus midi retraite."]
["Numéro du menu","MMR190","MMR191","MMR192","MMR193","MMR194","MMR195","MMR196"]
["Date du menu","2024-09-20","2024-09-23","2024-09-24","2024-09-25","2024-09-26","2024-09-27","2024-09-30"]
["Référence légume","LMR","LMR","LMR","LMR","LMR","LMR","LMR"]
["Légume"]
["Quantité légume"]
["Référence viande","VMR","VMR","VMR","VMR","VMR","VMR","VMR"]
["Viande"]
["Quantité viande",100,100,100,100,100,100,100]
["Référence dessert","DMR01","DMR01","DMR01","DMR01","DMR01","DMR01","DMR01"]
["Dessert","Pomme","Pomme","Pomme","Pomme","Pomme","Pomme","Pomme"]
["Quantité dessert",1,1,1,1,1,1,1]
["Référence jour férié"]
["Jour férié"]
["Proposition menus midi retraite."]
["Numéro du menu","MMR197","MMR198","MMR199","MMR200","MMR201","MMR202","MMR203"]
["Date du menu","2024-10-01","2024-10-02","2024-10-03","2024-10-04","2024-10-07","2024-10-08","2024-10-09"]
["Référence légume","LMR","LMR","LMR","LMR","LMR","LMR","LMR"]
["Légume"]
["Quantité légume"]
["Référence viande","VMR","VMR","VMR","VMR","VMR","VMR","VMR"]
["Viande"]
["Quantité viande",100,100,100,100,100,100,100]
["Référence dessert","DMR01","DMR01","DMR01","DMR01","DMR01","DMR01","DMR01"]
["Dessert","Pomme","Pomme","Pomme","Pomme","Pomme","Pomme","Pomme"]
["Quantité dessert",1,1,1,1,1,1,1]
["Référence jour férié"]
["Jour férié"]
["Proposition menus midi retraite."]
["Numéro du menu","MMR204","MMR205","MMR206","MMR207","MMR208","MMR209","MMR210"]
["Date du menu","2024-10-10","2024-10-11","2024-10-14","2024-10-15","2024-10-16","2024-10-17","2024-10-18"]
["Référence légume","LMR","LMR","LMR","LMR","LMR","LMR","LMR"]
["Légume"]
["Quantité légume"]
["Référence viande","VMR","VMR","VMR","VMR","VMR","VMR","VMR"]
["Viande"]
["Quantité viande",100,100,100,100,100,100,100]
["Référence dessert","DMR01","DMR01","DMR01","DMR01","DMR01","DMR01","DMR01"]
["Dessert","Pomme","Pomme","Pomme","Pomme","Pomme","Pomme","Pomme"]
["Quantité dessert",1,1,1,1,1,1,1]
["Référence jour férié"]
["Jour férié"]
["Proposition menus midi retraite."]
["Numéro du menu","MMR211","MMR212","MMR213","MMR214","MMR215","MMR216","MMR217"]
["Date du menu","2024-10-21","2024-10-22","2024-10-23","2024-10-24","2024-10-25","2024-10-28","2024-10-29"]
["Référence légume","LMR","LMR","LMR","LMR","LMR","LMR","LMR"]
["Légume"]
["Quantité légume"]
["Référence viande","VMR","VMR","VMR","VMR","VMR","VMR","VMR"]
["Viande"]
["Quantité viande",100,100,100,100,100,100,100]
["Référence dessert","DMR01","DMR01","DMR01","DMR01","DMR01","DMR01","DMR01"]
["Dessert","Pomme","Pomme","Pomme","Pomme","Pomme","Pomme","Pomme"]
["Quantité dessert",1,1,1,1,1,1,1]
["Référence jour férié"]
["Jour férié"]
["Proposition menus midi retraite."]
["Numéro du menu","MMR218","MMR219","MMR220","MMR221","MMR222","MMR223","MMR224"]
["Date du menu","2024-10-30","2024-10-31","2024-11-01","2024-11-04","2024-11-05","2024-11-06","2024-11-07"]
["Référence légume","LMR","LMR","LMR","LMR","LMR","LMR","LMR"]
["Légume"]
["Quantité légume"]
["Référence viande","VMR","VMR","VMR","VMR","VMR","VMR","VMR"]
["Viande"]
["Quantité viande",100,100,100,100,100,100,100]
["Référence dessert","DMR01","DMR01","DMR01","DMR01","DMR01","DMR01","DMR01"]
["Dessert","Pomme","Pomme","Pomme","Pomme","Pomme","Pomme","Pomme"]
["Quantité dessert",1,1,1,1,1,1,1]
["Référence jour férié",null,null,"JF11"]
["Jour férié",null,null,"Toussaint"]
["Proposition menus midi retraite."]
["Numéro du menu","MMR225","MMR226","MMR227","MMR228","MMR229","MMR230","MMR231"]
["Date du menu","2024-11-08","2024-11-11","2024-11-12","2024-11-13","2024-11-14","2024-11-15","2024-11-18"]
["Référence légume","LMR","LMR","LMR","LMR","LMR","LMR","LMR"]
["Légume"]
["Quantité légume"]
["Référence viande","VMR","VMR","VMR","VMR","VMR","VMR","VMR"]
["Viande"]
["Quantité viande",100,100,100,100,100,100,100]
["Référence dessert","DMR01","DMR01","DMR01","DMR01","DMR01","DMR01","DMR01"]
["Dessert","Pomme","Pomme","Pomme","Pomme","Pomme","Pomme","Pomme"]
["Quantité dessert",1,1,1,1,1,1,1]
["Référence jour férié",null,"JF12"]
["Jour férié",null,"Armistice 1918"]
["Proposition menus midi retraite."]
["Numéro du menu","MMR232","MMR233","MMR234","MMR235","MMR236","MMR237","MMR238"]
["Date du menu","2024-11-19","2024-11-20","2024-11-21","2024-11-22","2024-11-25","2024-11-26","2024-11-27"]
["Référence légume","LMR","LMR","LMR","LMR","LMR","LMR","LMR"]
["Légume"]
["Quantité légume"]
["Référence viande","VMR","VMR","VMR","VMR","VMR","VMR","VMR"]
["Viande"]
["Quantité viande",100,100,100,100,100,100,100]
["Référence dessert","DMR01","DMR01","DMR01","DMR01","DMR01","DMR01","DMR01"]
["Dessert","Pomme","Pomme","Pomme","Pomme","Pomme","Pomme","Pomme"]
["Quantité dessert",1,1,1,1,1,1,1]
["Référence jour férié"]
["Jour férié"]
["Proposition menus midi retraite."]
["Numéro du menu","MMR239","MMR240","MMR241","MMR242","MMR243","MMR244","MMR245"]
["Date du menu","2024-11-28","2024-11-29","2024-12-02","2024-12-03","2024-12-04","2024-12-05","2024-12-06"]
["Référence légume","LMR","LMR","LMR","LMR","LMR","LMR","LMR"]
["Légume"]
["Quantité légume"]
["Référence viande","VMR","VMR","VMR","VMR","VMR","VMR","VMR"]
["Viande"]
["Quantité viande",100,100,100,100,100,100,100]
["Référence dessert","DMR01","DMR01","DMR01","DMR01","DMR01","DMR01","DMR01"]
["Dessert","Pomme","Pomme","Pomme","Pomme","Pomme","Pomme","Pomme"]
["Quantité dessert",1,1,1,1,1,1,1]
["Référence jour férié"]
["Jour férié"]
["Proposition menus midi retraite."]
["Numéro du menu","MMR246","MMR247","MMR248","MMR249","MMR250","MMR251","MMR252"]
["Date du menu","2024-12-09","2024-12-10","2024-12-11","2024-12-12","2024-12-13","2024-12-16","2024-12-17"]
["Référence légume","LMR","LMR","LMR","LMR","LMR","LMR","LMR"]
["Légume"]
["Quantité légume"]
["Référence viande","VMR","VMR","VMR","VMR","VMR","VMR","VMR"]
["Viande"]
["Quantité viande",100,100,100,100,100,100,100]
["Référence dessert","DMR01","DMR01","DMR01","DMR01","DMR01","DMR01","DMR01"]
["Dessert","Pomme","Pomme","Pomme","Pomme","Pomme","Pomme","Pomme"]
["Quantité dessert",1,1,1,1,1,1,1]
["Référence jour férié"]
["Jour férié"]
["Proposition menus midi retraite."]
["Numéro du menu","MMR253","MMR254","MMR255","MMR256","MMR257","MMR258","MMR259"]
["Date du menu","2024-12-18","2024-12-19","2024-12-20","2024-12-23","2024-12-24","2024-12-25","2024-12-26"]
["Référence légume","LMR","LMR","LMR","LMR","LMR","LMR","LMR"]
["Légume"]
["Quantité légume"]
["Référence viande","VMR","VMR","VMR","VMR","VMR","VMR","VMR"]
["Viande"]
["Quantité viande",100,100,100,100,100,100,100]
["Référence dessert","DMR01","DMR01","DMR01","DMR01","DMR01","DMR01","DMR01"]
["Dessert","Pomme","Pomme","Pomme","Pomme","Pomme","Pomme","Pomme"]
["Quantité dessert",1,1,1,1,1,1,1]
["Référence jour férié",null,null,null,null,null,"JF13"]
["Jour férié",null,null,null,null,null,"Noël"]
["Proposition menus midi retraite."]
["Numéro du menu","MMR260","MMR261","MMR262"]
["Date du menu","2024-12-27","2024-12-30","2024-12-31"]
["Référence légume","LMR","LMR","LMR"]
["Légume"]
["Quantité légume"]
["Référence viande","VMR","VMR","VMR"]
["Viande"]
["Quantité viande",100,100,100]
["Référence dessert","DMR01","DMR01","DMR01"]
["Dessert","Pomme","Pomme","Pomme"]
["Quantité dessert",1,1,1]
["Référence jour férié"]
["Jour férié"]

{"sheet":"Propositions MJ","index":4,"n_rows":901,"n_cols":8,"rows_kept":901,"cut":false,"hidden":false,"merged":[[187,0,187,7],[0,0,0,7],[17,0,17,7],[34,0,34,7],[51,0,51,7],[68,0,68,7],[85,0,85,7],[102,0,102,7],[119,0,119,7],[136,0,136,7],[153,0,153,7],[170,0,170,7],[391,0,391,7],[204,0,204,7],[221,0,221,7],[238,0,238,7],[255,0,255,7],[272,0,272,7],[289,0,289,7],[306,0,306,7],[323,0,323,7],[340,0,340,7],[357,0,357,7],[374,0,374,7],[595,0,595,7],[408,0,408,7],[425,0,425,7],[442,0,442,7],[459,0,459,7],[476,0,476,7],[493,0,493,7],[510,0,510,7],[527,0,527,7],[544,0,544,7],[561,0,561,7],[578,0,578,7],[799,0,799,7],[612,0,612,7],[629,0,629,7],[646,0,646,7],[663,0,663,7],[680,0,680,7],[697,0,697,7],[714,0,714,7],[731,0,731,7],[748,0,748,7],[765,0,765,7],[782,0,782,7],[816,0,816,7],[833,0,833,7],[850,0,850,7],[867,0,867,7],[884,0,884,2]]}
["Proposition menus journaliers."]
["Numéro du menu","MJ01","MJ02","MJ03","MJ04","MJ05","MJ06","MJ07"]
["Date du menu","2024-01-01","2024-01-02","2024-01-03","2024-01-04","2024-01-05","2024-01-06","2024-01-07"]
["Référence légume","LSLM","LSLM","LSMJ","LSMJ","LSV","LWES","LWED"]
["Légume"]
["Quantité légume"]
["Référence légume 2"]
["Légume 2"]
["Quantité légume 2"]
["Référence viande","VS","VS","VS","VS","VS","VS","VS"]
["Viande"]
["Quantité viande"]
["Référence dessert","DS01","DS01","DS01","DS01","DS01","DWE","DWE"]
["Dessert","Pomme","Pomme","Pomme","Pomme","Pomme"]
["Quantité dessert",1,1,1,1,1]
["Référence jour férié","JF01"]
["Jour férié","Jour de l'an"]
["Proposition menus journaliers."]
["Numéro du menu","MJ08","MJ09","MJ10","MJ11","MJ12","MJ13","MJ14"]
["Date du menu","2024-01-08","2024-01-09","2024-01-10","2024-01-11","2024-01-12","2024-01-13","2024-01-14"]
["Référence légume","LSLM","LSLM","LSMJ","LSMJ","LSV","LWES","LWED"]
["Légume"]
["Quantité légume"]
["Référence légume 2"]
["Légume 2"]
["Quantité légume 2"]
["Référence viande","VS","VS","VS","VS","VS","VS","VS"]
["Viande"]
["Quantité viande"]
["Référence dessert","DS01","DS01","DS01","DS01","DS01","DWE","DWE"]
["Dessert","Pomme","Pomme","Pomme","Pomme","Pomme"]
["Quantité dessert",1,1,1,1,1]
["Référence jour férié"]
["Jour férié"]
["Proposition menus journaliers."]
["Numéro du menu","MJ15","MJ16","MJ17","MJ18","MJ19","MJ20","MJ21"]
["Date du menu","2024-01-15","2024-01-16","2024-01-17","2024-01-18","2024-01-19","2024-01-20","2024-01-21"]
["Référence légume","LSLM","LSLM","LSMJ","LSMJ","LSV","LWES","LWED"]
["Légume"]
["Quantité légume"]
["Référence légume 2"]
["Légume 2"]
["Quantité légume 2"]
["Référence viande","VS","VS","VS","VS","VS","VS","VS"]
["Viande"]
["Quantité viande"]
["Référence dessert","DS01","DS01","DS01","DS01","DS01","DWE","DWE"]
["Dessert","Pomme","Pomme","Pomme","Pomme","Pomme"]
["Quantité dessert",1,1,1,1,1]
["Référence jour férié"]
["Jour férié"]
["Proposition menus journaliers."]
["Numéro du menu","MJ22","MJ23","MJ24","MJ25","MJ26","MJ27","MJ28"]
["Date du menu","2024-01-22","2024-01-23","2024-01-24","2024-01-25","2024-01-26","2024-01-27","2024-01-28"]
["Référence légume","LSLM","LSLM","LSMJ","LSMJ","LSV","LWES","LWED"]
["Légume"]
["Quantité légume"]
["Référence légume 2"]
["Légume 2"]
["Quantité légume 2"]
["Référence viande","VS","VS","VS","VS","VS","VS","VS"]
["Viande"]
["Quantité viande"]
["Référence dessert","DS01","DS01","DS01","DS01","DS01","DWE","DWE"]
["Dessert","Pomme","Pomme","Pomme","Pomme","Pomme"]
["Quantité dessert",1,1,1,1,1]
["Référence jour férié"]
["Jour férié"]
["Proposition menus journaliers."]
["Numéro du menu","MJ29","MJ30","MJ31","MJ32","MJ33","MJ34","MJ35"]
["Date du menu","2024-01-29","2024-01-30","2024-01-31","2024-02-01","2024-02-02","2024-02-03","2024-02-04"]
["Référence légume","LSLM","LSLM","LSMJ","LSMJ","LSV","LWES","LWED"]
["Légume"]
["Quantité légume"]
["Référence légume 2"]
["Légume 2"]
["Quantité légume 2"]
["Référence viande","VS","VS","VS","VS","VS","VS","VS"]
["Viande"]
["Quantité viande"]
["Référence dessert","DS01","DS01","DS01","DS01","DS01","DWE","DWE"]
["Dessert","Pomme","Pomme","Pomme","Pomme","Pomme"]
["Quantité dessert",1,1,1,1,1]
["Référence jour férié"]
["Jour férié"]
["Proposition menus journaliers."]
["Numéro du menu","MJ36","MJ37","MJ38","MJ39","MJ40","MJ41","MJ42"]
["Date du menu","2024-02-05","2024-02-06","2024-02-07","2024-02-08","2024-02-09","2024-02-10","2024-02-11"]
["Référence légume","LSLM","LSLM","LSMJ","LSMJ","LSV","LWES","LWED"]
["Légume"]
["Quantité légume"]
["Référence légume 2"]
["Légume 2"]
["Quantité légume 2"]
["Référence viande","VS","VS","VS","VS","VS","VS","VS"]
["Viande"]
["Quantité viande"]
["Référence dessert","DS01","DS01","DS01","DS01","DS01","DWE","DWE"]
["Dessert","Pomme","Pomme","Pomme","Pomme","Pomme"]
["Quantité dessert",1,1,1,1,1]
["Référence jour férié"]
["Jour férié"]
["Proposition menus journaliers."]
["Numéro du menu","MJ43","MJ44","MJ45","MJ46","MJ47","MJ48","MJ49"]
["Date du menu","2024-02-12","2024-02-13","2024-02-14","2024-02-15","2024-02-16","2024-02-17","2024-02-18"]
["Référence légume","LSLM","LSLM","LSMJ","LSMJ","LSV","LWES","LWED"]
["Légume"]
["Quantité légume"]
["Référence légume 2"]
["Légume 2"]
["Quantité légume 2"]
["Référence viande","VS","VS","VS","VS","VS","VS","VS"]
["Viande"]
["Quantité viande"]
["Référence dessert","DS01","DS01","DS01","DS01","DS01","DWE","DWE"]
["Dessert","Pomme","Pomme","Pomme","Pomme","Pomme"]
["Quantité dessert",1,1,1,1,1]
["Référence jour férié"]
["Jour férié"]
["Proposition menus journaliers."]
["Numéro du menu","MJ50","MJ51","MJ52","MJ53","MJ54","MJ55","MJ56"]
["Date du menu","2024-02-19","2024-02-20","2024-02-21","2024-02-22","2024-02-23","2024-02-24","2024-02-25"]
["Référence légume","LSLM","LSLM","LSMJ","LSMJ","LSV","LWES","LWED"]
["Légume"]
["Quantité légume"]
["Référence légume 2"]
["Légume 2"]
["Quantité légume 2"]
["Référence viande","VS","VS","VS","VS","VS","VS","VS"]
["Viande"]
["Quantité viande"]
["Référence dessert","DS01","DS01","DS01","DS01","DS01","DWE","DWE"]
["Dessert","Pomme","Pomme","Pomme","Pomme","Pomme"]
["Quantité dessert",1,1,1,1,1]
["Référence jour férié"]
["Jour férié"]
["Proposition menus journaliers."]
["Numéro du menu","MJ57","MJ58","MJ59","MJ60","MJ61","MJ62","MJ63"]
["Date du menu","2024-02-26","2024-02-27","2024-02-28","2024-02-29","2024-03-01","2024-03-02","2024-03-03"]
["Référence légume","LSLM","LSLM","LSMJ","LSMJ","LSV","LWES","LWED"]
["Légume"]
["Quantité légume"]
["Référence légume 2"]
["Légume 2"]
["Quantité légume 2"]
["Référence viande","VS","VS","VS","VS","VS","VS","VS"]
["Viande"]
["Quantité viande"]
["Référence dessert","DS01","DS01","DS01","DS01","DS01","DWE","DWE"]
["Dessert","Pomme","Pomme","Pomme","Pomme","Pomme"]
["Quantité dessert",1,1,1,1,1]
["Référence jour férié"]
["Jour férié"]
["Proposition menus journaliers."]
["Numéro du menu","MJ64","MJ65","MJ66","MJ67","MJ68","MJ69","MJ70"]
["Date du menu","2024-03-04","2024-03-05","2024-03-06","2024-03-07","2024-03-08","2024-03-09","2024-03-10"]
["Référence légume","LSLM","LSLM","LSMJ","LSMJ","LSV","LWES","LWED"]
["Légume"]
["Quantité légume"]
["Référence légume 2"]
["Légume 2"]
["Quantité légume 2"]
["Référence viande","VS","VS","VS","VS","VS","VS","VS"]
["Viande"]
["Quantité viande"]
["Référence dessert","DS01","DS01","DS01","DS01","DS01","DWE","DWE"]
["Dessert","Pomme","Pomme","Pomme","Pomme","Pomme"]
["Quantité dessert",1,1,1,1,1]
["Référence jour férié"]
["Jour férié"]
["Proposition menus journaliers."]
["Numéro du menu","MJ71","MJ72","MJ73","MJ74","MJ75","MJ76","MJ77"]
["Date du menu","2024-03-11","2024-03-12","2024-03-13","2024-03-14","2024-03-15","2024-03-16","2024-03-17"]
["Référence légume","LSLM","LSLM","LSMJ","LSMJ","LSV","LWES","LWED"]
["Légume"]
["Quantité légume"]
["Référence légume 2"]
["Légume 2"]
["Quantité légume 2"]
["Référence viande","VS","VS","VS","VS","VS","VS","VS"]
["Viande"]
["Quantité viande"]
["Référence dessert","DS01","DS01","DS01","DS01","DS01","DWE","DWE"]
["Dessert","Pomme","Pomme","Pomme","Pomme","Pomme"]
["Quantité dessert",1,1,1,1,1]
["Référence jour férié"]
["Jour férié"]
["Proposition menus journaliers."]
["Numéro du menu","MJ78","MJ79","MJ80","MJ81","MJ82","MJ83","MJ84"]
["Date du menu","2024-03-18","2024-03-19","2024-03-20","2024-03-21","2024-03-22","2024-03-23","2024-03-24"]
["Référence légume","LSLM","LSLM","LSMJ","LSMJ","LSV","LWES","LWED"]
["Légume"]
["Quantité légume"]
["Référence légume 2"]
["Légume 2"]
["Quantité légume 2"]
["Référence viande","VS","VS","VS","VS","VS","VS","VS"]
["Viande"]
["Quantité viande"]
["Référence dessert","DS01","DS01","DS01","DS01","DS01","DWE","DWE"]
["Dessert","Pomme","Pomme","Pomme","Pomme","Pomme"]
["Quantité dessert",1,1,1,1,1]
["Référence jour férié"]
["Jour férié"]
["Proposition menus journaliers."]
["Numéro du menu","MJ85","MJ86","MJ87","MJ88","MJ89","MJ90","MJ91"]
["Date du menu","2024-03-25","2024-03-26","2024-03-27","2024-03-28","2024-03-29","2024-03-30","2024-03-31"]
["Référence légume","LSLM","LSLM","LSMJ","LSMJ","LSV","LWES","LWED"]
["Légume"]
["Quantité légume"]
["Référence légume 2"]
["Légume 2"]
["Quantité légume 2"]
["Référence viande","VS","VS","VS","VS","VS","VS","VS"]
["Viande"]
["Quantité viande"]
["Référence dessert","DS01","DS01","DS01","DS01","DS01","DWE","DWE"]
["Dessert","Pomme","Pomme","Pomme","Pomme","Pomme"]
["Quantité dessert",1,1,1,1,1]
["Référence jour férié",null,null,null,null,null,null,"JF02"]
["Jour férié",null,null,null,null,null,null,"Pâques"]
["Proposition menus journaliers."]
["Numéro du menu","MJ92","MJ93","MJ94","MJ95","MJ96","MJ97","MJ98"]
["Date du menu","2024-04-01","2024-04-02","2024-04-03","2024-04-04","2024-04-05","2024-04-06","2024-04-07"]
["Référence légume","LSLM","LSLM","LSMJ","LSMJ","LSV","LWES","LWED"]
["Légume"]
["Quantité légume"]
["Référence légume 2"]
["Légume 2"]
["Quantité légume 2"]
["Référence viande","VS","VS","VS","VS","VS","VS","VS"]
["Viande"]
["Quantité viande"]
["Référence dessert","DS01","DS01","DS01","DS01","DS01","DWE","DWE"]
["Dessert","Pomme","Pomme","Pomme","Pomme","Pomme"]
["Quantité dessert",1,1,1,1,1]
["Référence jour férié","JF03"]
["Jour férié","Lundi de Pâques"]
["Proposition menus journaliers."]
["Numéro du menu","MJ99","MJ100","MJ101","MJ102","MJ103","MJ104","MJ105"]
["Date du menu","2024-04-08","2024-04-09","2024-04-10","2024-04-11","2024-04-12","2024-04-13","2024-04-14"]
["Référence légume","LSLM","LSLM","LSMJ","LSMJ","LSV","LWES","LWED"]
["Légume"]
["Quantité légume"]
["Référence légume 2"]
["Légume 2"]
["Quantité légume 2"]
["Référence viande","VS","VS","VS","VS","VS","VS","VS"]
["Viande"]
["Quantité viande"]
["Référence dessert","DS01","DS01","DS01","DS01","DS01","DWE","DWE"]
["Dessert","Pomme","Pomme","Pomme","Pomme","Pomme"]
["Quantité dessert",1,1,1,1,1]
["Référence jour férié"]
["Jour férié"]
["Proposition menus journaliers."]
["Numéro du menu","MJ106","MJ107","MJ108","MJ109","MJ110","MJ111","MJ112"]
["Date du menu","2024-04-15","2024-04-16","2024-04-17","2024-04-18","2024-04-19","2024-04-20","2024-04-21"]
["Référence légume","LSLM","LSLM","LSMJ","LSMJ","LSV","LWES","LWED"]
["Légume"]
["Quantité légume"]
["Référence légume 2"]
["Légume 2"]
["Quantité légume 2"]
["Référence viande","VS","VS","VS","VS","VS","VS","VS"]
["Viande"]
["Quantité viande"]
["Référence dessert","DS01","DS01","DS01","DS01","DS01","DWE","DWE"]
["Dessert","Pomme","Pomme","Pomme","Pomme","Pomme"]
["Quantité dessert",1,1,1,1,1]
["Référence jour férié"]
["Jour férié"]
["Proposition menus journaliers."]
["Numéro du menu","MJ113","MJ114","MJ115","MJ116","MJ117","MJ118","MJ119"]
["Date du menu","2024-04-22","2024-04-23","2024-04-24","2024-04-25","2024-04-26","2024-04-27","2024-04-28"]
["Référence légume","LSLM","LSLM","LSMJ","LSMJ","LSV","LWES","LWED"]
["Légume"]
["Quantité légume"]
["Référence légume 2"]
["Légume 2"]
["Quantité légume 2"]
["Référence viande","VS","VS","VS","VS","VS","VS","VS"]
["Viande"]
["Quantité viande"]
["Référence dessert","DS01","DS01","DS01","DS01","DS01","DWE","DWE"]
["Dessert","Pomme","Pomme","Pomme","Pomme","Pomme"]
["Quantité dessert",1,1,1,1,1]
["Référence jour férié"]
["Jour férié"]
["Proposition menus journaliers."]
["Numéro du menu","MJ120","MJ121","MJ122","MJ123","MJ124","MJ125","MJ126"]
["Date du menu","2024-04-29","2024-04-30","2024-05-01","2024-05-02","2024-05-03","2024-05-04","2024-05-05"]
["Référence légume","LSLM","LSLM","LSMJ","LSMJ","LSV","LWES","LWED"]
["Légume"]
["Quantité légume"]
["Référence légume 2"]
["Légume 2"]
["Quantité légume 2"]
["Référence viande","VS","VS","VS","VS","VS","VS","VS"]
["Viande"]
["Quantité viande"]
["Référence dessert","DS01","DS01","DS01","DS01","DS01","DWE","DWE"]
["Dessert","Pomme","Pomme","Pomme","Pomme","Pomme"]
["Quantité dessert",1,1,1,1,1]
["Référence jour férié",null,null,"JF04"]
["Jour férié",null,null,"Fête du travail"]
["Proposition menus journaliers."]
["Numéro du menu","MJ127","MJ128","MJ129","MJ130","MJ131","MJ132","MJ133"]
["Date du menu","2024-05-06","2024-05-07","2024-05-08","2024-05-09","2024-05-10","2024-05-11","2024-05-12"]
["Référence légume","LSLM","LSLM","LSMJ","LSMJ","LSV","LWES","LWED"]
["Légume"]
["Quantité légume"]
["Référence légume 2"]
["Légume 2"]
["Quantité légume 2"]
["Référence viande","VS","VS","VS","VS","VS","VS","VS"]
["Viande"]
["Quantité viande"]
["Référence dessert","DS01","DS01","DS01","DS01","DS01","DWE","DWE"]
["Dessert","Pomme","Pomme","Pomme","Pomme","Pomme"]
["Quantité dessert",1,1,1,1,1]
["Référence jour férié",null,null,"JF05","JF06"]
["Jour férié",null,null,"Victoire 1945","Jeudi de l'ascension"]
["Proposition menus journaliers."]
["Numéro du menu","MJ134","MJ135","MJ136","MJ137","MJ138","MJ139","MJ140"]
["Date du menu","2024-05-13","2024-05-14","2024-05-15","2024-05-16","2024-05-17","2024-05-18","2024-05-19"]
["Référence légume","LSLM","LSLM","LSMJ","LSMJ","LSV","LWES","LWED"]
["Légume"]
["Quantité légume"]
["Référence légume 2"]
["Légume 2"]
["Quantité légume 2"]
["Référence viande","VS","VS","VS","VS","VS","VS","VS"]
["Viande"]
["Quantité viande"]
["Référence dessert","DS01","DS01","DS01","DS01","DS01","DWE","DWE"]
["Dessert","Pomme","Pomme","Pomme","Pomme","Pomme"]
["Quantité dessert",1,1,1,1,1]
["Référence jour férié",null,null,null,null,null,null,"JF07"]
["Jour férié",null,null,null,null,null,null,"Pentecôte"]
["Proposition menus journaliers."]
["Numéro du menu","MJ141","MJ142","MJ143","MJ144","MJ145","MJ146","MJ147"]
["Date du menu","2024-05-20","2024-05-21","2024-05-22","2024-05-23","2024-05-24","2024-05-25","2024-05-26"]
["Référence légume","LSLM","LSLM","LSMJ","LSMJ","LSV","LWES","LWED"]
["Légume"]
["Quantité légume"]
["Référence légume 2"]
["Légume 2"]
["Quantité légume 2"]
["Référence viande","VS","VS","VS","VS","VS","VS","VS"]
["Viande"]
["Quantité viande"]
["Référence dessert","DS01","DS01","DS01","DS01","DS01","DWE","DWE"]
["Dessert","Pomme","Pomme","Pomme","Pomme","Pomme"]
["Quantité dessert",1,1,1,1,1]
["Référence jour férié","JF08"]
["Jour férié","Lundi de Pentecôte"]
["Proposition menus journaliers."]
["Numéro du menu","MJ148","MJ149","MJ150","MJ151","MJ152","MJ153","MJ154"]
["Date du menu","2024-05-27","2024-05-28","2024-05-29","2024-05-30","2024-05-31","2024-06-01","2024-06-02"]
["Référence légume","LSLM","LSLM","LSMJ","LSMJ","LSV","LWES","LWED"]
["Légume"]
["Quantité légume"]
["Référence légume 2"]
["Légume 2"]
["Quantité légume 2"]
["Référence viande","VS","VS","VS","VS","VS","VS","VS"]
["Viande"]
["Quantité viande"]
["Référence dessert","DS01","DS01","DS01","DS01","DS01","DWE","DWE"]
["Dessert","Pomme","Pomme","Pomme","Pomme","Pomme"]
["Quantité dessert",1,1,1,1,1]
["Référence jour férié"]
["Jour férié"]
["Proposition menus journaliers."]
["Numéro du menu","MJ155","MJ156","MJ157","MJ158","MJ159","MJ160","MJ161"]
["Date du menu","2024-06-03","2024-06-04","2024-06-05","2024-06-06","2024-06-07","2024-06-08","2024-06-09"]
["Référence légume","LSLM","LSLM","LSMJ","LSMJ","LSV","LWES","LWED"]
["Légume"]
["Quantité légume"]
["Référence légume 2"]
["Légume 2"]
["Quantité légume 2"]
["Référence viande","VS","VS","VS","VS","VS","VS","VS"]
["Viande"]
["Quantité viande"]
["Référence dessert","DS01","DS01","DS01","DS01","DS01","DWE","DWE"]
["Dessert","Pomme","Pomme","Pomme","Pomme","Pomme"]
["Quantité dessert",1,1,1,1,1]
["Référence jour férié"]
["Jour férié"]
["Proposition menus journaliers."]
["Numéro du menu","MJ162","MJ163","MJ164","MJ165","MJ166","MJ167","MJ168"]
["Date du menu","2024-06-10","2024-06-11","2024-06-12","2024-06-13","2024-06-14","2024-06-15","2024-06-16"]
["Référence légume","LSLM","LSLM","LSMJ","LSMJ","LSV","LWES","LWED"]
["Légume"]
["Quantité légume"]
["Référence légume 2"]
["Légume 2"]
["Quantité légume 2"]
["Référence viande","VS","VS","VS","VS","VS","VS","VS"]
["Viande"]
["Quantité viande"]
["Référence dessert","DS01","DS01","DS01","DS01","DS01","DWE","DWE"]
["Dessert","Pomme","Pomme","Pomme","Pomme","Pomme"]
["Quantité dessert",1,1,1,1,1]
["Référence jour férié"]
["Jour férié"]
["Proposition menus journaliers."]
["Numéro du menu","MJ169","MJ170","MJ171","MJ172","MJ173","MJ174","MJ175"]
["Date du menu","2024-06-17","2024-06-18","2024-06-19","2024-06-20","2024-06-21","2024-06-22","2024-06-23"]
["Référence légume","LSLM","LSLM","LSMJ","LSMJ","LSV","LWES","LWED"]
["Légume"]
["Quantité légume"]
["Référence légume 2"]
["Légume 2"]
["Quantité légume 2"]
["Référence viande","VS","VS","VS","VS","VS","VS","VS"]
["Viande"]
["Quantité viande"]
["Référence dessert","DS01","DS01","DS01","DS01","DS01","DWE","DWE"]
["Dessert","Pomme","Pomme","Pomme","Pomme","Pomme"]
["Quantité dessert",1,1,1,1,1]
["Référence jour férié"]
["Jour férié"]
["Proposition menus journaliers."]
["Numéro du menu","MJ176","MJ177","MJ178","MJ179","MJ180","MJ181","MJ182"]
["Date du menu","2024-06-24","2024-06-25","2024-06-26","2024-06-27","2024-06-28","2024-06-29","2024-06-30"]
["Référence légume","LSLM","LSLM","LSMJ","LSMJ","LSV","LWES","LWED"]
["Légume"]
["Quantité légume"]
["Référence légume 2"]
["Légume 2"]
["Quantité légume 2"]
["Référence viande","VS","VS","VS","VS","VS","VS","VS"]
["Viande"]
["Quantité viande"]
["Référence dessert","DS01","DS01","DS01","DS01","DS01","DWE","DWE"]
["Dessert","Pomme","Pomme","Pomme","Pomme","Pomme"]
["Quantité dessert",1,1,1,1,1]
["Référence jour férié"]
["Jour férié"]
["Proposition menus journaliers."]
["Numéro du menu","MJ183","MJ184","MJ185","MJ186","MJ187","MJ188","MJ189"]
["Date du menu","2024-07-01","2024-07-02","2024-07-03","2024-07-04","2024-07-05","2024-07-06","2024-07-07"]
["Référence légume","LSLM","LSLM","LSMJ","LSMJ","LSV","LWES","LWED"]
["Légume"]
["Quantité légume"]
["Référence légume 2"]
["Légume 2"]
["Quantité légume 2"]
["Référence viande","VS","VS","VS","VS","VS","VS","VS"]
["Viande"]
["Quantité viande"]
["Référence dessert","DS01","DS01","DS01","DS01","DS01","DWE","DWE"]
["Dessert","Pomme","Pomme","Pomme","Pomme","Pomme"]
["Quantité dessert",1,1,1,1,1]
["Référence jour férié"]
["Jour férié"]
["Proposition menus journaliers."]
["Numéro du menu","MJ190","MJ191","MJ192","MJ193","MJ194","MJ195","MJ196"]
["Date du menu","2024-07-08","2024-07-09","2024-07-10","2024-07-11","2024-07-12","2024-07-13","2024-07-14"]
["Référence légume","LSLM","LSLM","LSMJ","LSMJ","LSV","LWES","LWED"]
["Légume"]
["Quantité légume"]
["Référence légume 2"]
["Légume 2"]
["Quantité légume 2"]
["Référence viande","VS","VS","VS","VS","VS","VS","VS"]
["Viande"]
["Quantité viande"]
["Référence dessert","DS01","DS01","DS01","DS01","DS01","DWE","DWE"]
["Dessert","Pomme","Pomme","Pomme","Pomme","Pomme"]
["Quantité dessert",1,1,1,1,1]
["Référence jour férié",null,null,null,null,null,null,"JF09"]
["Jour férié",null,null,null,null,null,null,"Fête nationale"]
["Proposition menus journaliers."]
["Numéro du menu","MJ197","MJ198","MJ199","MJ200","MJ201","MJ202","MJ203"]
["Date du menu","2024-07-15","2024-07-16","2024-07-17","2024-07-18","2024-07-19","2024-07-20","2024-07-21"]
["Référence légume","LSLM","LSLM","LSMJ","LSMJ","LSV","LWES","LWED"]
["Légume"]
["Quantité légume"]
["Référence légume 2"]
["Légume 2"]
["Quantité légume 2"]
["Référence viande","VS","VS","VS","VS","VS","VS","VS"]
["Viande"]
["Quantité viande"]
["Référence dessert","DS01","DS01","DS01","DS01","DS01","DWE","DWE"]
["Dessert","Pomme","Pomme","Pomme","Pomme","Pomme"]
["Quantité dessert",1,1,1,1,1]
["Référence jour férié"]
["Jour férié"]
["Proposition menus journaliers."]
["Numéro du menu","MJ204","MJ205","MJ206","MJ207","MJ208","MJ209","MJ210"]
["Date du menu","2024-07-22","2024-07-23","2024-07-24","2024-07-25","2024-07-26","2024-07-27","2024-07-28"]
["Référence légume","LSLM","LSLM","LSMJ","LSMJ","LSV","LWES","LWED"]
["Légume"]
["Quantité légume"]
["Référence légume 2"]
["Légume 2"]
["Quantité légume 2"]
["Référence viande","VS","VS","VS","VS","VS","VS","VS"]
["Viande"]
["Quantité viande"]
["Référence dessert","DS01","DS01","DS01","DS01","DS01","DWE","DWE"]
["Dessert","Pomme","Pomme","Pomme","Pomme","Pomme"]
["Quantité dessert",1,1,1,1,1]
["Référence jour férié"]
["Jour férié"]
["Proposition menus journaliers."]
["Numéro du menu","MJ211","MJ212","MJ213","MJ214","MJ215","MJ216","MJ217"]
["Date du menu","2024-07-29","2024-07-30","2024-07-31","2024-08-01","2024-08-02","2024-08-03","2024-08-04"]
["Référence légume","LSLM","LSLM","LSMJ","LSMJ","LSV","LWES","LWED"]
["Légume"]
["Quantité légume"]
["Référence légume 2"]
["Légume 2"]
["Quantité légume 2"]
["Référence viande","VS","VS","VS","VS","VS","VS","VS"]
["Viande"]
["Quantité viande"]
["Référence dessert","DS01","DS01","DS01","DS01","DS01","DWE","DWE"]
["Dessert","Pomme","Pomme","Pomme","Pomme","Pomme"]
["Quantité dessert",1,1,1,1,1]
["Référence jour férié"]
["Jour férié"]
["Proposition menus journaliers."]
["Numéro du menu","MJ218","MJ219","MJ220","MJ221","MJ222","MJ223","MJ224"]
["Date du menu","2024-08-05","2024-08-06","2024-08-07","2024-08-08","2024-08-09","2024-08-10","2024-08-11"]
["Référence légume","LSLM","LSLM","LSMJ","LSMJ","LSV","LWES","LWED"]
["Légume"]
["Quantité légume"]
["Référence légume 2"]
["Légume 2"]
["Quantité légume 2"]
["Référence viande","VS","VS","VS","VS","VS","VS","VS"]
["Viande"]
["Quantité viande"]
["Référence dessert","DS01","DS01","DS01","DS01","DS01","DWE","DWE"]
["Dessert","Pomme","Pomme","Pomme","Pomme","Pomme"]
["Quantité dessert",1,1,1,1,1]
["Référence jour férié"]
["Jour férié"]
["Proposition menus journaliers."]
["Numéro du menu","MJ225","MJ226","MJ227","MJ228","MJ229","MJ230","MJ231"]
["Date du menu","2024-08-12","2024-08-13","2024-08-14","2024-08-15","2024-08-16","2024-08-17","2024-08-18"]
["Référence légume","LSLM","LSLM","LSMJ","LSMJ","LSV","LWES","LWED"]
["Légume"]
["Quantité légume"]
["Référence légume 2"]
["Légume 2"]
["Quantité légume 2"]
["Référence viande","VS","VS","VS","VS","VS","VS","VS"]
["Viande"]
["Quantité viande"]
["Référence dessert","DS01","DS01","DS01","DS01","DS01","DWE","DWE"]
["Dessert","Pomme","Pomme","Pomme","Pomme","Pomme"]
["Quantité dessert",1,1,1,1,1]
["Référence jour férié",null,null,null,"JF10"]
["Jour férié",null,null,null,"Assomption"]
["Proposition menus journaliers."]
["Numéro du menu","MJ232","MJ233","MJ234","MJ235","MJ236","MJ237","MJ238"]
["Date du menu","2024-08-19","2024-08-20","2024-08-21","2024-08-22","2024-08-23","2024-08-24","2024-08-25"]
["Référence légume","LSLM","LSLM","LSMJ","LSMJ","LSV","LWES","LWED"]
["Légume"]
["Quantité légume"]
["Référence légume 2"]
["Légume 2"]
["Quantité légume 2"]
["Référence viande","VS","VS","VS","VS","VS","VS","VS"]
["Viande"]
["Quantité viande"]
["Référence dessert","DS01","DS01","DS01","DS01","DS01","DWE","DWE"]
["Dessert","Pomme","Pomme","Pomme","Pomme","Pomme"]
["Quantité dessert",1,1,1,1,1]
["Référence jour férié"]
["Jour férié"]
["Proposition menus journaliers."]
["Numéro du menu","MJ239","MJ240","MJ241","MJ242","MJ243","MJ244","MJ245"]
["Date du menu","2024-08-26","2024-08-27","2024-08-28","2024-08-29","2024-08-30","2024-08-31","2024-09-01"]
["Référence légume","LSLM","LSLM","LSMJ","LSMJ","LSV","LWES","LWED"]
["Légume"]
["Quantité légume"]
["Référence légume 2"]
["Légume 2"]
["Quantité légume 2"]
["Référence viande","VS","VS","VS","VS","VS","VS","VS"]
["Viande"]
["Quantité viande"]
["Référence dessert","DS01","DS01","DS01","DS01","DS01","DWE","DWE"]
["Dessert","Pomme","Pomme","Pomme","Pomme","Pomme"]
["Quantité dessert",1,1,1,1,1]
["Référence jour férié"]
["Jour férié"]
["Proposition menus journaliers."]
["Numéro du menu","MJ246","MJ247","MJ248","MJ249","MJ250","MJ251","MJ252"]
["Date du menu","2024-09-02","2024-09-03","2024-09-04","2024-09-05","2024-09-06","2024-09-07","2024-09-08"]
["Référence légume","LSLM","LSLM","LSMJ","LSMJ","LSV","LWES","LWED"]
["Légume"]
["Quantité légume"]
["Référence légume 2"]
["Légume 2"]
["Quantité légume 2"]
["Référence viande","VS","VS","VS","VS","VS","VS","VS"]
["Viande"]
["Quantité viande"]
["Référence dessert","DS01","DS01","DS01","DS01","DS01","DWE","DWE"]
["Dessert","Pomme","Pomme","Pomme","Pomme","Pomme"]
["Quantité dessert",1,1,1,1,1]
["Référence jour férié"]
["Jour férié"]
["Proposition menus journaliers."]
["Numéro du menu","MJ253","MJ254","MJ255","MJ256","MJ257","MJ258","MJ259"]
["Date du menu","2024-09-09","2024-09-10","2024-09-11","2024-09-12","2024-09-13","2024-09-14","2024-09-15"]
["Référence légume","LSLM","LSLM","LSMJ","LSMJ","LSV","LWES","LWED"]
["Légume"]
["Quantité légume"]
["Référence légume 2"]
["Légume 2"]
["Quantité légume 2"]
["Référence viande","VS","VS","VS","VS","VS","VS","VS"]
["Viande"]
["Quantité viande"]
["Référence dessert","DS01","DS01","DS01","DS01","DS01","DWE","DWE"]
["Dessert","Pomme","Pomme","Pomme","Pomme","Pomme"]
["Quantité dessert",1,1,1,1,1]
["Référence jour férié"]
["Jour férié"]
["Proposition menus journaliers."]
["Numéro du menu","MJ260","MJ261","MJ262","MJ263","MJ264","MJ265","MJ266"]
["Date du menu","2024-09-16","2024-09-17","2024-09-18","2024-09-19","2024-09-20","2024-09-21","2024-09-22"]
["Référence légume","LSLM","LSLM","LSMJ","LSMJ","LSV","LWES","LWED"]
["Légume"]
["Quantité légume"]
["Référence légume 2"]
["Légume 2"]
["Quantité légume 2"]
["Référence viande","VS","VS","VS","VS","VS","VS","VS"]
["Viande"]
["Quantité viande"]
["Référence dessert","DS01","DS01","DS01","DS01","DS01","DWE","DWE"]
["Dessert","Pomme","Pomme","Pomme","Pomme","Pomme"]
["Quantité dessert",1,1,1,1,1]
["Référence jour férié"]
["Jour férié"]
["Proposition menus journaliers."]
["Numéro du menu","MJ267","MJ268","MJ269","MJ270","MJ271","MJ272","MJ273"]
["Date du menu","2024-09-23","2024-09-24","2024-09-25","2024-09-26","2024-09-27","2024-09-28","2024-09-29"]
["Référence légume","LSLM","LSLM","LSMJ","LSMJ","LSV","LWES","LWED"]
["Légume"]
["Quantité légume"]
["Référence légume 2"]
["Légume 2"]
["Quantité légume 2"]
["Référence viande","VS","VS","VS","VS","VS","VS","VS"]
["Viande"]
["Quantité viande"]
["Référence dessert","DS01","DS01","DS01","DS01","DS01","DWE","DWE"]
["Dessert","Pomme","Pomme","Pomme","Pomme","Pomme"]
["Quantité dessert",1,1,1,1,1]
["Référence jour férié"]
["Jour férié"]
["Proposition menus journaliers."]
["Numéro du menu","MJ274","MJ275","MJ276","MJ277","MJ278","MJ279","MJ280"]
["Date du menu","2024-09-30","2024-10-01","2024-10-02","2024-10-03","2024-10-04","2024-10-05","2024-10-06"]
["Référence légume","LSLM","LSLM","LSMJ","LSMJ","LSV","LWES","LWED"]
["Légume"]
["Quantité légume"]
["Référence légume 2"]
["Légume 2"]
["Quantité légume 2"]
["Référence viande","VS","VS","VS","VS","VS","VS","VS"]
["Viande"]
["Quantité viande"]
["Référence dessert","DS01","DS01","DS01","DS01","DS01","DWE","DWE"]
["Dessert","Pomme","Pomme","Pomme","Pomme","Pomme"]
["Quantité dessert",1,1,1,1,1]
["Référence jour férié"]
["Jour férié"]
["Proposition menus journaliers."]
["Numéro du menu","MJ281","MJ282","MJ283","MJ284","MJ285","MJ286","MJ287"]
["Date du menu","2024-10-07","2024-10-08","2024-10-09","2024-10-10","2024-10-11","2024-10-12","2024-10-13"]
["Référence légume","LSLM","LSLM","LSMJ","LSMJ","LSV","LWES","LWED"]
["Légume"]
["Quantité légume"]
["Référence légume 2"]
["Légume 2"]
["Quantité légume 2"]
["Référence viande","VS","VS","VS","VS","VS","VS","VS"]
["Viande"]
["Quantité viande"]
["Référence dessert","DS01","DS01","DS01","DS01","DS01","DWE","DWE"]
["Dessert","Pomme","Pomme","Pomme","Pomme","Pomme"]
["Quantité dessert",1,1,1,1,1]
["Référence jour férié"]
["Jour férié"]
["Proposition menus journaliers."]
["Numéro du menu","MJ288","MJ289","MJ290","MJ291","MJ292","MJ293","MJ294"]
["Date du menu","2024-10-14","2024-10-15","2024-10-16","2024-10-17","2024-10-18","2024-10-19","2024-10-20"]
["Référence légume","LSLM","LSLM","LSMJ","LSMJ","LSV","LWES","LWED"]
["Légume"]
["Quantité légume"]
["Référence légume 2"]
["Légume 2"]
["Quantité légume 2"]
["Référence viande","VS","VS","VS","VS","VS","VS","VS"]
["Viande"]
["Quantité viande"]
["Référence dessert","DS01","DS01","DS01","DS01","DS01","DWE","DWE"]
["Dessert","Pomme","Pomme","Pomme","Pomme","Pomme"]
["Quantité dessert",1,1,1,1,1]
["Référence jour férié"]
["Jour férié"]
["Proposition menus journaliers."]
["Numéro du menu","MJ295","MJ296","MJ297","MJ298","MJ299","MJ300","MJ301"]
["Date du menu","2024-10-21","2024-10-22","2024-10-23","2024-10-24","2024-10-25","2024-10-26","2024-10-27"]
["Référence légume","LSLM","LSLM","LSMJ","LSMJ","LSV","LWES","LWED"]
["Légume"]
["Quantité légume"]
["Référence légume 2"]
["Légume 2"]
["Quantité légume 2"]
["Référence viande","VS","VS","VS","VS","VS","VS","VS"]
["Viande"]
["Quantité viande"]
["Référence dessert","DS01","DS01","DS01","DS01","DS01","DWE","DWE"]
["Dessert","Pomme","Pomme","Pomme","Pomme","Pomme"]
["Quantité dessert",1,1,1,1,1]
["Référence jour férié"]
["Jour férié"]
["Proposition menus journaliers."]
["Numéro du menu","MJ302","MJ303","MJ304","MJ305","MJ306","MJ307","MJ308"]
["Date du menu","2024-10-28","2024-10-29","2024-10-30","2024-10-31","2024-11-01","2024-11-02","2024-11-03"]
["Référence légume","LSLM","LSLM","LSMJ","LSMJ","LSV","LWES","LWED"]
["Légume"]
["Quantité légume"]
["Référence légume 2"]
["Légume 2"]
["Quantité légume 2"]
["Référence viande","VS","VS","VS","VS","VS","VS","VS"]
["Viande"]
["Quantité viande"]
["Référence dessert","DS01","DS01","DS01","DS01","DS01","DWE","DWE"]
["Dessert","Pomme","Pomme","Pomme","Pomme","Pomme"]
["Quantité dessert",1,1,1,1,1]
["Référence jour férié",null,null,null,null,"JF11"]
["Jour férié",null,null,null,null,"Toussaint"]
["Proposition menus journaliers."]
["Numéro du menu","MJ309","MJ310","MJ311","MJ312","MJ313","MJ314","MJ315"]
["Date du menu","2024-11-04","2024-11-05","2024-11-06","2024-11-07","2024-11-08","2024-11-09","2024-11-10"]
["Référence légume","LSLM","LSLM","LSMJ","LSMJ","LSV","LWES","LWED"]
["Légume"]
["Quantité légume"]
["Référence légume 2"]
["Légume 2"]
["Quantité légume 2"]
["Référence viande","VS","VS","VS","VS","VS","VS","VS"]
["Viande"]
["Quantité viande"]
["Référence dessert","DS01","DS01","DS01","DS01","DS01","DWE","DWE"]
["Dessert","Pomme","Pomme","Pomme","Pomme","Pomme"]
["Quantité dessert",1,1,1,1,1]
["Référence jour férié"]
["Jour férié"]
["Proposition menus journaliers."]
["Numéro du menu","MJ316","MJ317","MJ318","MJ319","MJ320","MJ321","MJ322"]
["Date du menu","2024-11-11","2024-11-12","2024-11-13","2024-11-14","2024-11-15","2024-11-16","2024-11-17"]
["Référence légume","LSLM","LSLM","LSMJ","LSMJ","LSV","LWES","LWED"]
["Légume"]
["Quantité légume"]
["Référence légume 2"]
["Légume 2"]
["Quantité légume 2"]
["Référence viande","VS","VS","VS","VS","VS","VS","VS"]
["Viande"]
["Quantité viande"]
["Référence dessert","DS01","DS01","DS01","DS01","DS01","DWE","DWE"]
["Dessert","Pomme","Pomme","Pomme","Pomme","Pomme"]
["Quantité dessert",1,1,1,1,1]
["Référence jour férié","JF12"]
["Jour férié","Armistice 1918"]
["Proposition menus journaliers."]
["Numéro du menu","MJ323","MJ324","MJ325","MJ326","MJ327","MJ328","MJ329"]
["Date du menu","2024-11-18","2024-11-19","2024-11-20","2024-11-21","2024-11-22","2024-11-23","2024-11-24"]
["Référence légume","LSLM","LSLM","LSMJ","LSMJ","LSV","LWES","LWED"]
["Légume"]
["Quantité légume"]
["Référence légume 2"]
["Légume 2"]
["Quantité légume 2"]
["Référence viande","VS","VS","VS","VS","VS","VS","VS"]
["Viande"]
["Quantité viande"]
["Référence dessert","DS01","DS01","DS01","DS01","DS01","DWE","DWE"]
["Dessert","Pomme","Pomme","Pomme","Pomme","Pomme"]
["Quantité dessert",1,1,1,1,1]
["Référence jour férié"]
["Jour férié"]
["Proposition menus journaliers."]
["Numéro du menu","MJ330","MJ331","MJ332","MJ333","MJ334","MJ335","MJ336"]
["Date du menu","2024-11-25","2024-11-26","2024-11-27","2024-11-28","2024-11-29","2024-11-30","2024-12-01"]
["Référence légume","LSLM","LSLM","LSMJ","LSMJ","LSV","LWES","LWED"]
["Légume"]
["Quantité légume"]
["Référence légume 2"]
["Légume 2"]
["Quantité légume 2"]
["Référence viande","VS","VS","VS","VS","VS","VS","VS"]
["Viande"]
["Quantité viande"]
["Référence dessert","DS01","DS01","DS01","DS01","DS01","DWE","DWE"]
["Dessert","Pomme","Pomme","Pomme","Pomme","Pomme"]
["Quantité dessert",1,1,1,1,1]
["Référence jour férié"]
["Jour férié"]
["Proposition menus journaliers."]
["Numéro du menu","MJ337","MJ338","MJ339","MJ340","MJ341","MJ342","MJ343"]
["Date du menu","2024-12-02","2024-12-03","2024-12-04","2024-12-05","2024-12-06","2024-12-07","2024-12-08"]
["Référence légume","LSLM","LSLM","LSMJ","LSMJ","LSV","LWES","LWED"]
["Légume"]
["Quantité légume"]
["Référence légume 2"]
["Légume 2"]
["Quantité légume 2"]
["Référence viande","VS","VS","VS","VS","VS","VS","VS"]
["Viande"]
["Quantité viande"]
["Référence dessert","DS01","DS01","DS01","DS01","DS01","DWE","DWE"]
["Dessert","Pomme","Pomme","Pomme","Pomme","Pomme"]
["Quantité dessert",1,1,1,1,1]
["Référence jour férié"]
["Jour férié"]
["Proposition menus journaliers."]
["Numéro du menu","MJ344","MJ345","MJ346","MJ347","MJ348","MJ349","MJ350"]
["Date du menu","2024-12-09","2024-12-10","2024-12-11","2024-12-12","2024-12-13","2024-12-14","2024-12-15"]
["Référence légume","LSLM","LSLM","LSMJ","LSMJ","LSV","LWES","LWED"]
["Légume"]
["Quantité légume"]
["Référence légume 2"]
["Légume 2"]
["Quantité légume 2"]
["Référence viande","VS","VS","VS","VS","VS","VS","VS"]
["Viande"]
["Quantité viande"]
["Référence dessert","DS01","DS01","DS01","DS01","DS01","DWE","DWE"]
["Dessert","Pomme","Pomme","Pomme","Pomme","Pomme"]
["Quantité dessert",1,1,1,1,1]
["Référence jour férié"]
["Jour férié"]
["Proposition menus journaliers."]
["Numéro du menu","MJ351","MJ352","MJ353","MJ354","MJ355","MJ356","MJ357"]
["Date du menu","2024-12-16","2024-12-17","2024-12-18","2024-12-19","2024-12-20","2024-12-21","2024-12-22"]
["Référence légume","LSLM","LSLM","LSMJ","LSMJ","LSV","LWES","LWED"]
["Légume"]
["Quantité légume"]
["Référence légume 2"]
["Légume 2"]
["Quantité légume 2"]
["Référence viande","VS","VS","VS","VS","VS","VS","VS"]
["Viande"]
["Quantité viande"]
["Référence dessert","DS01","DS01","DS01","DS01","DS01","DWE","DWE"]
["Dessert","Pomme","Pomme","Pomme","Pomme","Pomme"]
["Quantité dessert",1,1,1,1,1]
["Référence jour férié"]
["Jour férié"]
["Proposition menus journaliers."]
["Numéro du menu","MJ358","MJ359","MJ360","MJ361","MJ362","MJ363","MJ364"]
["Date du menu","2024-12-23","2024-12-24","2024-12-25","2024-12-26","2024-12-27","2024-12-28","2024-12-29"]
["Référence légume","LSLM","LSLM","LSMJ","LSMJ","LSV","LWES","LWED"]
["Légume"]
["Quantité légume"]
["Référence légume 2"]
["Légume 2"]
["Quantité légume 2"]
["Référence viande","VS","VS","VS","VS","VS","VS","VS"]
["Viande"]
["Quantité viande"]
["Référence dessert","DS01","DS01","DS01","DS01","DS01","DWE","DWE"]
["Dessert","Pomme","Pomme","Pomme","Pomme","Pomme"]
["Quantité dessert",1,1,1,1,1]
["Référence jour férié",null,null,"JF13"]
["Jour férié",null,null,"Noël"]
["Proposition menus journaliers."]
["Numéro du menu","MJ365","MJ366"]
["Date du menu","2024-12-30","2024-12-31"]
["Référence légume","LSLM","LSLM"]
["Légume"]
["Quantité légume"]
["Référence légume 2"]
["Légume 2"]
["Quantité légume 2"]
["Référence viande","VS","VS"]
["Viande"]
["Quantité viande"]
["Référence dessert","DS01","DS01"]
["Dessert","Pomme","Pomme"]
["Quantité dessert",1,1]
["Référence jour férié"]
["Jour férié"]

{"sheet":"Propositions MVMWE","index":5,"n_rows":128,"n_cols":8,"rows_kept":128,"cut":false,"hidden":false,"merged":[[120,0,120,1],[40,0,40,7],[0,0,0,7],[8,0,8,7],[16,0,16,7],[24,0,24,7],[32,0,32,7],[112,0,112,7],[96,0,96,7],[104,0,104,7],[48,0,48,7],[56,0,56,7],[64,0,64,7],[72,0,72,7],[80,0,80,7],[88,0,88,7]]}
["Proposition menus viandes midi weekend."]
["Numéro du menu","MVMWE01","MVMWE02","MVMWE03","MVMWE04","MVMWE05","MVMWE06","MVMWE07"]
["Date du menu","2025-01-04","2025-01-05","2025-01-11","2025-01-12","2025-01-18","2025-01-19","2025-01-25"]
["Référence viande","VMWE","VMWE","VMWE","VMWE","VMWE","VMWE","VMWE"]
["Viande"]
["Quantité viande",1,1,1,1,1,1,1]
["Référence jour férié"]
["Jour férié"]
["Proposition menus viandes midi weekend."]
["Numéro du menu","MVMWE08","MVMWE09","MVMWE10","MVMWE11","MVMWE12","MVMWE13","MVMWE14"]
["Date du menu","2025-01-26","2025-02-01","2025-02-02","2025-02-08","2025-02-09","2025-02-15","2025-02-16"]
["Référence viande","VMWE","VMWE","VMWE","VMWE","VMWE","VMWE","VMWE"]
["Viande"]
["Quantité viande",1,1,1,1,1,1,1]
["Référence jour férié"]
["Jour férié"]
["Proposition menus viandes midi weekend."]
["Numéro du menu","MVMWE15","MVMWE16","MVMWE17","MVMWE18","MVMWE19","MVMWE20","MVMWE21"]
["Date du menu","2025-02-22","2025-02-23","2025-03-01","2025-03-02","2025-03-08","2025-03-09","2025-03-15"]
["Référence viande","VMWE","VMWE","VMWE","VMWE","VMWE","VMWE","VMWE"]
["Viande"]
["Quantité viande",1,1,1,1,1,1,1]
["Référence jour férié"]
["Jour férié"]
["Proposition menus viandes midi weekend."]
["Numéro du menu","MVMWE22","MVMWE23","MVMWE24","MVMWE25","MVMWE26","MVMWE27","MVMWE28"]
["Date du menu","2025-03-16","2025-03-22","2025-03-23","2025-03-29","2025-03-30","2025-04-05","2025-04-06"]
["Référence viande","VMWE","VMWE","VMWE","VMWE","VMWE","VMWE","VMWE"]
["Viande"]
["Quantité viande",1,1,1,1,1,1,1]
["Référence jour férié"]
["Jour férié"]
["Proposition menus viandes midi weekend."]
["Numéro du menu","MVMWE29","MVMWE30","MVMWE31","MVMWE32","MVMWE33","MVMWE34","MVMWE35"]
["Date du menu","2025-04-12","2025-04-13","2025-04-19","2025-04-20","2025-04-26","2025-04-27","2025-05-03"]
["Référence viande","VMWE","VMWE","VMWE","VMWE","VMWE","VMWE","VMWE"]
["Viande"]
["Quantité viande",1,1,1,1,1,1,1]
["Référence jour férié",null,null,null,"JF02"]
["Jour férié",null,null,null,"Pâques"]
["Proposition menus viandes midi weekend."]
["Numéro du menu","MVMWE36","MVMWE37","MVMWE38","MVMWE39","MVMWE40","MVMWE41","MVMWE42"]
["Date du menu","2025-05-04","2025-05-10","2025-05-11","2025-05-17","2025-05-18","2025-05-24","2025-05-25"]
["Référence viande","VMWE","VMWE","VMWE","VMWE","VMWE","VMWE","VMWE"]
["Viande"]
["Quantité viande",1,1,1,1,1,1,1]
["Référence jour férié"]
["Jour férié"]
["Proposition menus viandes midi weekend."]
["Numéro du menu","MVMWE43","MVMWE44","MVMWE45","MVMWE46","MVMWE47","MVMWE48","MVMWE49"]
["Date du menu","2025-05-31","2025-06-01","2025-06-07","2025-06-08","2025-06-14","2025-06-15","2025-06-21"]
["Référence viande","VMWE","VMWE","VMWE","VMWE","VMWE","VMWE","VMWE"]
["Viande"]
["Quantité viande",1,1,1,1,1,1,1]
["Référence jour férié",null,null,null,"JF07"]
["Jour férié",null,null,null,"Pentecôte"]
["Proposition menus viandes midi weekend."]
["Numéro du menu","MVMWE50","MVMWE51","MVMWE52","MVMWE53","MVMWE54","MVMWE55","MVMWE56"]
["Date du menu","2025-06-22","2025-06-28","2025-06-29","2025-07-05","2025-07-06","2025-07-12","2025-07-13"]
["Référence viande","VMWE","VMWE","VMWE","VMWE","VMWE","VMWE","VMWE"]
["Viande"]
["Quantité viande",1,1,1,1,1,1,1]
["Référence jour férié"]
["Jour férié"]
["Proposition menus viandes midi weekend."]
["Numéro du menu","MVMWE57","MVMWE58","MVMWE59","MVMWE60","MVMWE61","MVMWE62","MVMWE63"]
["Date du menu","2025-07-19","2025-07-20","2025-07-26","2025-07-27","2025-08-02","2025-08-03","2025-08-09"]
["Référence viande","VMWE","VMWE","VMWE","VMWE","VMWE","VMWE","VMWE"]
["Viande"]
["Quantité viande",1,1,1,1,1,1,1]
["Référence jour férié"]
["Jour férié"]
["Proposition menus viandes midi weekend."]
["Numéro du menu","MVMWE64","MVMWE65","MVMWE66","MVMWE67","MVMWE68","MVMWE69","MVMWE70"]
["Date du menu","2025-08-10","2025-08-16","2025-08-17","2025-08-23","2025-08-24","2025-08-30","2025-08-31"]
["Référence viande","VMWE","VMWE","VMWE","VMWE","VMWE","VMWE","VMWE"]
["Viande"]
["Quantité viande",1,1,1,1,1,1,1]
["Référence jour férié"]
["Jour férié"]
["Proposition menus viandes midi weekend."]
["Numéro du menu","MVMWE71","MVMWE72","MVMWE73","MVMWE74","MVMWE75","MVMWE76","MVMWE77"]
["Date du menu","2025-09-06","2025-09-07","2025-09-13","2025-09-14","2025-09-20","2025-09-21","2025-09-27"]
["Référence viande","VMWE","VMWE","VMWE","VMWE","VMWE","VMWE","VMWE"]
["Viande"]
["Quantité viande",1,1,1,1,1,1,1]
["Référence jour férié"]
["Jour férié"]
["Proposition menus viandes midi weekend."]
["Numéro du menu","MVMWE78","MVMWE79","MVMWE80","MVMWE81","MVMWE82","MVMWE83","MVMWE84"]
["Date du menu","2025-09-28","2025-10-04","2025-10-05","2025-10-11","2025-10-12","2025-10-18","2025-10-19"]
["Référence viande","VMWE","VMWE","VMWE","VMWE","VMWE","VMWE","VMWE"]
["Viande"]
["Quantité viande",1,1,1,1,1,1,1]
["Référence jour férié"]
["Jour férié"]
["Proposition menus viandes midi weekend."]
["Numéro du menu","MVMWE85","MVMWE86","MVMWE87","MVMWE88","MVMWE89","MVMWE90","MVMWE91"]
["Date du menu","2025-10-25","2025-10-26","2025-11-01","2025-11-02","2025-11-08","2025-11-09","2025-11-15"]
["Référence viande","VMWE","VMWE","VMWE","VMWE","VMWE","VMWE","VMWE"]
["Viande"]
["Quantité viande",1,1,1,1,1,1,1]
["Référence jour férié",null,null,"JF11"]
["Jour férié",null,null,"Toussaint"]
["Proposition menus viandes midi weekend."]
["Numéro du menu","MVMWE92","MVMWE93","MVMWE94","MVMWE95","MVMWE96","MVMWE97","MVMWE98"]
["Date du menu","2025-11-16","2025-11-22","2025-11-23","2025-11-29","2025-11-30","2025-12-06","2025-12-07"]
["Référence viande","VMWE","VMWE","VMWE","VMWE","VMWE","VMWE","VMWE"]
["Viande"]
["Quantité viande",1,1,1,1,1,1,1]
["Référence jour férié"]
["Jour férié"]
["Proposition menus viandes midi weekend."]
["Numéro du menu","MVMWE99","MVMWE100","MVMWE101","MVMWE102","MVMWE103","MVMWE104"]
["Date du menu","2025-12-13","2025-12-14","2025-12-20","2025-12-21","2025-12-27","2025-12-28"]
["Référence viande","VMWE","VMWE","VMWE","VMWE","VMWE","VMWE"]
["Viande"]
["Quantité viande",1,1,1,1,1,1]
["Référence jour férié"]
["Jour férié"]
["Proposition menus viandes midi weekend."]
["Numéro du menu"]
["Date du menu"]
["Référence viande"]
["Viande"]
["Quantité viande"]
["Référence jour férié"]
["Jour férié"]

{"sheet":"Propositions MMR f","index":6,"n_rows":532,"n_cols":8,"rows_kept":532,"cut":false,"hidden":false,"merged":[[504,0,504,7],[518,0,518,3],[420,0,420,7],[434,0,434,7],[448,0,448,7],[462,0,462,7],[476,0,476,7],[490,0,490,7],[406,0,406,7],[252,0,252,7],[266,0,266,7],[280,0,280,7],[294,0,294,7],[308,0,308,7],[322,0,322,7],[336,0,336,7],[350,0,350,7],[364,0,364,7],[378,0,378,7],[392,0,392,7],[238,0,238,7],[84,0,84,7],[98,0,98,7],[112,0,112,7],[126,0,126,7],[140,0,140,7],[154,0,154,7],[168,0,168,7],[182,0,182,7],[196,0,196,7],[210,0,210,7],[224,0,224,7],[70,0,70,7],[0,0,0,7],[14,0,14,7],[28,0,28,7],[42,0,42,7],[56,0,56,7]]}
["Proposition menus midi retraite."]
["Numéro du menu","MMR01","MMR02","MMR03","MMR04","MMR05","MMR06","MMR07"]
["Date du menu",{"$f":"WORKDAY(DATE(Accueil!$G$1,1,1)-1,1)","v":"2024-01-01"},{"$f":"WORKDAY(B3,1)","v":"2024-01-02"},{"$f":"WORKDAY(C3,1)","v":"2024-01-03"},"2024-01-04","2024-01-05","2024-01-08","2024-01-09"]
["Référence légume","LMR","LMR","LMR","LMR","LMR","LMR","LMR"]
["Légume"]
["Quantité légume"]
["Référence viande","VMR","VMR","VMR","VMR","VMR","VMR","VMR"]
["Viande"]
["Quantité viande",100,100,100,100,100,100,100]
["Référence dessert","DMR01","DMR01","DMR01","DMR01","DMR01","DMR01","DMR01"]
["Dessert","Pomme","Pomme","Pomme","Pomme","Pomme","Pomme","Pomme"]
["Quantité dessert",1,1,1,1,1,1,1]
["Référence jour férié",{"$f":"IFERROR(\"JF\"&TEXT(MATCH(B3,TabJoursFériés[Date jour férié],0),\"00\"),\"\")","v":"JF01"},{"$f":"IFERROR(\"JF\"&TEXT(MATCH(C3,TabJoursFériés[Date jour férié],0),\"00\"),\"\")","v":""},{"$f":"IFERROR(\"JF\"&TEXT(MATCH(D3,TabJoursFériés[Date jour férié],0),\"00\"),\"\")","v":""},{"$f":"IFERROR(\"JF\"&TEXT(MATCH(E3,TabJoursFériés[Date jour férié],0),\"00\"),\"\")","v":""},{"$f":"IFERROR(\"JF\"&TEXT(MATCH(F3,TabJoursFériés[Date jour férié],0),\"00\"),\"\")","v":""},{"$f":"IFERROR(\"JF\"&TEXT(MATCH(G3,TabJoursFériés[Date jour férié],0),\"00\"),\"\")","v":""},{"$f":"IFERROR(\"JF\"&TEXT(MATCH(H3,TabJoursFériés[Date jour férié],0),\"00\"),\"\")","v":""}]
["Jour férié",{"$f":"IFERROR(INDEX(TabJoursFériés[Jour férié],MATCH(B3,TabJoursFériés[Date jour férié],0)),\"\")","v":"Jour de l'an"},{"$f":"IFERROR(INDEX(TabJoursFériés[Jour férié],MATCH(C3,TabJoursFériés[Date jour férié],0)),\"\")","v":""},{"$f":"IFERROR(INDEX(TabJoursFériés[Jour férié],MATCH(D3,TabJoursFériés[Date jour férié],0)),\"\")","v":""},{"$f":"IFERROR(INDEX(TabJoursFériés[Jour férié],MATCH(E3,TabJoursFériés[Date jour férié],0)),\"\")","v":""},{"$f":"IFERROR(INDEX(TabJoursFériés[Jour férié],MATCH(F3,TabJoursFériés[Date jour férié],0)),\"\")","v":""},{"$f":"IFERROR(INDEX(TabJoursFériés[Jour férié],MATCH(G3,TabJoursFériés[Date jour férié],0)),\"\")","v":""},{"$f":"IFERROR(INDEX(TabJoursFériés[Jour férié],MATCH(H3,TabJoursFériés[Date jour férié],0)),\"\")","v":""}]
["Proposition menus midi retraite."]
["Numéro du menu","MMR08","MMR09","MMR10","MMR11","MMR12","MMR13","MMR14"]
["Date du menu",{"$f":"WORKDAY(H3,1)","v":"2024-01-10"},{"$f":"WORKDAY(B17,1)","v":"2024-01-11"},{"$f":"WORKDAY(C17,1)","v":"2024-01-12"},"2024-01-15","2024-01-16","2024-01-17","2024-01-18"]
["Référence légume","LMR","LMR","LMR","LMR","LMR","LMR","LMR"]
["Légume"]
["Quantité légume"]
["Référence viande","VMR","VMR","VMR","VMR","VMR","VMR","VMR"]
["Viande"]
["Quantité viande",100,100,100,100,100,100,100]
["Référence dessert","DMR01","DMR01","DMR01","DMR01","DMR01","DMR01","DMR01"]
["Dessert","Pomme","Pomme","Pomme","Pomme","Pomme","Pomme","Pomme"]
["Quantité dessert",1,1,1,1,1,1,1]
["Référence jour férié",{"$f":"IFERROR(\"JF\"&TEXT(MATCH(B17,TabJoursFériés[Date jour férié],0),\"00\"),\"\")","v":""},{"$f":"IFERROR(\"JF\"&TEXT(MATCH(C17,TabJoursFériés[Date jour férié],0),\"00\"),\"\")","v":""},{"$f":"IFERROR(\"JF\"&TEXT(MATCH(D17,TabJoursFériés[Date jour férié],0),\"00\"),\"\")","v":""},{"$f":"IFERROR(\"JF\"&TEXT(MATCH(E17,TabJoursFériés[Date jour férié],0),\"00\"),\"\")","v":""},{"$f":"IFERROR(\"JF\"&TEXT(MATCH(F17,TabJoursFériés[Date jour férié],0),\"00\"),\"\")","v":""},{"$f":"IFERROR(\"JF\"&TEXT(MATCH(G17,TabJoursFériés[Date jour férié],0),\"00\"),\"\")","v":""},{"$f":"IFERROR(\"JF\"&TEXT(MATCH(H17,TabJoursFériés[Date jour férié],0),\"00\"),\"\")","v":""}]
["Jour férié",{"$f":"IFERROR(INDEX(TabJoursFériés[Jour férié],MATCH(B17,TabJoursFériés[Date jour férié],0)),\"\")","v":""},{"$f":"IFERROR(INDEX(TabJoursFériés[Jour férié],MATCH(C17,TabJoursFériés[Date jour férié],0)),\"\")","v":""},{"$f":"IFERROR(INDEX(TabJoursFériés[Jour férié],MATCH(D17,TabJoursFériés[Date jour férié],0)),\"\")","v":""},{"$f":"IFERROR(INDEX(TabJoursFériés[Jour férié],MATCH(E17,TabJoursFériés[Date jour férié],0)),\"\")","v":""},{"$f":"IFERROR(INDEX(TabJoursFériés[Jour férié],MATCH(F17,TabJoursFériés[Date jour férié],0)),\"\")","v":""},{"$f":"IFERROR(INDEX(TabJoursFériés[Jour férié],MATCH(G17,TabJoursFériés[Date jour férié],0)),\"\")","v":""},{"$f":"IFERROR(INDEX(TabJoursFériés[Jour férié],MATCH(H17,TabJoursFériés[Date jour férié],0)),\"\")","v":""}]
["Proposition menus midi retraite."]
["Numéro du menu","MMR15","MMR16","MMR17","MMR18","MMR19","MMR20","MMR21"]
["Date du menu",{"$f":"WORKDAY(H17,1)","v":"2024-01-19"},{"$f":"WORKDAY(B31,1)","v":"2024-01-22"},{"$f":"WORKDAY(C31,1)","v":"2024-01-23"},"2024-01-24","2024-01-25","2024-01-26","2024-01-29"]
["Référence légume","LMR","LMR","LMR","LMR","LMR","LMR","LMR"]
["Légume"]
["Quantité légume"]
["Référence viande","VMR","VMR","VMR","VMR","VMR","VMR","VMR"]
["Viande"]
["Quantité viande",100,100,100,100,100,100,100]
["Référence dessert","DMR01","DMR01","DMR01","DMR01","DMR01","DMR01","DMR01"]
["Dessert","Pomme","Pomme","Pomme","Pomme","Pomme","Pomme","Pomme"]
["Quantité dessert",1,1,1,1,1,1,1]
["Référence jour férié",{"$f":"IFERROR(\"JF\"&TEXT(MATCH(B31,TabJoursFériés[Date jour férié],0),\"00\"),\"\")","v":""},{"$f":"IFERROR(\"JF\"&TEXT(MATCH(C31,TabJoursFériés[Date jour férié],0),\"00\"),\"\")","v":""},{"$f":"IFERROR(\"JF\"&TEXT(MATCH(D31,TabJoursFériés[Date jour férié],0),\"00\"),\"\")","v":""},{"$f":"IFERROR(\"JF\"&TEXT(MATCH(E31,TabJoursFériés[Date jour férié],0),\"00\"),\"\")","v":""},{"$f":"IFERROR(\"JF\"&TEXT(MATCH(F31,TabJoursFériés[Date jour férié],0),\"00\"),\"\")","v":""},{"$f":"IFERROR(\"JF\"&TEXT(MATCH(G31,TabJoursFériés[Date jour férié],0),\"00\"),\"\")","v":""},{"$f":"IFERROR(\"JF\"&TEXT(MATCH(H31,TabJoursFériés[Date jour férié],0),\"00\"),\"\")","v":""}]
["Jour férié",{"$f":"IFERROR(INDEX(TabJoursFériés[Jour férié],MATCH(B31,TabJoursFériés[Date jour férié],0)),\"\")","v":""},{"$f":"IFERROR(INDEX(TabJoursFériés[Jour férié],MATCH(C31,TabJoursFériés[Date jour férié],0)),\"\")","v":""},{"$f":"IFERROR(INDEX(TabJoursFériés[Jour férié],MATCH(D31,TabJoursFériés[Date jour férié],0)),\"\")","v":""},{"$f":"IFERROR(INDEX(TabJoursFériés[Jour férié],MATCH(E31,TabJoursFériés[Date jour férié],0)),\"\")","v":""},{"$f":"IFERROR(INDEX(TabJoursFériés[Jour férié],MATCH(F31,TabJoursFériés[Date jour férié],0)),\"\")","v":""},{"$f":"IFERROR(INDEX(TabJoursFériés[Jour férié],MATCH(G31,TabJoursFériés[Date jour férié],0)),\"\")","v":""},{"$f":"IFERROR(INDEX(TabJoursFériés[Jour férié],MATCH(H31,TabJoursFériés[Date jour férié],0)),\"\")","v":""}]
["Proposition menus midi retraite."]
["Numéro du menu","MMR22","MMR23","MMR24","MMR25","MMR26","MMR27","MMR28"]
["Date du menu",{"$f":"WORKDAY(H31,1)","v":"2024-01-30"},{"$f":"WORKDAY(B45,1)","v":"2024-01-31"},{"$f":"WORKDAY(C45,1)","v":"2024-02-01"},"2024-02-02","2024-02-05","2024-02-06","2024-02-07"]
["Référence légume","LMR","LMR","LMR","LMR","LMR","LMR","LMR"]
["Légume"]
["Quantité légume"]
["Référence viande","VMR","VMR","VMR","VMR","VMR","VMR","VMR"]
["Viande"]
["Quantité viande",100,100,100,100,100,100,100]
["Référence dessert","DMR01","DMR01","DMR01","DMR01","DMR01","DMR01","DMR01"]
["Dessert","Pomme","Pomme","Pomme","Pomme","Pomme","Pomme","Pomme"]
["Quantité dessert",1,1,1,1,1,1,1]
["Référence jour férié",{"$f":"IFERROR(\"JF\"&TEXT(MATCH(B45,TabJoursFériés[Date jour férié],0),\"00\"),\"\")","v":""},{"$f":"IFERROR(\"JF\"&TEXT(MATCH(C45,TabJoursFériés[Date jour férié],0),\"00\"),\"\")","v":""},{"$f":"IFERROR(\"JF\"&TEXT(MATCH(D45,TabJoursFériés[Date jour férié],0),\"00\"),\"\")","v":""},{"$f":"IFERROR(\"JF\"&TEXT(MATCH(E45,TabJoursFériés[Date jour férié],0),\"00\"),\"\")","v":""},{"$f":"IFERROR(\"JF\"&TEXT(MATCH(F45,TabJoursFériés[Date jour férié],0),\"00\"),\"\")","v":""},{"$f":"IFERROR(\"JF\"&TEXT(MATCH(G45,TabJoursFériés[Date jour férié],0),\"00\"),\"\")","v":""},{"$f":"IFERROR(\"JF\"&TEXT(MATCH(H45,TabJoursFériés[Date jour férié],0),\"00\"),\"\")","v":""}]
["Jour férié",{"$f":"IFERROR(INDEX(TabJoursFériés[Jour férié],MATCH(B45,TabJoursFériés[Date jour férié],0)),\"\")","v":""},{"$f":"IFERROR(INDEX(TabJoursFériés[Jour férié],MATCH(C45,TabJoursFériés[Date jour férié],0)),\"\")","v":""},{"$f":"IFERROR(INDEX(TabJoursFériés[Jour férié],MATCH(D45,TabJoursFériés[Date jour férié],0)),\"\")","v":""},{"$f":"IFERROR(INDEX(TabJoursFériés[Jour férié],MATCH(E45,TabJoursFériés[Date jour férié],0)),\"\")","v":""},{"$f":"IFERROR(INDEX(TabJoursFériés[Jour férié],MATCH(F45,TabJoursFériés[Date jour férié],0)),\"\")","v":""},{"$f":"IFERROR(INDEX(TabJoursFériés[Jour férié],MATCH(G45,TabJoursFériés[Date jour férié],0)),\"\")","v":""},{"$f":"IFERROR(INDEX(TabJoursFériés[Jour férié],MATCH(H45,TabJoursFériés[Date jour férié],0)),\"\")","v":""}]
["Proposition menus midi retraite."]
["Numéro du menu","MMR29","MMR30","MMR31","MMR32","MMR33","MMR34","MMR35"]
["Date du menu",{"$f":"WORKDAY(H45,1)","v":"2024-02-08"},{"$f":"WORKDAY(B59,1)","v":"2024-02-09"},{"$f":"WORKDAY(C59,1)","v":"2024-02-12"},"2024-02-13","2024-02-14","2024-02-15","2024-02-16"]
["Référence légume","LMR","LMR","LMR","LMR","LMR","LMR","LMR"]
["Légume"]
["Quantité légume"]
["Référence viande","VMR","VMR","VMR","VMR","VMR","VMR","VMR"]
["Viande"]
["Quantité viande",100,100,100,100,100,100,100]
["Référence dessert","DMR01","DMR01","DMR01","DMR01","DMR01","DMR01","DMR01"]
["Dessert","Pomme","Pomme","Pomme","Pomme","Pomme","Pomme","Pomme"]
["Quantité dessert",1,1,1,1,1,1,1]
["Référence jour férié",{"$f":"IFERROR(\"JF\"&TEXT(MATCH(B59,TabJoursFériés[Date jour férié],0),\"00\"),\"\")","v":""},{"$f":"IFERROR(\"JF\"&TEXT(MATCH(C59,TabJoursFériés[Date jour férié],0),\"00\"),\"\")","v":""},{"$f":"IFERROR(\"JF\"&TEXT(MATCH(D59,TabJoursFériés[Date jour férié],0),\"00\"),\"\")","v":""},{"$f":"IFERROR(\"JF\"&TEXT(MATCH(E59,TabJoursFériés[Date jour férié],0),\"00\"),\"\")","v":""},{"$f":"IFERROR(\"JF\"&TEXT(MATCH(F59,TabJoursFériés[Date jour férié],0),\"00\"),\"\")","v":""},{"$f":"IFERROR(\"JF\"&TEXT(MATCH(G59,TabJoursFériés[Date jour férié],0),\"00\"),\"\")","v":""},{"$f":"IFERROR(\"JF\"&TEXT(MATCH(H59,TabJoursFériés[Date jour férié],0),\"00\"),\"\")","v":""}]
["Jour férié",{"$f":"IFERROR(INDEX(TabJoursFériés[Jour férié],MATCH(B59,TabJoursFériés[Date jour férié],0)),\"\")","v":""},{"$f":"IFERROR(INDEX(TabJoursFériés[Jour férié],MATCH(C59,TabJoursFériés[Date jour férié],0)),\"\")","v":""},{"$f":"IFERROR(INDEX(TabJoursFériés[Jour férié],MATCH(D59,TabJoursFériés[Date jour férié],0)),\"\")","v":""},{"$f":"IFERROR(INDEX(TabJoursFériés[Jour férié],MATCH(E59,TabJoursFériés[Date jour férié],0)),\"\")","v":""},{"$f":"IFERROR(INDEX(TabJoursFériés[Jour férié],MATCH(F59,TabJoursFériés[Date jour férié],0)),\"\")","v":""},{"$f":"IFERROR(INDEX(TabJoursFériés[Jour férié],MATCH(G59,TabJoursFériés[Date jour férié],0)),\"\")","v":""},{"$f":"IFERROR(INDEX(TabJoursFériés[Jour férié],MATCH(H59,TabJoursFériés[Date jour férié],0)),\"\")","v":""}]
["Proposition menus midi retraite."]
["Numéro du menu","MMR36","MMR37","MMR38","MMR39","MMR40","MMR41","MMR42"]
["Date du menu",{"$f":"WORKDAY(H59,1)","v":"2024-02-19"},{"$f":"WORKDAY(B73,1)","v":"2024-02-20"},{"$f":"WORKDAY(C73,1)","v":"2024-02-21"},"2024-02-22","2024-02-23","2024-02-26","2024-02-27"]
["Référence légume","LMR","LMR","LMR","LMR","LMR","LMR","LMR"]
["Légume"]
["Quantité légume"]
["Référence viande","VMR","VMR","VMR","VMR","VMR","VMR","VMR"]
["Viande"]
["Quantité viande",100,100,100,100,100,100,100]
["Référence dessert","DMR01","DMR01","DMR01","DMR01","DMR01","DMR01","DMR01"]
["Dessert","Pomme","Pomme","Pomme","Pomme","Pomme","Pomme","Pomme"]
["Quantité dessert",1,1,1,1,1,1,1]
["Référence jour férié",{"$f":"IFERROR(\"JF\"&TEXT(MATCH(B73,TabJoursFériés[Date jour férié],0),\"00\"),\"\")","v":""},{"$f":"IFERROR(\"JF\"&TEXT(MATCH(C73,TabJoursFériés[Date jour férié],0),\"00\"),\"\")","v":""},{"$f":"IFERROR(\"JF\"&TEXT(MATCH(D73,TabJoursFériés[Date jour férié],0),\"00\"),\"\")","v":""},{"$f":"IFERROR(\"JF\"&TEXT(MATCH(E73,TabJoursFériés[Date jour férié],0),\"00\"),\"\")","v":""},{"$f":"IFERROR(\"JF\"&TEXT(MATCH(F73,TabJoursFériés[Date jour férié],0),\"00\"),\"\")","v":""},{"$f":"IFERROR(\"JF\"&TEXT(MATCH(G73,TabJoursFériés[Date jour férié],0),\"00\"),\"\")","v":""},{"$f":"IFERROR(\"JF\"&TEXT(MATCH(H73,TabJoursFériés[Date jour férié],0),\"00\"),\"\")","v":""}]
["Jour férié",{"$f":"IFERROR(INDEX(TabJoursFériés[Jour férié],MATCH(B73,TabJoursFériés[Date jour férié],0)),\"\")","v":""},{"$f":"IFERROR(INDEX(TabJoursFériés[Jour férié],MATCH(C73,TabJoursFériés[Date jour férié],0)),\"\")","v":""},{"$f":"IFERROR(INDEX(TabJoursFériés[Jour férié],MATCH(D73,TabJoursFériés[Date jour férié],0)),\"\")","v":""},{"$f":"IFERROR(INDEX(TabJoursFériés[Jour férié],MATCH(E73,TabJoursFériés[Date jour férié],0)),\"\")","v":""},{"$f":"IFERROR(INDEX(TabJoursFériés[Jour férié],MATCH(F73,TabJoursFériés[Date jour férié],0)),\"\")","v":""},{"$f":"IFERROR(INDEX(TabJoursFériés[Jour férié],MATCH(G73,TabJoursFériés[Date jour férié],0)),\"\")","v":""},{"$f":"IFERROR(INDEX(TabJoursFériés[Jour férié],MATCH(H73,TabJoursFériés[Date jour férié],0)),\"\")","v":""}]
["Proposition menus midi retraite."]
["Numéro du menu","MMR43","MMR44","MMR45","MMR46","MMR47","MMR48","MMR49"]
["Date du menu",{"$f":"WORKDAY(H73,1)","v":"2024-02-28"},{"$f":"WORKDAY(B87,1)","v":"2024-02-29"},{"$f":"WORKDAY(C87,1)","v":"2024-03-01"},"2024-03-04","2024-03-05","2024-03-06","2024-03-07"]
["Référence légume","LMR","LMR","LMR","LMR","LMR","LMR","LMR"]
["Légume"]
["Quantité légume"]
["Référence viande","VMR","VMR","VMR","VMR","VMR","VMR","VMR"]
["Viande"]
["Quantité viande",100,100,100,100,100,100,100]
["Référence dessert","DMR01","DMR01","DMR01","DMR01","DMR01","DMR01","DMR01"]
["Dessert","Pomme","Pomme","Pomme","Pomme","Pomme","Pomme","Pomme"]
["Quantité dessert",1,1,1,1,1,1,1]
["Référence jour férié",{"$f":"IFERROR(\"JF\"&TEXT(MATCH(B87,TabJoursFériés[Date jour férié],0),\"00\"),\"\")","v":""},{"$f":"IFERROR(\"JF\"&TEXT(MATCH(C87,TabJoursFériés[Date jour férié],0),\"00\"),\"\")","v":""},{"$f":"IFERROR(\"JF\"&TEXT(MATCH(D87,TabJoursFériés[Date jour férié],0),\"00\"),\"\")","v":""},{"$f":"IFERROR(\"JF\"&TEXT(MATCH(E87,TabJoursFériés[Date jour férié],0),\"00\"),\"\")","v":""},{"$f":"IFERROR(\"JF\"&TEXT(MATCH(F87,TabJoursFériés[Date jour férié],0),\"00\"),\"\")","v":""},{"$f":"IFERROR(\"JF\"&TEXT(MATCH(G87,TabJoursFériés[Date jour férié],0),\"00\"),\"\")","v":""},{"$f":"IFERROR(\"JF\"&TEXT(MATCH(H87,TabJoursFériés[Date jour férié],0),\"00\"),\"\")","v":""}]
["Jour férié",{"$f":"IFERROR(INDEX(TabJoursFériés[Jour férié],MATCH(B87,TabJoursFériés[Date jour férié],0)),\"\")","v":""},{"$f":"IFERROR(INDEX(TabJoursFériés[Jour férié],MATCH(C87,TabJoursFériés[Date jour férié],0)),\"\")","v":""},{"$f":"IFERROR(INDEX(TabJoursFériés[Jour férié],MATCH(D87,TabJoursFériés[Date jour férié],0)),\"\")","v":""},{"$f":"IFERROR(INDEX(TabJoursFériés[Jour férié],MATCH(E87,TabJoursFériés[Date jour férié],0)),\"\")","v":""},{"$f":"IFERROR(INDEX(TabJoursFériés[Jour férié],MATCH(F87,TabJoursFériés[Date jour férié],0)),\"\")","v":""},{"$f":"IFERROR(INDEX(TabJoursFériés[Jour férié],MATCH(G87,TabJoursFériés[Date jour férié],0)),\"\")","v":""},{"$f":"IFERROR(INDEX(TabJoursFériés[Jour férié],MATCH(H87,TabJoursFériés[Date jour férié],0)),\"\")","v":""}]
["Proposition menus midi retraite."]
["Numéro du menu","MMR50","MMR51","MMR52","MMR53","MMR54","MMR55","MMR56"]
["Date du menu",{"$f":"WORKDAY(H87,1)","v":"2024-03-08"},{"$f":"WORKDAY(B101,1)","v":"2024-03-11"},{"$f":"WORKDAY(C101,1)","v":"2024-03-12"},"2024-03-13","2024-03-14","2024-03-15","2024-03-18"]
["Référence légume","LMR","LMR","LMR","LMR","LMR","LMR","LMR"]
["Légume"]
["Quantité légume"]
["Référence viande","VMR","VMR","VMR","VMR","VMR","VMR","VMR"]
["Viande"]
["Quantité viande",100,100,100,100,100,100,100]
["Référence dessert","DMR01","DMR01","DMR01","DMR01","DMR01","DMR01","DMR01"]
["Dessert","Pomme","Pomme","Pomme","Pomme","Pomme","Pomme","Pomme"]
["Quantité dessert",1,1,1,1,1,1,1]
["Référence jour férié",{"$f":"IFERROR(\"JF\"&TEXT(MATCH(B101,TabJoursFériés[Date jour férié],0),\"00\"),\"\")","v":""},{"$f":"IFERROR(\"JF\"&TEXT(MATCH(C101,TabJoursFériés[Date jour férié],0),\"00\"),\"\")","v":""},{"$f":"IFERROR(\"JF\"&TEXT(MATCH(D101,TabJoursFériés[Date jour férié],0),\"00\"),\"\")","v":""},{"$f":"IFERROR(\"JF\"&TEXT(MATCH(E101,TabJoursFériés[Date jour férié],0),\"00\"),\"\")","v":""},{"$f":"IFERROR(\"JF\"&TEXT(MATCH(F101,TabJoursFériés[Date jour férié],0),\"00\"),\"\")","v":""},{"$f":"IFERROR(\"JF\"&TEXT(MATCH(G101,TabJoursFériés[Date jour férié],0),\"00\"),\"\")","v":""},{"$f":"IFERROR(\"JF\"&TEXT(MATCH(H101,TabJoursFériés[Date jour férié],0),\"00\"),\"\")","v":""}]
["Jour férié",{"$f":"IFERROR(INDEX(TabJoursFériés[Jour férié],MATCH(B101,TabJoursFériés[Date jour férié],0)),\"\")","v":""},{"$f":"IFERROR(INDEX(TabJoursFériés[Jour férié],MATCH(C101,TabJoursFériés[Date jour férié],0)),\"\")","v":""},{"$f":"IFERROR(INDEX(TabJoursFériés[Jour férié],MATCH(D101,TabJoursFériés[Date jour férié],0)),\"\")","v":""},{"$f":"IFERROR(INDEX(TabJoursFériés[Jour férié],MATCH(E101,TabJoursFériés[Date jour férié],0)),\"\")","v":""},{"$f":"IFERROR(INDEX(TabJoursFériés[Jour férié],MATCH(F101,TabJoursFériés[Date jour férié],0)),\"\")","v":""},{"$f":"IFERROR(INDEX(TabJoursFériés[Jour férié],MATCH(G101,TabJoursFériés[Date jour férié],0)),\"\")","v":""},{"$f":"IFERROR(INDEX(TabJoursFériés[Jour férié],MATCH(H101,TabJoursFériés[Date jour férié],0)),\"\")","v":""}]
["Proposition menus midi retraite."]
["Numéro du menu","MMR57","MMR58","MMR59","MMR60","MMR61","MMR62","MMR63"]
["Date du menu",{"$f":"WORKDAY(H101,1)","v":"2024-03-19"},{"$f":"WORKDAY(B115,1)","v":"2024-03-20"},{"$f":"WORKDAY(C115,1)","v":"2024-03-21"},"2024-03-22","2024-03-25","2024-03-26","2024-03-27"]
["Référence légume","LMR","LMR","LMR","LMR","LMR","LMR","LMR"]
["Légume"]
["Quantité légume"]
["Référence viande","VMR","VMR","VMR","VMR","VMR","VMR","VMR"]
["Viande"]
["Quantité viande",100,100,100,100,100,100,100]
["Référence dessert","DMR01","DMR01","DMR01","DMR01","DMR01","DMR01","DMR01"]
["Dessert","Pomme","Pomme","Pomme","Pomme","Pomme","Pomme","Pomme"]
["Quantité dessert",1,1,1,1,1,1,1]
["Référence jour férié",{"$f":"IFERROR(\"JF\"&TEXT(MATCH(B115,TabJoursFériés[Date jour férié],0),\"00\"),\"\")","v":""},{"$f":"IFERROR(\"JF\"&TEXT(MATCH(C115,TabJoursFériés[Date jour férié],0),\"00\"),\"\")","v":""},{"$f":"IFERROR(\"JF\"&TEXT(MATCH(D115,TabJoursFériés[Date jour férié],0),\"00\"),\"\")","v":""},{"$f":"IFERROR(\"JF\"&TEXT(MATCH(E115,TabJoursFériés[Date jour férié],0),\"00\"),\"\")","v":""},{"$f":"IFERROR(\"JF\"&TEXT(MATCH(F115,TabJoursFériés[Date jour férié],0),\"00\"),\"\")","v":""},{"$f":"IFERROR(\"JF\"&TEXT(MATCH(G115,TabJoursFériés[Date jour férié],0),\"00\"),\"\")","v":""},{"$f":"IFERROR(\"JF\"&TEXT(MATCH(H115,TabJoursFériés[Date jour férié],0),\"00\"),\"\")","v":""}]
["Jour férié",{"$f":"IFERROR(INDEX(TabJoursFériés[Jour férié],MATCH(B115,TabJoursFériés[Date jour férié],0)),\"\")","v":""},{"$f":"IFERROR(INDEX(TabJoursFériés[Jour férié],MATCH(C115,TabJoursFériés[Date jour férié],0)),\"\")","v":""},{"$f":"IFERROR(INDEX(TabJoursFériés[Jour férié],MATCH(D115,TabJoursFériés[Date jour férié],0)),\"\")","v":""},{"$f":"IFERROR(INDEX(TabJoursFériés[Jour férié],MATCH(E115,TabJoursFériés[Date jour férié],0)),\"\")","v":""},{"$f":"IFERROR(INDEX(TabJoursFériés[Jour férié],MATCH(F115,TabJoursFériés[Date jour férié],0)),\"\")","v":""},{"$f":"IFERROR(INDEX(TabJoursFériés[Jour férié],MATCH(G115,TabJoursFériés[Date jour férié],0)),\"\")","v":""},{"$f":"IFERROR(INDEX(TabJoursFériés[Jour férié],MATCH(H115,TabJoursFériés[Date jour férié],0)),\"\")","v":""}]
["Proposition menus midi retraite."]
["Numéro du menu","MMR64","MMR65","MMR66","MMR67","MMR68","MMR69","MMR70"]
["Date du menu",{"$f":"WORKDAY(H115,1)","v":"2024-03-28"},{"$f":"WORKDAY(B129,1)","v":"2024-03-29"},{"$f":"WORKDAY(C129,1)","v":"2024-04-01"},"2024-04-02","2024-04-03","2024-04-04","2024-04-05"]
["Référence légume","LMR","LMR","LMR","LMR","LMR","LMR","LMR"]
["Légume"]
["Quantité légume"]
["Référence viande","VMR","VMR","VMR","VMR","VMR","VMR","VMR"]
["Viande"]
["Quantité viande",100,100,100,100,100,100,100]
["Référence dessert","DMR01","DMR01","DMR01","DMR01","DMR01","DMR01","DMR01"]
["Dessert","Pomme","Pomme","Pomme","Pomme","Pomme","Pomme","Pomme"]
["Quantité dessert",1,1,1,1,1,1,1]
["Référence jour férié",{"$f":"IFERROR(\"JF\"&TEXT(MATCH(B129,TabJoursFériés[Date jour férié],0),\"00\"),\"\")","v":""},{"$f":"IFERROR(\"JF\"&TEXT(MATCH(C129,TabJoursFériés[Date jour férié],0),\"00\"),\"\")","v":""},{"$f":"IFERROR(\"JF\"&TEXT(MATCH(D129,TabJoursFériés[Date jour férié],0),\"00\"),\"\")","v":"JF03"},{"$f":"IFERROR(\"JF\"&TEXT(MATCH(E129,TabJoursFériés[Date jour férié],0),\"00\"),\"\")","v":""},{"$f":"IFERROR(\"JF\"&TEXT(MATCH(F129,TabJoursFériés[Date jour férié],0),\"00\"),\"\")","v":""},{"$f":"IFERROR(\"JF\"&TEXT(MATCH(G129,TabJoursFériés[Date jour férié],0),\"00\"),\"\")","v":""},{"$f":"IFERROR(\"JF\"&TEXT(MATCH(H129,TabJoursFériés[Date jour férié],0),\"00\"),\"\")","v":""}]
["Jour férié",{"$f":"IFERROR(INDEX(TabJoursFériés[Jour férié],MATCH(B129,TabJoursFériés[Date jour férié],0)),\"\")","v":""},{"$f":"IFERROR(INDEX(TabJoursFériés[Jour férié],MATCH(C129,TabJoursFériés[Date jour férié],0)),\"\")","v":""},{"$f":"IFERROR(INDEX(TabJoursFériés[Jour férié],MATCH(D129,TabJoursFériés[Date jour férié],0)),\"\")","v":"Lundi de Pâques"},{"$f":"IFERROR(INDEX(TabJoursFériés[Jour férié],MATCH(E129,TabJoursFériés[Date jour férié],0)),\"\")","v":""},{"$f":"IFERROR(INDEX(TabJoursFériés[Jour férié],MATCH(F129,TabJoursFériés[Date jour férié],0)),\"\")","v":""},{"$f":"IFERROR(INDEX(TabJoursFériés[Jour férié],MATCH(G129,TabJoursFériés[Date jour férié],0)),\"\")","v":""},{"$f":"IFERROR(INDEX(TabJoursFériés[Jour férié],MATCH(H129,TabJoursFériés[Date jour férié],0)),\"\")","v":""}]
["Proposition menus midi retraite."]
["Numéro du menu","MMR71","MMR72","MMR73","MMR74","MMR75","MMR76","MMR77"]
["Date du menu",{"$f":"WORKDAY(H129,1)","v":"2024-04-08"},{"$f":"WORKDAY(B143,1)","v":"2024-04-09"},{"$f":"WORKDAY(C143,1)","v":"2024-04-10"},"2024-04-11","2024-04-12","2024-04-15","2024-04-16"]
["Référence légume","LMR","LMR","LMR","LMR","LMR","2025-04-14","LMR"]
["Légume"]
["Quantité légume"]
["Référence viande","VMR","VMR","VMR","VMR","VMR","VMR","VMR"]
["Viande"]
["Quantité viande",100,100,100,100,100,100,100]
["Référence dessert","DMR01","DMR01","DMR01","DMR01","DMR01","DMR01","DMR01"]
["Dessert","Pomme","Pomme","Pomme","Pomme","Pomme","Pomme","Pomme"]
["Quantité dessert",1,1,1,1,1,1,1]
["Référence jour férié",{"$f":"IFERROR(\"JF\"&TEXT(MATCH(B143,TabJoursFériés[Date jour férié],0),\"00\"),\"\")","v":""},{"$f":"IFERROR(\"JF\"&TEXT(MATCH(C143,TabJoursFériés[Date jour férié],0),\"00\"),\"\")","v":""},{"$f":"IFERROR(\"JF\"&TEXT(MATCH(D143,TabJoursFériés[Date jour férié],0),\"00\"),\"\")","v":""},{"$f":"IFERROR(\"JF\"&TEXT(MATCH(E143,TabJoursFériés[Date jour férié],0),\"00\"),\"\")","v":""},{"$f":"IFERROR(\"JF\"&TEXT(MATCH(F143,TabJoursFériés[Date jour férié],0),\"00\"),\"\")","v":""},{"$f":"IFERROR(\"JF\"&TEXT(MATCH(G143,TabJoursFériés[Date jour férié],0),\"00\"),\"\")","v":""},{"$f":"IFERROR(\"JF\"&TEXT(MATCH(H143,TabJoursFériés[Date jour férié],0),\"00\"),\"\")","v":""}]
["Jour férié",{"$f":"IFERROR(INDEX(TabJoursFériés[Jour férié],MATCH(B143,TabJoursFériés[Date jour férié],0)),\"\")","v":""},{"$f":"IFERROR(INDEX(TabJoursFériés[Jour férié],MATCH(C143,TabJoursFériés[Date jour férié],0)),\"\")","v":""},{"$f":"IFERROR(INDEX(TabJoursFériés[Jour férié],MATCH(D143,TabJoursFériés[Date jour férié],0)),\"\")","v":""},{"$f":"IFERROR(INDEX(TabJoursFériés[Jour férié],MATCH(E143,TabJoursFériés[Date jour férié],0)),\"\")","v":""},{"$f":"IFERROR(INDEX(TabJoursFériés[Jour férié],MATCH(F143,TabJoursFériés[Date jour férié],0)),\"\")","v":""},{"$f":"IFERROR(INDEX(TabJoursFériés[Jour férié],MATCH(G143,TabJoursFériés[Date jour férié],0)),\"\")","v":""},{"$f":"IFERROR(INDEX(TabJoursFériés[Jour férié],MATCH(H143,TabJoursFériés[Date jour férié],0)),\"\")","v":""}]
["Proposition menus midi retraite."]
["Numéro du menu","MMR78","MMR79","MMR80","MMR81","MMR82","MMR83","MMR84"]
["Date du menu",{"$f":"WORKDAY(H143,1)","v":"2024-04-17"},{"$f":"WORKDAY(B157,1)","v":"2024-04-18"},{"$f":"WORKDAY(C157,1)","v":"2024-04-19"},"2024-04-22","2024-04-23","2024-04-24","2024-04-25"]
["Référence légume","LMR","LMR","LMR","LMR","LMR","LMR","LMR"]
["Légume"]
["Quantité légume"]
["Référence viande","VMR","VMR","VMR","VMR","VMR","VMR","VMR"]
["Viande"]
["Quantité viande",100,100,100,100,100,100,100]
["Référence dessert","DMR01","DMR01","DMR01","DMR01","DMR01","DMR01","DMR01"]
["Dessert","Pomme","Pomme","Pomme","Pomme","Pomme","Pomme","Pomme"]
["Quantité dessert",1,1,1,1,1,1,1]
["Référence jour férié",{"$f":"IFERROR(\"JF\"&TEXT(MATCH(B157,TabJoursFériés[Date jour férié],0),\"00\"),\"\")","v":""},{"$f":"IFERROR(\"JF\"&TEXT(MATCH(C157,TabJoursFériés[Date jour férié],0),\"00\"),\"\")","v":""},{"$f":"IFERROR(\"JF\"&TEXT(MATCH(D157,TabJoursFériés[Date jour férié],0),\"00\"),\"\")","v":""},{"$f":"IFERROR(\"JF\"&TEXT(MATCH(E157,TabJoursFériés[Date jour férié],0),\"00\"),\"\")","v":""},{"$f":"IFERROR(\"JF\"&TEXT(MATCH(F157,TabJoursFériés[Date jour férié],0),\"00\"),\"\")","v":""},{"$f":"IFERROR(\"JF\"&TEXT(MATCH(G157,TabJoursFériés[Date jour férié],0),\"00\"),\"\")","v":""},{"$f":"IFERROR(\"JF\"&TEXT(MATCH(H157,TabJoursFériés[Date jour férié],0),\"00\"),\"\")","v":""}]
["Jour férié",{"$f":"IFERROR(INDEX(TabJoursFériés[Jour férié],MATCH(B157,TabJoursFériés[Date jour férié],0)),\"\")","v":""},{"$f":"IFERROR(INDEX(TabJoursFériés[Jour férié],MATCH(C157,TabJoursFériés[Date jour férié],0)),\"\")","v":""},{"$f":"IFERROR(INDEX(TabJoursFériés[Jour férié],MATCH(D157,TabJoursFériés[Date jour férié],0)),\"\")","v":""},{"$f":"IFERROR(INDEX(TabJoursFériés[Jour férié],MATCH(E157,TabJoursFériés[Date jour férié],0)),\"\")","v":""},{"$f":"IFERROR(INDEX(TabJoursFériés[Jour férié],MATCH(F157,TabJoursFériés[Date jour férié],0)),\"\")","v":""},{"$f":"IFERROR(INDEX(TabJoursFériés[Jour férié],MATCH(G157,TabJoursFériés[Date jour férié],0)),\"\")","v":""},{"$f":"IFERROR(INDEX(TabJoursFériés[Jour férié],MATCH(H157,TabJoursFériés[Date jour férié],0)),\"\")","v":""}]
["Proposition menus midi retraite."]
["Numéro du menu","MMR85","MMR86","MMR87","MMR88","MMR89","MMR90","MMR91"]
["Date du menu",{"$f":"WORKDAY(H157,1)","v":"2024-04-26"},{"$f":"WORKDAY(B171,1)","v":"2024-04-29"},{"$f":"WORKDAY(C171,1)","v":"2024-04-30"},"2024-05-01","2024-05-02","2024-05-03","2024-05-06"]
["Référence légume","LMR","LMR","LMR","LMR","LMR","LMR","LMR"]
["Légume"]
["Quantité légume"]
["Référence viande","VMR","VMR","VMR","VMR","VMR","VMR","VMR"]
["Viande"]
["Quantité viande",100,100,100,100,100,100,100]
["Référence dessert","DMR01","DMR01","DMR01","DMR01","DMR01","DMR01","DMR01"]
["Dessert","Pomme","Pomme","Pomme","Pomme","Pomme","Pomme","Pomme"]
["Quantité dessert",1,1,1,1,1,1,1]
["Référence jour férié",{"$f":"IFERROR(\"JF\"&TEXT(MATCH(B171,TabJoursFériés[Date jour férié],0),\"00\"),\"\")","v":""},{"$f":"IFERROR(\"JF\"&TEXT(MATCH(C171,TabJoursFériés[Date jour férié],0),\"00\"),\"\")","v":""},{"$f":"IFERROR(\"JF\"&TEXT(MATCH(D171,TabJoursFériés[Date jour férié],0),\"00\"),\"\")","v":""},{"$f":"IFERROR(\"JF\"&TEXT(MATCH(E171,TabJoursFériés[Date jour férié],0),\"00\"),\"\")","v":"JF04"},{"$f":"IFERROR(\"JF\"&TEXT(MATCH(F171,TabJoursFériés[Date jour férié],0),\"00\"),\"\")","v":""},{"$f":"IFERROR(\"JF\"&TEXT(MATCH(G171,TabJoursFériés[Date jour férié],0),\"00\"),\"\")","v":""},{"$f":"IFERROR(\"JF\"&TEXT(MATCH(H171,TabJoursFériés[Date jour férié],0),\"00\"),\"\")","v":""}]
["Jour férié",{"$f":"IFERROR(INDEX(TabJoursFériés[Jour férié],MATCH(B171,TabJoursFériés[Date jour férié],0)),\"\")","v":""},{"$f":"IFERROR(INDEX(TabJoursFériés[Jour férié],MATCH(C171,TabJoursFériés[Date jour férié],0)),\"\")","v":""},{"$f":"IFERROR(INDEX(TabJoursFériés[Jour férié],MATCH(D171,TabJoursFériés[Date jour férié],0)),\"\")","v":""},{"$f":"IFERROR(INDEX(TabJoursFériés[Jour férié],MATCH(E171,TabJoursFériés[Date jour férié],0)),\"\")","v":"Fête du travail"},{"$f":"IFERROR(INDEX(TabJoursFériés[Jour férié],MATCH(F171,TabJoursFériés[Date jour férié],0)),\"\")","v":""},{"$f":"IFERROR(INDEX(TabJoursFériés[Jour férié],MATCH(G171,TabJoursFériés[Date jour férié],0)),\"\")","v":""},{"$f":"IFERROR(INDEX(TabJoursFériés[Jour férié],MATCH(H171,TabJoursFériés[Date jour férié],0)),\"\")","v":""}]
["Proposition menus midi retraite."]
["Numéro du menu","MMR92","MMR93","MMR94","MMR95","MMR96","MMR97","MMR98"]
["Date du menu",{"$f":"WORKDAY(H171,1)","v":"2024-05-07"},{"$f":"WORKDAY(B185,1)","v":"2024-05-08"},{"$f":"WORKDAY(C185,1)","v":"2024-05-09"},"2024-05-10","2024-05-13","2024-05-14","2024-05-15"]
["Référence légume","LMR","LMR","LMR","LMR","LMR","LMR","LMR"]
["Légume"]
["Quantité légume"]
["Référence viande","VMR","VMR","VMR","VMR","VMR","VMR","VMR"]
["Viande"]
["Quantité viande",100,100,100,100,100,100,100]
["Référence dessert","DMR01","DMR01","DMR01","DMR01","DMR01","DMR01","DMR01"]
["Dessert","Pomme","Pomme","Pomme","Pomme","Pomme","Pomme","Pomme"]
["Quantité dessert",1,1,1,1,1,1,1]
["Référence jour férié",{"$f":"IFERROR(\"JF\"&TEXT(MATCH(B185,TabJoursFériés[Date jour férié],0),\"00\"),\"\")","v":""},{"$f":"IFERROR(\"JF\"&TEXT(MATCH(C185,TabJoursFériés[Date jour férié],0),\"00\"),\"\")","v":"JF05"},{"$f":"IFERROR(\"JF\"&TEXT(MATCH(D185,TabJoursFériés[Date jour férié],0),\"00\"),\"\")","v":"JF06"},{"$f":"IFERROR(\"JF\"&TEXT(MATCH(E185,TabJoursFériés[Date jour férié],0),\"00\"),\"\")","v":""},{"$f":"IFERROR(\"JF\"&TEXT(MATCH(F185,TabJoursFériés[Date jour férié],0),\"00\"),\"\")","v":""},{"$f":"IFERROR(\"JF\"&TEXT(MATCH(G185,TabJoursFériés[Date jour férié],0),\"00\"),\"\")","v":""},{"$f":"IFERROR(\"JF\"&TEXT(MATCH(H185,TabJoursFériés[Date jour férié],0),\"00\"),\"\")","v":""}]
["Jour férié",{"$f":"IFERROR(INDEX(TabJoursFériés[Jour férié],MATCH(B185,TabJoursFériés[Date jour férié],0)),\"\")","v":""},{"$f":"IFERROR(INDEX(TabJoursFériés[Jour férié],MATCH(C185,TabJoursFériés[Date jour férié],0)),\"\")","v":"Victoire 1945"},{"$f":"IFERROR(INDEX(TabJoursFériés[Jour férié],MATCH(D185,TabJoursFériés[Date jour férié],0)),\"\")","v":"Jeudi de l'ascension"},{"$f":"IFERROR(INDEX(TabJoursFériés[Jour férié],MATCH(E185,TabJoursFériés[Date jour férié],0)),\"\")","v":""},{"$f":"IFERROR(INDEX(TabJoursFériés[Jour férié],MATCH(F185,TabJoursFériés[Date jour férié],0)),\"\")","v":""},{"$f":"IFERROR(INDEX(TabJoursFériés[Jour férié],MATCH(G185,TabJoursFériés[Date jour férié],0)),\"\")","v":""},{"$f":"IFERROR(INDEX(TabJoursFériés[Jour férié],MATCH(H185,TabJoursFériés[Date jour férié],0)),\"\")","v":""}]
["Proposition menus midi retraite."]
["Numéro du menu","MMR99","MMR100","MMR101","MMR102","MMR103","MMR104","MMR105"]
["Date du menu",{"$f":"WORKDAY(H185,1)","v":"2024-05-16"},{"$f":"WORKDAY(B199,1)","v":"2024-05-17"},{"$f":"WORKDAY(C199,1)","v":"2024-05-20"},"2024-05-21","2024-05-22","2024-05-23","2024-05-24"]
["Référence légume","LMR","LMR","LMR","LMR","LMR","LMR","LMR"]
["Légume"]
["Quantité légume"]
["Référence viande","VMR","VMR","VMR","VMR","VMR","VMR","VMR"]
["Viande"]
["Quantité viande",100,100,100,100,100,100,100]
["Référence dessert","DMR01","DMR01","DMR01","DMR01","DMR01","DMR01","DMR01"]
["Dessert","Pomme","Pomme","Pomme","Pomme","Pomme","Pomme","Pomme"]
["Quantité dessert",1,1,1,1,1,1,1]
["Référence jour férié",{"$f":"IFERROR(\"JF\"&TEXT(MATCH(B199,TabJoursFériés[Date jour férié],0),\"00\"),\"\")","v":""},{"$f":"IFERROR(\"JF\"&TEXT(MATCH(C199,TabJoursFériés[Date jour férié],0),\"00\"),\"\")","v":""},{"$f":"IFERROR(\"JF\"&TEXT(MATCH(D199,TabJoursFériés[Date jour férié],0),\"00\"),\"\")","v":"JF08"},{"$f":"IFERROR(\"JF\"&TEXT(MATCH(E199,TabJoursFériés[Date jour férié],0),\"00\"),\"\")","v":""},{"$f":"IFERROR(\"JF\"&TEXT(MATCH(F199,TabJoursFériés[Date jour férié],0),\"00\"),\"\")","v":""},{"$f":"IFERROR(\"JF\"&TEXT(MATCH(G199,TabJoursFériés[Date jour férié],0),\"00\"),\"\")","v":""},{"$f":"IFERROR(\"JF\"&TEXT(MATCH(H199,TabJoursFériés[Date jour férié],0),\"00\"),\"\")","v":""}]
["Jour férié",{"$f":"IFERROR(INDEX(TabJoursFériés[Jour férié],MATCH(B199,TabJoursFériés[Date jour férié],0)),\"\")","v":""},{"$f":"IFERROR(INDEX(TabJoursFériés[Jour férié],MATCH(C199,TabJoursFériés[Date jour férié],0)),\"\")","v":""},{"$f":"IFERROR(INDEX(TabJoursFériés[Jour férié],MATCH(D199,TabJoursFériés[Date jour férié],0)),\"\")","v":"Lundi de Pentecôte"},{"$f":"IFERROR(INDEX(TabJoursFériés[Jour férié],MATCH(E199,TabJoursFériés[Date jour férié],0)),\"\")","v":""},{"$f":"IFERROR(INDEX(TabJoursFériés[Jour férié],MATCH(F199,TabJoursFériés[Date jour férié],0)),\"\")","v":""},{"$f":"IFERROR(INDEX(TabJoursFériés[Jour férié],MATCH(G199,TabJoursFériés[Date jour férié],0)),\"\")","v":""},{"$f":"IFERROR(INDEX(TabJoursFériés[Jour férié],MATCH(H199,TabJoursFériés[Date jour férié],0)),\"\")","v":""}]
["Proposition menus midi retraite."]
["Numéro du menu","MMR106","MMR107","MMR108","MMR109","MMR110","MMR111","MMR112"]
["Date du menu",{"$f":"WORKDAY(H199,1)","v":"2024-05-27"},{"$f":"WORKDAY(B213,1)","v":"2024-05-28"},{"$f":"WORKDAY(C213,1)","v":"2024-05-29"},"2024-05-30","2024-05-31","2024-06-03","2024-06-04"]
["Référence légume","LMR","LMR","LMR","LMR","LMR","LMR","LMR"]
["Légume"]
["Quantité légume"]
["Référence viande","VMR","VMR","VMR","VMR","VMR","VMR","VMR"]
["Viande"]
["Quantité viande",100,100,100,100,100,100,100]
["Référence dessert","DMR01","DMR01","DMR01","DMR01","DMR01","DMR01","DMR01"]
["Dessert","Pomme","Pomme","Pomme","Pomme","Pomme","Pomme","Pomme"]
["Quantité dessert",1,1,1,1,1,1,1]
["Référence jour férié",{"$f":"IFERROR(\"JF\"&TEXT(MATCH(B213,TabJoursFériés[Date jour férié],0),\"00\"),\"\")","v":""},{"$f":"IFERROR(\"JF\"&TEXT(MATCH(C213,TabJoursFériés[Date jour férié],0),\"00\"),\"\")","v":""},{"$f":"IFERROR(\"JF\"&TEXT(MATCH(D213,TabJoursFériés[Date jour férié],0),\"00\"),\"\")","v":""},{"$f":"IFERROR(\"JF\"&TEXT(MATCH(E213,TabJoursFériés[Date jour férié],0),\"00\"),\"\")","v":""},{"$f":"IFERROR(\"JF\"&TEXT(MATCH(F213,TabJoursFériés[Date jour férié],0),\"00\"),\"\")","v":""},{"$f":"IFERROR(\"JF\"&TEXT(MATCH(G213,TabJoursFériés[Date jour férié],0),\"00\"),\"\")","v":""},{"$f":"IFERROR(\"JF\"&TEXT(MATCH(H213,TabJoursFériés[Date jour férié],0),\"00\"),\"\")","v":""}]
["Jour férié",{"$f":"IFERROR(INDEX(TabJoursFériés[Jour férié],MATCH(B213,TabJoursFériés[Date jour férié],0)),\"\")","v":""},{"$f":"IFERROR(INDEX(TabJoursFériés[Jour férié],MATCH(C213,TabJoursFériés[Date jour férié],0)),\"\")","v":""},{"$f":"IFERROR(INDEX(TabJoursFériés[Jour férié],MATCH(D213,TabJoursFériés[Date jour férié],0)),\"\")","v":""},{"$f":"IFERROR(INDEX(TabJoursFériés[Jour férié],MATCH(E213,TabJoursFériés[Date jour férié],0)),\"\")","v":""},{"$f":"IFERROR(INDEX(TabJoursFériés[Jour férié],MATCH(F213,TabJoursFériés[Date jour férié],0)),\"\")","v":""},{"$f":"IFERROR(INDEX(TabJoursFériés[Jour férié],MATCH(G213,TabJoursFériés[Date jour férié],0)),\"\")","v":""},{"$f":"IFERROR(INDEX(TabJoursFériés[Jour férié],MATCH(H213,TabJoursFériés[Date jour férié],0)),\"\")","v":""}]
["Proposition menus midi retraite."]
["Numéro du menu","MMR113","MMR114","MMR115","MMR116","MMR117","MMR118","MMR119"]
["Date du menu",{"$f":"WORKDAY(H213,1)","v":"2024-06-05"},{"$f":"WORKDAY(B227,1)","v":"2024-06-06"},{"$f":"WORKDAY(C227,1)","v":"2024-06-07"},"2024-06-10","2024-06-11","2024-06-12","2024-06-13"]
["Référence légume","LMR","LMR","LMR","LMR","LMR","LMR","LMR"]
["Légume"]
["Quantité légume"]
["Référence viande","VMR","VMR","VMR","VMR","VMR","VMR","VMR"]
["Viande"]
["Quantité viande",100,100,100,100,100,100,100]
["Référence dessert","DMR01","DMR01","DMR01","DMR01","DMR01","DMR01","DMR01"]
["Dessert","Pomme","Pomme","Pomme","Pomme","Pomme","Pomme","Pomme"]
["Quantité dessert",1,1,1,1,1,1,1]
["Référence jour férié",{"$f":"IFERROR(\"JF\"&TEXT(MATCH(B227,TabJoursFériés[Date jour férié],0),\"00\"),\"\")","v":""},{"$f":"IFERROR(\"JF\"&TEXT(MATCH(C227,TabJoursFériés[Date jour férié],0),\"00\"),\"\")","v":""},{"$f":"IFERROR(\"JF\"&TEXT(MATCH(D227,TabJoursFériés[Date jour férié],0),\"00\"),\"\")","v":""},{"$f":"IFERROR(\"JF\"&TEXT(MATCH(E227,TabJoursFériés[Date jour férié],0),\"00\"),\"\")","v":""},{"$f":"IFERROR(\"JF\"&TEXT(MATCH(F227,TabJoursFériés[Date jour férié],0),\"00\"),\"\")","v":""},{"$f":"IFERROR(\"JF\"&TEXT(MATCH(G227,TabJoursFériés[Date jour férié],0),\"00\"),\"\")","v":""},{"$f":"IFERROR(\"JF\"&TEXT(MATCH(H227,TabJoursFériés[Date jour férié],0),\"00\"),\"\")","v":""}]
["Jour férié",{"$f":"IFERROR(INDEX(TabJoursFériés[Jour férié],MATCH(B227,TabJoursFériés[Date jour férié],0)),\"\")","v":""},{"$f":"IFERROR(INDEX(TabJoursFériés[Jour férié],MATCH(C227,TabJoursFériés[Date jour férié],0)),\"\")","v":""},{"$f":"IFERROR(INDEX(TabJoursFériés[Jour férié],MATCH(D227,TabJoursFériés[Date jour férié],0)),\"\")","v":""},{"$f":"IFERROR(INDEX(TabJoursFériés[Jour férié],MATCH(E227,TabJoursFériés[Date jour férié],0)),\"\")","v":""},{"$f":"IFERROR(INDEX(TabJoursFériés[Jour férié],MATCH(F227,TabJoursFériés[Date jour férié],0)),\"\")","v":""},{"$f":"IFERROR(INDEX(TabJoursFériés[Jour férié],MATCH(G227,TabJoursFériés[Date jour férié],0)),\"\")","v":""},{"$f":"IFERROR(INDEX(TabJoursFériés[Jour férié],MATCH(H227,TabJoursFériés[Date jour férié],0)),\"\")","v":""}]
["Proposition menus midi retraite."]
["Numéro du menu","MMR120","MMR121","MMR122","MMR123","MMR124","MMR125","MMR126"]
["Date du menu",{"$f":"WORKDAY(H227,1)","v":"2024-06-14"},{"$f":"WORKDAY(B241,1)","v":"2024-06-17"},{"$f":"WORKDAY(C241,1)","v":"2024-06-18"},"2024-06-19","2024-06-20","2024-06-21","2024-06-24"]
["Référence légume","LMR","LMR","LMR","LMR","LMR","LMR","LMR"]
["Légume"]
["Quantité légume"]
["Référence viande","VMR","VMR","VMR","VMR","VMR","VMR","VMR"]
["Viande"]
["Quantité viande",100,100,100,100,100,100,100]
["Référence dessert","DMR01","DMR01","DMR01","DMR01","DMR01","DMR01","DMR01"]
["Dessert","Pomme","Pomme","Pomme","Pomme","Pomme","Pomme","Pomme"]
["Quantité dessert",1,1,1,1,1,1,1]
["Référence jour férié",{"$f":"IFERROR(\"JF\"&TEXT(MATCH(B241,TabJoursFériés[Date jour férié],0),\"00\"),\"\")","v":""},{"$f":"IFERROR(\"JF\"&TEXT(MATCH(C241,TabJoursFériés[Date jour férié],0),\"00\"),\"\")","v":""},{"$f":"IFERROR(\"JF\"&TEXT(MATCH(D241,TabJoursFériés[Date jour férié],0),\"00\"),\"\")","v":""},{"$f":"IFERROR(\"JF\"&TEXT(MATCH(E241,TabJoursFériés[Date jour férié],0),\"00\"),\"\")","v":""},{"$f":"IFERROR(\"JF\"&TEXT(MATCH(F241,TabJoursFériés[Date jour férié],0),\"00\"),\"\")","v":""},{"$f":"IFERROR(\"JF\"&TEXT(MATCH(G241,TabJoursFériés[Date jour férié],0),\"00\"),\"\")","v":""},{"$f":"IFERROR(\"JF\"&TEXT(MATCH(H241,TabJoursFériés[Date jour férié],0),\"00\"),\"\")","v":""}]
["Jour férié",{"$f":"IFERROR(INDEX(TabJoursFériés[Jour férié],MATCH(B241,TabJoursFériés[Date jour férié],0)),\"\")","v":""},{"$f":"IFERROR(INDEX(TabJoursFériés[Jour férié],MATCH(C241,TabJoursFériés[Date jour férié],0)),\"\")","v":""},{"$f":"IFERROR(INDEX(TabJoursFériés[Jour férié],MATCH(D241,TabJoursFériés[Date jour férié],0)),\"\")","v":""},{"$f":"IFERROR(INDEX(TabJoursFériés[Jour férié],MATCH(E241,TabJoursFériés[Date jour férié],0)),\"\")","v":""},{"$f":"IFERROR(INDEX(TabJoursFériés[Jour férié],MATCH(F241,TabJoursFériés[Date jour férié],0)),\"\")","v":""},{"$f":"IFERROR(INDEX(TabJoursFériés[Jour férié],MATCH(G241,TabJoursFériés[Date jour férié],0)),\"\")","v":""},{"$f":"IFERROR(INDEX(TabJoursFériés[Jour férié],MATCH(H241,TabJoursFériés[Date jour férié],0)),\"\")","v":""}]
["Proposition menus midi retraite."]
["Numéro du menu","MMR127","MMR128","MMR129","MMR130","MMR131","MMR132","MMR133"]
["Date du menu",{"$f":"WORKDAY(H241,1)","v":"2024-06-25"},{"$f":"WORKDAY(B255,1)","v":"2024-06-26"},{"$f":"WORKDAY(C255,1)","v":"2024-06-27"},"2024-06-28","2024-07-01","2024-07-02","2024-07-03"]
["Référence légume","LMR","LMR","LMR","LMR","LMR","LMR","LMR"]
["Légume"]
["Quantité légume"]
["Référence viande","VMR","VMR","VMR","VMR","VMR","VMR","VMR"]
["Viande"]
["Quantité viande",100,100,100,100,100,100,100]
["Référence dessert","DMR01","DMR01","DMR01","DMR01","DMR01","DMR01","DMR01"]
["Dessert","Pomme","Pomme","Pomme","Pomme","Pomme","Pomme","Pomme"]
["Quantité dessert",1,1,1,1,1,1,1]
["Référence jour férié",{"$f":"IFERROR(\"JF\"&TEXT(MATCH(B255,TabJoursFériés[Date jour férié],0),\"00\"),\"\")","v":""},{"$f":"IFERROR(\"JF\"&TEXT(MATCH(C255,TabJoursFériés[Date jour férié],0),\"00\"),\"\")","v":""},{"$f":"IFERROR(\"JF\"&TEXT(MATCH(D255,TabJoursFériés[Date jour férié],0),\"00\"),\"\")","v":""},{"$f":"IFERROR(\"JF\"&TEXT(MATCH(E255,TabJoursFériés[Date jour férié],0),\"00\"),\"\")","v":""},{"$f":"IFERROR(\"JF\"&TEXT(MATCH(F255,TabJoursFériés[Date jour férié],0),\"00\"),\"\")","v":""},{"$f":"IFERROR(\"JF\"&TEXT(MATCH(G255,TabJoursFériés[Date jour férié],0),\"00\"),\"\")","v":""},{"$f":"IFERROR(\"JF\"&TEXT(MATCH(H255,TabJoursFériés[Date jour férié],0),\"00\"),\"\")","v":""}]
["Jour férié",{"$f":"IFERROR(INDEX(TabJoursFériés[Jour férié],MATCH(B255,TabJoursFériés[Date jour férié],0)),\"\")","v":""},{"$f":"IFERROR(INDEX(TabJoursFériés[Jour férié],MATCH(C255,TabJoursFériés[Date jour férié],0)),\"\")","v":""},{"$f":"IFERROR(INDEX(TabJoursFériés[Jour férié],MATCH(D255,TabJoursFériés[Date jour férié],0)),\"\")","v":""},{"$f":"IFERROR(INDEX(TabJoursFériés[Jour férié],MATCH(E255,TabJoursFériés[Date jour férié],0)),\"\")","v":""},{"$f":"IFERROR(INDEX(TabJoursFériés[Jour férié],MATCH(F255,TabJoursFériés[Date jour férié],0)),\"\")","v":""},{"$f":"IFERROR(INDEX(TabJoursFériés[Jour férié],MATCH(G255,TabJoursFériés[Date jour férié],0)),\"\")","v":""},{"$f":"IFERROR(INDEX(TabJoursFériés[Jour férié],MATCH(H255,TabJoursFériés[Date jour férié],0)),\"\")","v":""}]
["Proposition menus midi retraite."]
["Numéro du menu","MMR134","MMR135","MMR136","MMR137","MMR138","MMR139","MMR140"]
["Date du menu",{"$f":"WORKDAY(H255,1)","v":"2024-07-04"},{"$f":"WORKDAY(B269,1)","v":"2024-07-05"},{"$f":"WORKDAY(C269,1)","v":"2024-07-08"},"2024-07-09","2024-07-10","2024-07-11","2024-07-12"]
["Référence légume","LMR","LMR","LMR","LMR","LMR","LMR","LMR"]
["Légume"]
["Quantité légume"]
["Référence viande","VMR","VMR","VMR","VMR","VMR","VMR","VMR"]
["Viande"]
["Quantité viande",100,100,100,100,100,100,100]
["Référence dessert","DMR01","DMR01","DMR01","DMR01","DMR01","DMR01","DMR01"]
["Dessert","Pomme","Pomme","Pomme","Pomme","Pomme","Pomme","Pomme"]
["Quantité dessert",1,1,1,1,1,1,1]
["Référence jour férié",{"$f":"IFERROR(\"JF\"&TEXT(MATCH(B269,TabJoursFériés[Date jour férié],0),\"00\"),\"\")","v":""},{"$f":"IFERROR(\"JF\"&TEXT(MATCH(C269,TabJoursFériés[Date jour férié],0),\"00\"),\"\")","v":""},{"$f":"IFERROR(\"JF\"&TEXT(MATCH(D269,TabJoursFériés[Date jour férié],0),\"00\"),\"\")","v":""},{"$f":"IFERROR(\"JF\"&TEXT(MATCH(E269,TabJoursFériés[Date jour férié],0),\"00\"),\"\")","v":""},{"$f":"IFERROR(\"JF\"&TEXT(MATCH(F269,TabJoursFériés[Date jour férié],0),\"00\"),\"\")","v":""},{"$f":"IFERROR(\"JF\"&TEXT(MATCH(G269,TabJoursFériés[Date jour férié],0),\"00\"),\"\")","v":""},{"$f":"IFERROR(\"JF\"&TEXT(MATCH(H269,TabJoursFériés[Date jour férié],0),\"00\"),\"\")","v":""}]
["Jour férié",{"$f":"IFERROR(INDEX(TabJoursFériés[Jour férié],MATCH(B269,TabJoursFériés[Date jour férié],0)),\"\")","v":""},{"$f":"IFERROR(INDEX(TabJoursFériés[Jour férié],MATCH(C269,TabJoursFériés[Date jour férié],0)),\"\")","v":""},{"$f":"IFERROR(INDEX(TabJoursFériés[Jour férié],MATCH(D269,TabJoursFériés[Date jour férié],0)),\"\")","v":""},{"$f":"IFERROR(INDEX(TabJoursFériés[Jour férié],MATCH(E269,TabJoursFériés[Date jour férié],0)),\"\")","v":""},{"$f":"IFERROR(INDEX(TabJoursFériés[Jour férié],MATCH(F269,TabJoursFériés[Date jour férié],0)),\"\")","v":""},{"$f":"IFERROR(INDEX(TabJoursFériés[Jour férié],MATCH(G269,TabJoursFériés[Date jour férié],0)),\"\")","v":""},{"$f":"IFERROR(INDEX(TabJoursFériés[Jour férié],MATCH(H269,TabJoursFériés[Date jour férié],0)),\"\")","v":""}]
["Proposition menus midi retraite."]
["Numéro du menu","MMR141","MMR142","MMR143","MMR144","MMR145","MMR146","MMR147"]
["Date du menu",{"$f":"WORKDAY(H269,1)","v":"2024-07-15"},{"$f":"WORKDAY(B283,1)","v":"2024-07-16"},{"$f":"WORKDAY(C283,1)","v":"2024-07-17"},"2024-07-18","2024-07-19","2024-07-22","2024-07-23"]
["Référence légume","LMR","LMR","LMR","LMR","LMR","LMR","LMR"]
["Légume"]
["Quantité légume"]
["Référence viande","VMR","VMR","VMR","VMR","VMR","VMR","VMR"]
["Viande"]
["Quantité viande",100,100,100,100,100,100,100]
["Référence dessert","DMR01","DMR01","DMR01","DMR01","DMR01","DMR01","DMR01"]
["Dessert","Pomme","Pomme","Pomme","Pomme","Pomme","Pomme","Pomme"]
["Quantité dessert",1,1,1,1,1,1,1]
["Référence jour férié",{"$f":"IFERROR(\"JF\"&TEXT(MATCH(B283,TabJoursFériés[Date jour férié],0),\"00\"),\"\")","v":""},{"$f":"IFERROR(\"JF\"&TEXT(MATCH(C283,TabJoursFériés[Date jour férié],0),\"00\"),\"\")","v":""},{"$f":"IFERROR(\"JF\"&TEXT(MATCH(D283,TabJoursFériés[Date jour férié],0),\"00\"),\"\")","v":""},{"$f":"IFERROR(\"JF\"&TEXT(MATCH(E283,TabJoursFériés[Date jour férié],0),\"00\"),\"\")","v":""},{"$f":"IFERROR(\"JF\"&TEXT(MATCH(F283,TabJoursFériés[Date jour férié],0),\"00\"),\"\")","v":""},{"$f":"IFERROR(\"JF\"&TEXT(MATCH(G283,TabJoursFériés[Date jour férié],0),\"00\"),\"\")","v":""},{"$f":"IFERROR(\"JF\"&TEXT(MATCH(H283,TabJoursFériés[Date jour férié],0),\"00\"),\"\")","v":""}]
["Jour férié",{"$f":"IFERROR(INDEX(TabJoursFériés[Jour férié],MATCH(B283,TabJoursFériés[Date jour férié],0)),\"\")","v":""},{"$f":"IFERROR(INDEX(TabJoursFériés[Jour férié],MATCH(C283,TabJoursFériés[Date jour férié],0)),\"\")","v":""},{"$f":"IFERROR(INDEX(TabJoursFériés[Jour férié],MATCH(D283,TabJoursFériés[Date jour férié],0)),\"\")","v":""},{"$f":"IFERROR(INDEX(TabJoursFériés[Jour férié],MATCH(E283,TabJoursFériés[Date jour férié],0)),\"\")","v":""},{"$f":"IFERROR(INDEX(TabJoursFériés[Jour férié],MATCH(F283,TabJoursFériés[Date jour férié],0)),\"\")","v":""},{"$f":"IFERROR(INDEX(TabJoursFériés[Jour férié],MATCH(G283,TabJoursFériés[Date jour férié],0)),\"\")","v":""},{"$f":"IFERROR(INDEX(TabJoursFériés[Jour férié],MATCH(H283,TabJoursFériés[Date jour férié],0)),\"\")","v":""}]
["Proposition menus midi retraite."]
["Numéro du menu","MMR148","MMR149","MMR150","MMR151","MMR152","MMR153","MMR154"]
["Date du menu",{"$f":"WORKDAY(H283,1)","v":"2024-07-24"},{"$f":"WORKDAY(B297,1)","v":"2024-07-25"},{"$f":"WORKDAY(C297,1)","v":"2024-07-26"},"2024-07-29","2024-07-30","2024-07-31","2024-08-01"]
["Référence légume","LMR","LMR","LMR","LMR","LMR","LMR","LMR"]
["Légume"]
["Quantité légume"]
["Référence viande","VMR","VMR","VMR","VMR","VMR","VMR","VMR"]
["Viande"]
["Quantité viande",100,100,100,100,100,100,100]
["Référence dessert","DMR01","DMR01","DMR01","DMR01","DMR01","DMR01","DMR01"]
["Dessert","Pomme","Pomme","Pomme","Pomme","Pomme","Pomme","Pomme"]
["Quantité dessert",1,1,1,1,1,1,1]
["Référence jour férié",{"$f":"IFERROR(\"JF\"&TEXT(MATCH(B297,TabJoursFériés[Date jour férié],0),\"00\"),\"\")","v":""},{"$f":"IFERROR(\"JF\"&TEXT(MATCH(C297,TabJoursFériés[Date jour férié],0),\"00\"),\"\")","v":""},{"$f":"IFERROR(\"JF\"&TEXT(MATCH(D297,TabJoursFériés[Date jour férié],0),\"00\"),\"\")","v":""},{"$f":"IFERROR(\"JF\"&TEXT(MATCH(E297,TabJoursFériés[Date jour férié],0),\"00\"),\"\")","v":""},{"$f":"IFERROR(\"JF\"&TEXT(MATCH(F297,TabJoursFériés[Date jour férié],0),\"00\"),\"\")","v":""},{"$f":"IFERROR(\"JF\"&TEXT(MATCH(G297,TabJoursFériés[Date jour férié],0),\"00\"),\"\")","v":""},{"$f":"IFERROR(\"JF\"&TEXT(MATCH(H297,TabJoursFériés[Date jour férié],0),\"00\"),\"\")","v":""}]
["Jour férié",{"$f":"IFERROR(INDEX(TabJoursFériés[Jour férié],MATCH(B297,TabJoursFériés[Date jour férié],0)),\"\")","v":""},{"$f":"IFERROR(INDEX(TabJoursFériés[Jour férié],MATCH(C297,TabJoursFériés[Date jour férié],0)),\"\")","v":""},{"$f":"IFERROR(INDEX(TabJoursFériés[Jour férié],MATCH(D297,TabJoursFériés[Date jour férié],0)),\"\")","v":""},{"$f":"IFERROR(INDEX(TabJoursFériés[Jour férié],MATCH(E297,TabJoursFériés[Date jour férié],0)),\"\")","v":""},{"$f":"IFERROR(INDEX(TabJoursFériés[Jour férié],MATCH(F297,TabJoursFériés[Date jour férié],0)),\"\")","v":""},{"$f":"IFERROR(INDEX(TabJoursFériés[Jour férié],MATCH(G297,TabJoursFériés[Date jour férié],0)),\"\")","v":""},{"$f":"IFERROR(INDEX(TabJoursFériés[Jour férié],MATCH(H297,TabJoursFériés[Date jour férié],0)),\"\")","v":""}]
["Proposition menus midi retraite."]
["Numéro du menu","MMR155","MMR156","MMR157","MMR158","MMR159","MMR160","MMR161"]
["Date du menu",{"$f":"WORKDAY(H297,1)","v":"2024-08-02"},{"$f":"WORKDAY(B311,1)","v":"2024-08-05"},{"$f":"WORKDAY(C311,1)","v":"2024-08-06"},"2024-08-07","2024-08-08","2024-08-09","2024-08-12"]
["Référence légume","LMR","LMR","LMR","LMR","LMR","LMR","LMR"]
["Légume"]
["Quantité légume"]
["Référence viande","VMR","VMR","VMR","VMR","VMR","VMR","VMR"]
["Viande"]
["Quantité viande",100,100,100,100,100,100,100]
["Référence dessert","DMR01","DMR01","DMR01","DMR01","DMR01","DMR01","DMR01"]
["Dessert","Pomme","Pomme","Pomme","Pomme","Pomme","Pomme","Pomme"]
["Quantité dessert",1,1,1,1,1,1,1]
["Référence jour férié",{"$f":"IFERROR(\"JF\"&TEXT(MATCH(B311,TabJoursFériés[Date jour férié],0),\"00\"),\"\")","v":""},{"$f":"IFERROR(\"JF\"&TEXT(MATCH(C311,TabJoursFériés[Date jour férié],0),\"00\"),\"\")","v":""},{"$f":"IFERROR(\"JF\"&TEXT(MATCH(D311,TabJoursFériés[Date jour férié],0),\"00\"),\"\")","v":""},{"$f":"IFERROR(\"JF\"&TEXT(MATCH(E311,TabJoursFériés[Date jour férié],0),\"00\"),\"\")","v":""},{"$f":"IFERROR(\"JF\"&TEXT(MATCH(F311,TabJoursFériés[Date jour férié],0),\"00\"),\"\")","v":""},{"$f":"IFERROR(\"JF\"&TEXT(MATCH(G311,TabJoursFériés[Date jour férié],0),\"00\"),\"\")","v":""},{"$f":"IFERROR(\"JF\"&TEXT(MATCH(H311,TabJoursFériés[Date jour férié],0),\"00\"),\"\")","v":""}]
["Jour férié",{"$f":"IFERROR(INDEX(TabJoursFériés[Jour férié],MATCH(B311,TabJoursFériés[Date jour férié],0)),\"\")","v":""},{"$f":"IFERROR(INDEX(TabJoursFériés[Jour férié],MATCH(C311,TabJoursFériés[Date jour férié],0)),\"\")","v":""},{"$f":"IFERROR(INDEX(TabJoursFériés[Jour férié],MATCH(D311,TabJoursFériés[Date jour férié],0)),\"\")","v":""},{"$f":"IFERROR(INDEX(TabJoursFériés[Jour férié],MATCH(E311,TabJoursFériés[Date jour férié],0)),\"\")","v":""},{"$f":"IFERROR(INDEX(TabJoursFériés[Jour férié],MATCH(F311,TabJoursFériés[Date jour férié],0)),\"\")","v":""},{"$f":"IFERROR(INDEX(TabJoursFériés[Jour férié],MATCH(G311,TabJoursFériés[Date jour férié],0)),\"\")","v":""},{"$f":"IFERROR(INDEX(TabJoursFériés[Jour férié],MATCH(H311,TabJoursFériés[Date jour férié],0)),\"\")","v":""}]
["Proposition menus midi retraite."]
["Numéro du menu","MMR162","MMR163","MMR164","MMR165","MMR166","MMR167","MMR168"]
["Date du menu",{"$f":"WORKDAY(H311,1)","v":"2024-08-13"},{"$f":"WORKDAY(B325,1)","v":"2024-08-14"},{"$f":"WORKDAY(C325,1)","v":"2024-08-15"},"2024-08-16","2024-08-19","2024-08-20","2024-08-21"]
["Référence légume","LMR","LMR","LMR","LMR","LMR","LMR","LMR"]
["Légume"]
["Quantité légume"]
["Référence viande","VMR","VMR","VMR","VMR","VMR","VMR","VMR"]
["Viande"]
["Quantité viande",100,100,100,100,100,100,100]
["Référence dessert","DMR01","DMR01","DMR01","DMR01","DMR01","DMR01","DMR01"]
["Dessert","Pomme","Pomme","Pomme","Pomme","Pomme","Pomme","Pomme"]
["Quantité dessert",1,1,1,1,1,1,1]
["Référence jour férié",{"$f":"IFERROR(\"JF\"&TEXT(MATCH(B325,TabJoursFériés[Date jour férié],0),\"00\"),\"\")","v":""},{"$f":"IFERROR(\"JF\"&TEXT(MATCH(C325,TabJoursFériés[Date jour férié],0),\"00\"),\"\")","v":""},{"$f":"IFERROR(\"JF\"&TEXT(MATCH(D325,TabJoursFériés[Date jour férié],0),\"00\"),\"\")","v":"JF10"},{"$f":"IFERROR(\"JF\"&TEXT(MATCH(E325,TabJoursFériés[Date jour férié],0),\"00\"),\"\")","v":""},{"$f":"IFERROR(\"JF\"&TEXT(MATCH(F325,TabJoursFériés[Date jour férié],0),\"00\"),\"\")","v":""},{"$f":"IFERROR(\"JF\"&TEXT(MATCH(G325,TabJoursFériés[Date jour férié],0),\"00\"),\"\")","v":""},{"$f":"IFERROR(\"JF\"&TEXT(MATCH(H325,TabJoursFériés[Date jour férié],0),\"00\"),\"\")","v":""}]
["Jour férié",{"$f":"IFERROR(INDEX(TabJoursFériés[Jour férié],MATCH(B325,TabJoursFériés[Date jour férié],0)),\"\")","v":""},{"$f":"IFERROR(INDEX(TabJoursFériés[Jour férié],MATCH(C325,TabJoursFériés[Date jour férié],0)),\"\")","v":""},{"$f":"IFERROR(INDEX(TabJoursFériés[Jour férié],MATCH(D325,TabJoursFériés[Date jour férié],0)),\"\")","v":"Assomption"},{"$f":"IFERROR(INDEX(TabJoursFériés[Jour férié],MATCH(E325,TabJoursFériés[Date jour férié],0)),\"\")","v":""},{"$f":"IFERROR(INDEX(TabJoursFériés[Jour férié],MATCH(F325,TabJoursFériés[Date jour férié],0)),\"\")","v":""},{"$f":"IFERROR(INDEX(TabJoursFériés[Jour férié],MATCH(G325,TabJoursFériés[Date jour férié],0)),\"\")","v":""},{"$f":"IFERROR(INDEX(TabJoursFériés[Jour férié],MATCH(H325,TabJoursFériés[Date jour férié],0)),\"\")","v":""}]
["Proposition menus midi retraite."]
["Numéro du menu","MMR169","MMR170","MMR171","MMR172","MMR173","MMR174","MMR175"]
["Date du menu",{"$f":"WORKDAY(H325,1)","v":"2024-08-22"},{"$f":"WORKDAY(B339,1)","v":"2024-08-23"},{"$f":"WORKDAY(C339,1)","v":"2024-08-26"},"2024-08-27","2024-08-28","2024-08-29","2024-08-30"]
["Référence légume","LMR","LMR","LMR","LMR","LMR","LMR","LMR"]
["Légume"]
["Quantité légume"]
["Référence viande","VMR","VMR","VMR","VMR","VMR","VMR","VMR"]
["Viande"]
["Quantité viande",100,100,100,100,100,100,100]
["Référence dessert","DMR01","DMR01","DMR01","DMR01","DMR01","DMR01","DMR01"]
["Dessert","Pomme","Pomme","Pomme","Pomme","Pomme","Pomme","Pomme"]
["Quantité dessert",1,1,1,1,1,1,1]
["Référence jour férié",{"$f":"IFERROR(\"JF\"&TEXT(MATCH(B339,TabJoursFériés[Date jour férié],0),\"00\"),\"\")","v":""},{"$f":"IFERROR(\"JF\"&TEXT(MATCH(C339,TabJoursFériés[Date jour férié],0),\"00\"),\"\")","v":""},{"$f":"IFERROR(\"JF\"&TEXT(MATCH(D339,TabJoursFériés[Date jour férié],0),\"00\"),\"\")","v":""},{"$f":"IFERROR(\"JF\"&TEXT(MATCH(E339,TabJoursFériés[Date jour férié],0),\"00\"),\"\")","v":""},{"$f":"IFERROR(\"JF\"&TEXT(MATCH(F339,TabJoursFériés[Date jour férié],0),\"00\"),\"\")","v":""},{"$f":"IFERROR(\"JF\"&TEXT(MATCH(G339,TabJoursFériés[Date jour férié],0),\"00\"),\"\")","v":""},{"$f":"IFERROR(\"JF\"&TEXT(MATCH(H339,TabJoursFériés[Date jour férié],0),\"00\"),\"\")","v":""}]
["Jour férié",{"$f":"IFERROR(INDEX(TabJoursFériés[Jour férié],MATCH(B339,TabJoursFériés[Date jour férié],0)),\"\")","v":""},{"$f":"IFERROR(INDEX(TabJoursFériés[Jour férié],MATCH(C339,TabJoursFériés[Date jour férié],0)),\"\")","v":""},{"$f":"IFERROR(INDEX(TabJoursFériés[Jour férié],MATCH(D339,TabJoursFériés[Date jour férié],0)),\"\")","v":""},{"$f":"IFERROR(INDEX(TabJoursFériés[Jour férié],MATCH(E339,TabJoursFériés[Date jour férié],0)),\"\")","v":""},{"$f":"IFERROR(INDEX(TabJoursFériés[Jour férié],MATCH(F339,TabJoursFériés[Date jour férié],0)),\"\")","v":""},{"$f":"IFERROR(INDEX(TabJoursFériés[Jour férié],MATCH(G339,TabJoursFériés[Date jour férié],0)),\"\")","v":""},{"$f":"IFERROR(INDEX(TabJoursFériés[Jour férié],MATCH(H339,TabJoursFériés[Date jour férié],0)),\"\")","v":""}]
["Proposition menus midi retraite."]
["Numéro du menu","MMR176","MMR177","MMR178","MMR179","MMR180","MMR181","MMR182"]
["Date du menu",{"$f":"WORKDAY(H339,1)","v":"2024-09-02"},{"$f":"WORKDAY(B353,1)","v":"2024-09-03"},{"$f":"WORKDAY(C353,1)","v":"2024-09-04"},"2024-09-05","2024-09-06","2024-09-09","2024-09-10"]
["Référence légume","LMR","LMR","LMR","LMR","LMR","LMR","LMR"]
["Légume"]
["Quantité légume"]
["Référence viande","VMR","VMR","VMR","VMR","VMR","VMR","VMR"]
["Viande"]
["Quantité viande",100,100,100,100,100,100,100]
["Référence dessert","DMR01","DMR01","DMR01","DMR01","DMR01","DMR01","DMR01"]
["Dessert","Pomme","Pomme","Pomme","Pomme","Pomme","Pomme","Pomme"]
["Quantité dessert",1,1,1,1,1,1,1]
["Référence jour férié",{"$f":"IFERROR(\"JF\"&TEXT(MATCH(B353,TabJoursFériés[Date jour férié],0),\"00\"),\"\")","v":""},{"$f":"IFERROR(\"JF\"&TEXT(MATCH(C353,TabJoursFériés[Date jour férié],0),\"00\"),\"\")","v":""},{"$f":"IFERROR(\"JF\"&TEXT(MATCH(D353,TabJoursFériés[Date jour férié],0),\"00\"),\"\")","v":""},{"$f":"IFERROR(\"JF\"&TEXT(MATCH(E353,TabJoursFériés[Date jour férié],0),\"00\"),\"\")","v":""},{"$f":"IFERROR(\"JF\"&TEXT(MATCH(F353,TabJoursFériés[Date jour férié],0),\"00\"),\"\")","v":""},{"$f":"IFERROR(\"JF\"&TEXT(MATCH(G353,TabJoursFériés[Date jour férié],0),\"00\"),\"\")","v":""},{"$f":"IFERROR(\"JF\"&TEXT(MATCH(H353,TabJoursFériés[Date jour férié],0),\"00\"),\"\")","v":""}]
["Jour férié",{"$f":"IFERROR(INDEX(TabJoursFériés[Jour férié],MATCH(B353,TabJoursFériés[Date jour férié],0)),\"\")","v":""},{"$f":"IFERROR(INDEX(TabJoursFériés[Jour férié],MATCH(C353,TabJoursFériés[Date jour férié],0)),\"\")","v":""},{"$f":"IFERROR(INDEX(TabJoursFériés[Jour férié],MATCH(D353,TabJoursFériés[Date jour férié],0)),\"\")","v":""},{"$f":"IFERROR(INDEX(TabJoursFériés[Jour férié],MATCH(E353,TabJoursFériés[Date jour férié],0)),\"\")","v":""},{"$f":"IFERROR(INDEX(TabJoursFériés[Jour férié],MATCH(F353,TabJoursFériés[Date jour férié],0)),\"\")","v":""},{"$f":"IFERROR(INDEX(TabJoursFériés[Jour férié],MATCH(G353,TabJoursFériés[Date jour férié],0)),\"\")","v":""},{"$f":"IFERROR(INDEX(TabJoursFériés[Jour férié],MATCH(H353,TabJoursFériés[Date jour férié],0)),\"\")","v":""}]
["Proposition menus midi retraite."]
["Numéro du menu","MMR183","MMR184","MMR185","MMR186","MMR187","MMR188","MMR189"]
["Date du menu",{"$f":"WORKDAY(H353,1)","v":"2024-09-11"},{"$f":"WORKDAY(B367,1)","v":"2024-09-12"},{"$f":"WORKDAY(C367,1)","v":"2024-09-13"},"2024-09-16","2024-09-17","2024-09-18","2024-09-19"]
["Référence légume","LMR","LMR","LMR","LMR","LMR","LMR","LMR"]
["Légume"]
["Quantité légume"]
["Référence viande","VMR","VMR","VMR","VMR","VMR","VMR","VMR"]
["Viande"]
["Quantité viande",100,100,100,100,100,100,100]
["Référence dessert","DMR01","DMR01","DMR01","DMR01","DMR01","DMR01","DMR01"]
["Dessert","Pomme","Pomme","Pomme","Pomme","Pomme","Pomme","Pomme"]
["Quantité dessert",1,1,1,1,1,1,1]
["Référence jour férié",{"$f":"IFERROR(\"JF\"&TEXT(MATCH(B367,TabJoursFériés[Date jour férié],0),\"00\"),\"\")","v":""},{"$f":"IFERROR(\"JF\"&TEXT(MATCH(C367,TabJoursFériés[Date jour férié],0),\"00\"),\"\")","v":""},{"$f":"IFERROR(\"JF\"&TEXT(MATCH(D367,TabJoursFériés[Date jour férié],0),\"00\"),\"\")","v":""},{"$f":"IFERROR(\"JF\"&TEXT(MATCH(E367,TabJoursFériés[Date jour férié],0),\"00\"),\"\")","v":""},{"$f":"IFERROR(\"JF\"&TEXT(MATCH(F367,TabJoursFériés[Date jour férié],0),\"00\"),\"\")","v":""},{"$f":"IFERROR(\"JF\"&TEXT(MATCH(G367,TabJoursFériés[Date jour férié],0),\"00\"),\"\")","v":""},{"$f":"IFERROR(\"JF\"&TEXT(MATCH(H367,TabJoursFériés[Date jour férié],0),\"00\"),\"\")","v":""}]
["Jour férié",{"$f":"IFERROR(INDEX(TabJoursFériés[Jour férié],MATCH(B367,TabJoursFériés[Date jour férié],0)),\"\")","v":""},{"$f":"IFERROR(INDEX(TabJoursFériés[Jour férié],MATCH(C367,TabJoursFériés[Date jour férié],0)),\"\")","v":""},{"$f":"IFERROR(INDEX(TabJoursFériés[Jour férié],MATCH(D367,TabJoursFériés[Date jour férié],0)),\"\")","v":""},{"$f":"IFERROR(INDEX(TabJoursFériés[Jour férié],MATCH(E367,TabJoursFériés[Date jour férié],0)),\"\")","v":""},{"$f":"IFERROR(INDEX(TabJoursFériés[Jour férié],MATCH(F367,TabJoursFériés[Date jour férié],0)),\"\")","v":""},{"$f":"IFERROR(INDEX(TabJoursFériés[Jour férié],MATCH(G367,TabJoursFériés[Date jour férié],0)),\"\")","v":""},{"$f":"IFERROR(INDEX(TabJoursFériés[Jour férié],MATCH(H367,TabJoursFériés[Date jour férié],0)),\"\")","v":""}]
["Proposition menus midi retraite."]
["Numéro du menu","MMR190","MMR191","MMR192","MMR193","MMR194","MMR195","MMR196"]
["Date du menu",{"$f":"WORKDAY(H367,1)","v":"2024-09-20"},{"$f":"WORKDAY(B381,1)","v":"2024-09-23"},{"$f":"WORKDAY(C381,1)","v":"2024-09-24"},"2024-09-25","2024-09-26","2024-09-27","2024-09-30"]
["Référence légume","LMR","LMR","LMR","LMR","LMR","LMR","LMR"]
["Légume"]
["Quantité légume"]
["Référence viande","VMR","VMR","VMR","VMR","VMR","VMR","VMR"]
["Viande"]
["Quantité viande",100,100,100,100,100,100,100]
["Référence dessert","DMR01","DMR01","DMR01","DMR01","DMR01","DMR01","DMR01"]
["Dessert","Pomme","Pomme","Pomme","Pomme","Pomme","Pomme","Pomme"]
["Quantité dessert",1,1,1,1,1,1,1]
["Référence jour férié",{"$f":"IFERROR(\"JF\"&TEXT(MATCH(B381,TabJoursFériés[Date jour férié],0),\"00\"),\"\")","v":""},{"$f":"IFERROR(\"JF\"&TEXT(MATCH(C381,TabJoursFériés[Date jour férié],0),\"00\"),\"\")","v":""},{"$f":"IFERROR(\"JF\"&TEXT(MATCH(D381,TabJoursFériés[Date jour férié],0),\"00\"),\"\")","v":""},{"$f":"IFERROR(\"JF\"&TEXT(MATCH(E381,TabJoursFériés[Date jour férié],0),\"00\"),\"\")","v":""},{"$f":"IFERROR(\"JF\"&TEXT(MATCH(F381,TabJoursFériés[Date jour férié],0),\"00\"),\"\")","v":""},{"$f":"IFERROR(\"JF\"&TEXT(MATCH(G381,TabJoursFériés[Date jour férié],0),\"00\"),\"\")","v":""},{"$f":"IFERROR(\"JF\"&TEXT(MATCH(H381,TabJoursFériés[Date jour férié],0),\"00\"),\"\")","v":""}]
["Jour férié",{"$f":"IFERROR(INDEX(TabJoursFériés[Jour férié],MATCH(B381,TabJoursFériés[Date jour férié],0)),\"\")","v":""},{"$f":"IFERROR(INDEX(TabJoursFériés[Jour férié],MATCH(C381,TabJoursFériés[Date jour férié],0)),\"\")","v":""},{"$f":"IFERROR(INDEX(TabJoursFériés[Jour férié],MATCH(D381,TabJoursFériés[Date jour férié],0)),\"\")","v":""},{"$f":"IFERROR(INDEX(TabJoursFériés[Jour férié],MATCH(E381,TabJoursFériés[Date jour férié],0)),\"\")","v":""},{"$f":"IFERROR(INDEX(TabJoursFériés[Jour férié],MATCH(F381,TabJoursFériés[Date jour férié],0)),\"\")","v":""},{"$f":"IFERROR(INDEX(TabJoursFériés[Jour férié],MATCH(G381,TabJoursFériés[Date jour férié],0)),\"\")","v":""},{"$f":"IFERROR(INDEX(TabJoursFériés[Jour férié],MATCH(H381,TabJoursFériés[Date jour férié],0)),\"\")","v":""}]
["Proposition menus midi retraite."]
["Numéro du menu","MMR197","MMR198","MMR199","MMR200","MMR201","MMR202","MMR203"]
["Date du menu",{"$f":"WORKDAY(H381,1)","v":"2024-10-01"},{"$f":"WORKDAY(B395,1)","v":"2024-10-02"},{"$f":"WORKDAY(C395,1)","v":"2024-10-03"},"2024-10-04","2024-10-07","2024-10-08","2024-10-09"]
["Référence légume","LMR","LMR","LMR","LMR","LMR","LMR","LMR"]
["Légume"]
["Quantité légume"]
["Référence viande","VMR","VMR","VMR","VMR","VMR","VMR","VMR"]
["Viande"]
["Quantité viande",100,100,100,100,100,100,100]
["Référence dessert","DMR01","DMR01","DMR01","DMR01","DMR01","DMR01","DMR01"]
["Dessert","Pomme","Pomme","Pomme","Pomme","Pomme","Pomme","Pomme"]
["Quantité dessert",1,1,1,1,1,1,1]
["Référence jour férié",{"$f":"IFERROR(\"JF\"&TEXT(MATCH(B395,TabJoursFériés[Date jour férié],0),\"00\"),\"\")","v":""},{"$f":"IFERROR(\"JF\"&TEXT(MATCH(C395,TabJoursFériés[Date jour férié],0),\"00\"),\"\")","v":""},{"$f":"IFERROR(\"JF\"&TEXT(MATCH(D395,TabJoursFériés[Date jour férié],0),\"00\"),\"\")","v":""},{"$f":"IFERROR(\"JF\"&TEXT(MATCH(E395,TabJoursFériés[Date jour férié],0),\"00\"),\"\")","v":""},{"$f":"IFERROR(\"JF\"&TEXT(MATCH(F395,TabJoursFériés[Date jour férié],0),\"00\"),\"\")","v":""},{"$f":"IFERROR(\"JF\"&TEXT(MATCH(G395,TabJoursFériés[Date jour férié],0),\"00\"),\"\")","v":""},{"$f":"IFERROR(\"JF\"&TEXT(MATCH(H395,TabJoursFériés[Date jour férié],0),\"00\"),\"\")","v":""}]
["Jour férié",{"$f":"IFERROR(INDEX(TabJoursFériés[Jour férié],MATCH(B395,TabJoursFériés[Date jour férié],0)),\"\")","v":""},{"$f":"IFERROR(INDEX(TabJoursFériés[Jour férié],MATCH(C395,TabJoursFériés[Date jour férié],0)),\"\")","v":""},{"$f":"IFERROR(INDEX(TabJoursFériés[Jour férié],MATCH(D395,TabJoursFériés[Date jour férié],0)),\"\")","v":""},{"$f":"IFERROR(INDEX(TabJoursFériés[Jour férié],MATCH(E395,TabJoursFériés[Date jour férié],0)),\"\")","v":""},{"$f":"IFERROR(INDEX(TabJoursFériés[Jour férié],MATCH(F395,TabJoursFériés[Date jour férié],0)),\"\")","v":""},{"$f":"IFERROR(INDEX(TabJoursFériés[Jour férié],MATCH(G395,TabJoursFériés[Date jour férié],0)),\"\")","v":""},{"$f":"IFERROR(INDEX(TabJoursFériés[Jour férié],MATCH(H395,TabJoursFériés[Date jour férié],0)),\"\")","v":""}]
["Proposition menus midi retraite."]
["Numéro du menu","MMR204","MMR205","MMR206","MMR207","MMR208","MMR209","MMR210"]
["Date du menu",{"$f":"WORKDAY(H395,1)","v":"2024-10-10"},{"$f":"WORKDAY(B409,1)","v":"2024-10-11"},{"$f":"WORKDAY(C409,1)","v":"2024-10-14"},"2024-10-15","2024-10-16","2024-10-17","2024-10-18"]
["Référence légume","LMR","LMR","LMR","LMR","LMR","LMR","LMR"]
["Légume"]
["Quantité légume"]
["Référence viande","VMR","VMR","VMR","VMR","VMR","VMR","VMR"]
["Viande"]
["Quantité viande",100,100,100,100,100,100,100]
["Référence dessert","DMR01","DMR01","DMR01","DMR01","DMR01","DMR01","DMR01"]
["Dessert","Pomme","Pomme","Pomme","Pomme","Pomme","Pomme","Pomme"]
["Quantité dessert",1,1,1,1,1,1,1]
["Référence jour férié",{"$f":"IFERROR(\"JF\"&TEXT(MATCH(B409,TabJoursFériés[Date jour férié],0),\"00\"),\"\")","v":""},{"$f":"IFERROR(\"JF\"&TEXT(MATCH(C409,TabJoursFériés[Date jour férié],0),\"00\"),\"\")","v":""},{"$f":"IFERROR(\"JF\"&TEXT(MATCH(D409,TabJoursFériés[Date jour férié],0),\"00\"),\"\")","v":""},{"$f":"IFERROR(\"JF\"&TEXT(MATCH(E409,TabJoursFériés[Date jour férié],0),\"00\"),\"\")","v":""},{"$f":"IFERROR(\"JF\"&TEXT(MATCH(F409,TabJoursFériés[Date jour férié],0),\"00\"),\"\")","v":""},{"$f":"IFERROR(\"JF\"&TEXT(MATCH(G409,TabJoursFériés[Date jour férié],0),\"00\"),\"\")","v":""},{"$f":"IFERROR(\"JF\"&TEXT(MATCH(H409,TabJoursFériés[Date jour férié],0),\"00\"),\"\")","v":""}]
["Jour férié",{"$f":"IFERROR(INDEX(TabJoursFériés[Jour férié],MATCH(B409,TabJoursFériés[Date jour férié],0)),\"\")","v":""},{"$f":"IFERROR(INDEX(TabJoursFériés[Jour férié],MATCH(C409,TabJoursFériés[Date jour férié],0)),\"\")","v":""},{"$f":"IFERROR(INDEX(TabJoursFériés[Jour férié],MATCH(D409,TabJoursFériés[Date jour férié],0)),\"\")","v":""},{"$f":"IFERROR(INDEX(TabJoursFériés[Jour férié],MATCH(E409,TabJoursFériés[Date jour férié],0)),\"\")","v":""},{"$f":"IFERROR(INDEX(TabJoursFériés[Jour férié],MATCH(F409,TabJoursFériés[Date jour férié],0)),\"\")","v":""},{"$f":"IFERROR(INDEX(TabJoursFériés[Jour férié],MATCH(G409,TabJoursFériés[Date jour férié],0)),\"\")","v":""},{"$f":"IFERROR(INDEX(TabJoursFériés[Jour férié],MATCH(H409,TabJoursFériés[Date jour férié],0)),\"\")","v":""}]
["Proposition menus midi retraite."]
["Numéro du menu","MMR211","MMR212","MMR213","MMR214","MMR215","MMR216","MMR217"]
["Date du menu",{"$f":"WORKDAY(H409,1)","v":"2024-10-21"},{"$f":"WORKDAY(B423,1)","v":"2024-10-22"},{"$f":"WORKDAY(C423,1)","v":"2024-10-23"},"2024-10-24","2024-10-25","2024-10-28","2024-10-29"]
["Référence légume","LMR","LMR","LMR","LMR","LMR","LMR","LMR"]
["Légume"]
["Quantité légume"]
["Référence viande","VMR","VMR","VMR","VMR","VMR","VMR","VMR"]
["Viande"]
["Quantité viande",100,100,100,100,100,100,100]
["Référence dessert","DMR01","DMR01","DMR01","DMR01","DMR01","DMR01","DMR01"]
["Dessert","Pomme","Pomme","Pomme","Pomme","Pomme","Pomme","Pomme"]
["Quantité dessert",1,1,1,1,1,1,1]
["Référence jour férié",{"$f":"IFERROR(\"JF\"&TEXT(MATCH(B423,TabJoursFériés[Date jour férié],0),\"00\"),\"\")","v":""},{"$f":"IFERROR(\"JF\"&TEXT(MATCH(C423,TabJoursFériés[Date jour férié],0),\"00\"),\"\")","v":""},{"$f":"IFERROR(\"JF\"&TEXT(MATCH(D423,TabJoursFériés[Date jour férié],0),\"00\"),\"\")","v":""},{"$f":"IFERROR(\"JF\"&TEXT(MATCH(E423,TabJoursFériés[Date jour férié],0),\"00\"),\"\")","v":""},{"$f":"IFERROR(\"JF\"&TEXT(MATCH(F423,TabJoursFériés[Date jour férié],0),\"00\"),\"\")","v":""},{"$f":"IFERROR(\"JF\"&TEXT(MATCH(G423,TabJoursFériés[Date jour férié],0),\"00\"),\"\")","v":""},{"$f":"IFERROR(\"JF\"&TEXT(MATCH(H423,TabJoursFériés[Date jour férié],0),\"00\"),\"\")","v":""}]
["Jour férié",{"$f":"IFERROR(INDEX(TabJoursFériés[Jour férié],MATCH(B423,TabJoursFériés[Date jour férié],0)),\"\")","v":""},{"$f":"IFERROR(INDEX(TabJoursFériés[Jour férié],MATCH(C423,TabJoursFériés[Date jour férié],0)),\"\")","v":""},{"$f":"IFERROR(INDEX(TabJoursFériés[Jour férié],MATCH(D423,TabJoursFériés[Date jour férié],0)),\"\")","v":""},{"$f":"IFERROR(INDEX(TabJoursFériés[Jour férié],MATCH(E423,TabJoursFériés[Date jour férié],0)),\"\")","v":""},{"$f":"IFERROR(INDEX(TabJoursFériés[Jour férié],MATCH(F423,TabJoursFériés[Date jour férié],0)),\"\")","v":""},{"$f":"IFERROR(INDEX(TabJoursFériés[Jour férié],MATCH(G423,TabJoursFériés[Date jour férié],0)),\"\")","v":""},{"$f":"IFERROR(INDEX(TabJoursFériés[Jour férié],MATCH(H423,TabJoursFériés[Date jour férié],0)),\"\")","v":""}]
["Proposition menus midi retraite."]
["Numéro du menu","MMR218","MMR219","MMR220","MMR221","MMR222","MMR223","MMR224"]
["Date du menu",{"$f":"WORKDAY(H423,1)","v":"2024-10-30"},{"$f":"WORKDAY(B437,1)","v":"2024-10-31"},{"$f":"WORKDAY(C437,1)","v":"2024-11-01"},"2024-11-04","2024-11-05","2024-11-06","2024-11-07"]
["Référence légume","LMR","LMR","LMR","LMR","LMR","LMR","LMR"]
["Légume"]
["Quantité légume"]
["Référence viande","VMR","VMR","VMR","VMR","VMR","VMR","VMR"]
["Viande"]
["Quantité viande",100,100,100,100,100,100,100]
["Référence dessert","DMR01","DMR01","DMR01","DMR01","DMR01","DMR01","DMR01"]
["Dessert","Pomme","Pomme","Pomme","Pomme","Pomme","Pomme","Pomme"]
["Quantité dessert",1,1,null,1,1,1,1]
["Référence jour férié",{"$f":"IFERROR(\"JF\"&TEXT(MATCH(B437,TabJoursFériés[Date jour férié],0),\"00\"),\"\")","v":""},{"$f":"IFERROR(\"JF\"&TEXT(MATCH(C437,TabJoursFériés[Date jour férié],0),\"00\"),\"\")","v":""},{"$f":"IFERROR(\"JF\"&TEXT(MATCH(D437,TabJoursFériés[Date jour férié],0),\"00\"),\"\")","v":"JF11"},{"$f":"IFERROR(\"JF\"&TEXT(MATCH(E437,TabJoursFériés[Date jour férié],0),\"00\"),\"\")","v":""},{"$f":"IFERROR(\"JF\"&TEXT(MATCH(F437,TabJoursFériés[Date jour férié],0),\"00\"),\"\")","v":""},{"$f":"IFERROR(\"JF\"&TEXT(MATCH(G437,TabJoursFériés[Date jour férié],0),\"00\"),\"\")","v":""},{"$f":"IFERROR(\"JF\"&TEXT(MATCH(H437,TabJoursFériés[Date jour férié],0),\"00\"),\"\")","v":""}]
["Jour férié",{"$f":"IFERROR(INDEX(TabJoursFériés[Jour férié],MATCH(B437,TabJoursFériés[Date jour férié],0)),\"\")","v":""},{"$f":"IFERROR(INDEX(TabJoursFériés[Jour férié],MATCH(C437,TabJoursFériés[Date jour férié],0)),\"\")","v":""},{"$f":"IFERROR(INDEX(TabJoursFériés[Jour férié],MATCH(D437,TabJoursFériés[Date jour férié],0)),\"\")","v":"Toussaint"},{"$f":"IFERROR(INDEX(TabJoursFériés[Jour férié],MATCH(E437,TabJoursFériés[Date jour férié],0)),\"\")","v":""},{"$f":"IFERROR(INDEX(TabJoursFériés[Jour férié],MATCH(F437,TabJoursFériés[Date jour férié],0)),\"\")","v":""},{"$f":"IFERROR(INDEX(TabJoursFériés[Jour férié],MATCH(G437,TabJoursFériés[Date jour férié],0)),\"\")","v":""},{"$f":"IFERROR(INDEX(TabJoursFériés[Jour férié],MATCH(H437,TabJoursFériés[Date jour férié],0)),\"\")","v":""}]
["Proposition menus midi retraite."]
["Numéro du menu","MMR225","MMR226","MMR227","MMR228","MMR229","MMR230","MMR231"]
["Date du menu",{"$f":"WORKDAY(H437,1)","v":"2024-11-08"},{"$f":"WORKDAY(B451,1)","v":"2024-11-11"},{"$f":"WORKDAY(C451,1)","v":"2024-11-12"},"2024-11-13","2024-11-14","2024-11-15","2024-11-18"]
["Référence légume","LMR","LMR","LMR","LMR","LMR","LMR","LMR"]
["Légume"]
["Quantité légume"]
["Référence viande","VMR","VMR","VMR","VMR","VMR","VMR","VMR"]
["Viande"]
["Quantité viande",100,100,100,100,100,100,100]
["Référence dessert","DMR01","DMR01","DMR01","DMR01","DMR01","DMR01","DMR01"]
["Dessert","Pomme","Pomme","Pomme","Pomme","Pomme","Pomme","Pomme"]
["Quantité dessert",1,1,1,1,1,1,1]
["Référence jour férié",{"$f":"IFERROR(\"JF\"&TEXT(MATCH(B451,TabJoursFériés[Date jour férié],0),\"00\"),\"\")","v":""},{"$f":"IFERROR(\"JF\"&TEXT(MATCH(C451,TabJoursFériés[Date jour férié],0),\"00\"),\"\")","v":"JF12"},{"$f":"IFERROR(\"JF\"&TEXT(MATCH(D451,TabJoursFériés[Date jour férié],0),\"00\"),\"\")","v":""},{"$f":"IFERROR(\"JF\"&TEXT(MATCH(E451,TabJoursFériés[Date jour férié],0),\"00\"),\"\")","v":""},{"$f":"IFERROR(\"JF\"&TEXT(MATCH(F451,TabJoursFériés[Date jour férié],0),\"00\"),\"\")","v":""},{"$f":"IFERROR(\"JF\"&TEXT(MATCH(G451,TabJoursFériés[Date jour férié],0),\"00\"),\"\")","v":""},{"$f":"IFERROR(\"JF\"&TEXT(MATCH(H451,TabJoursFériés[Date jour férié],0),\"00\"),\"\")","v":""}]
["Jour férié",{"$f":"IFERROR(INDEX(TabJoursFériés[Jour férié],MATCH(B451,TabJoursFériés[Date jour férié],0)),\"\")","v":""},{"$f":"IFERROR(INDEX(TabJoursFériés[Jour férié],MATCH(C451,TabJoursFériés[Date jour férié],0)),\"\")","v":"Armistice 1918"},{"$f":"IFERROR(INDEX(TabJoursFériés[Jour férié],MATCH(D451,TabJoursFériés[Date jour férié],0)),\"\")","v":""},{"$f":"IFERROR(INDEX(TabJoursFériés[Jour férié],MATCH(E451,TabJoursFériés[Date jour férié],0)),\"\")","v":""},{"$f":"IFERROR(INDEX(TabJoursFériés[Jour férié],MATCH(F451,TabJoursFériés[Date jour férié],0)),\"\")","v":""},{"$f":"IFERROR(INDEX(TabJoursFériés[Jour férié],MATCH(G451,TabJoursFériés[Date jour férié],0)),\"\")","v":""},{"$f":"IFERROR(INDEX(TabJoursFériés[Jour férié],MATCH(H451,TabJoursFériés[Date jour férié],0)),\"\")","v":""}]
["Proposition menus midi retraite."]
["Numéro du menu","MMR232","MMR233","MMR234","MMR235","MMR236","MMR237","MMR238"]
["Date du menu",{"$f":"WORKDAY(H451,1)","v":"2024-11-19"},{"$f":"WORKDAY(B465,1)","v":"2024-11-20"},{"$f":"WORKDAY(C465,1)","v":"2024-11-21"},"2024-11-22","2024-11-25","2024-11-26","2024-11-27"]
["Référence légume","LMR","LMR","LMR","LMR","LMR","LMR","LMR"]
["Légume"]
["Quantité légume"]
["Référence viande","VMR","VMR","VMR","VMR","VMR","VMR","VMR"]
["Viande"]
["Quantité viande",100,100,100,100,100,100,100]
["Référence dessert","DMR01","DMR01","DMR01","DMR01","DMR01","DMR01","DMR01"]
["Dessert","Pomme","Pomme","Pomme","Pomme","Pomme","Pomme","Pomme"]
["Quantité dessert",1,1,1,1,1,1,1]
["Référence jour férié",{"$f":"IFERROR(\"JF\"&TEXT(MATCH(B465,TabJoursFériés[Date jour férié],0),\"00\"),\"\")","v":""},{"$f":"IFERROR(\"JF\"&TEXT(MATCH(C465,TabJoursFériés[Date jour férié],0),\"00\"),\"\")","v":""},{"$f":"IFERROR(\"JF\"&TEXT(MATCH(D465,TabJoursFériés[Date jour férié],0),\"00\"),\"\")","v":""},{"$f":"IFERROR(\"JF\"&TEXT(MATCH(E465,TabJoursFériés[Date jour férié],0),\"00\"),\"\")","v":""},{"$f":"IFERROR(\"JF\"&TEXT(MATCH(F465,TabJoursFériés[Date jour férié],0),\"00\"),\"\")","v":""},{"$f":"IFERROR(\"JF\"&TEXT(MATCH(G465,TabJoursFériés[Date jour férié],0),\"00\"),\"\")","v":""},{"$f":"IFERROR(\"JF\"&TEXT(MATCH(H465,TabJoursFériés[Date jour férié],0),\"00\"),\"\")","v":""}]
["Jour férié",{"$f":"IFERROR(INDEX(TabJoursFériés[Jour férié],MATCH(B465,TabJoursFériés[Date jour férié],0)),\"\")","v":""},{"$f":"IFERROR(INDEX(TabJoursFériés[Jour férié],MATCH(C465,TabJoursFériés[Date jour férié],0)),\"\")","v":""},{"$f":"IFERROR(INDEX(TabJoursFériés[Jour férié],MATCH(D465,TabJoursFériés[Date jour férié],0)),\"\")","v":""},{"$f":"IFERROR(INDEX(TabJoursFériés[Jour férié],MATCH(E465,TabJoursFériés[Date jour férié],0)),\"\")","v":""},{"$f":"IFERROR(INDEX(TabJoursFériés[Jour férié],MATCH(F465,TabJoursFériés[Date jour férié],0)),\"\")","v":""},{"$f":"IFERROR(INDEX(TabJoursFériés[Jour férié],MATCH(G465,TabJoursFériés[Date jour férié],0)),\"\")","v":""},{"$f":"IFERROR(INDEX(TabJoursFériés[Jour férié],MATCH(H465,TabJoursFériés[Date jour férié],0)),\"\")","v":""}]
["Proposition menus midi retraite."]
["Numéro du menu","MMR239","MMR240","MMR241","MMR242","MMR243","MMR244","MMR245"]
["Date du menu",{"$f":"WORKDAY(H465,1)","v":"2024-11-28"},{"$f":"WORKDAY(B479,1)","v":"2024-11-29"},{"$f":"WORKDAY(C479,1)","v":"2024-12-02"},"2024-12-03","2024-12-04","2024-12-05","2024-12-06"]
["Référence légume","LMR","LMR","LMR","LMR","LMR","LMR","LMR"]
["Légume"]
["Quantité légume"]
["Référence viande","VMR","VMR","VMR","VMR","VMR","VMR","VMR"]
["Viande"]
["Quantité viande",100,100,100,100,100,100,100]
["Référence dessert","DMR01","DMR01","DMR01","DMR01","DMR01","DMR01","DMR01"]
["Dessert","Pomme","Pomme","Pomme","Pomme","Pomme","Pomme","Pomme"]
["Quantité dessert",1,1,1,1,1,1,1]
["Référence jour férié",{"$f":"IFERROR(\"JF\"&TEXT(MATCH(B479,TabJoursFériés[Date jour férié],0),\"00\"),\"\")","v":""},{"$f":"IFERROR(\"JF\"&TEXT(MATCH(C479,TabJoursFériés[Date jour férié],0),\"00\"),\"\")","v":""},{"$f":"IFERROR(\"JF\"&TEXT(MATCH(D479,TabJoursFériés[Date jour férié],0),\"00\"),\"\")","v":""},{"$f":"IFERROR(\"JF\"&TEXT(MATCH(E479,TabJoursFériés[Date jour férié],0),\"00\"),\"\")","v":""},{"$f":"IFERROR(\"JF\"&TEXT(MATCH(F479,TabJoursFériés[Date jour férié],0),\"00\"),\"\")","v":""},{"$f":"IFERROR(\"JF\"&TEXT(MATCH(G479,TabJoursFériés[Date jour férié],0),\"00\"),\"\")","v":""},{"$f":"IFERROR(\"JF\"&TEXT(MATCH(H479,TabJoursFériés[Date jour férié],0),\"00\"),\"\")","v":""}]
["Jour férié",{"$f":"IFERROR(INDEX(TabJoursFériés[Jour férié],MATCH(B479,TabJoursFériés[Date jour férié],0)),\"\")","v":""},{"$f":"IFERROR(INDEX(TabJoursFériés[Jour férié],MATCH(C479,TabJoursFériés[Date jour férié],0)),\"\")","v":""},{"$f":"IFERROR(INDEX(TabJoursFériés[Jour férié],MATCH(D479,TabJoursFériés[Date jour férié],0)),\"\")","v":""},{"$f":"IFERROR(INDEX(TabJoursFériés[Jour férié],MATCH(E479,TabJoursFériés[Date jour férié],0)),\"\")","v":""},{"$f":"IFERROR(INDEX(TabJoursFériés[Jour férié],MATCH(F479,TabJoursFériés[Date jour férié],0)),\"\")","v":""},{"$f":"IFERROR(INDEX(TabJoursFériés[Jour férié],MATCH(G479,TabJoursFériés[Date jour férié],0)),\"\")","v":""},{"$f":"IFERROR(INDEX(TabJoursFériés[Jour férié],MATCH(H479,TabJoursFériés[Date jour férié],0)),\"\")","v":""}]
["Proposition menus midi retraite."]
["Numéro du menu","MMR246","MMR247","MMR248","MMR249","MMR250","MMR251","MMR252"]
["Date du menu",{"$f":"WORKDAY(H479,1)","v":"2024-12-09"},{"$f":"WORKDAY(B493,1)","v":"2024-12-10"},{"$f":"WORKDAY(C493,1)","v":"2024-12-11"},"2024-12-12","2024-12-13","2024-12-16","2024-12-17"]
["Référence légume","LMR","LMR","LMR","LMR","LMR","LMR","LMR"]
["Légume"]
["Quantité légume"]
["Référence viande","VMR","VMR","VMR","VMR","VMR","VMR","VMR"]
["Viande"]
["Quantité viande",100,100,100,100,100,100,100]
["Référence dessert","DMR01","DMR01","DMR01","DMR01","DMR01","DMR01","DMR01"]
["Dessert","Pomme","Pomme","Pomme","Pomme","Pomme","Pomme","Pomme"]
["Quantité dessert",1,1,1,1,1,1,1]
["Référence jour férié",{"$f":"IFERROR(\"JF\"&TEXT(MATCH(B493,TabJoursFériés[Date jour férié],0),\"00\"),\"\")","v":""},{"$f":"IFERROR(\"JF\"&TEXT(MATCH(C493,TabJoursFériés[Date jour férié],0),\"00\"),\"\")","v":""},{"$f":"IFERROR(\"JF\"&TEXT(MATCH(D493,TabJoursFériés[Date jour férié],0),\"00\"),\"\")","v":""},{"$f":"IFERROR(\"JF\"&TEXT(MATCH(E493,TabJoursFériés[Date jour férié],0),\"00\"),\"\")","v":""},{"$f":"IFERROR(\"JF\"&TEXT(MATCH(F493,TabJoursFériés[Date jour férié],0),\"00\"),\"\")","v":""},{"$f":"IFERROR(\"JF\"&TEXT(MATCH(G493,TabJoursFériés[Date jour férié],0),\"00\"),\"\")","v":""},{"$f":"IFERROR(\"JF\"&TEXT(MATCH(H493,TabJoursFériés[Date jour férié],0),\"00\"),\"\")","v":""}]
["Jour férié",{"$f":"IFERROR(INDEX(TabJoursFériés[Jour férié],MATCH(B493,TabJoursFériés[Date jour férié],0)),\"\")","v":""},{"$f":"IFERROR(INDEX(TabJoursFériés[Jour férié],MATCH(C493,TabJoursFériés[Date jour férié],0)),\"\")","v":""},{"$f":"IFERROR(INDEX(TabJoursFériés[Jour férié],MATCH(D493,TabJoursFériés[Date jour férié],0)),\"\")","v":""},{"$f":"IFERROR(INDEX(TabJoursFériés[Jour férié],MATCH(E493,TabJoursFériés[Date jour férié],0)),\"\")","v":""},{"$f":"IFERROR(INDEX(TabJoursFériés[Jour férié],MATCH(F493,TabJoursFériés[Date jour férié],0)),\"\")","v":""},{"$f":"IFERROR(INDEX(TabJoursFériés[Jour férié],MATCH(G493,TabJoursFériés[Date jour férié],0)),\"\")","v":""},{"$f":"IFERROR(INDEX(TabJoursFériés[Jour férié],MATCH(H493,TabJoursFériés[Date jour férié],0)),\"\")","v":""}]
["Proposition menus midi retraite."]
["Numéro du menu","MMR253","MMR254","MMR255","MMR256","MMR257","MMR258","MMR259"]
["Date du menu",{"$f":"WORKDAY(H493,1)","v":"2024-12-18"},{"$f":"WORKDAY(B507,1)","v":"2024-12-19"},{"$f":"WORKDAY(C507,1)","v":"2024-12-20"},"2024-12-23","2024-12-24","2024-12-25","2024-12-26"]
["Référence légume","LMR","LMR","LMR","LMR","LMR","LMR","LMR"]
["Légume"]
["Quantité légume"]
["Référence viande","VMR","VMR","VMR","VMR","VMR","VMR","VMR"]
["Viande"]
["Quantité viande",100,100,100,100,100,100,100]
["Référence dessert","DMR01","DMR01","DMR01","DMR01","DMR01","DMR01","DMR01"]
["Dessert","Pomme","Pomme","Pomme","Pomme","Pomme","Pomme","Pomme"]
["Quantité dessert",1,1,1,1,1,1,1]
["Référence jour férié",{"$f":"IFERROR(\"JF\"&TEXT(MATCH(B507,TabJoursFériés[Date jour férié],0),\"00\"),\"\")","v":""},{"$f":"IFERROR(\"JF\"&TEXT(MATCH(C507,TabJoursFériés[Date jour férié],0),\"00\"),\"\")","v":""},{"$f":"IFERROR(\"JF\"&TEXT(MATCH(D507,TabJoursFériés[Date jour férié],0),\"00\"),\"\")","v":""},{"$f":"IFERROR(\"JF\"&TEXT(MATCH(E507,TabJoursFériés[Date jour férié],0),\"00\"),\"\")","v":""},{"$f":"IFERROR(\"JF\"&TEXT(MATCH(F507,TabJoursFériés[Date jour férié],0),\"00\"),\"\")","v":""},{"$f":"IFERROR(\"JF\"&TEXT(MATCH(G507,TabJoursFériés[Date jour férié],0),\"00\"),\"\")","v":"JF13"},{"$f":"IFERROR(\"JF\"&TEXT(MATCH(H507,TabJoursFériés[Date jour férié],0),\"00\"),\"\")","v":""}]
["Jour férié",{"$f":"IFERROR(INDEX(TabJoursFériés[Jour férié],MATCH(B507,TabJoursFériés[Date jour férié],0)),\"\")","v":""},{"$f":"IFERROR(INDEX(TabJoursFériés[Jour férié],MATCH(C507,TabJoursFériés[Date jour férié],0)),\"\")","v":""},{"$f":"IFERROR(INDEX(TabJoursFériés[Jour férié],MATCH(D507,TabJoursFériés[Date jour férié],0)),\"\")","v":""},{"$f":"IFERROR(INDEX(TabJoursFériés[Jour férié],MATCH(E507,TabJoursFériés[Date jour férié],0)),\"\")","v":""},{"$f":"IFERROR(INDEX(TabJoursFériés[Jour férié],MATCH(F507,TabJoursFériés[Date jour férié],0)),\"\")","v":""},{"$f":"IFERROR(INDEX(TabJoursFériés[Jour férié],MATCH(G507,TabJoursFériés[Date jour férié],0)),\"\")","v":"Noël"},{"$f":"IFERROR(INDEX(TabJoursFériés[Jour férié],MATCH(H507,TabJoursFériés[Date jour férié],0)),\"\")","v":""}]
["Proposition menus midi retraite."]
["Numéro du menu","MMR260","MMR261","MMR262"]
["Date du menu",{"$f":"WORKDAY(H507,1)","v":"2024-12-27"},{"$f":"WORKDAY(B521,1)","v":"2024-12-30"},{"$f":"WORKDAY(C521,1)","v":"2024-12-31"}]
["Référence légume","LMR","LMR","LMR"]
["Légume"]
["Quantité légume"]
["Référence viande","VMR","VMR","VMR"]
["Viande"]
["Quantité viande",100,100,100]
["Référence dessert","DMR01","DMR01","DMR01"]
["Dessert","Pomme","Pomme","Pomme"]
["Quantité dessert",1,1,1]
["Référence jour férié",{"$f":"IFERROR(\"JF\"&TEXT(MATCH(B521,TabJoursFériés[Date jour férié],0),\"00\"),\"\")","v":""},{"$f":"IFERROR(\"JF\"&TEXT(MATCH(C521,TabJoursFériés[Date jour férié],0),\"00\"),\"\")","v":""},{"$f":"IFERROR(\"JF\"&TEXT(MATCH(D521,TabJoursFériés[Date jour férié],0),\"00\"),\"\")","v":""}]
["Jour férié",{"$f":"IFERROR(INDEX(TabJoursFériés[Jour férié],MATCH(B521,TabJoursFériés[Date jour férié],0)),\"\")","v":""},{"$f":"IFERROR(INDEX(TabJoursFériés[Jour férié],MATCH(C521,TabJoursFériés[Date jour férié],0)),\"\")","v":""},{"$f":"IFERROR(INDEX(TabJoursFériés[Jour férié],MATCH(D521,TabJoursFériés[Date jour férié],0)),\"\")","v":""}]

{"sheet":"Propositions MJ f","index":7,"n_rows":902,"n_cols":8,"rows_kept":902,"cut":false,"hidden":false,"merged":[[816,0,816,7],[833,0,833,7],[850,0,850,7],[867,0,867,7],[884,0,884,2],[799,0,799,7],[612,0,612,7],[629,0,629,7],[646,0,646,7],[663,0,663,7],[680,0,680,7],[697,0,697,7],[714,0,714,7],[731,0,731,7],[748,0,748,7],[765,0,765,7],[782,0,782,7],[595,0,595,7],[408,0,408,7],[425,0,425,7],[442,0,442,7],[459,0,459,7],[476,0,476,7],[493,0,493,7],[510,0,510,7],[527,0,527,7],[544,0,544,7],[561,0,561,7],[578,0,578,7],[391,0,391,7],[204,0,204,7],[221,0,221,7],[238,0,238,7],[255,0,255,7],[272,0,272,7],[289,0,289,7],[306,0,306,7],[323,0,323,7],[340,0,340,7],[357,0,357,7],[374,0,374,7],[187,0,187,7],[0,0,0,7],[17,0,17,7],[34,0,34,7],[51,0,51,7],[68,0,68,7],[85,0,85,7],[102,0,102,7],[119,0,119,7],[136,0,136,7],[153,0,153,7],[170,0,170,7]]}
["Proposition menus journaliers."]
["Numéro du menu","MJ01","MJ02","MJ03","MJ04","MJ05","MJ06","MJ07"]
["Date du menu",{"$f":"DATE(Accueil!$G$1,1,1)","v":"2024-01-01"},{"$f":"B3+1","v":"2024-01-02"},{"$f":"C3+1","v":"2024-01-03"},"2024-01-04","2024-01-05","2024-01-06","2024-01-07"]
["Référence légume",{"$f":"CHOOSE(WEEKDAY(B3,2),\"LSLM\",\"LSLM\",\"LSMJ\",\"LSMJ\",\"LSV\",\"LWES\",\"LWED\")","v":"LSLM"},{"$f":"CHOOSE(WEEKDAY(C3,2),\"LSLM\",\"LSLM\",\"LSMJ\",\"LSMJ\",\"LSV\",\"LWES\",\"LWED\")","v":"LSLM"},"LSMJ","LSMJ","LSV","LWES","LWED"]
["Légume"]
["Quantité légume"]
["Référence légume 2"]
["Légume 2"]
["Quantité légume 2"]
["Référence viande","VS","VS","VS","VS","VS","VS","VS"]
["Viande"]
["Quantité viande"]
["Référence dessert",{"$f":"IF(WEEKDAY(B3,2)<6,\"DS01\",\"DWE\")","v":"DS01"},{"$f":"IF(WEEKDAY(C3,2)<6,\"DS01\",\"DWE\")","v":"DS01"},"DS01","DS01","DS01","DWE","DWE"]
["Dessert",{"$f":"IF(WEEKDAY(B3,2)<6,\"Pomme\",\"\")","v":"Pomme"},{"$f":"IF(WEEKDAY(C3,2)<6,\"Pomme\",\"\")","v":"Pomme"},"Pomme","Pomme","Pomme","",""]
["Quantité dessert",{"$f":"IF(WEEKDAY(B3,2)<6,1,\"\")","v":1},{"$f":"IF(WEEKDAY(C3,2)<6,1,\"\")","v":1},1,1,1,"",""]
["Référence jour férié",{"$f":"IFERROR(\"JF\"&TEXT(MATCH(B3,TabJoursFériés[Date jour férié],0),\"00\"),\"\")","v":"JF01"},{"$f":"IFERROR(\"JF\"&TEXT(MATCH(C3,TabJoursFériés[Date jour férié],0),\"00\"),\"\")","v":""},{"$f":"IFERROR(\"JF\"&TEXT(MATCH(D3,TabJoursFériés[Date jour férié],0),\"00\"),\"\")","v":""},{"$f":"IFERROR(\"JF\"&TEXT(MATCH(E3,TabJoursFériés[Date jour férié],0),\"00\"),\"\")","v":""},{"$f":"IFERROR(\"JF\"&TEXT(MATCH(F3,TabJoursFériés[Date jour férié],0),\"00\"),\"\")","v":""},{"$f":"IFERROR(\"JF\"&TEXT(MATCH(G3,TabJoursFériés[Date jour férié],0),\"00\"),\"\")","v":""},{"$f":"IFERROR(\"JF\"&TEXT(MATCH(H3,TabJoursFériés[Date jour férié],0),\"00\"),\"\")","v":""}]
["Jour férié",{"$f":"IFERROR(INDEX(TabJoursFériés[Jour férié],MATCH(B3,TabJoursFériés[Date jour férié],0)),\"\")","v":"Jour de l'an"},{"$f":"IFERROR(INDEX(TabJoursFériés[Jour férié],MATCH(C3,TabJoursFériés[Date jour férié],0)),\"\")","v":""},{"$f":"IFERROR(INDEX(TabJoursFériés[Jour férié],MATCH(D3,TabJoursFériés[Date jour férié],0)),\"\")","v":""},{"$f":"IFERROR(INDEX(TabJoursFériés[Jour férié],MATCH(E3,TabJoursFériés[Date jour férié],0)),\"\")","v":""},{"$f":"IFERROR(INDEX(TabJoursFériés[Jour férié],MATCH(F3,TabJoursFériés[Date jour férié],0)),\"\")","v":""},{"$f":"IFERROR(INDEX(TabJoursFériés[Jour férié],MATCH(G3,TabJoursFériés[Date jour férié],0)),\"\")","v":""},{"$f":"IFERROR(INDEX(TabJoursFériés[Jour férié],MATCH(H3,TabJoursFériés[Date jour férié],0)),\"\")","v":""}]
["Proposition menus journaliers."]
["Numéro du menu","MJ08","MJ09","MJ10","MJ11","MJ12","MJ13","MJ14"]
["Date du menu",{"$f":"H3+1","v":"2024-01-08"},{"$f":"B20+1","v":"2024-01-09"},"2024-01-10","2024-01-11","2024-01-12","2024-01-13","2024-01-14"]
["Référence légume",{"$f":"CHOOSE(WEEKDAY(B20,2),\"LSLM\",\"LSLM\",\"LSMJ\",\"LSMJ\",\"LSV\",\"LWES\",\"LWED\")","v":"LSLM"},{"$f":"CHOOSE(WEEKDAY(C20,2),\"LSLM\",\"LSLM\",\"LSMJ\",\"LSMJ\",\"LSV\",\"LWES\",\"LWED\")","v":"LSLM"},"LSMJ","LSMJ","LSV","LWES","LWED"]
["Légume"]
["Quantité légume"]
["Référence légume 2"]
["Légume 2"]
["Quantité légume 2"]
["Référence viande","VS","VS","VS","VS","VS","VS","VS"]
["Viande"]
["Quantité viande"]
["Référence dessert",{"$f":"IF(WEEKDAY(B20,2)<6,\"DS01\",\"DWE\")","v":"DS01"},{"$f":"IF(WEEKDAY(C20,2)<6,\"DS01\",\"DWE\")","v":"DS01"},"DS01","DS01","DS01","DWE","DWE"]
["Dessert",{"$f":"IF(WEEKDAY(B20,2)<6,\"Pomme\",\"\")","v":"Pomme"},{"$f":"IF(WEEKDAY(C20,2)<6,\"Pomme\",\"\")","v":"Pomme"},"Pomme","Pomme","Pomme","",""]
["Quantité dessert",{"$f":"IF(WEEKDAY(B20,2)<6,1,\"\")","v":1},{"$f":"IF(WEEKDAY(C20,2)<6,1,\"\")","v":1},1,1,1,"",""]
["Référence jour férié",{"$f":"IFERROR(\"JF\"&TEXT(MATCH(B20,TabJoursFériés[Date jour férié],0),\"00\"),\"\")","v":""},{"$f":"IFERROR(\"JF\"&TEXT(MATCH(C20,TabJoursFériés[Date jour férié],0),\"00\"),\"\")","v":""},{"$f":"IFERROR(\"JF\"&TEXT(MATCH(D20,TabJoursFériés[Date jour férié],0),\"00\"),\"\")","v":""},{"$f":"IFERROR(\"JF\"&TEXT(MATCH(E20,TabJoursFériés[Date jour férié],0),\"00\"),\"\")","v":""},{"$f":"IFERROR(\"JF\"&TEXT(MATCH(F20,TabJoursFériés[Date jour férié],0),\"00\"),\"\")","v":""},{"$f":"IFERROR(\"JF\"&TEXT(MATCH(G20,TabJoursFériés[Date jour férié],0),\"00\"),\"\")","v":""},{"$f":"IFERROR(\"JF\"&TEXT(MATCH(H20,TabJoursFériés[Date jour férié],0),\"00\"),\"\")","v":""}]
["Jour férié",{"$f":"IFERROR(INDEX(TabJoursFériés[Jour férié],MATCH(B20,TabJoursFériés[Date jour férié],0)),\"\")","v":""},{"$f":"IFERROR(INDEX(TabJoursFériés[Jour férié],MATCH(C20,TabJoursFériés[Date jour férié],0)),\"\")","v":""},{"$f":"IFERROR(INDEX(TabJoursFériés[Jour férié],MATCH(D20,TabJoursFériés[Date jour férié],0)),\"\")","v":""},{"$f":"IFERROR(INDEX(TabJoursFériés[Jour férié],MATCH(E20,TabJoursFériés[Date jour férié],0)),\"\")","v":""},{"$f":"IFERROR(INDEX(TabJoursFériés[Jour férié],MATCH(F20,TabJoursFériés[Date jour férié],0)),\"\")","v":""},{"$f":"IFERROR(INDEX(TabJoursFériés[Jour férié],MATCH(G20,TabJoursFériés[Date jour férié],0)),\"\")","v":""},{"$f":"IFERROR(INDEX(TabJoursFériés[Jour férié],MATCH(H20,TabJoursFériés[Date jour férié],0)),\"\")","v":""}]
["Proposition menus journaliers."]
["Numéro du menu","MJ15","MJ16","MJ17","MJ18","MJ19","MJ20","MJ21"]
["Date du menu",{"$f":"H20+1","v":"2024-01-15"},{"$f":"B37+1","v":"2024-01-16"},"2024-01-17","2024-01-18","2024-01-19","2024-01-20","2024-01-21"]
["Référence légume",{"$f":"CHOOSE(WEEKDAY(B37,2),\"LSLM\",\"LSLM\",\"LSMJ\",\"LSMJ\",\"LSV\",\"LWES\",\"LWED\")","v":"LSLM"},{"$f":"CHOOSE(WEEKDAY(C37,2),\"LSLM\",\"LSLM\",\"LSMJ\",\"LSMJ\",\"LSV\",\"LWES\",\"LWED\")","v":"LSLM"},"LSMJ","LSMJ","LSV","LWES","LWED"]
["Légume"]
["Quantité légume"]
["Référence légume 2"]
["Légume 2"]
["Quantité légume 2"]
["Référence viande","VS","VS","VS","VS","VS","VS","VS"]
["Viande"]
["Quantité viande"]
["Référence dessert",{"$f":"IF(WEEKDAY(B37,2)<6,\"DS01\",\"DWE\")","v":"DS01"},{"$f":"IF(WEEKDAY(C37,2)<6,\"DS01\",\"DWE\")","v":"DS01"},"DS01","DS01","DS01","DWE","DWE"]
["Dessert",{"$f":"IF(WEEKDAY(B37,2)<6,\"Pomme\",\"\")","v":"Pomme"},{"$f":"IF(WEEKDAY(C37,2)<6,\"Pomme\",\"\")","v":"Pomme"},"Pomme","Pomme","Pomme","",""]
["Quantité dessert",{"$f":"IF(WEEKDAY(B37,2)<6,1,\"\")","v":1},{"$f":"IF(WEEKDAY(C37,2)<6,1,\"\")","v":1},1,1,1,"",""]
["Référence jour férié",{"$f":"IFERROR(\"JF\"&TEXT(MATCH(B37,TabJoursFériés[Date jour férié],0),\"00\"),\"\")","v":""},{"$f":"IFERROR(\"JF\"&TEXT(MATCH(C37,TabJoursFériés[Date jour férié],0),\"00\"),\"\")","v":""},{"$f":"IFERROR(\"JF\"&TEXT(MATCH(D37,TabJoursFériés[Date jour férié],0),\"00\"),\"\")","v":""},{"$f":"IFERROR(\"JF\"&TEXT(MATCH(E37,TabJoursFériés[Date jour férié],0),\"00\"),\"\")","v":""},{"$f":"IFERROR(\"JF\"&TEXT(MATCH(F37,TabJoursFériés[Date jour férié],0),\"00\"),\"\")","v":""},{"$f":"IFERROR(\"JF\"&TEXT(MATCH(G37,TabJoursFériés[Date jour férié],0),\"00\"),\"\")","v":""},{"$f":"IFERROR(\"JF\"&TEXT(MATCH(H37,TabJoursFériés[Date jour férié],0),\"00\"),\"\")","v":""}]
["Jour férié",{"$f":"IFERROR(INDEX(TabJoursFériés[Jour férié],MATCH(B37,TabJoursFériés[Date jour férié],0)),\"\")","v":""},{"$f":"IFERROR(INDEX(TabJoursFériés[Jour férié],MATCH(C37,TabJoursFériés[Date jour férié],0)),\"\")","v":""},{"$f":"IFERROR(INDEX(TabJoursFériés[Jour férié],MATCH(D37,TabJoursFériés[Date jour férié],0)),\"\")","v":""},{"$f":"IFERROR(INDEX(TabJoursFériés[Jour férié],MATCH(E37,TabJoursFériés[Date jour férié],0)),\"\")","v":""},{"$f":"IFERROR(INDEX(TabJoursFériés[Jour férié],MATCH(F37,TabJoursFériés[Date jour férié],0)),\"\")","v":""},{"$f":"IFERROR(INDEX(TabJoursFériés[Jour férié],MATCH(G37,TabJoursFériés[Date jour férié],0)),\"\")","v":""},{"$f":"IFERROR(INDEX(TabJoursFériés[Jour férié],MATCH(H37,TabJoursFériés[Date jour férié],0)),\"\")","v":""}]
["Proposition menus journaliers."]
["Numéro du menu","MJ22","MJ23","MJ24","MJ25","MJ26","MJ27","MJ28"]
["Date du menu",{"$f":"H37+1","v":"2024-01-22"},{"$f":"B54+1","v":"2024-01-23"},"2024-01-24","2024-01-25","2024-01-26","2024-01-27","2024-01-28"]
["Référence légume",{"$f":"CHOOSE(WEEKDAY(B54,2),\"LSLM\",\"LSLM\",\"LSMJ\",\"LSMJ\",\"LSV\",\"LWES\",\"LWED\")","v":"LSLM"},{"$f":"CHOOSE(WEEKDAY(C54,2),\"LSLM\",\"LSLM\",\"LSMJ\",\"LSMJ\",\"LSV\",\"LWES\",\"LWED\")","v":"LSLM"},"LSMJ","LSMJ","LSV","LWES","LWED"]
["Légume"]
["Quantité légume"]
["Référence légume 2"]
["Légume 2"]
["Quantité légume 2"]
["Référence viande","VS","VS","VS","VS","VS","VS","VS"]
["Viande"]
["Quantité viande"]
["Référence dessert",{"$f":"IF(WEEKDAY(B54,2)<6,\"DS01\",\"DWE\")","v":"DS01"},{"$f":"IF(WEEKDAY(C54,2)<6,\"DS01\",\"DWE\")","v":"DS01"},"DS01","DS01","DS01","DWE","DWE"]
["Dessert",{"$f":"IF(WEEKDAY(B54,2)<6,\"Pomme\",\"\")","v":"Pomme"},{"$f":"IF(WEEKDAY(C54,2)<6,\"Pomme\",\"\")","v":"Pomme"},"Pomme","Pomme","Pomme","",""]
["Quantité dessert",{"$f":"IF(WEEKDAY(B54,2)<6,1,\"\")","v":1},{"$f":"IF(WEEKDAY(C54,2)<6,1,\"\")","v":1},1,1,1,"",""]
["Référence jour férié",{"$f":"IFERROR(\"JF\"&TEXT(MATCH(B54,TabJoursFériés[Date jour férié],0),\"00\"),\"\")","v":""},{"$f":"IFERROR(\"JF\"&TEXT(MATCH(C54,TabJoursFériés[Date jour férié],0),\"00\"),\"\")","v":""},{"$f":"IFERROR(\"JF\"&TEXT(MATCH(D54,TabJoursFériés[Date jour férié],0),\"00\"),\"\")","v":""},{"$f":"IFERROR(\"JF\"&TEXT(MATCH(E54,TabJoursFériés[Date jour férié],0),\"00\"),\"\")","v":""},{"$f":"IFERROR(\"JF\"&TEXT(MATCH(F54,TabJoursFériés[Date jour férié],0),\"00\"),\"\")","v":""},{"$f":"IFERROR(\"JF\"&TEXT(MATCH(G54,TabJoursFériés[Date jour férié],0),\"00\"),\"\")","v":""},{"$f":"IFERROR(\"JF\"&TEXT(MATCH(H54,TabJoursFériés[Date jour férié],0),\"00\"),\"\")","v":""}]
["Jour férié",{"$f":"IFERROR(INDEX(TabJoursFériés[Jour férié],MATCH(B54,TabJoursFériés[Date jour férié],0)),\"\")","v":""},{"$f":"IFERROR(INDEX(TabJoursFériés[Jour férié],MATCH(C54,TabJoursFériés[Date jour férié],0)),\"\")","v":""},{"$f":"IFERROR(INDEX(TabJoursFériés[Jour férié],MATCH(D54,TabJoursFériés[Date jour férié],0)),\"\")","v":""},{"$f":"IFERROR(INDEX(TabJoursFériés[Jour férié],MATCH(E54,TabJoursFériés[Date jour férié],0)),\"\")","v":""},{"$f":"IFERROR(INDEX(TabJoursFériés[Jour férié],MATCH(F54,TabJoursFériés[Date jour férié],0)),\"\")","v":""},{"$f":"IFERROR(INDEX(TabJoursFériés[Jour férié],MATCH(G54,TabJoursFériés[Date jour férié],0)),\"\")","v":""},{"$f":"IFERROR(INDEX(TabJoursFériés[Jour férié],MATCH(H54,TabJoursFériés[Date jour férié],0)),\"\")","v":""}]
["Proposition menus journaliers."]
["Numéro du menu","MJ29","MJ30","MJ31","MJ32","MJ33","MJ34","MJ35"]
["Date du menu",{"$f":"H54+1","v":"2024-01-29"},{"$f":"B71+1","v":"2024-01-30"},"2024-01-31","2024-02-01","2024-02-02","2024-02-03","2024-02-04"]
["Référence légume",{"$f":"CHOOSE(WEEKDAY(B71,2),\"LSLM\",\"LSLM\",\"LSMJ\",\"LSMJ\",\"LSV\",\"LWES\",\"LWED\")","v":"LSLM"},{"$f":"CHOOSE(WEEKDAY(C71,2),\"LSLM\",\"LSLM\",\"LSMJ\",\"LSMJ\",\"LSV\",\"LWES\",\"LWED\")","v":"LSLM"},"LSMJ","LSMJ","LSV","LWES","LWED"]
["Légume"]
["Quantité légume"]
["Référence légume 2"]
["Légume 2"]
["Quantité légume 2"]
["Référence viande","VS","VS","VS","VS","VS","VS","VS"]
["Viande"]
["Quantité viande"]
["Référence dessert",{"$f":"IF(WEEKDAY(B71,2)<6,\"DS01\",\"DWE\")","v":"DS01"},{"$f":"IF(WEEKDAY(C71,2)<6,\"DS01\",\"DWE\")","v":"DS01"},"DS01","DS01","DS01","DWE","DWE"]
["Dessert",{"$f":"IF(WEEKDAY(B71,2)<6,\"Pomme\",\"\")","v":"Pomme"},{"$f":"IF(WEEKDAY(C71,2)<6,\"Pomme\",\"\")","v":"Pomme"},"Pomme","Pomme","Pomme","",""]
["Quantité dessert",{"$f":"IF(WEEKDAY(B71,2)<6,1,\"\")","v":1},{"$f":"IF(WEEKDAY(C71,2)<6,1,\"\")","v":1},1,1,1,"",""]
["Référence jour férié",{"$f":"IFERROR(\"JF\"&TEXT(MATCH(B71,TabJoursFériés[Date jour férié],0),\"00\"),\"\")","v":""},{"$f":"IFERROR(\"JF\"&TEXT(MATCH(C71,TabJoursFériés[Date jour férié],0),\"00\"),\"\")","v":""},{"$f":"IFERROR(\"JF\"&TEXT(MATCH(D71,TabJoursFériés[Date jour férié],0),\"00\"),\"\")","v":""},{"$f":"IFERROR(\"JF\"&TEXT(MATCH(E71,TabJoursFériés[Date jour férié],0),\"00\"),\"\")","v":""},{"$f":"IFERROR(\"JF\"&TEXT(MATCH(F71,TabJoursFériés[Date jour férié],0),\"00\"),\"\")","v":""},{"$f":"IFERROR(\"JF\"&TEXT(MATCH(G71,TabJoursFériés[Date jour férié],0),\"00\"),\"\")","v":""},{"$f":"IFERROR(\"JF\"&TEXT(MATCH(H71,TabJoursFériés[Date jour férié],0),\"00\"),\"\")","v":""}]
["Jour férié",{"$f":"IFERROR(INDEX(TabJoursFériés[Jour férié],MATCH(B71,TabJoursFériés[Date jour férié],0)),\"\")","v":""},{"$f":"IFERROR(INDEX(TabJoursFériés[Jour férié],MATCH(C71,TabJoursFériés[Date jour férié],0)),\"\")","v":""},{"$f":"IFERROR(INDEX(TabJoursFériés[Jour férié],MATCH(D71,TabJoursFériés[Date jour férié],0)),\"\")","v":""},{"$f":"IFERROR(INDEX(TabJoursFériés[Jour férié],MATCH(E71,TabJoursFériés[Date jour férié],0)),\"\")","v":""},{"$f":"IFERROR(INDEX(TabJoursFériés[Jour férié],MATCH(F71,TabJoursFériés[Date jour férié],0)),\"\")","v":""},{"$f":"IFERROR(INDEX(TabJoursFériés[Jour férié],MATCH(G71,TabJoursFériés[Date jour férié],0)),\"\")","v":""},{"$f":"IFERROR(INDEX(TabJoursFériés[Jour férié],MATCH(H71,TabJoursFériés[Date jour férié],0)),\"\")","v":""}]
["Proposition menus journaliers."]
["Numéro du menu","MJ36","MJ37","MJ38","MJ39","MJ40","MJ41","MJ42"]
["Date du menu",{"$f":"H71+1","v":"2024-02-05"},{"$f":"B88+1","v":"2024-02-06"},"2024-02-07","2024-02-08","2024-02-09","2024-02-10","2024-02-11"]
["Référence légume",{"$f":"CHOOSE(WEEKDAY(B88,2),\"LSLM\",\"LSLM\",\"LSMJ\",\"LSMJ\",\"LSV\",\"LWES\",\"LWED\")","v":"LSLM"},{"$f":"CHOOSE(WEEKDAY(C88,2),\"LSLM\",\"LSLM\",\"LSMJ\",\"LSMJ\",\"LSV\",\"LWES\",\"LWED\")","v":"LSLM"},"LSMJ","LSMJ","LSV","LWES","LWED"]
["Légume"]
["Quantité légume"]
["Référence légume 2"]
["Légume 2"]
["Quantité légume 2"]
["Référence viande","VS","VS","VS","VS","VS","VS","VS"]
["Viande"]
["Quantité viande"]
["Référence dessert",{"$f":"IF(WEEKDAY(B88,2)<6,\"DS01\",\"DWE\")","v":"DS01"},{"$f":"IF(WEEKDAY(C88,2)<6,\"DS01\",\"DWE\")","v":"DS01"},"DS01","DS01","DS01","DWE","DWE"]
["Dessert",{"$f":"IF(WEEKDAY(B88,2)<6,\"Pomme\",\"\")","v":"Pomme"},{"$f":"IF(WEEKDAY(C88,2)<6,\"Pomme\",\"\")","v":"Pomme"},"Pomme","Pomme","Pomme","",""]
["Quantité dessert",{"$f":"IF(WEEKDAY(B88,2)<6,1,\"\")","v":1},{"$f":"IF(WEEKDAY(C88,2)<6,1,\"\")","v":1},1,1,1,"",""]
["Référence jour férié",{"$f":"IFERROR(\"JF\"&TEXT(MATCH(B88,TabJoursFériés[Date jour férié],0),\"00\"),\"\")","v":""},{"$f":"IFERROR(\"JF\"&TEXT(MATCH(C88,TabJoursFériés[Date jour férié],0),\"00\"),\"\")","v":""},{"$f":"IFERROR(\"JF\"&TEXT(MATCH(D88,TabJoursFériés[Date jour férié],0),\"00\"),\"\")","v":""},{"$f":"IFERROR(\"JF\"&TEXT(MATCH(E88,TabJoursFériés[Date jour férié],0),\"00\"),\"\")","v":""},{"$f":"IFERROR(\"JF\"&TEXT(MATCH(F88,TabJoursFériés[Date jour férié],0),\"00\"),\"\")","v":""},{"$f":"IFERROR(\"JF\"&TEXT(MATCH(G88,TabJoursFériés[Date jour férié],0),\"00\"),\"\")","v":""},{"$f":"IFERROR(\"JF\"&TEXT(MATCH(H88,TabJoursFériés[Date jour férié],0),\"00\"),\"\")","v":""}]
["Jour férié",{"$f":"IFERROR(INDEX(TabJoursFériés[Jour férié],MATCH(B88,TabJoursFériés[Date jour férié],0)),\"\")","v":""},{"$f":"IFERROR(INDEX(TabJoursFériés[Jour férié],MATCH(C88,TabJoursFériés[Date jour férié],0)),\"\")","v":""},{"$f":"IFERROR(INDEX(TabJoursFériés[Jour férié],MATCH(D88,TabJoursFériés[Date jour férié],0)),\"\")","v":""},{"$f":"IFERROR(INDEX(TabJoursFériés[Jour férié],MATCH(E88,TabJoursFériés[Date jour férié],0)),\"\")","v":""},{"$f":"IFERROR(INDEX(TabJoursFériés[Jour férié],MATCH(F88,TabJoursFériés[Date jour férié],0)),\"\")","v":""},{"$f":"IFERROR(INDEX(TabJoursFériés[Jour férié],MATCH(G88,TabJoursFériés[Date jour férié],0)),\"\")","v":""},{"$f":"IFERROR(INDEX(TabJoursFériés[Jour férié],MATCH(H88,TabJoursFériés[Date jour férié],0)),\"\")","v":""}]
["Proposition menus journaliers."]
["Numéro du menu","MJ43","MJ44","MJ45","MJ46","MJ47","MJ48","MJ49"]
["Date du menu",{"$f":"H88+1","v":"2024-02-12"},{"$f":"B105+1","v":"2024-02-13"},"2024-02-14","2024-02-15","2024-02-16","2024-02-17","2024-02-18"]
["Référence légume",{"$f":"CHOOSE(WEEKDAY(B105,2),\"LSLM\",\"LSLM\",\"LSMJ\",\"LSMJ\",\"LSV\",\"LWES\",\"LWED\")","v":"LSLM"},{"$f":"CHOOSE(WEEKDAY(C105,2),\"LSLM\",\"LSLM\",\"LSMJ\",\"LSMJ\",\"LSV\",\"LWES\",\"LWED\")","v":"LSLM"},"LSMJ","LSMJ","LSV","LWES","LWED"]
["Légume"]
["Quantité légume"]
["Référence légume 2"]
["Légume 2"]
["Quantité légume 2"]
["Référence viande","VS","VS","VS","VS","VS","VS","VS"]
["Viande"]
["Quantité viande"]
["Référence dessert",{"$f":"IF(WEEKDAY(B105,2)<6,\"DS01\",\"DWE\")","v":"DS01"},{"$f":"IF(WEEKDAY(C105,2)<6,\"DS01\",\"DWE\")","v":"DS01"},"DS01","DS01","DS01","DWE","DWE"]
["Dessert",{"$f":"IF(WEEKDAY(B105,2)<6,\"Pomme\",\"\")","v":"Pomme"},{"$f":"IF(WEEKDAY(C105,2)<6,\"Pomme\",\"\")","v":"Pomme"},"Pomme","Pomme","Pomme","",""]
["Quantité dessert",{"$f":"IF(WEEKDAY(B105,2)<6,1,\"\")","v":1},{"$f":"IF(WEEKDAY(C105,2)<6,1,\"\")","v":1},1,1,1,"",""]
["Référence jour férié",{"$f":"IFERROR(\"JF\"&TEXT(MATCH(B105,TabJoursFériés[Date jour férié],0),\"00\"),\"\")","v":""},{"$f":"IFERROR(\"JF\"&TEXT(MATCH(C105,TabJoursFériés[Date jour férié],0),\"00\"),\"\")","v":""},{"$f":"IFERROR(\"JF\"&TEXT(MATCH(D105,TabJoursFériés[Date jour férié],0),\"00\"),\"\")","v":""},{"$f":"IFERROR(\"JF\"&TEXT(MATCH(E105,TabJoursFériés[Date jour férié],0),\"00\"),\"\")","v":""},{"$f":"IFERROR(\"JF\"&TEXT(MATCH(F105,TabJoursFériés[Date jour férié],0),\"00\"),\"\")","v":""},{"$f":"IFERROR(\"JF\"&TEXT(MATCH(G105,TabJoursFériés[Date jour férié],0),\"00\"),\"\")","v":""},{"$f":"IFERROR(\"JF\"&TEXT(MATCH(H105,TabJoursFériés[Date jour férié],0),\"00\"),\"\")","v":""}]
["Jour férié",{"$f":"IFERROR(INDEX(TabJoursFériés[Jour férié],MATCH(B105,TabJoursFériés[Date jour férié],0)),\"\")","v":""},{"$f":"IFERROR(INDEX(TabJoursFériés[Jour férié],MATCH(C105,TabJoursFériés[Date jour férié],0)),\"\")","v":""},{"$f":"IFERROR(INDEX(TabJoursFériés[Jour férié],MATCH(D105,TabJoursFériés[Date jour férié],0)),\"\")","v":""},{"$f":"IFERROR(INDEX(TabJoursFériés[Jour férié],MATCH(E105,TabJoursFériés[Date jour férié],0)),\"\")","v":""},{"$f":"IFERROR(INDEX(TabJoursFériés[Jour férié],MATCH(F105,TabJoursFériés[Date jour férié],0)),\"\")","v":""},{"$f":"IFERROR(INDEX(TabJoursFériés[Jour férié],MATCH(G105,TabJoursFériés[Date jour férié],0)),\"\")","v":""},{"$f":"IFERROR(INDEX(TabJoursFériés[Jour férié],MATCH(H105,TabJoursFériés[Date jour férié],0)),\"\")","v":""}]
["Proposition menus journaliers."]
["Numéro du menu","MJ50","MJ51","MJ52","MJ53","MJ54","MJ55","MJ56"]
["Date du menu",{"$f":"H105+1","v":"2024-02-19"},{"$f":"B122+1","v":"2024-02-20"},"2024-02-21","2024-02-22","2024-02-23","2024-02-24","2024-02-25"]
["Référence légume",{"$f":"CHOOSE(WEEKDAY(B122,2),\"LSLM\",\"LSLM\",\"LSMJ\",\"LSMJ\",\"LSV\",\"LWES\",\"LWED\")","v":"LSLM"},{"$f":"CHOOSE(WEEKDAY(C122,2),\"LSLM\",\"LSLM\",\"LSMJ\",\"LSMJ\",\"LSV\",\"LWES\",\"LWED\")","v":"LSLM"},"LSMJ","LSMJ","LSV","LWES","LWED"]
["Légume"]
["Quantité légume"]
["Référence légume 2"]
["Légume 2"]
["Quantité légume 2"]
["Référence viande","VS","VS","VS","VS","VS","VS","VS"]
["Viande"]
["Quantité viande"]
["Référence dessert",{"$f":"IF(WEEKDAY(B122,2)<6,\"DS01\",\"DWE\")","v":"DS01"},{"$f":"IF(WEEKDAY(C122,2)<6,\"DS01\",\"DWE\")","v":"DS01"},"DS01","DS01","DS01","DWE","DWE"]
["Dessert",{"$f":"IF(WEEKDAY(B122,2)<6,\"Pomme\",\"\")","v":"Pomme"},{"$f":"IF(WEEKDAY(C122,2)<6,\"Pomme\",\"\")","v":"Pomme"},"Pomme","Pomme","Pomme","",""]
["Quantité dessert",{"$f":"IF(WEEKDAY(B122,2)<6,1,\"\")","v":1},{"$f":"IF(WEEKDAY(C122,2)<6,1,\"\")","v":1},1,1,1,"",""]
["Référence jour férié",{"$f":"IFERROR(\"JF\"&TEXT(MATCH(B122,TabJoursFériés[Date jour férié],0),\"00\"),\"\")","v":""},{"$f":"IFERROR(\"JF\"&TEXT(MATCH(C122,TabJoursFériés[Date jour férié],0),\"00\"),\"\")","v":""},{"$f":"IFERROR(\"JF\"&TEXT(MATCH(D122,TabJoursFériés[Date jour férié],0),\"00\"),\"\")","v":""},{"$f":"IFERROR(\"JF\"&TEXT(MATCH(E122,TabJoursFériés[Date jour férié],0),\"00\"),\"\")","v":""},{"$f":"IFERROR(\"JF\"&TEXT(MATCH(F122,TabJoursFériés[Date jour férié],0),\"00\"),\"\")","v":""},{"$f":"IFERROR(\"JF\"&TEXT(MATCH(G122,TabJoursFériés[Date jour férié],0),\"00\"),\"\")","v":""},{"$f":"IFERROR(\"JF\"&TEXT(MATCH(H122,TabJoursFériés[Date jour férié],0),\"00\"),\"\")","v":""}]
["Jour férié",{"$f":"IFERROR(INDEX(TabJoursFériés[Jour férié],MATCH(B122,TabJoursFériés[Date jour férié],0)),\"\")","v":""},{"$f":"IFERROR(INDEX(TabJoursFériés[Jour férié],MATCH(C122,TabJoursFériés[Date jour férié],0)),\"\")","v":""},{"$f":"IFERROR(INDEX(TabJoursFériés[Jour férié],MATCH(D122,TabJoursFériés[Date jour férié],0)),\"\")","v":""},{"$f":"IFERROR(INDEX(TabJoursFériés[Jour férié],MATCH(E122,TabJoursFériés[Date jour férié],0)),\"\")","v":""},{"$f":"IFERROR(INDEX(TabJoursFériés[Jour férié],MATCH(F122,TabJoursFériés[Date jour férié],0)),\"\")","v":""},{"$f":"IFERROR(INDEX(TabJoursFériés[Jour férié],MATCH(G122,TabJoursFériés[Date jour férié],0)),\"\")","v":""},{"$f":"IFERROR(INDEX(TabJoursFériés[Jour férié],MATCH(H122,TabJoursFériés[Date jour férié],0)),\"\")","v":""}]
["Proposition menus journaliers."]
["Numéro du menu","MJ57","MJ58","MJ59","MJ60","MJ61","MJ62","MJ63"]
["Date du menu",{"$f":"H122+1","v":"2024-02-26"},{"$f":"B139+1","v":"2024-02-27"},"2024-02-28","2024-02-29","2024-03-01","2024-03-02","2024-03-03"]
["Référence légume",{"$f":"CHOOSE(WEEKDAY(B139,2),\"LSLM\",\"LSLM\",\"LSMJ\",\"LSMJ\",\"LSV\",\"LWES\",\"LWED\")","v":"LSLM"},{"$f":"CHOOSE(WEEKDAY(C139,2),\"LSLM\",\"LSLM\",\"LSMJ\",\"LSMJ\",\"LSV\",\"LWES\",\"LWED\")","v":"LSLM"},"LSMJ","LSMJ","LSV","LWES","LWED"]
["Légume"]
["Quantité légume"]
["Référence légume 2"]
["Légume 2"]
["Quantité légume 2"]
["Référence viande","VS","VS","VS","VS","VS","VS","VS"]
["Viande"]
["Quantité viande"]
["Référence dessert",{"$f":"IF(WEEKDAY(B139,2)<6,\"DS01\",\"DWE\")","v":"DS01"},{"$f":"IF(WEEKDAY(C139,2)<6,\"DS01\",\"DWE\")","v":"DS01"},"DS01","DS01","DS01","DWE","DWE"]
["Dessert",{"$f":"IF(WEEKDAY(B139,2)<6,\"Pomme\",\"\")","v":"Pomme"},{"$f":"IF(WEEKDAY(C139,2)<6,\"Pomme\",\"\")","v":"Pomme"},"Pomme","Pomme","Pomme","",""]
["Quantité dessert",{"$f":"IF(WEEKDAY(B139,2)<6,1,\"\")","v":1},{"$f":"IF(WEEKDAY(C139,2)<6,1,\"\")","v":1},1,1,1,"",""]
["Référence jour férié",{"$f":"IFERROR(\"JF\"&TEXT(MATCH(B139,TabJoursFériés[Date jour férié],0),\"00\"),\"\")","v":""},{"$f":"IFERROR(\"JF\"&TEXT(MATCH(C139,TabJoursFériés[Date jour férié],0),\"00\"),\"\")","v":""},{"$f":"IFERROR(\"JF\"&TEXT(MATCH(D139,TabJoursFériés[Date jour férié],0),\"00\"),\"\")","v":""},{"$f":"IFERROR(\"JF\"&TEXT(MATCH(E139,TabJoursFériés[Date jour férié],0),\"00\"),\"\")","v":""},{"$f":"IFERROR(\"JF\"&TEXT(MATCH(F139,TabJoursFériés[Date jour férié],0),\"00\"),\"\")","v":""},{"$f":"IFERROR(\"JF\"&TEXT(MATCH(G139,TabJoursFériés[Date jour férié],0),\"00\"),\"\")","v":""},{"$f":"IFERROR(\"JF\"&TEXT(MATCH(H139,TabJoursFériés[Date jour férié],0),\"00\"),\"\")","v":""}]
["Jour férié",{"$f":"IFERROR(INDEX(TabJoursFériés[Jour férié],MATCH(B139,TabJoursFériés[Date jour férié],0)),\"\")","v":""},{"$f":"IFERROR(INDEX(TabJoursFériés[Jour férié],MATCH(C139,TabJoursFériés[Date jour férié],0)),\"\")","v":""},{"$f":"IFERROR(INDEX(TabJoursFériés[Jour férié],MATCH(D139,TabJoursFériés[Date jour férié],0)),\"\")","v":""},{"$f":"IFERROR(INDEX(TabJoursFériés[Jour férié],MATCH(E139,TabJoursFériés[Date jour férié],0)),\"\")","v":""},{"$f":"IFERROR(INDEX(TabJoursFériés[Jour férié],MATCH(F139,TabJoursFériés[Date jour férié],0)),\"\")","v":""},{"$f":"IFERROR(INDEX(TabJoursFériés[Jour férié],MATCH(G139,TabJoursFériés[Date jour férié],0)),\"\")","v":""},{"$f":"IFERROR(INDEX(TabJoursFériés[Jour férié],MATCH(H139,TabJoursFériés[Date jour férié],0)),\"\")","v":""}]
["Proposition menus journaliers."]
["Numéro du menu","MJ64","MJ65","MJ66","MJ67","MJ68","MJ69","MJ70"]
["Date du menu",{"$f":"H139+1","v":"2024-03-04"},{"$f":"B156+1","v":"2024-03-05"},"2024-03-06","2024-03-07","2024-03-08","2024-03-09","2024-03-10"]
["Référence légume",{"$f":"CHOOSE(WEEKDAY(B156,2),\"LSLM\",\"LSLM\",\"LSMJ\",\"LSMJ\",\"LSV\",\"LWES\",\"LWED\")","v":"LSLM"},{"$f":"CHOOSE(WEEKDAY(C156,2),\"LSLM\",\"LSLM\",\"LSMJ\",\"LSMJ\",\"LSV\",\"LWES\",\"LWED\")","v":"LSLM"},"LSMJ","LSMJ","LSV","LWES","LWED"]
["Légume"]
["Quantité légume"]
["Référence légume 2"]
["Légume 2"]
["Quantité légume 2"]
["Référence viande","VS","VS","VS","VS","VS","VS","VS"]
["Viande"]
["Quantité viande"]
["Référence dessert",{"$f":"IF(WEEKDAY(B156,2)<6,\"DS01\",\"DWE\")","v":"DS01"},{"$f":"IF(WEEKDAY(C156,2)<6,\"DS01\",\"DWE\")","v":"DS01"},"DS01","DS01","DS01","DWE","DWE"]
["Dessert",{"$f":"IF(WEEKDAY(B156,2)<6,\"Pomme\",\"\")","v":"Pomme"},{"$f":"IF(WEEKDAY(C156,2)<6,\"Pomme\",\"\")","v":"Pomme"},"Pomme","Pomme","Pomme","",""]
["Quantité dessert",{"$f":"IF(WEEKDAY(B156,2)<6,1,\"\")","v":1},{"$f":"IF(WEEKDAY(C156,2)<6,1,\"\")","v":1},1,1,1,"",""]
["Référence jour férié",{"$f":"IFERROR(\"JF\"&TEXT(MATCH(B156,TabJoursFériés[Date jour férié],0),\"00\"),\"\")","v":""},{"$f":"IFERROR(\"JF\"&TEXT(MATCH(C156,TabJoursFériés[Date jour férié],0),\"00\"),\"\")","v":""},{"$f":"IFERROR(\"JF\"&TEXT(MATCH(D156,TabJoursFériés[Date jour férié],0),\"00\"),\"\")","v":""},{"$f":"IFERROR(\"JF\"&TEXT(MATCH(E156,TabJoursFériés[Date jour férié],0),\"00\"),\"\")","v":""},{"$f":"IFERROR(\"JF\"&TEXT(MATCH(F156,TabJoursFériés[Date jour férié],0),\"00\"),\"\")","v":""},{"$f":"IFERROR(\"JF\"&TEXT(MATCH(G156,TabJoursFériés[Date jour férié],0),\"00\"),\"\")","v":""},{"$f":"IFERROR(\"JF\"&TEXT(MATCH(H156,TabJoursFériés[Date jour férié],0),\"00\"),\"\")","v":""}]
["Jour férié",{"$f":"IFERROR(INDEX(TabJoursFériés[Jour férié],MATCH(B156,TabJoursFériés[Date jour férié],0)),\"\")","v":""},{"$f":"IFERROR(INDEX(TabJoursFériés[Jour férié],MATCH(C156,TabJoursFériés[Date jour férié],0)),\"\")","v":""},{"$f":"IFERROR(INDEX(TabJoursFériés[Jour férié],MATCH(D156,TabJoursFériés[Date jour férié],0)),\"\")","v":""},{"$f":"IFERROR(INDEX(TabJoursFériés[Jour férié],MATCH(E156,TabJoursFériés[Date jour férié],0)),\"\")","v":""},{"$f":"IFERROR(INDEX(TabJoursFériés[Jour férié],MATCH(F156,TabJoursFériés[Date jour férié],0)),\"\")","v":""},{"$f":"IFERROR(INDEX(TabJoursFériés[Jour férié],MATCH(G156,TabJoursFériés[Date jour férié],0)),\"\")","v":""},{"$f":"IFERROR(INDEX(TabJoursFériés[Jour férié],MATCH(H156,TabJoursFériés[Date jour férié],0)),\"\")","v":""}]
["Proposition menus journaliers."]
["Numéro du menu","MJ71","MJ72","MJ73","MJ74","MJ75","MJ76","MJ77"]
["Date du menu",{"$f":"H156+1","v":"2024-03-11"},{"$f":"B173+1","v":"2024-03-12"},"2024-03-13","2024-03-14","2024-03-15","2024-03-16","2024-03-17"]
["Référence légume",{"$f":"CHOOSE(WEEKDAY(B173,2),\"LSLM\",\"LSLM\",\"LSMJ\",\"LSMJ\",\"LSV\",\"LWES\",\"LWED\")","v":"LSLM"},{"$f":"CHOOSE(WEEKDAY(C173,2),\"LSLM\",\"LSLM\",\"LSMJ\",\"LSMJ\",\"LSV\",\"LWES\",\"LWED\")","v":"LSLM"},"LSMJ","LSMJ","LSV","LWES","LWED"]
["Légume"]
["Quantité légume"]
["Référence légume 2"]
["Légume 2"]
["Quantité légume 2"]
["Référence viande","VS","VS","VS","VS","VS","VS","VS"]
["Viande"]
["Quantité viande"]
["Référence dessert",{"$f":"IF(WEEKDAY(B173,2)<6,\"DS01\",\"DWE\")","v":"DS01"},{"$f":"IF(WEEKDAY(C173,2)<6,\"DS01\",\"DWE\")","v":"DS01"},"DS01","DS01","DS01","DWE","DWE"]
["Dessert",{"$f":"IF(WEEKDAY(B173,2)<6,\"Pomme\",\"\")","v":"Pomme"},{"$f":"IF(WEEKDAY(C173,2)<6,\"Pomme\",\"\")","v":"Pomme"},"Pomme","Pomme","Pomme","",""]
["Quantité dessert",{"$f":"IF(WEEKDAY(B173,2)<6,1,\"\")","v":1},{"$f":"IF(WEEKDAY(C173,2)<6,1,\"\")","v":1},1,1,1,"",""]
["Référence jour férié",{"$f":"IFERROR(\"JF\"&TEXT(MATCH(B173,TabJoursFériés[Date jour férié],0),\"00\"),\"\")","v":""},{"$f":"IFERROR(\"JF\"&TEXT(MATCH(C173,TabJoursFériés[Date jour férié],0),\"00\"),\"\")","v":""},{"$f":"IFERROR(\"JF\"&TEXT(MATCH(D173,TabJoursFériés[Date jour férié],0),\"00\"),\"\")","v":""},{"$f":"IFERROR(\"JF\"&TEXT(MATCH(E173,TabJoursFériés[Date jour férié],0),\"00\"),\"\")","v":""},{"$f":"IFERROR(\"JF\"&TEXT(MATCH(F173,TabJoursFériés[Date jour férié],0),\"00\"),\"\")","v":""},{"$f":"IFERROR(\"JF\"&TEXT(MATCH(G173,TabJoursFériés[Date jour férié],0),\"00\"),\"\")","v":""},{"$f":"IFERROR(\"JF\"&TEXT(MATCH(H173,TabJoursFériés[Date jour férié],0),\"00\"),\"\")","v":""}]
["Jour férié",{"$f":"IFERROR(INDEX(TabJoursFériés[Jour férié],MATCH(B173,TabJoursFériés[Date jour férié],0)),\"\")","v":""},{"$f":"IFERROR(INDEX(TabJoursFériés[Jour férié],MATCH(C173,TabJoursFériés[Date jour férié],0)),\"\")","v":""},{"$f":"IFERROR(INDEX(TabJoursFériés[Jour férié],MATCH(D173,TabJoursFériés[Date jour férié],0)),\"\")","v":""},{"$f":"IFERROR(INDEX(TabJoursFériés[Jour férié],MATCH(E173,TabJoursFériés[Date jour férié],0)),\"\")","v":""},{"$f":"IFERROR(INDEX(TabJoursFériés[Jour férié],MATCH(F173,TabJoursFériés[Date jour férié],0)),\"\")","v":""},{"$f":"IFERROR(INDEX(TabJoursFériés[Jour férié],MATCH(G173,TabJoursFériés[Date jour férié],0)),\"\")","v":""},{"$f":"IFERROR(INDEX(TabJoursFériés[Jour férié],MATCH(H173,TabJoursFériés[Date jour férié],0)),\"\")","v":""}]
["Proposition menus journaliers."]
["Numéro du menu","MJ78","MJ79","MJ80","MJ81","MJ82","MJ83","MJ84"]
["Date du menu",{"$f":"H173+1","v":"2024-03-18"},{"$f":"B190+1","v":"2024-03-19"},"2024-03-20","2024-03-21","2024-03-22","2024-03-23","2024-03-24"]
["Référence légume",{"$f":"CHOOSE(WEEKDAY(B190,2),\"LSLM\",\"LSLM\",\"LSMJ\",\"LSMJ\",\"LSV\",\"LWES\",\"LWED\")","v":"LSLM"},{"$f":"CHOOSE(WEEKDAY(C190,2),\"LSLM\",\"LSLM\",\"LSMJ\",\"LSMJ\",\"LSV\",\"LWES\",\"LWED\")","v":"LSLM"},"LSMJ","LSMJ","LSV","LWES","LWED"]
["Légume"]
["Quantité légume"]
["Référence légume 2"]
["Légume 2"]
["Quantité légume 2"]
["Référence viande","VS","VS","VS","VS","VS","VS","VS"]
["Viande"]
["Quantité viande"]
["Référence dessert",{"$f":"IF(WEEKDAY(B190,2)<6,\"DS01\",\"DWE\")","v":"DS01"},{"$f":"IF(WEEKDAY(C190,2)<6,\"DS01\",\"DWE\")","v":"DS01"},"DS01","DS01","DS01","DWE","DWE"]
["Dessert",{"$f":"IF(WEEKDAY(B190,2)<6,\"Pomme\",\"\")","v":"Pomme"},{"$f":"IF(WEEKDAY(C190,2)<6,\"Pomme\",\"\")","v":"Pomme"},"Pomme","Pomme","Pomme","",""]
["Quantité dessert",{"$f":"IF(WEEKDAY(B190,2)<6,1,\"\")","v":1},{"$f":"IF(WEEKDAY(C190,2)<6,1,\"\")","v":1},1,1,1,"",""]
["Référence jour férié",{"$f":"IFERROR(\"JF\"&TEXT(MATCH(B190,TabJoursFériés[Date jour férié],0),\"00\"),\"\")","v":""},{"$f":"IFERROR(\"JF\"&TEXT(MATCH(C190,TabJoursFériés[Date jour férié],0),\"00\"),\"\")","v":""},{"$f":"IFERROR(\"JF\"&TEXT(MATCH(D190,TabJoursFériés[Date jour férié],0),\"00\"),\"\")","v":""},{"$f":"IFERROR(\"JF\"&TEXT(MATCH(E190,TabJoursFériés[Date jour férié],0),\"00\"),\"\")","v":""},{"$f":"IFERROR(\"JF\"&TEXT(MATCH(F190,TabJoursFériés[Date jour férié],0),\"00\"),\"\")","v":""},{"$f":"IFERROR(\"JF\"&TEXT(MATCH(G190,TabJoursFériés[Date jour férié],0),\"00\"),\"\")","v":""},{"$f":"IFERROR(\"JF\"&TEXT(MATCH(H190,TabJoursFériés[Date jour férié],0),\"00\"),\"\")","v":""}]
["Jour férié",{"$f":"IFERROR(INDEX(TabJoursFériés[Jour férié],MATCH(B190,TabJoursFériés[Date jour férié],0)),\"\")","v":""},{"$f":"IFERROR(INDEX(TabJoursFériés[Jour férié],MATCH(C190,TabJoursFériés[Date jour férié],0)),\"\")","v":""},{"$f":"IFERROR(INDEX(TabJoursFériés[Jour férié],MATCH(D190,TabJoursFériés[Date jour férié],0)),\"\")","v":""},{"$f":"IFERROR(INDEX(TabJoursFériés[Jour férié],MATCH(E190,TabJoursFériés[Date jour férié],0)),\"\")","v":""},{"$f":"IFERROR(INDEX(TabJoursFériés[Jour férié],MATCH(F190,TabJoursFériés[Date jour férié],0)),\"\")","v":""},{"$f":"IFERROR(INDEX(TabJoursFériés[Jour férié],MATCH(G190,TabJoursFériés[Date jour férié],0)),\"\")","v":""},{"$f":"IFERROR(INDEX(TabJoursFériés[Jour férié],MATCH(H190,TabJoursFériés[Date jour férié],0)),\"\")","v":""}]
["Proposition menus journaliers."]
["Numéro du menu","MJ85","MJ86","MJ87","MJ88","MJ89","MJ90","MJ91"]
["Date du menu",{"$f":"H190+1","v":"2024-03-25"},{"$f":"B207+1","v":"2024-03-26"},"2024-03-27","2024-03-28","2024-03-29","2024-03-30","2024-03-31"]
["Référence légume",{"$f":"CHOOSE(WEEKDAY(B207,2),\"LSLM\",\"LSLM\",\"LSMJ\",\"LSMJ\",\"LSV\",\"LWES\",\"LWED\")","v":"LSLM"},{"$f":"CHOOSE(WEEKDAY(C207,2),\"LSLM\",\"LSLM\",\"LSMJ\",\"LSMJ\",\"LSV\",\"LWES\",\"LWED\")","v":"LSLM"},"LSMJ","LSMJ","LSV","LWES","LWED"]
["Légume"]
["Quantité légume"]
["Référence légume 2"]
["Légume 2"]
["Quantité légume 2"]
["Référence viande","VS","VS","VS","VS","VS","VS","VS"]
["Viande"]
["Quantité viande"]
["Référence dessert",{"$f":"IF(WEEKDAY(B207,2)<6,\"DS01\",\"DWE\")","v":"DS01"},{"$f":"IF(WEEKDAY(C207,2)<6,\"DS01\",\"DWE\")","v":"DS01"},"DS01","DS01","DS01","DWE","DWE"]
["Dessert",{"$f":"IF(WEEKDAY(B207,2)<6,\"Pomme\",\"\")","v":"Pomme"},{"$f":"IF(WEEKDAY(C207,2)<6,\"Pomme\",\"\")","v":"Pomme"},"Pomme","Pomme","Pomme","",""]
["Quantité dessert",{"$f":"IF(WEEKDAY(B207,2)<6,1,\"\")","v":1},{"$f":"IF(WEEKDAY(C207,2)<6,1,\"\")","v":1},1,1,1,"",""]
["Référence jour férié",{"$f":"IFERROR(\"JF\"&TEXT(MATCH(B207,TabJoursFériés[Date jour férié],0),\"00\"),\"\")","v":""},{"$f":"IFERROR(\"JF\"&TEXT(MATCH(C207,TabJoursFériés[Date jour férié],0),\"00\"),\"\")","v":""},{"$f":"IFERROR(\"JF\"&TEXT(MATCH(D207,TabJoursFériés[Date jour férié],0),\"00\"),\"\")","v":""},{"$f":"IFERROR(\"JF\"&TEXT(MATCH(E207,TabJoursFériés[Date jour férié],0),\"00\"),\"\")","v":""},{"$f":"IFERROR(\"JF\"&TEXT(MATCH(F207,TabJoursFériés[Date jour férié],0),\"00\"),\"\")","v":""},{"$f":"IFERROR(\"JF\"&TEXT(MATCH(G207,TabJoursFériés[Date jour férié],0),\"00\"),\"\")","v":""},{"$f":"IFERROR(\"JF\"&TEXT(MATCH(H207,TabJoursFériés[Date jour férié],0),\"00\"),\"\")","v":"JF02"}]
["Jour férié",{"$f":"IFERROR(INDEX(TabJoursFériés[Jour férié],MATCH(B207,TabJoursFériés[Date jour férié],0)),\"\")","v":""},{"$f":"IFERROR(INDEX(TabJoursFériés[Jour férié],MATCH(C207,TabJoursFériés[Date jour férié],0)),\"\")","v":""},{"$f":"IFERROR(INDEX(TabJoursFériés[Jour férié],MATCH(D207,TabJoursFériés[Date jour férié],0)),\"\")","v":""},{"$f":"IFERROR(INDEX(TabJoursFériés[Jour férié],MATCH(E207,TabJoursFériés[Date jour férié],0)),\"\")","v":""},{"$f":"IFERROR(INDEX(TabJoursFériés[Jour férié],MATCH(F207,TabJoursFériés[Date jour férié],0)),\"\")","v":""},{"$f":"IFERROR(INDEX(TabJoursFériés[Jour férié],MATCH(G207,TabJoursFériés[Date jour férié],0)),\"\")","v":""},{"$f":"IFERROR(INDEX(TabJoursFériés[Jour férié],MATCH(H207,TabJoursFériés[Date jour férié],0)),\"\")","v":"Pâques"}]
["Proposition menus journaliers."]
["Numéro du menu","MJ92","MJ93","MJ94","MJ95","MJ96","MJ97","MJ98"]
["Date du menu",{"$f":"H207+1","v":"2024-04-01"},{"$f":"B224+1","v":"2024-04-02"},"2024-04-03","2024-04-04","2024-04-05","2024-04-06","2024-04-07"]
["Référence légume",{"$f":"CHOOSE(WEEKDAY(B224,2),\"LSLM\",\"LSLM\",\"LSMJ\",\"LSMJ\",\"LSV\",\"LWES\",\"LWED\")","v":"LSLM"},{"$f":"CHOOSE(WEEKDAY(C224,2),\"LSLM\",\"LSLM\",\"LSMJ\",\"LSMJ\",\"LSV\",\"LWES\",\"LWED\")","v":"LSLM"},"LSMJ","LSMJ","LSV","LWES","LWED"]
["Légume"]
["Quantité légume"]
["Référence légume 2"]
["Légume 2"]
["Quantité légume 2"]
["Référence viande","VS","VS","VS","VS","VS","VS","VS"]
["Viande"]
["Quantité viande"]
["Référence dessert",{"$f":"IF(WEEKDAY(B224,2)<6,\"DS01\",\"DWE\")","v":"DS01"},{"$f":"IF(WEEKDAY(C224,2)<6,\"DS01\",\"DWE\")","v":"DS01"},"DS01","DS01","DS01","DWE","DWE"]
["Dessert",{"$f":"IF(WEEKDAY(B224,2)<6,\"Pomme\",\"\")","v":"Pomme"},{"$f":"IF(WEEKDAY(C224,2)<6,\"Pomme\",\"\")","v":"Pomme"},"Pomme","Pomme","Pomme","",""]
["Quantité dessert",{"$f":"IF(WEEKDAY(B224,2)<6,1,\"\")","v":1},{"$f":"IF(WEEKDAY(C224,2)<6,1,\"\")","v":1},1,1,1,"",""]
["Référence jour férié",{"$f":"IFERROR(\"JF\"&TEXT(MATCH(B224,TabJoursFériés[Date jour férié],0),\"00\"),\"\")","v":"JF03"},{"$f":"IFERROR(\"JF\"&TEXT(MATCH(C224,TabJoursFériés[Date jour férié],0),\"00\"),\"\")","v":""},{"$f":"IFERROR(\"JF\"&TEXT(MATCH(D224,TabJoursFériés[Date jour férié],0),\"00\"),\"\")","v":""},{"$f":"IFERROR(\"JF\"&TEXT(MATCH(E224,TabJoursFériés[Date jour férié],0),\"00\"),\"\")","v":""},{"$f":"IFERROR(\"JF\"&TEXT(MATCH(F224,TabJoursFériés[Date jour férié],0),\"00\"),\"\")","v":""},{"$f":"IFERROR(\"JF\"&TEXT(MATCH(G224,TabJoursFériés[Date jour férié],0),\"00\"),\"\")","v":""},{"$f":"IFERROR(\"JF\"&TEXT(MATCH(H224,TabJoursFériés[Date jour férié],0),\"00\"),\"\")","v":""}]
["Jour férié",{"$f":"IFERROR(INDEX(TabJoursFériés[Jour férié],MATCH(B224,TabJoursFériés[Date jour férié],0)),\"\")","v":"Lundi de Pâques"},{"$f":"IFERROR(INDEX(TabJoursFériés[Jour férié],MATCH(C224,TabJoursFériés[Date jour férié],0)),\"\")","v":""},{"$f":"IFERROR(INDEX(TabJoursFériés[Jour férié],MATCH(D224,TabJoursFériés[Date jour férié],0)),\"\")","v":""},{"$f":"IFERROR(INDEX(TabJoursFériés[Jour férié],MATCH(E224,TabJoursFériés[Date jour férié],0)),\"\")","v":""},{"$f":"IFERROR(INDEX(TabJoursFériés[Jour férié],MATCH(F224,TabJoursFériés[Date jour férié],0)),\"\")","v":""},{"$f":"IFERROR(INDEX(TabJoursFériés[Jour férié],MATCH(G224,TabJoursFériés[Date jour férié],0)),\"\")","v":""},{"$f":"IFERROR(INDEX(TabJoursFériés[Jour férié],MATCH(H224,TabJoursFériés[Date jour férié],0)),\"\")","v":""}]
["Proposition menus journaliers."]
["Numéro du menu","MJ99","MJ100","MJ101","MJ102","MJ103","MJ104","MJ105"]
["Date du menu",{"$f":"H224+1","v":"2024-04-08"},{"$f":"B241+1","v":"2024-04-09"},"2024-04-10","2024-04-11","2024-04-12","2024-04-13","2024-04-14"]
["Référence légume",{"$f":"CHOOSE(WEEKDAY(B241,2),\"LSLM\",\"LSLM\",\"LSMJ\",\"LSMJ\",\"LSV\",\"LWES\",\"LWED\")","v":"LSLM"},{"$f":"CHOOSE(WEEKDAY(C241,2),\"LSLM\",\"LSLM\",\"LSMJ\",\"LSMJ\",\"LSV\",\"LWES\",\"LWED\")","v":"LSLM"},"LSMJ","LSMJ","LSV","LWES","LWED"]
["Légume"]
["Quantité légume"]
["Référence légume 2"]
["Légume 2"]
["Quantité légume 2"]
["Référence viande","VS","VS","VS","VS","VS","VS","VS"]
["Viande"]
["Quantité viande"]
["Référence dessert",{"$f":"IF(WEEKDAY(B241,2)<6,\"DS01\",\"DWE\")","v":"DS01"},{"$f":"IF(WEEKDAY(C241,2)<6,\"DS01\",\"DWE\")","v":"DS01"},"DS01","DS01","DS01","DWE","DWE"]
["Dessert",{"$f":"IF(WEEKDAY(B241,2)<6,\"Pomme\",\"\")","v":"Pomme"},{"$f":"IF(WEEKDAY(C241,2)<6,\"Pomme\",\"\")","v":"Pomme"},"Pomme","Pomme","Pomme","",""]
["Quantité dessert",{"$f":"IF(WEEKDAY(B241,2)<6,1,\"\")","v":1},{"$f":"IF(WEEKDAY(C241,2)<6,1,\"\")","v":1},1,1,1,"",""]
["Référence jour férié",{"$f":"IFERROR(\"JF\"&TEXT(MATCH(B241,TabJoursFériés[Date jour férié],0),\"00\"),\"\")","v":""},{"$f":"IFERROR(\"JF\"&TEXT(MATCH(C241,TabJoursFériés[Date jour férié],0),\"00\"),\"\")","v":""},{"$f":"IFERROR(\"JF\"&TEXT(MATCH(D241,TabJoursFériés[Date jour férié],0),\"00\"),\"\")","v":""},{"$f":"IFERROR(\"JF\"&TEXT(MATCH(E241,TabJoursFériés[Date jour férié],0),\"00\"),\"\")","v":""},{"$f":"IFERROR(\"JF\"&TEXT(MATCH(F241,TabJoursFériés[Date jour férié],0),\"00\"),\"\")","v":""},{"$f":"IFERROR(\"JF\"&TEXT(MATCH(G241,TabJoursFériés[Date jour férié],0),\"00\"),\"\")","v":""},{"$f":"IFERROR(\"JF\"&TEXT(MATCH(H241,TabJoursFériés[Date jour férié],0),\"00\"),\"\")","v":""}]
["Jour férié",{"$f":"IFERROR(INDEX(TabJoursFériés[Jour férié],MATCH(B241,TabJoursFériés[Date jour férié],0)),\"\")","v":""},{"$f":"IFERROR(INDEX(TabJoursFériés[Jour férié],MATCH(C241,TabJoursFériés[Date jour férié],0)),\"\")","v":""},{"$f":"IFERROR(INDEX(TabJoursFériés[Jour férié],MATCH(D241,TabJoursFériés[Date jour férié],0)),\"\")","v":""},{"$f":"IFERROR(INDEX(TabJoursFériés[Jour férié],MATCH(E241,TabJoursFériés[Date jour férié],0)),\"\")","v":""},{"$f":"IFERROR(INDEX(TabJoursFériés[Jour férié],MATCH(F241,TabJoursFériés[Date jour férié],0)),\"\")","v":""},{"$f":"IFERROR(INDEX(TabJoursFériés[Jour férié],MATCH(G241,TabJoursFériés[Date jour férié],0)),\"\")","v":""},{"$f":"IFERROR(INDEX(TabJoursFériés[Jour férié],MATCH(H241,TabJoursFériés[Date jour férié],0)),\"\")","v":""}]
["Proposition menus journaliers."]
["Numéro du menu","MJ106","MJ107","MJ108","MJ109","MJ110","MJ111","MJ112"]
["Date du menu",{"$f":"H241+1","v":"2024-04-15"},{"$f":"B258+1","v":"2024-04-16"},"2024-04-17","2024-04-18","2024-04-19","2024-04-20","2024-04-21"]
["Référence légume",{"$f":"CHOOSE(WEEKDAY(B258,2),\"LSLM\",\"LSLM\",\"LSMJ\",\"LSMJ\",\"LSV\",\"LWES\",\"LWED\")","v":"LSLM"},{"$f":"CHOOSE(WEEKDAY(C258,2),\"LSLM\",\"LSLM\",\"LSMJ\",\"LSMJ\",\"LSV\",\"LWES\",\"LWED\")","v":"LSLM"},"LSMJ","LSMJ","LSV","LWES","LWED"]
["Légume"]
["Quantité légume"]
["Référence légume 2"]
["Légume 2"]
["Quantité légume 2"]
["Référence viande","VS","VS","VS","VS","VS","VS","VS"]
["Viande"]
["Quantité viande"]
["Référence dessert",{"$f":"IF(WEEKDAY(B258,2)<6,\"DS01\",\"DWE\")","v":"DS01"},{"$f":"IF(WEEKDAY(C258,2)<6,\"DS01\",\"DWE\")","v":"DS01"},"DS01","DS01","DS01","DWE","DWE"]
["Dessert",{"$f":"IF(WEEKDAY(B258,2)<6,\"Pomme\",\"\")","v":"Pomme"},{"$f":"IF(WEEKDAY(C258,2)<6,\"Pomme\",\"\")","v":"Pomme"},"Pomme","Pomme","Pomme","",""]
["Quantité dessert",{"$f":"IF(WEEKDAY(B258,2)<6,1,\"\")","v":1},{"$f":"IF(WEEKDAY(C258,2)<6,1,\"\")","v":1},1,1,1,"",""]
["Référence jour férié",{"$f":"IFERROR(\"JF\"&TEXT(MATCH(B258,TabJoursFériés[Date jour férié],0),\"00\"),\"\")","v":""},{"$f":"IFERROR(\"JF\"&TEXT(MATCH(C258,TabJoursFériés[Date jour férié],0),\"00\"),\"\")","v":""},{"$f":"IFERROR(\"JF\"&TEXT(MATCH(D258,TabJoursFériés[Date jour férié],0),\"00\"),\"\")","v":""},{"$f":"IFERROR(\"JF\"&TEXT(MATCH(E258,TabJoursFériés[Date jour férié],0),\"00\"),\"\")","v":""},{"$f":"IFERROR(\"JF\"&TEXT(MATCH(F258,TabJoursFériés[Date jour férié],0),\"00\"),\"\")","v":""},{"$f":"IFERROR(\"JF\"&TEXT(MATCH(G258,TabJoursFériés[Date jour férié],0),\"00\"),\"\")","v":""},{"$f":"IFERROR(\"JF\"&TEXT(MATCH(H258,TabJoursFériés[Date jour férié],0),\"00\"),\"\")","v":""}]
["Jour férié",{"$f":"IFERROR(INDEX(TabJoursFériés[Jour férié],MATCH(B258,TabJoursFériés[Date jour férié],0)),\"\")","v":""},{"$f":"IFERROR(INDEX(TabJoursFériés[Jour férié],MATCH(C258,TabJoursFériés[Date jour férié],0)),\"\")","v":""},{"$f":"IFERROR(INDEX(TabJoursFériés[Jour férié],MATCH(D258,TabJoursFériés[Date jour férié],0)),\"\")","v":""},{"$f":"IFERROR(INDEX(TabJoursFériés[Jour férié],MATCH(E258,TabJoursFériés[Date jour férié],0)),\"\")","v":""},{"$f":"IFERROR(INDEX(TabJoursFériés[Jour férié],MATCH(F258,TabJoursFériés[Date jour férié],0)),\"\")","v":""},{"$f":"IFERROR(INDEX(TabJoursFériés[Jour férié],MATCH(G258,TabJoursFériés[Date jour férié],0)),\"\")","v":""},{"$f":"IFERROR(INDEX(TabJoursFériés[Jour férié],MATCH(H258,TabJoursFériés[Date jour férié],0)),\"\")","v":""}]
["Proposition menus journaliers."]
["Numéro du menu","MJ113","MJ114","MJ115","MJ116","MJ117","MJ118","MJ119"]
["Date du menu",{"$f":"H258+1","v":"2024-04-22"},{"$f":"B275+1","v":"2024-04-23"},"2024-04-24","2024-04-25","2024-04-26","2024-04-27","2024-04-28"]
["Référence légume",{"$f":"CHOOSE(WEEKDAY(B275,2),\"LSLM\",\"LSLM\",\"LSMJ\",\"LSMJ\",\"LSV\",\"LWES\",\"LWED\")","v":"LSLM"},{"$f":"CHOOSE(WEEKDAY(C275,2),\"LSLM\",\"LSLM\",\"LSMJ\",\"LSMJ\",\"LSV\",\"LWES\",\"LWED\")","v":"LSLM"},"LSMJ","LSMJ","LSV","LWES","LWED"]
["Légume"]
["Quantité légume"]
["Référence légume 2"]
["Légume 2"]
["Quantité légume 2"]
["Référence viande","VS","VS","VS","VS","VS","VS","VS"]
["Viande"]
["Quantité viande"]
["Référence dessert",{"$f":"IF(WEEKDAY(B275,2)<6,\"DS01\",\"DWE\")","v":"DS01"},{"$f":"IF(WEEKDAY(C275,2)<6,\"DS01\",\"DWE\")","v":"DS01"},"DS01","DS01","DS01","DWE","DWE"]
["Dessert",{"$f":"IF(WEEKDAY(B275,2)<6,\"Pomme\",\"\")","v":"Pomme"},{"$f":"IF(WEEKDAY(C275,2)<6,\"Pomme\",\"\")","v":"Pomme"},"Pomme","Pomme","Pomme","",""]
["Quantité dessert",{"$f":"IF(WEEKDAY(B275,2)<6,1,\"\")","v":1},{"$f":"IF(WEEKDAY(C275,2)<6,1,\"\")","v":1},1,1,1,"",""]
["Référence jour férié",{"$f":"IFERROR(\"JF\"&TEXT(MATCH(B275,TabJoursFériés[Date jour férié],0),\"00\"),\"\")","v":""},{"$f":"IFERROR(\"JF\"&TEXT(MATCH(C275,TabJoursFériés[Date jour férié],0),\"00\"),\"\")","v":""},{"$f":"IFERROR(\"JF\"&TEXT(MATCH(D275,TabJoursFériés[Date jour férié],0),\"00\"),\"\")","v":""},{"$f":"IFERROR(\"JF\"&TEXT(MATCH(E275,TabJoursFériés[Date jour férié],0),\"00\"),\"\")","v":""},{"$f":"IFERROR(\"JF\"&TEXT(MATCH(F275,TabJoursFériés[Date jour férié],0),\"00\"),\"\")","v":""},{"$f":"IFERROR(\"JF\"&TEXT(MATCH(G275,TabJoursFériés[Date jour férié],0),\"00\"),\"\")","v":""},{"$f":"IFERROR(\"JF\"&TEXT(MATCH(H275,TabJoursFériés[Date jour férié],0),\"00\"),\"\")","v":""}]
["Jour férié",{"$f":"IFERROR(INDEX(TabJoursFériés[Jour férié],MATCH(B275,TabJoursFériés[Date jour férié],0)),\"\")","v":""},{"$f":"IFERROR(INDEX(TabJoursFériés[Jour férié],MATCH(C275,TabJoursFériés[Date jour férié],0)),\"\")","v":""},{"$f":"IFERROR(INDEX(TabJoursFériés[Jour férié],MATCH(D275,TabJoursFériés[Date jour férié],0)),\"\")","v":""},{"$f":"IFERROR(INDEX(TabJoursFériés[Jour férié],MATCH(E275,TabJoursFériés[Date jour férié],0)),\"\")","v":""},{"$f":"IFERROR(INDEX(TabJoursFériés[Jour férié],MATCH(F275,TabJoursFériés[Date jour férié],0)),\"\")","v":""},{"$f":"IFERROR(INDEX(TabJoursFériés[Jour férié],MATCH(G275,TabJoursFériés[Date jour férié],0)),\"\")","v":""},{"$f":"IFERROR(INDEX(TabJoursFériés[Jour férié],MATCH(H275,TabJoursFériés[Date jour férié],0)),\"\")","v":""}]
["Proposition menus journaliers."]
["Numéro du menu","MJ120","MJ121","MJ122","MJ123","MJ124","MJ125","MJ126"]
["Date du menu",{"$f":"H275+1","v":"2024-04-29"},{"$f":"B292+1","v":"2024-04-30"},"2024-05-01","2024-05-02","2024-05-03","2024-05-04","2024-05-05"]
["Référence légume",{"$f":"CHOOSE(WEEKDAY(B292,2),\"LSLM\",\"LSLM\",\"LSMJ\",\"LSMJ\",\"LSV\",\"LWES\",\"LWED\")","v":"LSLM"},{"$f":"CHOOSE(WEEKDAY(C292,2),\"LSLM\",\"LSLM\",\"LSMJ\",\"LSMJ\",\"LSV\",\"LWES\",\"LWED\")","v":"LSLM"},"LSMJ","LSMJ","LSV","LWES","LWED"]
["Légume"]
["Quantité légume"]
["Référence légume 2"]
["Légume 2"]
["Quantité légume 2"]
["Référence viande","VS","VS","VS","VS","VS","VS","VS"]
["Viande"]
["Quantité viande"]
["Référence dessert",{"$f":"IF(WEEKDAY(B292,2)<6,\"DS01\",\"DWE\")","v":"DS01"},{"$f":"IF(WEEKDAY(C292,2)<6,\"DS01\",\"DWE\")","v":"DS01"},"DS01","DS01","DS01","DWE","DWE"]
["Dessert",{"$f":"IF(WEEKDAY(B292,2)<6,\"Pomme\",\"\")","v":"Pomme"},{"$f":"IF(WEEKDAY(C292,2)<6,\"Pomme\",\"\")","v":"Pomme"},"Pomme","Pomme","Pomme","",""]
["Quantité dessert",{"$f":"IF(WEEKDAY(B292,2)<6,1,\"\")","v":1},{"$f":"IF(WEEKDAY(C292,2)<6,1,\"\")","v":1},1,1,1,"",""]
["Référence jour férié",{"$f":"IFERROR(\"JF\"&TEXT(MATCH(B292,TabJoursFériés[Date jour férié],0),\"00\"),\"\")","v":""},{"$f":"IFERROR(\"JF\"&TEXT(MATCH(C292,TabJoursFériés[Date jour férié],0),\"00\"),\"\")","v":""},{"$f":"IFERROR(\"JF\"&TEXT(MATCH(D292,TabJoursFériés[Date jour férié],0),\"00\"),\"\")","v":"JF04"},{"$f":"IFERROR(\"JF\"&TEXT(MATCH(E292,TabJoursFériés[Date jour férié],0),\"00\"),\"\")","v":""},{"$f":"IFERROR(\"JF\"&TEXT(MATCH(F292,TabJoursFériés[Date jour férié],0),\"00\"),\"\")","v":""},{"$f":"IFERROR(\"JF\"&TEXT(MATCH(G292,TabJoursFériés[Date jour férié],0),\"00\"),\"\")","v":""},{"$f":"IFERROR(\"JF\"&TEXT(MATCH(H292,TabJoursFériés[Date jour férié],0),\"00\"),\"\")","v":""}]
["Jour férié",{"$f":"IFERROR(INDEX(TabJoursFériés[Jour férié],MATCH(B292,TabJoursFériés[Date jour férié],0)),\"\")","v":""},{"$f":"IFERROR(INDEX(TabJoursFériés[Jour férié],MATCH(C292,TabJoursFériés[Date jour férié],0)),\"\")","v":""},{"$f":"IFERROR(INDEX(TabJoursFériés[Jour férié],MATCH(D292,TabJoursFériés[Date jour férié],0)),\"\")","v":"Fête du travail"},{"$f":"IFERROR(INDEX(TabJoursFériés[Jour férié],MATCH(E292,TabJoursFériés[Date jour férié],0)),\"\")","v":""},{"$f":"IFERROR(INDEX(TabJoursFériés[Jour férié],MATCH(F292,TabJoursFériés[Date jour férié],0)),\"\")","v":""},{"$f":"IFERROR(INDEX(TabJoursFériés[Jour férié],MATCH(G292,TabJoursFériés[Date jour férié],0)),\"\")","v":""},{"$f":"IFERROR(INDEX(TabJoursFériés[Jour férié],MATCH(H292,TabJoursFériés[Date jour férié],0)),\"\")","v":""}]
["Proposition menus journaliers."]
["Numéro du menu","MJ127","MJ128","MJ129","MJ130","MJ131","MJ132","MJ133"]
["Date du menu",{"$f":"H292+1","v":"2024-05-06"},{"$f":"B309+1","v":"2024-05-07"},"2024-05-08","2024-05-09","2024-05-10","2024-05-11","2024-05-12"]
["Référence légume",{"$f":"CHOOSE(WEEKDAY(B309,2),\"LSLM\",\"LSLM\",\"LSMJ\",\"LSMJ\",\"LSV\",\"LWES\",\"LWED\")","v":"LSLM"},{"$f":"CHOOSE(WEEKDAY(C309,2),\"LSLM\",\"LSLM\",\"LSMJ\",\"LSMJ\",\"LSV\",\"LWES\",\"LWED\")","v":"LSLM"},"LSMJ","LSMJ","LSV","LWES","LWED"]
["Légume"]
["Quantité légume"]
["Référence légume 2"]
["Légume 2"]
["Quantité légume 2"]
["Référence viande","VS","VS","VS","VS","VS","VS","VS"]
["Viande"]
["Quantité viande"]
["Référence dessert",{"$f":"IF(WEEKDAY(B309,2)<6,\"DS01\",\"DWE\")","v":"DS01"},{"$f":"IF(WEEKDAY(C309,2)<6,\"DS01\",\"DWE\")","v":"DS01"},"DS01","DS01","DS01","DWE","DWE"]
["Dessert",{"$f":"IF(WEEKDAY(B309,2)<6,\"Pomme\",\"\")","v":"Pomme"},{"$f":"IF(WEEKDAY(C309,2)<6,\"Pomme\",\"\")","v":"Pomme"},"Pomme","Pomme","Pomme","",""]
["Quantité dessert",{"$f":"IF(WEEKDAY(B309,2)<6,1,\"\")","v":1},{"$f":"IF(WEEKDAY(C309,2)<6,1,\"\")","v":1},1,1,1,"",""]
["Référence jour férié",{"$f":"IFERROR(\"JF\"&TEXT(MATCH(B309,TabJoursFériés[Date jour férié],0),\"00\"),\"\")","v":""},{"$f":"IFERROR(\"JF\"&TEXT(MATCH(C309,TabJoursFériés[Date jour férié],0),\"00\"),\"\")","v":""},{"$f":"IFERROR(\"JF\"&TEXT(MATCH(D309,TabJoursFériés[Date jour férié],0),\"00\"),\"\")","v":"JF05"},{"$f":"IFERROR(\"JF\"&TEXT(MATCH(E309,TabJoursFériés[Date jour férié],0),\"00\"),\"\")","v":"JF06"},{"$f":"IFERROR(\"JF\"&TEXT(MATCH(F309,TabJoursFériés[Date jour férié],0),\"00\"),\"\")","v":""},{"$f":"IFERROR(\"JF\"&TEXT(MATCH(G309,TabJoursFériés[Date jour férié],0),\"00\"),\"\")","v":""},{"$f":"IFERROR(\"JF\"&TEXT(MATCH(H309,TabJoursFériés[Date jour férié],0),\"00\"),\"\")","v":""}]
["Jour férié",{"$f":"IFERROR(INDEX(TabJoursFériés[Jour férié],MATCH(B309,TabJoursFériés[Date jour férié],0)),\"\")","v":""},{"$f":"IFERROR(INDEX(TabJoursFériés[Jour férié],MATCH(C309,TabJoursFériés[Date jour férié],0)),\"\")","v":""},{"$f":"IFERROR(INDEX(TabJoursFériés[Jour férié],MATCH(D309,TabJoursFériés[Date jour férié],0)),\"\")","v":"Victoire 1945"},{"$f":"IFERROR(INDEX(TabJoursFériés[Jour férié],MATCH(E309,TabJoursFériés[Date jour férié],0)),\"\")","v":"Jeudi de l'ascension"},{"$f":"IFERROR(INDEX(TabJoursFériés[Jour férié],MATCH(F309,TabJoursFériés[Date jour férié],0)),\"\")","v":""},{"$f":"IFERROR(INDEX(TabJoursFériés[Jour férié],MATCH(G309,TabJoursFériés[Date jour férié],0)),\"\")","v":""},{"$f":"IFERROR(INDEX(TabJoursFériés[Jour férié],MATCH(H309,TabJoursFériés[Date jour férié],0)),\"\")","v":""}]
["Proposition menus journaliers."]
["Numéro du menu","MJ134","MJ135","MJ136","MJ137","MJ138","MJ139","MJ140"]
["Date du menu",{"$f":"H309+1","v":"2024-05-13"},{"$f":"B326+1","v":"2024-05-14"},"2024-05-15","2024-05-16","2024-05-17","2024-05-18","2024-05-19"]
["Référence légume",{"$f":"CHOOSE(WEEKDAY(B326,2),\"LSLM\",\"LSLM\",\"LSMJ\",\"LSMJ\",\"LSV\",\"LWES\",\"LWED\")","v":"LSLM"},{"$f":"CHOOSE(WEEKDAY(C326,2),\"LSLM\",\"LSLM\",\"LSMJ\",\"LSMJ\",\"LSV\",\"LWES\",\"LWED\")","v":"LSLM"},"LSMJ","LSMJ","LSV","LWES","LWED"]
["Légume"]
["Quantité légume"]
["Référence légume 2"]
["Légume 2"]
["Quantité légume 2"]
["Référence viande","VS","VS","VS","VS","VS","VS","VS"]
["Viande"]
["Quantité viande"]
["Référence dessert",{"$f":"IF(WEEKDAY(B326,2)<6,\"DS01\",\"DWE\")","v":"DS01"},{"$f":"IF(WEEKDAY(C326,2)<6,\"DS01\",\"DWE\")","v":"DS01"},"DS01","DS01","DS01","DWE","DWE"]
["Dessert",{"$f":"IF(WEEKDAY(B326,2)<6,\"Pomme\",\"\")","v":"Pomme"},{"$f":"IF(WEEKDAY(C326,2)<6,\"Pomme\",\"\")","v":"Pomme"},"Pomme","Pomme","Pomme","",""]
["Quantité dessert",{"$f":"IF(WEEKDAY(B326,2)<6,1,\"\")","v":1},{"$f":"IF(WEEKDAY(C326,2)<6,1,\"\")","v":1},1,1,1,"",""]
["Référence jour férié",{"$f":"IFERROR(\"JF\"&TEXT(MATCH(B326,TabJoursFériés[Date jour férié],0),\"00\"),\"\")","v":""},{"$f":"IFERROR(\"JF\"&TEXT(MATCH(C326,TabJoursFériés[Date jour férié],0),\"00\"),\"\")","v":""},{"$f":"IFERROR(\"JF\"&TEXT(MATCH(D326,TabJoursFériés[Date jour férié],0),\"00\"),\"\")","v":""},{"$f":"IFERROR(\"JF\"&TEXT(MATCH(E326,TabJoursFériés[Date jour férié],0),\"00\"),\"\")","v":""},{"$f":"IFERROR(\"JF\"&TEXT(MATCH(F326,TabJoursFériés[Date jour férié],0),\"00\"),\"\")","v":""},{"$f":"IFERROR(\"JF\"&TEXT(MATCH(G326,TabJoursFériés[Date jour férié],0),\"00\"),\"\")","v":""},{"$f":"IFERROR(\"JF\"&TEXT(MATCH(H326,TabJoursFériés[Date jour férié],0),\"00\"),\"\")","v":"JF07"}]
["Jour férié",{"$f":"IFERROR(INDEX(TabJoursFériés[Jour férié],MATCH(B326,TabJoursFériés[Date jour férié],0)),\"\")","v":""},{"$f":"IFERROR(INDEX(TabJoursFériés[Jour férié],MATCH(C326,TabJoursFériés[Date jour férié],0)),\"\")","v":""},{"$f":"IFERROR(INDEX(TabJoursFériés[Jour férié],MATCH(D326,TabJoursFériés[Date jour férié],0)),\"\")","v":""},{"$f":"IFERROR(INDEX(TabJoursFériés[Jour férié],MATCH(E326,TabJoursFériés[Date jour férié],0)),\"\")","v":""},{"$f":"IFERROR(INDEX(TabJoursFériés[Jour férié],MATCH(F326,TabJoursFériés[Date jour férié],0)),\"\")","v":""},{"$f":"IFERROR(INDEX(TabJoursFériés[Jour férié],MATCH(G326,TabJoursFériés[Date jour férié],0)),\"\")","v":""},{"$f":"IFERROR(INDEX(TabJoursFériés[Jour férié],MATCH(H326,TabJoursFériés[Date jour férié],0)),\"\")","v":"Pentecôte"}]
["Proposition menus journaliers."]
["Numéro du menu","MJ141","MJ142","MJ143","MJ144","MJ145","MJ146","MJ147"]
["Date du menu",{"$f":"H326+1","v":"2024-05-20"},{"$f":"B343+1","v":"2024-05-21"},"2024-05-22","2024-05-23","2024-05-24","2024-05-25","2024-05-26"]
["Référence légume",{"$f":"CHOOSE(WEEKDAY(B343,2),\"LSLM\",\"LSLM\",\"LSMJ\",\"LSMJ\",\"LSV\",\"LWES\",\"LWED\")","v":"LSLM"},{"$f":"CHOOSE(WEEKDAY(C343,2),\"LSLM\",\"LSLM\",\"LSMJ\",\"LSMJ\",\"LSV\",\"LWES\",\"LWED\")","v":"LSLM"},"LSMJ","LSMJ","LSV","LWES","LWED"]
["Légume"]
["Quantité légume"]
["Référence légume 2"]
["Légume 2"]
["Quantité légume 2"]
["Référence viande","VS","VS","VS","VS","VS","VS","VS"]
["Viande"]
["Quantité viande"]
["Référence dessert",{"$f":"IF(WEEKDAY(B343,2)<6,\"DS01\",\"DWE\")","v":"DS01"},{"$f":"IF(WEEKDAY(C343,2)<6,\"DS01\",\"DWE\")","v":"DS01"},"DS01","DS01","DS01","DWE","DWE"]
["Dessert",{"$f":"IF(WEEKDAY(B343,2)<6,\"Pomme\",\"\")","v":"Pomme"},{"$f":"IF(WEEKDAY(C343,2)<6,\"Pomme\",\"\")","v":"Pomme"},"Pomme","Pomme","Pomme","",""]
["Quantité dessert",{"$f":"IF(WEEKDAY(B343,2)<6,1,\"\")","v":1},{"$f":"IF(WEEKDAY(C343,2)<6,1,\"\")","v":1},1,1,1,"",""]
["Référence jour férié",{"$f":"IFERROR(\"JF\"&TEXT(MATCH(B343,TabJoursFériés[Date jour férié],0),\"00\"),\"\")","v":"JF08"},{"$f":"IFERROR(\"JF\"&TEXT(MATCH(C343,TabJoursFériés[Date jour férié],0),\"00\"),\"\")","v":""},{"$f":"IFERROR(\"JF\"&TEXT(MATCH(D343,TabJoursFériés[Date jour férié],0),\"00\"),\"\")","v":""},{"$f":"IFERROR(\"JF\"&TEXT(MATCH(E343,TabJoursFériés[Date jour férié],0),\"00\"),\"\")","v":""},{"$f":"IFERROR(\"JF\"&TEXT(MATCH(F343,TabJoursFériés[Date jour férié],0),\"00\"),\"\")","v":""},{"$f":"IFERROR(\"JF\"&TEXT(MATCH(G343,TabJoursFériés[Date jour férié],0),\"00\"),\"\")","v":""},{"$f":"IFERROR(\"JF\"&TEXT(MATCH(H343,TabJoursFériés[Date jour férié],0),\"00\"),\"\")","v":""}]
["Jour férié",{"$f":"IFERROR(INDEX(TabJoursFériés[Jour férié],MATCH(B343,TabJoursFériés[Date jour férié],0)),\"\")","v":"Lundi de Pentecôte"},{"$f":"IFERROR(INDEX(TabJoursFériés[Jour férié],MATCH(C343,TabJoursFériés[Date jour férié],0)),\"\")","v":""},{"$f":"IFERROR(INDEX(TabJoursFériés[Jour férié],MATCH(D343,TabJoursFériés[Date jour férié],0)),\"\")","v":""},{"$f":"IFERROR(INDEX(TabJoursFériés[Jour férié],MATCH(E343,TabJoursFériés[Date jour férié],0)),\"\")","v":""},{"$f":"IFERROR(INDEX(TabJoursFériés[Jour férié],MATCH(F343,TabJoursFériés[Date jour férié],0)),\"\")","v":""},{"$f":"IFERROR(INDEX(TabJoursFériés[Jour férié],MATCH(G343,TabJoursFériés[Date jour férié],0)),\"\")","v":""},{"$f":"IFERROR(INDEX(TabJoursFériés[Jour férié],MATCH(H343,TabJoursFériés[Date jour férié],0)),\"\")","v":""}]
["Proposition menus journaliers."]
["Numéro du menu","MJ148","MJ149","MJ150","MJ151","MJ152","MJ153","MJ154"]
["Date du menu",{"$f":"H343+1","v":"2024-05-27"},{"$f":"B360+1","v":"2024-05-28"},"2024-05-29","2024-05-30","2024-05-31","2024-06-01","2024-06-02"]
["Référence légume",{"$f":"CHOOSE(WEEKDAY(B360,2),\"LSLM\",\"LSLM\",\"LSMJ\",\"LSMJ\",\"LSV\",\"LWES\",\"LWED\")","v":"LSLM"},{"$f":"CHOOSE(WEEKDAY(C360,2),\"LSLM\",\"LSLM\",\"LSMJ\",\"LSMJ\",\"LSV\",\"LWES\",\"LWED\")","v":"LSLM"},"LSMJ","LSMJ","LSV","LWES","LWED"]
["Légume"]
["Quantité légume"]
["Référence légume 2"]
["Légume 2"]
["Quantité légume 2"]
["Référence viande","VS","VS","VS","VS","VS","VS","VS"]
["Viande"]
["Quantité viande"]
["Référence dessert",{"$f":"IF(WEEKDAY(B360,2)<6,\"DS01\",\"DWE\")","v":"DS01"},{"$f":"IF(WEEKDAY(C360,2)<6,\"DS01\",\"DWE\")","v":"DS01"},"DS01","DS01","DS01","DWE","DWE"]
["Dessert",{"$f":"IF(WEEKDAY(B360,2)<6,\"Pomme\",\"\")","v":"Pomme"},{"$f":"IF(WEEKDAY(C360,2)<6,\"Pomme\",\"\")","v":"Pomme"},"Pomme","Pomme","Pomme","",""]
["Quantité dessert",{"$f":"IF(WEEKDAY(B360,2)<6,1,\"\")","v":1},{"$f":"IF(WEEKDAY(C360,2)<6,1,\"\")","v":1},1,1,1,"",""]
["Référence jour férié",{"$f":"IFERROR(\"JF\"&TEXT(MATCH(B360,TabJoursFériés[Date jour férié],0),\"00\"),\"\")","v":""},{"$f":"IFERROR(\"JF\"&TEXT(MATCH(C360,TabJoursFériés[Date jour férié],0),\"00\"),\"\")","v":""},{"$f":"IFERROR(\"JF\"&TEXT(MATCH(D360,TabJoursFériés[Date jour férié],0),\"00\"),\"\")","v":""},{"$f":"IFERROR(\"JF\"&TEXT(MATCH(E360,TabJoursFériés[Date jour férié],0),\"00\"),\"\")","v":""},{"$f":"IFERROR(\"JF\"&TEXT(MATCH(F360,TabJoursFériés[Date jour férié],0),\"00\"),\"\")","v":""},{"$f":"IFERROR(\"JF\"&TEXT(MATCH(G360,TabJoursFériés[Date jour férié],0),\"00\"),\"\")","v":""},{"$f":"IFERROR(\"JF\"&TEXT(MATCH(H360,TabJoursFériés[Date jour férié],0),\"00\"),\"\")","v":""}]
["Jour férié",{"$f":"IFERROR(INDEX(TabJoursFériés[Jour férié],MATCH(B360,TabJoursFériés[Date jour férié],0)),\"\")","v":""},{"$f":"IFERROR(INDEX(TabJoursFériés[Jour férié],MATCH(C360,TabJoursFériés[Date jour férié],0)),\"\")","v":""},{"$f":"IFERROR(INDEX(TabJoursFériés[Jour férié],MATCH(D360,TabJoursFériés[Date jour férié],0)),\"\")","v":""},{"$f":"IFERROR(INDEX(TabJoursFériés[Jour férié],MATCH(E360,TabJoursFériés[Date jour férié],0)),\"\")","v":""},{"$f":"IFERROR(INDEX(TabJoursFériés[Jour férié],MATCH(F360,TabJoursFériés[Date jour férié],0)),\"\")","v":""},{"$f":"IFERROR(INDEX(TabJoursFériés[Jour férié],MATCH(G360,TabJoursFériés[Date jour férié],0)),\"\")","v":""},{"$f":"IFERROR(INDEX(TabJoursFériés[Jour férié],MATCH(H360,TabJoursFériés[Date jour férié],0)),\"\")","v":""}]
["Proposition menus journaliers."]
["Numéro du menu","MJ155","MJ156","MJ157","MJ158","MJ159","MJ160","MJ161"]
["Date du menu",{"$f":"H360+1","v":"2024-06-03"},{"$f":"B377+1","v":"2024-06-04"},"2024-06-05","2024-06-06","2024-06-07","2024-06-08","2024-06-09"]
["Référence légume",{"$f":"CHOOSE(WEEKDAY(B377,2),\"LSLM\",\"LSLM\",\"LSMJ\",\"LSMJ\",\"LSV\",\"LWES\",\"LWED\")","v":"LSLM"},{"$f":"CHOOSE(WEEKDAY(C377,2),\"LSLM\",\"LSLM\",\"LSMJ\",\"LSMJ\",\"LSV\",\"LWES\",\"LWED\")","v":"LSLM"},"LSMJ","LSMJ","LSV","LWES","LWED"]
["Légume"]
["Quantité légume"]
["Référence légume 2"]
["Légume 2"]
["Quantité légume 2"]
["Référence viande","VS","VS","VS","VS","VS","VS","VS"]
["Viande"]
["Quantité viande"]
["Référence dessert",{"$f":"IF(WEEKDAY(B377,2)<6,\"DS01\",\"DWE\")","v":"DS01"},{"$f":"IF(WEEKDAY(C377,2)<6,\"DS01\",\"DWE\")","v":"DS01"},"DS01","DS01","DS01","DWE","DWE"]
["Dessert",{"$f":"IF(WEEKDAY(B377,2)<6,\"Pomme\",\"\")","v":"Pomme"},{"$f":"IF(WEEKDAY(C377,2)<6,\"Pomme\",\"\")","v":"Pomme"},"Pomme","Pomme","Pomme","",""]
["Quantité dessert",{"$f":"IF(WEEKDAY(B377,2)<6,1,\"\")","v":1},{"$f":"IF(WEEKDAY(C377,2)<6,1,\"\")","v":1},1,1,1,"",""]
["Référence jour férié",{"$f":"IFERROR(\"JF\"&TEXT(MATCH(B377,TabJoursFériés[Date jour férié],0),\"00\"),\"\")","v":""},{"$f":"IFERROR(\"JF\"&TEXT(MATCH(C377,TabJoursFériés[Date jour férié],0),\"00\"),\"\")","v":""},{"$f":"IFERROR(\"JF\"&TEXT(MATCH(D377,TabJoursFériés[Date jour férié],0),\"00\"),\"\")","v":""},{"$f":"IFERROR(\"JF\"&TEXT(MATCH(E377,TabJoursFériés[Date jour férié],0),\"00\"),\"\")","v":""},{"$f":"IFERROR(\"JF\"&TEXT(MATCH(F377,TabJoursFériés[Date jour férié],0),\"00\"),\"\")","v":""},{"$f":"IFERROR(\"JF\"&TEXT(MATCH(G377,TabJoursFériés[Date jour férié],0),\"00\"),\"\")","v":""},{"$f":"IFERROR(\"JF\"&TEXT(MATCH(H377,TabJoursFériés[Date jour férié],0),\"00\"),\"\")","v":""}]
["Jour férié",{"$f":"IFERROR(INDEX(TabJoursFériés[Jour férié],MATCH(B377,TabJoursFériés[Date jour férié],0)),\"\")","v":""},{"$f":"IFERROR(INDEX(TabJoursFériés[Jour férié],MATCH(C377,TabJoursFériés[Date jour férié],0)),\"\")","v":""},{"$f":"IFERROR(INDEX(TabJoursFériés[Jour férié],MATCH(D377,TabJoursFériés[Date jour férié],0)),\"\")","v":""},{"$f":"IFERROR(INDEX(TabJoursFériés[Jour férié],MATCH(E377,TabJoursFériés[Date jour férié],0)),\"\")","v":""},{"$f":"IFERROR(INDEX(TabJoursFériés[Jour férié],MATCH(F377,TabJoursFériés[Date jour férié],0)),\"\")","v":""},{"$f":"IFERROR(INDEX(TabJoursFériés[Jour férié],MATCH(G377,TabJoursFériés[Date jour férié],0)),\"\")","v":""},{"$f":"IFERROR(INDEX(TabJoursFériés[Jour férié],MATCH(H377,TabJoursFériés[Date jour férié],0)),\"\")","v":""}]
["Proposition menus journaliers."]
["Numéro du menu","MJ162","MJ163","MJ164","MJ165","MJ166","MJ167","MJ168"]
["Date du menu",{"$f":"H377+1","v":"2024-06-10"},{"$f":"B394+1","v":"2024-06-11"},"2024-06-12","2024-06-13","2024-06-14","2024-06-15","2024-06-16"]
["Référence légume",{"$f":"CHOOSE(WEEKDAY(B394,2),\"LSLM\",\"LSLM\",\"LSMJ\",\"LSMJ\",\"LSV\",\"LWES\",\"LWED\")","v":"LSLM"},{"$f":"CHOOSE(WEEKDAY(C394,2),\"LSLM\",\"LSLM\",\"LSMJ\",\"LSMJ\",\"LSV\",\"LWES\",\"LWED\")","v":"LSLM"},"LSMJ","LSMJ","LSV","LWES","LWED"]
["Légume"]
["Quantité légume"]
["Référence légume 2"]
["Légume 2"]
["Quantité légume 2"]
["Référence viande","VS","VS","VS","VS","VS","VS","VS"]
["Viande"]
["Quantité viande"]
["Référence dessert",{"$f":"IF(WEEKDAY(B394,2)<6,\"DS01\",\"DWE\")","v":"DS01"},{"$f":"IF(WEEKDAY(C394,2)<6,\"DS01\",\"DWE\")","v":"DS01"},"DS01","DS01","DS01","DWE","DWE"]
["Dessert",{"$f":"IF(WEEKDAY(B394,2)<6,\"Pomme\",\"\")","v":"Pomme"},{"$f":"IF(WEEKDAY(C394,2)<6,\"Pomme\",\"\")","v":"Pomme"},"Pomme","Pomme","Pomme","",""]
["Quantité dessert",{"$f":"IF(WEEKDAY(B394,2)<6,1,\"\")","v":1},{"$f":"IF(WEEKDAY(C394,2)<6,1,\"\")","v":1},1,1,1,"",""]
["Référence jour férié",{"$f":"IFERROR(\"JF\"&TEXT(MATCH(B394,TabJoursFériés[Date jour férié],0),\"00\"),\"\")","v":""},{"$f":"IFERROR(\"JF\"&TEXT(MATCH(C394,TabJoursFériés[Date jour férié],0),\"00\"),\"\")","v":""},{"$f":"IFERROR(\"JF\"&TEXT(MATCH(D394,TabJoursFériés[Date jour férié],0),\"00\"),\"\")","v":""},{"$f":"IFERROR(\"JF\"&TEXT(MATCH(E394,TabJoursFériés[Date jour férié],0),\"00\"),\"\")","v":""},{"$f":"IFERROR(\"JF\"&TEXT(MATCH(F394,TabJoursFériés[Date jour férié],0),\"00\"),\"\")","v":""},{"$f":"IFERROR(\"JF\"&TEXT(MATCH(G394,TabJoursFériés[Date jour férié],0),\"00\"),\"\")","v":""},{"$f":"IFERROR(\"JF\"&TEXT(MATCH(H394,TabJoursFériés[Date jour férié],0),\"00\"),\"\")","v":""}]
["Jour férié",{"$f":"IFERROR(INDEX(TabJoursFériés[Jour férié],MATCH(B394,TabJoursFériés[Date jour férié],0)),\"\")","v":""},{"$f":"IFERROR(INDEX(TabJoursFériés[Jour férié],MATCH(C394,TabJoursFériés[Date jour férié],0)),\"\")","v":""},{"$f":"IFERROR(INDEX(TabJoursFériés[Jour férié],MATCH(D394,TabJoursFériés[Date jour férié],0)),\"\")","v":""},{"$f":"IFERROR(INDEX(TabJoursFériés[Jour férié],MATCH(E394,TabJoursFériés[Date jour férié],0)),\"\")","v":""},{"$f":"IFERROR(INDEX(TabJoursFériés[Jour férié],MATCH(F394,TabJoursFériés[Date jour férié],0)),\"\")","v":""},{"$f":"IFERROR(INDEX(TabJoursFériés[Jour férié],MATCH(G394,TabJoursFériés[Date jour férié],0)),\"\")","v":""},{"$f":"IFERROR(INDEX(TabJoursFériés[Jour férié],MATCH(H394,TabJoursFériés[Date jour férié],0)),\"\")","v":""}]
["Proposition menus journaliers."]
["Numéro du menu","MJ169","MJ170","MJ171","MJ172","MJ173","MJ174","MJ175"]
["Date du menu",{"$f":"H394+1","v":"2024-06-17"},{"$f":"B411+1","v":"2024-06-18"},"2024-06-19","2024-06-20","2024-06-21","2024-06-22","2024-06-23"]
["Référence légume",{"$f":"CHOOSE(WEEKDAY(B411,2),\"LSLM\",\"LSLM\",\"LSMJ\",\"LSMJ\",\"LSV\",\"LWES\",\"LWED\")","v":"LSLM"},{"$f":"CHOOSE(WEEKDAY(C411,2),\"LSLM\",\"LSLM\",\"LSMJ\",\"LSMJ\",\"LSV\",\"LWES\",\"LWED\")","v":"LSLM"},"LSMJ","LSMJ","LSV","LWES","LWED"]
["Légume"]
["Quantité légume"]
["Référence légume 2"]
["Légume 2"]
["Quantité légume 2"]
["Référence viande","VS","VS","VS","VS","VS","VS","VS"]
["Viande"]
["Quantité viande"]
["Référence dessert",{"$f":"IF(WEEKDAY(B411,2)<6,\"DS01\",\"DWE\")","v":"DS01"},{"$f":"IF(WEEKDAY(C411,2)<6,\"DS01\",\"DWE\")","v":"DS01"},"DS01","DS01","DS01","DWE","DWE"]
["Dessert",{"$f":"IF(WEEKDAY(B411,2)<6,\"Pomme\",\"\")","v":"Pomme"},{"$f":"IF(WEEKDAY(C411,2)<6,\"Pomme\",\"\")","v":"Pomme"},"Pomme","Pomme","Pomme","",""]
["Quantité dessert",{"$f":"IF(WEEKDAY(B411,2)<6,1,\"\")","v":1},{"$f":"IF(WEEKDAY(C411,2)<6,1,\"\")","v":1},1,1,1,"",""]
["Référence jour férié",{"$f":"IFERROR(\"JF\"&TEXT(MATCH(B411,TabJoursFériés[Date jour férié],0),\"00\"),\"\")","v":""},{"$f":"IFERROR(\"JF\"&TEXT(MATCH(C411,TabJoursFériés[Date jour férié],0),\"00\"),\"\")","v":""},{"$f":"IFERROR(\"JF\"&TEXT(MATCH(D411,TabJoursFériés[Date jour férié],0),\"00\"),\"\")","v":""},{"$f":"IFERROR(\"JF\"&TEXT(MATCH(E411,TabJoursFériés[Date jour férié],0),\"00\"),\"\")","v":""},{"$f":"IFERROR(\"JF\"&TEXT(MATCH(F411,TabJoursFériés[Date jour férié],0),\"00\"),\"\")","v":""},{"$f":"IFERROR(\"JF\"&TEXT(MATCH(G411,TabJoursFériés[Date jour férié],0),\"00\"),\"\")","v":""},{"$f":"IFERROR(\"JF\"&TEXT(MATCH(H411,TabJoursFériés[Date jour férié],0),\"00\"),\"\")","v":""}]
["Jour férié",{"$f":"IFERROR(INDEX(TabJoursFériés[Jour férié],MATCH(B411,TabJoursFériés[Date jour férié],0)),\"\")","v":""},{"$f":"IFERROR(INDEX(TabJoursFériés[Jour férié],MATCH(C411,TabJoursFériés[Date jour férié],0)),\"\")","v":""},{"$f":"IFERROR(INDEX(TabJoursFériés[Jour férié],MATCH(D411,TabJoursFériés[Date jour férié],0)),\"\")","v":""},{"$f":"IFERROR(INDEX(TabJoursFériés[Jour férié],MATCH(E411,TabJoursFériés[Date jour férié],0)),\"\")","v":""},{"$f":"IFERROR(INDEX(TabJoursFériés[Jour férié],MATCH(F411,TabJoursFériés[Date jour férié],0)),\"\")","v":""},{"$f":"IFERROR(INDEX(TabJoursFériés[Jour férié],MATCH(G411,TabJoursFériés[Date jour férié],0)),\"\")","v":""},{"$f":"IFERROR(INDEX(TabJoursFériés[Jour férié],MATCH(H411,TabJoursFériés[Date jour férié],0)),\"\")","v":""}]
["Proposition menus journaliers."]
["Numéro du menu","MJ176","MJ177","MJ178","MJ179","MJ180","MJ181","MJ182"]
["Date du menu",{"$f":"H411+1","v":"2024-06-24"},{"$f":"B428+1","v":"2024-06-25"},"2024-06-26","2024-06-27","2024-06-28","2024-06-29","2024-06-30"]
["Référence légume",{"$f":"CHOOSE(WEEKDAY(B428,2),\"LSLM\",\"LSLM\",\"LSMJ\",\"LSMJ\",\"LSV\",\"LWES\",\"LWED\")","v":"LSLM"},{"$f":"CHOOSE(WEEKDAY(C428,2),\"LSLM\",\"LSLM\",\"LSMJ\",\"LSMJ\",\"LSV\",\"LWES\",\"LWED\")","v":"LSLM"},"LSMJ","LSMJ","LSV","LWES","LWED"]
["Légume"]
["Quantité légume"]
["Référence légume 2"]
["Légume 2"]
["Quantité légume 2"]
["Référence viande","VS","VS","VS","VS","VS","VS","VS"]
["Viande"]
["Quantité viande"]
["Référence dessert",{"$f":"IF(WEEKDAY(B428,2)<6,\"DS01\",\"DWE\")","v":"DS01"},{"$f":"IF(WEEKDAY(C428,2)<6,\"DS01\",\"DWE\")","v":"DS01"},"DS01","DS01","DS01","DWE","DWE"]
["Dessert",{"$f":"IF(WEEKDAY(B428,2)<6,\"Pomme\",\"\")","v":"Pomme"},{"$f":"IF(WEEKDAY(C428,2)<6,\"Pomme\",\"\")","v":"Pomme"},"Pomme","Pomme","Pomme","",""]
["Quantité dessert",{"$f":"IF(WEEKDAY(B428,2)<6,1,\"\")","v":1},{"$f":"IF(WEEKDAY(C428,2)<6,1,\"\")","v":1},1,1,1,"",""]
["Référence jour férié",{"$f":"IFERROR(\"JF\"&TEXT(MATCH(B428,TabJoursFériés[Date jour férié],0),\"00\"),\"\")","v":""},{"$f":"IFERROR(\"JF\"&TEXT(MATCH(C428,TabJoursFériés[Date jour férié],0),\"00\"),\"\")","v":""},{"$f":"IFERROR(\"JF\"&TEXT(MATCH(D428,TabJoursFériés[Date jour férié],0),\"00\"),\"\")","v":""},{"$f":"IFERROR(\"JF\"&TEXT(MATCH(E428,TabJoursFériés[Date jour férié],0),\"00\"),\"\")","v":""},{"$f":"IFERROR(\"JF\"&TEXT(MATCH(F428,TabJoursFériés[Date jour férié],0),\"00\"),\"\")","v":""},{"$f":"IFERROR(\"JF\"&TEXT(MATCH(G428,TabJoursFériés[Date jour férié],0),\"00\"),\"\")","v":""},{"$f":"IFERROR(\"JF\"&TEXT(MATCH(H428,TabJoursFériés[Date jour férié],0),\"00\"),\"\")","v":""}]
["Jour férié",{"$f":"IFERROR(INDEX(TabJoursFériés[Jour férié],MATCH(B428,TabJoursFériés[Date jour férié],0)),\"\")","v":""},{"$f":"IFERROR(INDEX(TabJoursFériés[Jour férié],MATCH(C428,TabJoursFériés[Date jour férié],0)),\"\")","v":""},{"$f":"IFERROR(INDEX(TabJoursFériés[Jour férié],MATCH(D428,TabJoursFériés[Date jour férié],0)),\"\")","v":""},{"$f":"IFERROR(INDEX(TabJoursFériés[Jour férié],MATCH(E428,TabJoursFériés[Date jour férié],0)),\"\")","v":""},{"$f":"IFERROR(INDEX(TabJoursFériés[Jour férié],MATCH(F428,TabJoursFériés[Date jour férié],0)),\"\")","v":""},{"$f":"IFERROR(INDEX(TabJoursFériés[Jour férié],MATCH(G428,TabJoursFériés[Date jour férié],0)),\"\")","v":""},{"$f":"IFERROR(INDEX(TabJoursFériés[Jour férié],MATCH(H428,TabJoursFériés[Date jour férié],0)),\"\")","v":""}]
["Proposition menus journaliers."]
["Numéro du menu","MJ183","MJ184","MJ185","MJ186","MJ187","MJ188","MJ189"]
["Date du menu",{"$f":"H428+1","v":"2024-07-01"},{"$f":"B445+1","v":"2024-07-02"},"2024-07-03","2024-07-04","2024-07-05","2024-07-06","2024-07-07"]
["Référence légume",{"$f":"CHOOSE(WEEKDAY(B445,2),\"LSLM\",\"LSLM\",\"LSMJ\",\"LSMJ\",\"LSV\",\"LWES\",\"LWED\")","v":"LSLM"},{"$f":"CHOOSE(WEEKDAY(C445,2),\"LSLM\",\"LSLM\",\"LSMJ\",\"LSMJ\",\"LSV\",\"LWES\",\"LWED\")","v":"LSLM"},"LSMJ","LSMJ","LSV","LWES","LWED"]
["Légume"]
["Quantité légume"]
["Référence légume 2"]
["Légume 2"]
["Quantité légume 2"]
["Référence viande","VS","VS","VS","VS","VS","VS","VS"]
["Viande"]
["Quantité viande"]
["Référence dessert",{"$f":"IF(WEEKDAY(B445,2)<6,\"DS01\",\"DWE\")","v":"DS01"},{"$f":"IF(WEEKDAY(C445,2)<6,\"DS01\",\"DWE\")","v":"DS01"},"DS01","DS01","DS01","DWE","DWE"]
["Dessert",{"$f":"IF(WEEKDAY(B445,2)<6,\"Pomme\",\"\")","v":"Pomme"},{"$f":"IF(WEEKDAY(C445,2)<6,\"Pomme\",\"\")","v":"Pomme"},"Pomme","Pomme","Pomme","",""]
["Quantité dessert",{"$f":"IF(WEEKDAY(B445,2)<6,1,\"\")","v":1},{"$f":"IF(WEEKDAY(C445,2)<6,1,\"\")","v":1},1,1,1,"",""]
["Référence jour férié",{"$f":"IFERROR(\"JF\"&TEXT(MATCH(B445,TabJoursFériés[Date jour férié],0),\"00\"),\"\")","v":""},{"$f":"IFERROR(\"JF\"&TEXT(MATCH(C445,TabJoursFériés[Date jour férié],0),\"00\"),\"\")","v":""},{"$f":"IFERROR(\"JF\"&TEXT(MATCH(D445,TabJoursFériés[Date jour férié],0),\"00\"),\"\")","v":""},{"$f":"IFERROR(\"JF\"&TEXT(MATCH(E445,TabJoursFériés[Date jour férié],0),\"00\"),\"\")","v":""},{"$f":"IFERROR(\"JF\"&TEXT(MATCH(F445,TabJoursFériés[Date jour férié],0),\"00\"),\"\")","v":""},{"$f":"IFERROR(\"JF\"&TEXT(MATCH(G445,TabJoursFériés[Date jour férié],0),\"00\"),\"\")","v":""},{"$f":"IFERROR(\"JF\"&TEXT(MATCH(H445,TabJoursFériés[Date jour férié],0),\"00\"),\"\")","v":""}]
["Jour férié",{"$f":"IFERROR(INDEX(TabJoursFériés[Jour férié],MATCH(B445,TabJoursFériés[Date jour férié],0)),\"\")","v":""},{"$f":"IFERROR(INDEX(TabJoursFériés[Jour férié],MATCH(C445,TabJoursFériés[Date jour férié],0)),\"\")","v":""},{"$f":"IFERROR(INDEX(TabJoursFériés[Jour férié],MATCH(D445,TabJoursFériés[Date jour férié],0)),\"\")","v":""},{"$f":"IFERROR(INDEX(TabJoursFériés[Jour férié],MATCH(E445,TabJoursFériés[Date jour férié],0)),\"\")","v":""},{"$f":"IFERROR(INDEX(TabJoursFériés[Jour férié],MATCH(F445,TabJoursFériés[Date jour férié],0)),\"\")","v":""},{"$f":"IFERROR(INDEX(TabJoursFériés[Jour férié],MATCH(G445,TabJoursFériés[Date jour férié],0)),\"\")","v":""},{"$f":"IFERROR(INDEX(TabJoursFériés[Jour férié],MATCH(H445,TabJoursFériés[Date jour férié],0)),\"\")","v":""}]
["Proposition menus journaliers."]
["Numéro du menu","MJ190","MJ191","MJ192","MJ193","MJ194","MJ195","MJ196"]
["Date du menu",{"$f":"H445+1","v":"2024-07-08"},{"$f":"B462+1","v":"2024-07-09"},"2024-07-10","2024-07-11","2024-07-12","2024-07-13","2024-07-14"]
["Référence légume",{"$f":"CHOOSE(WEEKDAY(B462,2),\"LSLM\",\"LSLM\",\"LSMJ\",\"LSMJ\",\"LSV\",\"LWES\",\"LWED\")","v":"LSLM"},{"$f":"CHOOSE(WEEKDAY(C462,2),\"LSLM\",\"LSLM\",\"LSMJ\",\"LSMJ\",\"LSV\",\"LWES\",\"LWED\")","v":"LSLM"},"LSMJ","LSMJ","LSV","LWES","LWED"]
["Légume"]
["Quantité légume"]
["Référence légume 2"]
["Légume 2"]
["Quantité légume 2"]
["Référence viande","VS","VS","VS","VS","VS","VS","VS"]
["Viande"]
["Quantité viande"]
["Référence dessert",{"$f":"IF(WEEKDAY(B462,2)<6,\"DS01\",\"DWE\")","v":"DS01"},{"$f":"IF(WEEKDAY(C462,2)<6,\"DS01\",\"DWE\")","v":"DS01"},"DS01","DS01","DS01","DWE","DWE"]
["Dessert",{"$f":"IF(WEEKDAY(B462,2)<6,\"Pomme\",\"\")","v":"Pomme"},{"$f":"IF(WEEKDAY(C462,2)<6,\"Pomme\",\"\")","v":"Pomme"},"Pomme","Pomme","Pomme","",""]
["Quantité dessert",{"$f":"IF(WEEKDAY(B462,2)<6,1,\"\")","v":1},{"$f":"IF(WEEKDAY(C462,2)<6,1,\"\")","v":1},1,1,1,"",""]
["Référence jour férié",{"$f":"IFERROR(\"JF\"&TEXT(MATCH(B462,TabJoursFériés[Date jour férié],0),\"00\"),\"\")","v":""},{"$f":"IFERROR(\"JF\"&TEXT(MATCH(C462,TabJoursFériés[Date jour férié],0),\"00\"),\"\")","v":""},{"$f":"IFERROR(\"JF\"&TEXT(MATCH(D462,TabJoursFériés[Date jour férié],0),\"00\"),\"\")","v":""},{"$f":"IFERROR(\"JF\"&TEXT(MATCH(E462,TabJoursFériés[Date jour férié],0),\"00\"),\"\")","v":""},{"$f":"IFERROR(\"JF\"&TEXT(MATCH(F462,TabJoursFériés[Date jour férié],0),\"00\"),\"\")","v":""},{"$f":"IFERROR(\"JF\"&TEXT(MATCH(G462,TabJoursFériés[Date jour férié],0),\"00\"),\"\")","v":""},{"$f":"IFERROR(\"JF\"&TEXT(MATCH(H462,TabJoursFériés[Date jour férié],0),\"00\"),\"\")","v":"JF09"}]
["Jour férié",{"$f":"IFERROR(INDEX(TabJoursFériés[Jour férié],MATCH(B462,TabJoursFériés[Date jour férié],0)),\"\")","v":""},{"$f":"IFERROR(INDEX(TabJoursFériés[Jour férié],MATCH(C462,TabJoursFériés[Date jour férié],0)),\"\")","v":""},{"$f":"IFERROR(INDEX(TabJoursFériés[Jour férié],MATCH(D462,TabJoursFériés[Date jour férié],0)),\"\")","v":""},{"$f":"IFERROR(INDEX(TabJoursFériés[Jour férié],MATCH(E462,TabJoursFériés[Date jour férié],0)),\"\")","v":""},{"$f":"IFERROR(INDEX(TabJoursFériés[Jour férié],MATCH(F462,TabJoursFériés[Date jour férié],0)),\"\")","v":""},{"$f":"IFERROR(INDEX(TabJoursFériés[Jour férié],MATCH(G462,TabJoursFériés[Date jour férié],0)),\"\")","v":""},{"$f":"IFERROR(INDEX(TabJoursFériés[Jour férié],MATCH(H462,TabJoursFériés[Date jour férié],0)),\"\")","v":"Fête nationale"}]
["Proposition menus journaliers."]
["Numéro du menu","MJ197","MJ198","MJ199","MJ200","MJ201","MJ202","MJ203"]
["Date du menu",{"$f":"H462+1","v":"2024-07-15"},{"$f":"B479+1","v":"2024-07-16"},"2024-07-17","2024-07-18","2024-07-19","2024-07-20","2024-07-21"]
["Référence légume",{"$f":"CHOOSE(WEEKDAY(B479,2),\"LSLM\",\"LSLM\",\"LSMJ\",\"LSMJ\",\"LSV\",\"LWES\",\"LWED\")","v":"LSLM"},{"$f":"CHOOSE(WEEKDAY(C479,2),\"LSLM\",\"LSLM\",\"LSMJ\",\"LSMJ\",\"LSV\",\"LWES\",\"LWED\")","v":"LSLM"},"LSMJ","LSMJ","LSV","LWES","LWED"]
["Légume"]
["Quantité légume"]
["Référence légume 2"]
["Légume 2"]
["Quantité légume 2"]
["Référence viande","VS","VS","VS","VS","VS","VS","VS"]
["Viande"]
["Quantité viande"]
["Référence dessert",{"$f":"IF(WEEKDAY(B479,2)<6,\"DS01\",\"DWE\")","v":"DS01"},{"$f":"IF(WEEKDAY(C479,2)<6,\"DS01\",\"DWE\")","v":"DS01"},"DS01","DS01","DS01","DWE","DWE"]
["Dessert",{"$f":"IF(WEEKDAY(B479,2)<6,\"Pomme\",\"\")","v":"Pomme"},{"$f":"IF(WEEKDAY(C479,2)<6,\"Pomme\",\"\")","v":"Pomme"},"Pomme","Pomme","Pomme","",""]
["Quantité dessert",{"$f":"IF(WEEKDAY(B479,2)<6,1,\"\")","v":1},{"$f":"IF(WEEKDAY(C479,2)<6,1,\"\")","v":1},1,1,1,"",""]
["Référence jour férié",{"$f":"IFERROR(\"JF\"&TEXT(MATCH(B479,TabJoursFériés[Date jour férié],0),\"00\"),\"\")","v":""},{"$f":"IFERROR(\"JF\"&TEXT(MATCH(C479,TabJoursFériés[Date jour férié],0),\"00\"),\"\")","v":""},{"$f":"IFERROR(\"JF\"&TEXT(MATCH(D479,TabJoursFériés[Date jour férié],0),\"00\"),\"\")","v":""},{"$f":"IFERROR(\"JF\"&TEXT(MATCH(E479,TabJoursFériés[Date jour férié],0),\"00\"),\"\")","v":""},{"$f":"IFERROR(\"JF\"&TEXT(MATCH(F479,TabJoursFériés[Date jour férié],0),\"00\"),\"\")","v":""},{"$f":"IFERROR(\"JF\"&TEXT(MATCH(G479,TabJoursFériés[Date jour férié],0),\"00\"),\"\")","v":""},{"$f":"IFERROR(\"JF\"&TEXT(MATCH(H479,TabJoursFériés[Date jour férié],0),\"00\"),\"\")","v":""}]
["Jour férié",{"$f":"IFERROR(INDEX(TabJoursFériés[Jour férié],MATCH(B479,TabJoursFériés[Date jour férié],0)),\"\")","v":""},{"$f":"IFERROR(INDEX(TabJoursFériés[Jour férié],MATCH(C479,TabJoursFériés[Date jour férié],0)),\"\")","v":""},{"$f":"IFERROR(INDEX(TabJoursFériés[Jour férié],MATCH(D479,TabJoursFériés[Date jour férié],0)),\"\")","v":""},{"$f":"IFERROR(INDEX(TabJoursFériés[Jour férié],MATCH(E479,TabJoursFériés[Date jour férié],0)),\"\")","v":""},{"$f":"IFERROR(INDEX(TabJoursFériés[Jour férié],MATCH(F479,TabJoursFériés[Date jour férié],0)),\"\")","v":""},{"$f":"IFERROR(INDEX(TabJoursFériés[Jour férié],MATCH(G479,TabJoursFériés[Date jour férié],0)),\"\")","v":""},{"$f":"IFERROR(INDEX(TabJoursFériés[Jour férié],MATCH(H479,TabJoursFériés[Date jour férié],0)),\"\")","v":""}]
["Proposition menus journaliers."]
["Numéro du menu","MJ204","MJ205","MJ206","MJ207","MJ208","MJ209","MJ210"]
["Date du menu",{"$f":"H479+1","v":"2024-07-22"},{"$f":"B496+1","v":"2024-07-23"},"2024-07-24","2024-07-25","2024-07-26","2024-07-27","2024-07-28"]
["Référence légume",{"$f":"CHOOSE(WEEKDAY(B496,2),\"LSLM\",\"LSLM\",\"LSMJ\",\"LSMJ\",\"LSV\",\"LWES\",\"LWED\")","v":"LSLM"},{"$f":"CHOOSE(WEEKDAY(C496,2),\"LSLM\",\"LSLM\",\"LSMJ\",\"LSMJ\",\"LSV\",\"LWES\",\"LWED\")","v":"LSLM"},"LSMJ","LSMJ","LSV","LWES","LWED"]
["Légume"]
["Quantité légume"]
["Référence légume 2"]
["Légume 2"]
["Quantité légume 2"]
["Référence viande","VS","VS","VS","VS","VS","VS","VS"]
["Viande"]
["Quantité viande"]
["Référence dessert",{"$f":"IF(WEEKDAY(B496,2)<6,\"DS01\",\"DWE\")","v":"DS01"},{"$f":"IF(WEEKDAY(C496,2)<6,\"DS01\",\"DWE\")","v":"DS01"},"DS01","DS01","DS01","DWE","DWE"]
["Dessert",{"$f":"IF(WEEKDAY(B496,2)<6,\"Pomme\",\"\")","v":"Pomme"},{"$f":"IF(WEEKDAY(C496,2)<6,\"Pomme\",\"\")","v":"Pomme"},"Pomme","Pomme","Pomme","",""]
["Quantité dessert",{"$f":"IF(WEEKDAY(B496,2)<6,1,\"\")","v":1},{"$f":"IF(WEEKDAY(C496,2)<6,1,\"\")","v":1},1,1,1,"",""]
["Référence jour férié",{"$f":"IFERROR(\"JF\"&TEXT(MATCH(B496,TabJoursFériés[Date jour férié],0),\"00\"),\"\")","v":""},{"$f":"IFERROR(\"JF\"&TEXT(MATCH(C496,TabJoursFériés[Date jour férié],0),\"00\"),\"\")","v":""},{"$f":"IFERROR(\"JF\"&TEXT(MATCH(D496,TabJoursFériés[Date jour férié],0),\"00\"),\"\")","v":""},{"$f":"IFERROR(\"JF\"&TEXT(MATCH(E496,TabJoursFériés[Date jour férié],0),\"00\"),\"\")","v":""},{"$f":"IFERROR(\"JF\"&TEXT(MATCH(F496,TabJoursFériés[Date jour férié],0),\"00\"),\"\")","v":""},{"$f":"IFERROR(\"JF\"&TEXT(MATCH(G496,TabJoursFériés[Date jour férié],0),\"00\"),\"\")","v":""},{"$f":"IFERROR(\"JF\"&TEXT(MATCH(H496,TabJoursFériés[Date jour férié],0),\"00\"),\"\")","v":""}]
["Jour férié",{"$f":"IFERROR(INDEX(TabJoursFériés[Jour férié],MATCH(B496,TabJoursFériés[Date jour férié],0)),\"\")","v":""},{"$f":"IFERROR(INDEX(TabJoursFériés[Jour férié],MATCH(C496,TabJoursFériés[Date jour férié],0)),\"\")","v":""},{"$f":"IFERROR(INDEX(TabJoursFériés[Jour férié],MATCH(D496,TabJoursFériés[Date jour férié],0)),\"\")","v":""},{"$f":"IFERROR(INDEX(TabJoursFériés[Jour férié],MATCH(E496,TabJoursFériés[Date jour férié],0)),\"\")","v":""},{"$f":"IFERROR(INDEX(TabJoursFériés[Jour férié],MATCH(F496,TabJoursFériés[Date jour férié],0)),\"\")","v":""},{"$f":"IFERROR(INDEX(TabJoursFériés[Jour férié],MATCH(G496,TabJoursFériés[Date jour férié],0)),\"\")","v":""},{"$f":"IFERROR(INDEX(TabJoursFériés[Jour férié],MATCH(H496,TabJoursFériés[Date jour férié],0)),\"\")","v":""}]
["Proposition menus journaliers."]
["Numéro du menu","MJ211","MJ212","MJ213","MJ214","MJ215","MJ216","MJ217"]
["Date du menu",{"$f":"H496+1","v":"2024-07-29"},{"$f":"B513+1","v":"2024-07-30"},"2024-07-31","2024-08-01","2024-08-02","2024-08-03","2024-08-04"]
["Référence légume",{"$f":"CHOOSE(WEEKDAY(B513,2),\"LSLM\",\"LSLM\",\"LSMJ\",\"LSMJ\",\"LSV\",\"LWES\",\"LWED\")","v":"LSLM"},{"$f":"CHOOSE(WEEKDAY(C513,2),\"LSLM\",\"LSLM\",\"LSMJ\",\"LSMJ\",\"LSV\",\"LWES\",\"LWED\")","v":"LSLM"},"LSMJ","LSMJ","LSV","LWES","LWED"]
["Légume"]
["Quantité légume"]
["Référence légume 2"]
["Légume 2"]
["Quantité légume 2"]
["Référence viande","VS","VS","VS","VS","VS","VS","VS"]
["Viande"]
["Quantité viande"]
["Référence dessert",{"$f":"IF(WEEKDAY(B513,2)<6,\"DS01\",\"DWE\")","v":"DS01"},{"$f":"IF(WEEKDAY(C513,2)<6,\"DS01\",\"DWE\")","v":"DS01"},"DS01","DS01","DS01","DWE","DWE"]
["Dessert",{"$f":"IF(WEEKDAY(B513,2)<6,\"Pomme\",\"\")","v":"Pomme"},{"$f":"IF(WEEKDAY(C513,2)<6,\"Pomme\",\"\")","v":"Pomme"},"Pomme","Pomme","Pomme","",""]
["Quantité dessert",{"$f":"IF(WEEKDAY(B513,2)<6,1,\"\")","v":1},{"$f":"IF(WEEKDAY(C513,2)<6,1,\"\")","v":1},1,1,1,"",""]
["Référence jour férié",{"$f":"IFERROR(\"JF\"&TEXT(MATCH(B513,TabJoursFériés[Date jour férié],0),\"00\"),\"\")","v":""},{"$f":"IFERROR(\"JF\"&TEXT(MATCH(C513,TabJoursFériés[Date jour férié],0),\"00\"),\"\")","v":""},{"$f":"IFERROR(\"JF\"&TEXT(MATCH(D513,TabJoursFériés[Date jour férié],0),\"00\"),\"\")","v":""},{"$f":"IFERROR(\"JF\"&TEXT(MATCH(E513,TabJoursFériés[Date jour férié],0),\"00\"),\"\")","v":""},{"$f":"IFERROR(\"JF\"&TEXT(MATCH(F513,TabJoursFériés[Date jour férié],0),\"00\"),\"\")","v":""},{"$f":"IFERROR(\"JF\"&TEXT(MATCH(G513,TabJoursFériés[Date jour férié],0),\"00\"),\"\")","v":""},{"$f":"IFERROR(\"JF\"&TEXT(MATCH(H513,TabJoursFériés[Date jour férié],0),\"00\"),\"\")","v":""}]
["Jour férié",{"$f":"IFERROR(INDEX(TabJoursFériés[Jour férié],MATCH(B513,TabJoursFériés[Date jour férié],0)),\"\")","v":""},{"$f":"IFERROR(INDEX(TabJoursFériés[Jour férié],MATCH(C513,TabJoursFériés[Date jour férié],0)),\"\")","v":""},{"$f":"IFERROR(INDEX(TabJoursFériés[Jour férié],MATCH(D513,TabJoursFériés[Date jour férié],0)),\"\")","v":""},{"$f":"IFERROR(INDEX(TabJoursFériés[Jour férié],MATCH(E513,TabJoursFériés[Date jour férié],0)),\"\")","v":""},{"$f":"IFERROR(INDEX(TabJoursFériés[Jour férié],MATCH(F513,TabJoursFériés[Date jour férié],0)),\"\")","v":""},{"$f":"IFERROR(INDEX(TabJoursFériés[Jour férié],MATCH(G513,TabJoursFériés[Date jour férié],0)),\"\")","v":""},{"$f":"IFERROR(INDEX(TabJoursFériés[Jour férié],MATCH(H513,TabJoursFériés[Date jour férié],0)),\"\")","v":""}]
["Proposition menus journaliers."]
["Numéro du menu","MJ218","MJ219","MJ220","MJ221","MJ222","MJ223","MJ224"]
["Date du menu",{"$f":"H513+1","v":"2024-08-05"},{"$f":"B530+1","v":"2024-08-06"},"2024-08-07","2024-08-08","2024-08-09","2024-08-10","2024-08-11"]
["Référence légume",{"$f":"CHOOSE(WEEKDAY(B530,2),\"LSLM\",\"LSLM\",\"LSMJ\",\"LSMJ\",\"LSV\",\"LWES\",\"LWED\")","v":"LSLM"},{"$f":"CHOOSE(WEEKDAY(C530,2),\"LSLM\",\"LSLM\",\"LSMJ\",\"LSMJ\",\"LSV\",\"LWES\",\"LWED\")","v":"LSLM"},"LSMJ","LSMJ","LSV","LWES","LWED"]
["Légume"]
["Quantité légume"]
["Référence légume 2"]
["Légume 2"]
["Quantité légume 2"]
["Référence viande","VS","VS","VS","VS","VS","VS","VS"]
["Viande"]
["Quantité viande"]
["Référence dessert",{"$f":"IF(WEEKDAY(B530,2)<6,\"DS01\",\"DWE\")","v":"DS01"},{"$f":"IF(WEEKDAY(C530,2)<6,\"DS01\",\"DWE\")","v":"DS01"},"DS01","DS01","DS01","DWE","DWE"]
["Dessert",{"$f":"IF(WEEKDAY(B530,2)<6,\"Pomme\",\"\")","v":"Pomme"},{"$f":"IF(WEEKDAY(C530,2)<6,\"Pomme\",\"\")","v":"Pomme"},"Pomme","Pomme","Pomme","",""]
["Quantité dessert",{"$f":"IF(WEEKDAY(B530,2)<6,1,\"\")","v":1},{"$f":"IF(WEEKDAY(C530,2)<6,1,\"\")","v":1},1,1,1,"",""]
["Référence jour férié",{"$f":"IFERROR(\"JF\"&TEXT(MATCH(B530,TabJoursFériés[Date jour férié],0),\"00\"),\"\")","v":""},{"$f":"IFERROR(\"JF\"&TEXT(MATCH(C530,TabJoursFériés[Date jour férié],0),\"00\"),\"\")","v":""},{"$f":"IFERROR(\"JF\"&TEXT(MATCH(D530,TabJoursFériés[Date jour férié],0),\"00\"),\"\")","v":""},{"$f":"IFERROR(\"JF\"&TEXT(MATCH(E530,TabJoursFériés[Date jour férié],0),\"00\"),\"\")","v":""},{"$f":"IFERROR(\"JF\"&TEXT(MATCH(F530,TabJoursFériés[Date jour férié],0),\"00\"),\"\")","v":""},{"$f":"IFERROR(\"JF\"&TEXT(MATCH(G530,TabJoursFériés[Date jour férié],0),\"00\"),\"\")","v":""},{"$f":"IFERROR(\"JF\"&TEXT(MATCH(H530,TabJoursFériés[Date jour férié],0),\"00\"),\"\")","v":""}]
["Jour férié",{"$f":"IFERROR(INDEX(TabJoursFériés[Jour férié],MATCH(B530,TabJoursFériés[Date jour férié],0)),\"\")","v":""},{"$f":"IFERROR(INDEX(TabJoursFériés[Jour férié],MATCH(C530,TabJoursFériés[Date jour férié],0)),\"\")","v":""},{"$f":"IFERROR(INDEX(TabJoursFériés[Jour férié],MATCH(D530,TabJoursFériés[Date jour férié],0)),\"\")","v":""},{"$f":"IFERROR(INDEX(TabJoursFériés[Jour férié],MATCH(E530,TabJoursFériés[Date jour férié],0)),\"\")","v":""},{"$f":"IFERROR(INDEX(TabJoursFériés[Jour férié],MATCH(F530,TabJoursFériés[Date jour férié],0)),\"\")","v":""},{"$f":"IFERROR(INDEX(TabJoursFériés[Jour férié],MATCH(G530,TabJoursFériés[Date jour férié],0)),\"\")","v":""},{"$f":"IFERROR(INDEX(TabJoursFériés[Jour férié],MATCH(H530,TabJoursFériés[Date jour férié],0)),\"\")","v":""}]
["Proposition menus journaliers."]
["Numéro du menu","MJ225","MJ226","MJ227","MJ228","MJ229","MJ230","MJ231"]
["Date du menu",{"$f":"H530+1","v":"2024-08-12"},{"$f":"B547+1","v":"2024-08-13"},"2024-08-14","2024-08-15","2024-08-16","2024-08-17","2024-08-18"]
["Référence légume",{"$f":"CHOOSE(WEEKDAY(B547,2),\"LSLM\",\"LSLM\",\"LSMJ\",\"LSMJ\",\"LSV\",\"LWES\",\"LWED\")","v":"LSLM"},{"$f":"CHOOSE(WEEKDAY(C547,2),\"LSLM\",\"LSLM\",\"LSMJ\",\"LSMJ\",\"LSV\",\"LWES\",\"LWED\")","v":"LSLM"},"LSMJ","LSMJ","LSV","LWES","LWED"]
["Légume"]
["Quantité légume"]
["Référence légume 2"]
["Légume 2"]
["Quantité légume 2"]
["Référence viande","VS","VS","VS","VS","VS","VS","VS"]
["Viande"]
["Quantité viande"]
["Référence dessert",{"$f":"IF(WEEKDAY(B547,2)<6,\"DS01\",\"DWE\")","v":"DS01"},{"$f":"IF(WEEKDAY(C547,2)<6,\"DS01\",\"DWE\")","v":"DS01"},"DS01","DS01","DS01","DWE","DWE"]
["Dessert",{"$f":"IF(WEEKDAY(B547,2)<6,\"Pomme\",\"\")","v":"Pomme"},{"$f":"IF(WEEKDAY(C547,2)<6,\"Pomme\",\"\")","v":"Pomme"},"Pomme","Pomme","Pomme","",""]
["Quantité dessert",{"$f":"IF(WEEKDAY(B547,2)<6,1,\"\")","v":1},{"$f":"IF(WEEKDAY(C547,2)<6,1,\"\")","v":1},1,1,1,"",""]
["Référence jour férié",{"$f":"IFERROR(\"JF\"&TEXT(MATCH(B547,TabJoursFériés[Date jour férié],0),\"00\"),\"\")","v":""},{"$f":"IFERROR(\"JF\"&TEXT(MATCH(C547,TabJoursFériés[Date jour férié],0),\"00\"),\"\")","v":""},{"$f":"IFERROR(\"JF\"&TEXT(MATCH(D547,TabJoursFériés[Date jour férié],0),\"00\"),\"\")","v":""},{"$f":"IFERROR(\"JF\"&TEXT(MATCH(E547,TabJoursFériés[Date jour férié],0),\"00\"),\"\")","v":"JF10"},{"$f":"IFERROR(\"JF\"&TEXT(MATCH(F547,TabJoursFériés[Date jour férié],0),\"00\"),\"\")","v":""},{"$f":"IFERROR(\"JF\"&TEXT(MATCH(G547,TabJoursFériés[Date jour férié],0),\"00\"),\"\")","v":""},{"$f":"IFERROR(\"JF\"&TEXT(MATCH(H547,TabJoursFériés[Date jour férié],0),\"00\"),\"\")","v":""}]
["Jour férié",{"$f":"IFERROR(INDEX(TabJoursFériés[Jour férié],MATCH(B547,TabJoursFériés[Date jour férié],0)),\"\")","v":""},{"$f":"IFERROR(INDEX(TabJoursFériés[Jour férié],MATCH(C547,TabJoursFériés[Date jour férié],0)),\"\")","v":""},{"$f":"IFERROR(INDEX(TabJoursFériés[Jour férié],MATCH(D547,TabJoursFériés[Date jour férié],0)),\"\")","v":""},{"$f":"IFERROR(INDEX(TabJoursFériés[Jour férié],MATCH(E547,TabJoursFériés[Date jour férié],0)),\"\")","v":"Assomption"},{"$f":"IFERROR(INDEX(TabJoursFériés[Jour férié],MATCH(F547,TabJoursFériés[Date jour férié],0)),\"\")","v":""},{"$f":"IFERROR(INDEX(TabJoursFériés[Jour férié],MATCH(G547,TabJoursFériés[Date jour férié],0)),\"\")","v":""},{"$f":"IFERROR(INDEX(TabJoursFériés[Jour férié],MATCH(H547,TabJoursFériés[Date jour férié],0)),\"\")","v":""}]
["Proposition menus journaliers."]
["Numéro du menu","MJ232","MJ233","MJ234","MJ235","MJ236","MJ237","MJ238"]
["Date du menu",{"$f":"H547+1","v":"2024-08-19"},{"$f":"B564+1","v":"2024-08-20"},"2024-08-21","2024-08-22","2024-08-23","2024-08-24","2024-08-25"]
["Référence légume",{"$f":"CHOOSE(WEEKDAY(B564,2),\"LSLM\",\"LSLM\",\"LSMJ\",\"LSMJ\",\"LSV\",\"LWES\",\"LWED\")","v":"LSLM"},{"$f":"CHOOSE(WEEKDAY(C564,2),\"LSLM\",\"LSLM\",\"LSMJ\",\"LSMJ\",\"LSV\",\"LWES\",\"LWED\")","v":"LSLM"},"LSMJ","LSMJ","LSV","LWES","LWED"]
["Légume"]
["Quantité légume"]
["Référence légume 2"]
["Légume 2"]
["Quantité légume 2"]
["Référence viande","VS","VS","VS","VS","VS","VS","VS"]
["Viande"]
["Quantité viande"]
["Référence dessert",{"$f":"IF(WEEKDAY(B564,2)<6,\"DS01\",\"DWE\")","v":"DS01"},{"$f":"IF(WEEKDAY(C564,2)<6,\"DS01\",\"DWE\")","v":"DS01"},"DS01","DS01","DS01","DWE","DWE"]
["Dessert",{"$f":"IF(WEEKDAY(B564,2)<6,\"Pomme\",\"\")","v":"Pomme"},{"$f":"IF(WEEKDAY(C564,2)<6,\"Pomme\",\"\")","v":"Pomme"},"Pomme","Pomme","Pomme","",""]
["Quantité dessert",{"$f":"IF(WEEKDAY(B564,2)<6,1,\"\")","v":1},{"$f":"IF(WEEKDAY(C564,2)<6,1,\"\")","v":1},1,1,1,"",""]
["Référence jour férié",{"$f":"IFERROR(\"JF\"&TEXT(MATCH(B564,TabJoursFériés[Date jour férié],0),\"00\"),\"\")","v":""},{"$f":"IFERROR(\"JF\"&TEXT(MATCH(C564,TabJoursFériés[Date jour férié],0),\"00\"),\"\")","v":""},{"$f":"IFERROR(\"JF\"&TEXT(MATCH(D564,TabJoursFériés[Date jour férié],0),\"00\"),\"\")","v":""},{"$f":"IFERROR(\"JF\"&TEXT(MATCH(E564,TabJoursFériés[Date jour férié],0),\"00\"),\"\")","v":""},{"$f":"IFERROR(\"JF\"&TEXT(MATCH(F564,TabJoursFériés[Date jour férié],0),\"00\"),\"\")","v":""},{"$f":"IFERROR(\"JF\"&TEXT(MATCH(G564,TabJoursFériés[Date jour férié],0),\"00\"),\"\")","v":""},{"$f":"IFERROR(\"JF\"&TEXT(MATCH(H564,TabJoursFériés[Date jour férié],0),\"00\"),\"\")","v":""}]
["Jour férié",{"$f":"IFERROR(INDEX(TabJoursFériés[Jour férié],MATCH(B564,TabJoursFériés[Date jour férié],0)),\"\")","v":""},{"$f":"IFERROR(INDEX(TabJoursFériés[Jour férié],MATCH(C564,TabJoursFériés[Date jour férié],0)),\"\")","v":""},{"$f":"IFERROR(INDEX(TabJoursFériés[Jour férié],MATCH(D564,TabJoursFériés[Date jour férié],0)),\"\")","v":""},{"$f":"IFERROR(INDEX(TabJoursFériés[Jour férié],MATCH(E564,TabJoursFériés[Date jour férié],0)),\"\")","v":""},{"$f":"IFERROR(INDEX(TabJoursFériés[Jour férié],MATCH(F564,TabJoursFériés[Date jour férié],0)),\"\")","v":""},{"$f":"IFERROR(INDEX(TabJoursFériés[Jour férié],MATCH(G564,TabJoursFériés[Date jour férié],0)),\"\")","v":""},{"$f":"IFERROR(INDEX(TabJoursFériés[Jour férié],MATCH(H564,TabJoursFériés[Date jour férié],0)),\"\")","v":""}]
["Proposition menus journaliers."]
["Numéro du menu","MJ239","MJ240","MJ241","MJ242","MJ243","MJ244","MJ245"]
["Date du menu",{"$f":"H564+1","v":"2024-08-26"},{"$f":"B581+1","v":"2024-08-27"},"2024-08-28","2024-08-29","2024-08-30","2024-08-31","2024-09-01"]
["Référence légume",{"$f":"CHOOSE(WEEKDAY(B581,2),\"LSLM\",\"LSLM\",\"LSMJ\",\"LSMJ\",\"LSV\",\"LWES\",\"LWED\")","v":"LSLM"},{"$f":"CHOOSE(WEEKDAY(C581,2),\"LSLM\",\"LSLM\",\"LSMJ\",\"LSMJ\",\"LSV\",\"LWES\",\"LWED\")","v":"LSLM"},"LSMJ","LSMJ","LSV","LWES","LWED"]
["Légume"]
["Quantité légume"]
["Référence légume 2"]
["Légume 2"]
["Quantité légume 2"]
["Référence viande","VS","VS","VS","VS","VS","VS","VS"]
["Viande"]
["Quantité viande"]
["Référence dessert",{"$f":"IF(WEEKDAY(B581,2)<6,\"DS01\",\"DWE\")","v":"DS01"},{"$f":"IF(WEEKDAY(C581,2)<6,\"DS01\",\"DWE\")","v":"DS01"},"DS01","DS01","DS01","DWE","DWE"]
["Dessert",{"$f":"IF(WEEKDAY(B581,2)<6,\"Pomme\",\"\")","v":"Pomme"},{"$f":"IF(WEEKDAY(C581,2)<6,\"Pomme\",\"\")","v":"Pomme"},"Pomme","Pomme","Pomme","",""]
["Quantité dessert",{"$f":"IF(WEEKDAY(B581,2)<6,1,\"\")","v":1},{"$f":"IF(WEEKDAY(C581,2)<6,1,\"\")","v":1},1,1,1,"",""]
["Référence jour férié",{"$f":"IFERROR(\"JF\"&TEXT(MATCH(B581,TabJoursFériés[Date jour férié],0),\"00\"),\"\")","v":""},{"$f":"IFERROR(\"JF\"&TEXT(MATCH(C581,TabJoursFériés[Date jour férié],0),\"00\"),\"\")","v":""},{"$f":"IFERROR(\"JF\"&TEXT(MATCH(D581,TabJoursFériés[Date jour férié],0),\"00\"),\"\")","v":""},{"$f":"IFERROR(\"JF\"&TEXT(MATCH(E581,TabJoursFériés[Date jour férié],0),\"00\"),\"\")","v":""},{"$f":"IFERROR(\"JF\"&TEXT(MATCH(F581,TabJoursFériés[Date jour férié],0),\"00\"),\"\")","v":""},{"$f":"IFERROR(\"JF\"&TEXT(MATCH(G581,TabJoursFériés[Date jour férié],0),\"00\"),\"\")","v":""},{"$f":"IFERROR(\"JF\"&TEXT(MATCH(H581,TabJoursFériés[Date jour férié],0),\"00\"),\"\")","v":""}]
["Jour férié",{"$f":"IFERROR(INDEX(TabJoursFériés[Jour férié],MATCH(B581,TabJoursFériés[Date jour férié],0)),\"\")","v":""},{"$f":"IFERROR(INDEX(TabJoursFériés[Jour férié],MATCH(C581,TabJoursFériés[Date jour férié],0)),\"\")","v":""},{"$f":"IFERROR(INDEX(TabJoursFériés[Jour férié],MATCH(D581,TabJoursFériés[Date jour férié],0)),\"\")","v":""},{"$f":"IFERROR(INDEX(TabJoursFériés[Jour férié],MATCH(E581,TabJoursFériés[Date jour férié],0)),\"\")","v":""},{"$f":"IFERROR(INDEX(TabJoursFériés[Jour férié],MATCH(F581,TabJoursFériés[Date jour férié],0)),\"\")","v":""},{"$f":"IFERROR(INDEX(TabJoursFériés[Jour férié],MATCH(G581,TabJoursFériés[Date jour férié],0)),\"\")","v":""},{"$f":"IFERROR(INDEX(TabJoursFériés[Jour férié],MATCH(H581,TabJoursFériés[Date jour férié],0)),\"\")","v":""}]
["Proposition menus journaliers."]
["Numéro du menu","MJ246","MJ247","MJ248","MJ249","MJ250","MJ251","MJ252"]
["Date du menu",{"$f":"H581+1","v":"2024-09-02"},{"$f":"B598+1","v":"2024-09-03"},"2024-09-04","2024-09-05","2024-09-06","2024-09-07","2024-09-08"]
["Référence légume",{"$f":"CHOOSE(WEEKDAY(B598,2),\"LSLM\",\"LSLM\",\"LSMJ\",\"LSMJ\",\"LSV\",\"LWES\",\"LWED\")","v":"LSLM"},{"$f":"CHOOSE(WEEKDAY(C598,2),\"LSLM\",\"LSLM\",\"LSMJ\",\"LSMJ\",\"LSV\",\"LWES\",\"LWED\")","v":"LSLM"},"LSMJ","LSMJ","LSV","LWES","LWED"]
["Légume"]
["Quantité légume"]
["Référence légume 2"]
["Légume 2"]
["Quantité légume 2"]
["Référence viande","VS","VS","VS","VS","VS","VS","VS"]
["Viande"]
["Quantité viande"]
["Référence dessert",{"$f":"IF(WEEKDAY(B598,2)<6,\"DS01\",\"DWE\")","v":"DS01"},{"$f":"IF(WEEKDAY(C598,2)<6,\"DS01\",\"DWE\")","v":"DS01"},"DS01","DS01","DS01","DWE","DWE"]
["Dessert",{"$f":"IF(WEEKDAY(B598,2)<6,\"Pomme\",\"\")","v":"Pomme"},{"$f":"IF(WEEKDAY(C598,2)<6,\"Pomme\",\"\")","v":"Pomme"},"Pomme","Pomme","Pomme","",""]
["Quantité dessert",{"$f":"IF(WEEKDAY(B598,2)<6,1,\"\")","v":1},{"$f":"IF(WEEKDAY(C598,2)<6,1,\"\")","v":1},1,1,1,"",""]
["Référence jour férié",{"$f":"IFERROR(\"JF\"&TEXT(MATCH(B598,TabJoursFériés[Date jour férié],0),\"00\"),\"\")","v":""},{"$f":"IFERROR(\"JF\"&TEXT(MATCH(C598,TabJoursFériés[Date jour férié],0),\"00\"),\"\")","v":""},{"$f":"IFERROR(\"JF\"&TEXT(MATCH(D598,TabJoursFériés[Date jour férié],0),\"00\"),\"\")","v":""},{"$f":"IFERROR(\"JF\"&TEXT(MATCH(E598,TabJoursFériés[Date jour férié],0),\"00\"),\"\")","v":""},{"$f":"IFERROR(\"JF\"&TEXT(MATCH(F598,TabJoursFériés[Date jour férié],0),\"00\"),\"\")","v":""},{"$f":"IFERROR(\"JF\"&TEXT(MATCH(G598,TabJoursFériés[Date jour férié],0),\"00\"),\"\")","v":""},{"$f":"IFERROR(\"JF\"&TEXT(MATCH(H598,TabJoursFériés[Date jour férié],0),\"00\"),\"\")","v":""}]
["Jour férié",{"$f":"IFERROR(INDEX(TabJoursFériés[Jour férié],MATCH(B598,TabJoursFériés[Date jour férié],0)),\"\")","v":""},{"$f":"IFERROR(INDEX(TabJoursFériés[Jour férié],MATCH(C598,TabJoursFériés[Date jour férié],0)),\"\")","v":""},{"$f":"IFERROR(INDEX(TabJoursFériés[Jour férié],MATCH(D598,TabJoursFériés[Date jour férié],0)),\"\")","v":""},{"$f":"IFERROR(INDEX(TabJoursFériés[Jour férié],MATCH(E598,TabJoursFériés[Date jour férié],0)),\"\")","v":""},{"$f":"IFERROR(INDEX(TabJoursFériés[Jour férié],MATCH(F598,TabJoursFériés[Date jour férié],0)),\"\")","v":""},{"$f":"IFERROR(INDEX(TabJoursFériés[Jour férié],MATCH(G598,TabJoursFériés[Date jour férié],0)),\"\")","v":""},{"$f":"IFERROR(INDEX(TabJoursFériés[Jour férié],MATCH(H598,TabJoursFériés[Date jour férié],0)),\"\")","v":""}]
["Proposition menus journaliers."]
["Numéro du menu","MJ253","MJ254","MJ255","MJ256","MJ257","MJ258","MJ259"]
["Date du menu",{"$f":"H598+1","v":"2024-09-09"},{"$f":"B615+1","v":"2024-09-10"},"2024-09-11","2024-09-12","2024-09-13","2024-09-14","2024-09-15"]
["Référence légume",{"$f":"CHOOSE(WEEKDAY(B615,2),\"LSLM\",\"LSLM\",\"LSMJ\",\"LSMJ\",\"LSV\",\"LWES\",\"LWED\")","v":"LSLM"},{"$f":"CHOOSE(WEEKDAY(C615,2),\"LSLM\",\"LSLM\",\"LSMJ\",\"LSMJ\",\"LSV\",\"LWES\",\"LWED\")","v":"LSLM"},"LSMJ","LSMJ","LSV","LWES","LWED"]
["Légume"]
["Quantité légume"]
["Référence légume 2"]
["Légume 2"]
["Quantité légume 2"]
["Référence viande","VS","VS","VS","VS","VS","VS","VS"]
["Viande"]
["Quantité viande"]
["Référence dessert",{"$f":"IF(WEEKDAY(B615,2)<6,\"DS01\",\"DWE\")","v":"DS01"},{"$f":"IF(WEEKDAY(C615,2)<6,\"DS01\",\"DWE\")","v":"DS01"},"DS01","DS01","DS01","DWE","DWE"]
["Dessert",{"$f":"IF(WEEKDAY(B615,2)<6,\"Pomme\",\"\")","v":"Pomme"},{"$f":"IF(WEEKDAY(C615,2)<6,\"Pomme\",\"\")","v":"Pomme"},"Pomme","Pomme","Pomme","",""]
["Quantité dessert",{"$f":"IF(WEEKDAY(B615,2)<6,1,\"\")","v":1},{"$f":"IF(WEEKDAY(C615,2)<6,1,\"\")","v":1},1,1,1,"",""]
["Référence jour férié",{"$f":"IFERROR(\"JF\"&TEXT(MATCH(B615,TabJoursFériés[Date jour férié],0),\"00\"),\"\")","v":""},{"$f":"IFERROR(\"JF\"&TEXT(MATCH(C615,TabJoursFériés[Date jour férié],0),\"00\"),\"\")","v":""},{"$f":"IFERROR(\"JF\"&TEXT(MATCH(D615,TabJoursFériés[Date jour férié],0),\"00\"),\"\")","v":""},{"$f":"IFERROR(\"JF\"&TEXT(MATCH(E615,TabJoursFériés[Date jour férié],0),\"00\"),\"\")","v":""},{"$f":"IFERROR(\"JF\"&TEXT(MATCH(F615,TabJoursFériés[Date jour férié],0),\"00\"),\"\")","v":""},{"$f":"IFERROR(\"JF\"&TEXT(MATCH(G615,TabJoursFériés[Date jour férié],0),\"00\"),\"\")","v":""},{"$f":"IFERROR(\"JF\"&TEXT(MATCH(H615,TabJoursFériés[Date jour férié],0),\"00\"),\"\")","v":""}]
["Jour férié",{"$f":"IFERROR(INDEX(TabJoursFériés[Jour férié],MATCH(B615,TabJoursFériés[Date jour férié],0)),\"\")","v":""},{"$f":"IFERROR(INDEX(TabJoursFériés[Jour férié],MATCH(C615,TabJoursFériés[Date jour férié],0)),\"\")","v":""},{"$f":"IFERROR(INDEX(TabJoursFériés[Jour férié],MATCH(D615,TabJoursFériés[Date jour férié],0)),\"\")","v":""},{"$f":"IFERROR(INDEX(TabJoursFériés[Jour férié],MATCH(E615,TabJoursFériés[Date jour férié],0)),\"\")","v":""},{"$f":"IFERROR(INDEX(TabJoursFériés[Jour férié],MATCH(F615,TabJoursFériés[Date jour férié],0)),\"\")","v":""},{"$f":"IFERROR(INDEX(TabJoursFériés[Jour férié],MATCH(G615,TabJoursFériés[Date jour férié],0)),\"\")","v":""},{"$f":"IFERROR(INDEX(TabJoursFériés[Jour férié],MATCH(H615,TabJoursFériés[Date jour férié],0)),\"\")","v":""}]
["Proposition menus journaliers."]
["Numéro du menu","MJ260","MJ261","MJ262","MJ263","MJ264","MJ265","MJ266"]
["Date du menu",{"$f":"H615+1","v":"2024-09-16"},{"$f":"B632+1","v":"2024-09-17"},"2024-09-18","2024-09-19","2024-09-20","2024-09-21","2024-09-22"]
["Référence légume",{"$f":"CHOOSE(WEEKDAY(B632,2),\"LSLM\",\"LSLM\",\"LSMJ\",\"LSMJ\",\"LSV\",\"LWES\",\"LWED\")","v":"LSLM"},{"$f":"CHOOSE(WEEKDAY(C632,2),\"LSLM\",\"LSLM\",\"LSMJ\",\"LSMJ\",\"LSV\",\"LWES\",\"LWED\")","v":"LSLM"},"LSMJ","LSMJ","LSV","LWES","LWED"]
["Légume"]
["Quantité légume"]
["Référence légume 2"]
["Légume 2"]
["Quantité légume 2"]
["Référence viande","VS","VS","VS","VS","VS","VS","VS"]
["Viande"]
["Quantité viande"]
["Référence dessert",{"$f":"IF(WEEKDAY(B632,2)<6,\"DS01\",\"DWE\")","v":"DS01"},{"$f":"IF(WEEKDAY(C632,2)<6,\"DS01\",\"DWE\")","v":"DS01"},"DS01","DS01","DS01","DWE","DWE"]
["Dessert",{"$f":"IF(WEEKDAY(B632,2)<6,\"Pomme\",\"\")","v":"Pomme"},{"$f":"IF(WEEKDAY(C632,2)<6,\"Pomme\",\"\")","v":"Pomme"},"Pomme","Pomme","Pomme","",""]
["Quantité dessert",{"$f":"IF(WEEKDAY(B632,2)<6,1,\"\")","v":1},{"$f":"IF(WEEKDAY(C632,2)<6,1,\"\")","v":1},1,1,1,"",""]
["Référence jour férié",{"$f":"IFERROR(\"JF\"&TEXT(MATCH(B632,TabJoursFériés[Date jour férié],0),\"00\"),\"\")","v":""},{"$f":"IFERROR(\"JF\"&TEXT(MATCH(C632,TabJoursFériés[Date jour férié],0),\"00\"),\"\")","v":""},{"$f":"IFERROR(\"JF\"&TEXT(MATCH(D632,TabJoursFériés[Date jour férié],0),\"00\"),\"\")","v":""},{"$f":"IFERROR(\"JF\"&TEXT(MATCH(E632,TabJoursFériés[Date jour férié],0),\"00\"),\"\")","v":""},{"$f":"IFERROR(\"JF\"&TEXT(MATCH(F632,TabJoursFériés[Date jour férié],0),\"00\"),\"\")","v":""},{"$f":"IFERROR(\"JF\"&TEXT(MATCH(G632,TabJoursFériés[Date jour férié],0),\"00\"),\"\")","v":""},{"$f":"IFERROR(\"JF\"&TEXT(MATCH(H632,TabJoursFériés[Date jour férié],0),\"00\"),\"\")","v":""}]
["Jour férié",{"$f":"IFERROR(INDEX(TabJoursFériés[Jour férié],MATCH(B632,TabJoursFériés[Date jour férié],0)),\"\")","v":""},{"$f":"IFERROR(INDEX(TabJoursFériés[Jour férié],MATCH(C632,TabJoursFériés[Date jour férié],0)),\"\")","v":""},{"$f":"IFERROR(INDEX(TabJoursFériés[Jour férié],MATCH(D632,TabJoursFériés[Date jour férié],0)),\"\")","v":""},{"$f":"IFERROR(INDEX(TabJoursFériés[Jour férié],MATCH(E632,TabJoursFériés[Date jour férié],0)),\"\")","v":""},{"$f":"IFERROR(INDEX(TabJoursFériés[Jour férié],MATCH(F632,TabJoursFériés[Date jour férié],0)),\"\")","v":""},{"$f":"IFERROR(INDEX(TabJoursFériés[Jour férié],MATCH(G632,TabJoursFériés[Date jour férié],0)),\"\")","v":""},{"$f":"IFERROR(INDEX(TabJoursFériés[Jour férié],MATCH(H632,TabJoursFériés[Date jour férié],0)),\"\")","v":""}]
["Proposition menus journaliers."]
["Numéro du menu","MJ267","MJ268","MJ269","MJ270","MJ271","MJ272","MJ273"]
["Date du menu",{"$f":"H632+1","v":"2024-09-23"},{"$f":"B649+1","v":"2024-09-24"},"2024-09-25","2024-09-26","2024-09-27","2024-09-28","2024-09-29"]
["Référence légume",{"$f":"CHOOSE(WEEKDAY(B649,2),\"LSLM\",\"LSLM\",\"LSMJ\",\"LSMJ\",\"LSV\",\"LWES\",\"LWED\")","v":"LSLM"},{"$f":"CHOOSE(WEEKDAY(C649,2),\"LSLM\",\"LSLM\",\"LSMJ\",\"LSMJ\",\"LSV\",\"LWES\",\"LWED\")","v":"LSLM"},"LSMJ","LSMJ","LSV","LWES","LWED"]
["Légume"]
["Quantité légume"]
["Référence légume 2"]
["Légume 2"]
["Quantité légume 2"]
["Référence viande","VS","VS","VS","VS","VS","VS","VS"]
["Viande"]
["Quantité viande"]
["Référence dessert",{"$f":"IF(WEEKDAY(B649,2)<6,\"DS01\",\"DWE\")","v":"DS01"},{"$f":"IF(WEEKDAY(C649,2)<6,\"DS01\",\"DWE\")","v":"DS01"},"DS01","DS01","DS01","DWE","DWE"]
["Dessert",{"$f":"IF(WEEKDAY(B649,2)<6,\"Pomme\",\"\")","v":"Pomme"},{"$f":"IF(WEEKDAY(C649,2)<6,\"Pomme\",\"\")","v":"Pomme"},"Pomme","Pomme","Pomme","",""]
["Quantité dessert",{"$f":"IF(WEEKDAY(B649,2)<6,1,\"\")","v":1},{"$f":"IF(WEEKDAY(C649,2)<6,1,\"\")","v":1},1,1,1,"",""]
["Référence jour férié",{"$f":"IFERROR(\"JF\"&TEXT(MATCH(B649,TabJoursFériés[Date jour férié],0),\"00\"),\"\")","v":""},{"$f":"IFERROR(\"JF\"&TEXT(MATCH(C649,TabJoursFériés[Date jour férié],0),\"00\"),\"\")","v":""},{"$f":"IFERROR(\"JF\"&TEXT(MATCH(D649,TabJoursFériés[Date jour férié],0),\"00\"),\"\")","v":""},{"$f":"IFERROR(\"JF\"&TEXT(MATCH(E649,TabJoursFériés[Date jour férié],0),\"00\"),\"\")","v":""},{"$f":"IFERROR(\"JF\"&TEXT(MATCH(F649,TabJoursFériés[Date jour férié],0),\"00\"),\"\")","v":""},{"$f":"IFERROR(\"JF\"&TEXT(MATCH(G649,TabJoursFériés[Date jour férié],0),\"00\"),\"\")","v":""},{"$f":"IFERROR(\"JF\"&TEXT(MATCH(H649,TabJoursFériés[Date jour férié],0),\"00\"),\"\")","v":""}]
["Jour férié",{"$f":"IFERROR(INDEX(TabJoursFériés[Jour férié],MATCH(B649,TabJoursFériés[Date jour férié],0)),\"\")","v":""},{"$f":"IFERROR(INDEX(TabJoursFériés[Jour férié],MATCH(C649,TabJoursFériés[Date jour férié],0)),\"\")","v":""},{"$f":"IFERROR(INDEX(TabJoursFériés[Jour férié],MATCH(D649,TabJoursFériés[Date jour férié],0)),\"\")","v":""},{"$f":"IFERROR(INDEX(TabJoursFériés[Jour férié],MATCH(E649,TabJoursFériés[Date jour férié],0)),\"\")","v":""},{"$f":"IFERROR(INDEX(TabJoursFériés[Jour férié],MATCH(F649,TabJoursFériés[Date jour férié],0)),\"\")","v":""},{"$f":"IFERROR(INDEX(TabJoursFériés[Jour férié],MATCH(G649,TabJoursFériés[Date jour férié],0)),\"\")","v":""},{"$f":"IFERROR(INDEX(TabJoursFériés[Jour férié],MATCH(H649,TabJoursFériés[Date jour férié],0)),\"\")","v":""}]
["Proposition menus journaliers."]
["Numéro du menu","MJ274","MJ275","MJ276","MJ277","MJ278","MJ279","MJ280"]
["Date du menu",{"$f":"H649+1","v":"2024-09-30"},{"$f":"B666+1","v":"2024-10-01"},"2024-10-02","2024-10-03","2024-10-04","2024-10-05","2024-10-06"]
["Référence légume",{"$f":"CHOOSE(WEEKDAY(B666,2),\"LSLM\",\"LSLM\",\"LSMJ\",\"LSMJ\",\"LSV\",\"LWES\",\"LWED\")","v":"LSLM"},{"$f":"CHOOSE(WEEKDAY(C666,2),\"LSLM\",\"LSLM\",\"LSMJ\",\"LSMJ\",\"LSV\",\"LWES\",\"LWED\")","v":"LSLM"},"LSMJ","LSMJ","LSV","LWES","LWED"]
["Légume"]
["Quantité légume"]
["Référence légume 2"]
["Légume 2"]
["Quantité légume 2"]
["Référence viande","VS","VS","VS","VS","VS","VS","VS"]
["Viande"]
["Quantité viande"]
["Référence dessert",{"$f":"IF(WEEKDAY(B666,2)<6,\"DS01\",\"DWE\")","v":"DS01"},{"$f":"IF(WEEKDAY(C666,2)<6,\"DS01\",\"DWE\")","v":"DS01"},"DS01","DS01","DS01","DWE","DWE"]
["Dessert",{"$f":"IF(WEEKDAY(B666,2)<6,\"Pomme\",\"\")","v":"Pomme"},{"$f":"IF(WEEKDAY(C666,2)<6,\"Pomme\",\"\")","v":"Pomme"},"Pomme","Pomme","Pomme","",""]
["Quantité dessert",{"$f":"IF(WEEKDAY(B666,2)<6,1,\"\")","v":1},{"$f":"IF(WEEKDAY(C666,2)<6,1,\"\")","v":1},1,1,1,"",""]
["Référence jour férié",{"$f":"IFERROR(\"JF\"&TEXT(MATCH(B666,TabJoursFériés[Date jour férié],0),\"00\"),\"\")","v":""},{"$f":"IFERROR(\"JF\"&TEXT(MATCH(C666,TabJoursFériés[Date jour férié],0),\"00\"),\"\")","v":""},{"$f":"IFERROR(\"JF\"&TEXT(MATCH(D666,TabJoursFériés[Date jour férié],0),\"00\"),\"\")","v":""},{"$f":"IFERROR(\"JF\"&TEXT(MATCH(E666,TabJoursFériés[Date jour férié],0),\"00\"),\"\")","v":""},{"$f":"IFERROR(\"JF\"&TEXT(MATCH(F666,TabJoursFériés[Date jour férié],0),\"00\"),\"\")","v":""},{"$f":"IFERROR(\"JF\"&TEXT(MATCH(G666,TabJoursFériés[Date jour férié],0),\"00\"),\"\")","v":""},{"$f":"IFERROR(\"JF\"&TEXT(MATCH(H666,TabJoursFériés[Date jour férié],0),\"00\"),\"\")","v":""}]
["Jour férié",{"$f":"IFERROR(INDEX(TabJoursFériés[Jour férié],MATCH(B666,TabJoursFériés[Date jour férié],0)),\"\")","v":""},{"$f":"IFERROR(INDEX(TabJoursFériés[Jour férié],MATCH(C666,TabJoursFériés[Date jour férié],0)),\"\")","v":""},{"$f":"IFERROR(INDEX(TabJoursFériés[Jour férié],MATCH(D666,TabJoursFériés[Date jour férié],0)),\"\")","v":""},{"$f":"IFERROR(INDEX(TabJoursFériés[Jour férié],MATCH(E666,TabJoursFériés[Date jour férié],0)),\"\")","v":""},{"$f":"IFERROR(INDEX(TabJoursFériés[Jour férié],MATCH(F666,TabJoursFériés[Date jour férié],0)),\"\")","v":""},{"$f":"IFERROR(INDEX(TabJoursFériés[Jour férié],MATCH(G666,TabJoursFériés[Date jour férié],0)),\"\")","v":""},{"$f":"IFERROR(INDEX(TabJoursFériés[Jour férié],MATCH(H666,TabJoursFériés[Date jour férié],0)),\"\")","v":""}]
["Proposition menus journaliers."]
["Numéro du menu","MJ281","MJ282","MJ283","MJ284","MJ285","MJ286","MJ287"]
["Date du menu",{"$f":"H666+1","v":"2024-10-07"},{"$f":"B683+1","v":"2024-10-08"},"2024-10-09","2024-10-10","2024-10-11","2024-10-12","2024-10-13"]
["Référence légume",{"$f":"CHOOSE(WEEKDAY(B683,2),\"LSLM\",\"LSLM\",\"LSMJ\",\"LSMJ\",\"LSV\",\"LWES\",\"LWED\")","v":"LSLM"},{"$f":"CHOOSE(WEEKDAY(C683,2),\"LSLM\",\"LSLM\",\"LSMJ\",\"LSMJ\",\"LSV\",\"LWES\",\"LWED\")","v":"LSLM"},"LSMJ","LSMJ","LSV","LWES","LWED"]
["Légume"]
["Quantité légume"]
["Référence légume 2"]
["Légume 2"]
["Quantité légume 2"]
["Référence viande","VS","VS","VS","VS","VS","VS","VS"]
["Viande"]
["Quantité viande"]
["Référence dessert",{"$f":"IF(WEEKDAY(B683,2)<6,\"DS01\",\"DWE\")","v":"DS01"},{"$f":"IF(WEEKDAY(C683,2)<6,\"DS01\",\"DWE\")","v":"DS01"},"DS01","DS01","DS01","DWE","DWE"]
["Dessert",{"$f":"IF(WEEKDAY(B683,2)<6,\"Pomme\",\"\")","v":"Pomme"},{"$f":"IF(WEEKDAY(C683,2)<6,\"Pomme\",\"\")","v":"Pomme"},"Pomme","Pomme","Pomme","",""]
["Quantité dessert",{"$f":"IF(WEEKDAY(B683,2)<6,1,\"\")","v":1},{"$f":"IF(WEEKDAY(C683,2)<6,1,\"\")","v":1},1,1,1,"",""]
["Référence jour férié",{"$f":"IFERROR(\"JF\"&TEXT(MATCH(B683,TabJoursFériés[Date jour férié],0),\"00\"),\"\")","v":""},{"$f":"IFERROR(\"JF\"&TEXT(MATCH(C683,TabJoursFériés[Date jour férié],0),\"00\"),\"\")","v":""},{"$f":"IFERROR(\"JF\"&TEXT(MATCH(D683,TabJoursFériés[Date jour férié],0),\"00\"),\"\")","v":""},{"$f":"IFERROR(\"JF\"&TEXT(MATCH(E683,TabJoursFériés[Date jour férié],0),\"00\"),\"\")","v":""},{"$f":"IFERROR(\"JF\"&TEXT(MATCH(F683,TabJoursFériés[Date jour férié],0),\"00\"),\"\")","v":""},{"$f":"IFERROR(\"JF\"&TEXT(MATCH(G683,TabJoursFériés[Date jour férié],0),\"00\"),\"\")","v":""},{"$f":"IFERROR(\"JF\"&TEXT(MATCH(H683,TabJoursFériés[Date jour férié],0),\"00\"),\"\")","v":""}]
["Jour férié",{"$f":"IFERROR(INDEX(TabJoursFériés[Jour férié],MATCH(B683,TabJoursFériés[Date jour férié],0)),\"\")","v":""},{"$f":"IFERROR(INDEX(TabJoursFériés[Jour férié],MATCH(C683,TabJoursFériés[Date jour férié],0)),\"\")","v":""},{"$f":"IFERROR(INDEX(TabJoursFériés[Jour férié],MATCH(D683,TabJoursFériés[Date jour férié],0)),\"\")","v":""},{"$f":"IFERROR(INDEX(TabJoursFériés[Jour férié],MATCH(E683,TabJoursFériés[Date jour férié],0)),\"\")","v":""},{"$f":"IFERROR(INDEX(TabJoursFériés[Jour férié],MATCH(F683,TabJoursFériés[Date jour férié],0)),\"\")","v":""},{"$f":"IFERROR(INDEX(TabJoursFériés[Jour férié],MATCH(G683,TabJoursFériés[Date jour férié],0)),\"\")","v":""},{"$f":"IFERROR(INDEX(TabJoursFériés[Jour férié],MATCH(H683,TabJoursFériés[Date jour férié],0)),\"\")","v":""}]
["Proposition menus journaliers."]
["Numéro du menu","MJ288","MJ289","MJ290","MJ291","MJ292","MJ293","MJ294"]
["Date du menu",{"$f":"H683+1","v":"2024-10-14"},{"$f":"B700+1","v":"2024-10-15"},"2024-10-16","2024-10-17","2024-10-18","2024-10-19","2024-10-20"]
["Référence légume",{"$f":"CHOOSE(WEEKDAY(B700,2),\"LSLM\",\"LSLM\",\"LSMJ\",\"LSMJ\",\"LSV\",\"LWES\",\"LWED\")","v":"LSLM"},{"$f":"CHOOSE(WEEKDAY(C700,2),\"LSLM\",\"LSLM\",\"LSMJ\",\"LSMJ\",\"LSV\",\"LWES\",\"LWED\")","v":"LSLM"},"LSMJ","LSMJ","LSV","LWES","LWED"]
["Légume"]
["Quantité légume"]
["Référence légume 2"]
["Légume 2"]
["Quantité légume 2"]
["Référence viande","VS","VS","VS","VS","VS","VS","VS"]
["Viande"]
["Quantité viande"]
["Référence dessert",{"$f":"IF(WEEKDAY(B700,2)<6,\"DS01\",\"DWE\")","v":"DS01"},{"$f":"IF(WEEKDAY(C700,2)<6,\"DS01\",\"DWE\")","v":"DS01"},"DS01","DS01","DS01","DWE","DWE"]
["Dessert",{"$f":"IF(WEEKDAY(B700,2)<6,\"Pomme\",\"\")","v":"Pomme"},{"$f":"IF(WEEKDAY(C700,2)<6,\"Pomme\",\"\")","v":"Pomme"},"Pomme","Pomme","Pomme","",""]
["Quantité dessert",{"$f":"IF(WEEKDAY(B700,2)<6,1,\"\")","v":1},{"$f":"IF(WEEKDAY(C700,2)<6,1,\"\")","v":1},1,1,1,"",""]
["Référence jour férié",{"$f":"IFERROR(\"JF\"&TEXT(MATCH(B700,TabJoursFériés[Date jour férié],0),\"00\"),\"\")","v":""},{"$f":"IFERROR(\"JF\"&TEXT(MATCH(C700,TabJoursFériés[Date jour férié],0),\"00\"),\"\")","v":""},{"$f":"IFERROR(\"JF\"&TEXT(MATCH(D700,TabJoursFériés[Date jour férié],0),\"00\"),\"\")","v":""},{"$f":"IFERROR(\"JF\"&TEXT(MATCH(E700,TabJoursFériés[Date jour férié],0),\"00\"),\"\")","v":""},{"$f":"IFERROR(\"JF\"&TEXT(MATCH(F700,TabJoursFériés[Date jour férié],0),\"00\"),\"\")","v":""},{"$f":"IFERROR(\"JF\"&TEXT(MATCH(G700,TabJoursFériés[Date jour férié],0),\"00\"),\"\")","v":""},{"$f":"IFERROR(\"JF\"&TEXT(MATCH(H700,TabJoursFériés[Date jour férié],0),\"00\"),\"\")","v":""}]
["Jour férié",{"$f":"IFERROR(INDEX(TabJoursFériés[Jour férié],MATCH(B700,TabJoursFériés[Date jour férié],0)),\"\")","v":""},{"$f":"IFERROR(INDEX(TabJoursFériés[Jour férié],MATCH(C700,TabJoursFériés[Date jour férié],0)),\"\")","v":""},{"$f":"IFERROR(INDEX(TabJoursFériés[Jour férié],MATCH(D700,TabJoursFériés[Date jour férié],0)),\"\")","v":""},{"$f":"IFERROR(INDEX(TabJoursFériés[Jour férié],MATCH(E700,TabJoursFériés[Date jour férié],0)),\"\")","v":""},{"$f":"IFERROR(INDEX(TabJoursFériés[Jour férié],MATCH(F700,TabJoursFériés[Date jour férié],0)),\"\")","v":""},{"$f":"IFERROR(INDEX(TabJoursFériés[Jour férié],MATCH(G700,TabJoursFériés[Date jour férié],0)),\"\")","v":""},{"$f":"IFERROR(INDEX(TabJoursFériés[Jour férié],MATCH(H700,TabJoursFériés[Date jour férié],0)),\"\")","v":""}]
["Proposition menus journaliers."]
["Numéro du menu","MJ295","MJ296","MJ297","MJ298","MJ299","MJ300","MJ301"]
["Date du menu",{"$f":"H700+1","v":"2024-10-21"},{"$f":"B717+1","v":"2024-10-22"},"2024-10-23","2024-10-24","2024-10-25","2024-10-26","2024-10-27"]
["Référence légume",{"$f":"CHOOSE(WEEKDAY(B717,2),\"LSLM\",\"LSLM\",\"LSMJ\",\"LSMJ\",\"LSV\",\"LWES\",\"LWED\")","v":"LSLM"},{"$f":"CHOOSE(WEEKDAY(C717,2),\"LSLM\",\"LSLM\",\"LSMJ\",\"LSMJ\",\"LSV\",\"LWES\",\"LWED\")","v":"LSLM"},"LSMJ","LSMJ","LSV","LWES","LWED"]
["Légume"]
["Quantité légume"]
["Référence légume 2"]
["Légume 2"]
["Quantité légume 2"]
["Référence viande","VS","VS","VS","VS","VS","VS","VS"]
["Viande"]
["Quantité viande"]
["Référence dessert",{"$f":"IF(WEEKDAY(B717,2)<6,\"DS01\",\"DWE\")","v":"DS01"},{"$f":"IF(WEEKDAY(C717,2)<6,\"DS01\",\"DWE\")","v":"DS01"},"DS01","DS01","DS01","DWE","DWE"]
["Dessert",{"$f":"IF(WEEKDAY(B717,2)<6,\"Pomme\",\"\")","v":"Pomme"},{"$f":"IF(WEEKDAY(C717,2)<6,\"Pomme\",\"\")","v":"Pomme"},"Pomme","Pomme","Pomme","",""]
["Quantité dessert",{"$f":"IF(WEEKDAY(B717,2)<6,1,\"\")","v":1},{"$f":"IF(WEEKDAY(C717,2)<6,1,\"\")","v":1},1,1,1,"",""]
["Référence jour férié",{"$f":"IFERROR(\"JF\"&TEXT(MATCH(B717,TabJoursFériés[Date jour férié],0),\"00\"),\"\")","v":""},{"$f":"IFERROR(\"JF\"&TEXT(MATCH(C717,TabJoursFériés[Date jour férié],0),\"00\"),\"\")","v":""},{"$f":"IFERROR(\"JF\"&TEXT(MATCH(D717,TabJoursFériés[Date jour férié],0),\"00\"),\"\")","v":""},{"$f":"IFERROR(\"JF\"&TEXT(MATCH(E717,TabJoursFériés[Date jour férié],0),\"00\"),\"\")","v":""},{"$f":"IFERROR(\"JF\"&TEXT(MATCH(F717,TabJoursFériés[Date jour férié],0),\"00\"),\"\")","v":""},{"$f":"IFERROR(\"JF\"&TEXT(MATCH(G717,TabJoursFériés[Date jour férié],0),\"00\"),\"\")","v":""},{"$f":"IFERROR(\"JF\"&TEXT(MATCH(H717,TabJoursFériés[Date jour férié],0),\"00\"),\"\")","v":""}]
["Jour férié",{"$f":"IFERROR(INDEX(TabJoursFériés[Jour férié],MATCH(B717,TabJoursFériés[Date jour férié],0)),\"\")","v":""},{"$f":"IFERROR(INDEX(TabJoursFériés[Jour férié],MATCH(C717,TabJoursFériés[Date jour férié],0)),\"\")","v":""},{"$f":"IFERROR(INDEX(TabJoursFériés[Jour férié],MATCH(D717,TabJoursFériés[Date jour férié],0)),\"\")","v":""},{"$f":"IFERROR(INDEX(TabJoursFériés[Jour férié],MATCH(E717,TabJoursFériés[Date jour férié],0)),\"\")","v":""},{"$f":"IFERROR(INDEX(TabJoursFériés[Jour férié],MATCH(F717,TabJoursFériés[Date jour férié],0)),\"\")","v":""},{"$f":"IFERROR(INDEX(TabJoursFériés[Jour férié],MATCH(G717,TabJoursFériés[Date jour férié],0)),\"\")","v":""},{"$f":"IFERROR(INDEX(TabJoursFériés[Jour férié],MATCH(H717,TabJoursFériés[Date jour férié],0)),\"\")","v":""}]
["Proposition menus journaliers."]
["Numéro du menu","MJ302","MJ303","MJ304","MJ305","MJ306","MJ307","MJ308"]
["Date du menu",{"$f":"H717+1","v":"2024-10-28"},{"$f":"B734+1","v":"2024-10-29"},"2024-10-30","2024-10-31","2024-11-01","2024-11-02","2024-11-03"]
["Référence légume",{"$f":"CHOOSE(WEEKDAY(B734,2),\"LSLM\",\"LSLM\",\"LSMJ\",\"LSMJ\",\"LSV\",\"LWES\",\"LWED\")","v":"LSLM"},{"$f":"CHOOSE(WEEKDAY(C734,2),\"LSLM\",\"LSLM\",\"LSMJ\",\"LSMJ\",\"LSV\",\"LWES\",\"LWED\")","v":"LSLM"},"LSMJ","LSMJ","LSV","LWES","LWED"]
["Légume"]
["Quantité légume"]
["Référence légume 2"]
["Légume 2"]
["Quantité légume 2"]
["Référence viande","VS","VS","VS","VS","VS","VS","VS"]
["Viande"]
["Quantité viande"]
["Référence dessert",{"$f":"IF(WEEKDAY(B734,2)<6,\"DS01\",\"DWE\")","v":"DS01"},{"$f":"IF(WEEKDAY(C734,2)<6,\"DS01\",\"DWE\")","v":"DS01"},"DS01","DS01","DS01","DWE","DWE"]
["Dessert",{"$f":"IF(WEEKDAY(B734,2)<6,\"Pomme\",\"\")","v":"Pomme"},{"$f":"IF(WEEKDAY(C734,2)<6,\"Pomme\",\"\")","v":"Pomme"},"Pomme","Pomme","Pomme","",""]
["Quantité dessert",{"$f":"IF(WEEKDAY(B734,2)<6,1,\"\")","v":1},{"$f":"IF(WEEKDAY(C734,2)<6,1,\"\")","v":1},1,1,1,"",""]
["Référence jour férié",{"$f":"IFERROR(\"JF\"&TEXT(MATCH(B734,TabJoursFériés[Date jour férié],0),\"00\"),\"\")","v":""},{"$f":"IFERROR(\"JF\"&TEXT(MATCH(C734,TabJoursFériés[Date jour férié],0),\"00\"),\"\")","v":""},{"$f":"IFERROR(\"JF\"&TEXT(MATCH(D734,TabJoursFériés[Date jour férié],0),\"00\"),\"\")","v":""},{"$f":"IFERROR(\"JF\"&TEXT(MATCH(E734,TabJoursFériés[Date jour férié],0),\"00\"),\"\")","v":""},{"$f":"IFERROR(\"JF\"&TEXT(MATCH(F734,TabJoursFériés[Date jour férié],0),\"00\"),\"\")","v":"JF11"},{"$f":"IFERROR(\"JF\"&TEXT(MATCH(G734,TabJoursFériés[Date jour férié],0),\"00\"),\"\")","v":""},{"$f":"IFERROR(\"JF\"&TEXT(MATCH(H734,TabJoursFériés[Date jour férié],0),\"00\"),\"\")","v":""}]
["Jour férié",{"$f":"IFERROR(INDEX(TabJoursFériés[Jour férié],MATCH(B734,TabJoursFériés[Date jour férié],0)),\"\")","v":""},{"$f":"IFERROR(INDEX(TabJoursFériés[Jour férié],MATCH(C734,TabJoursFériés[Date jour férié],0)),\"\")","v":""},{"$f":"IFERROR(INDEX(TabJoursFériés[Jour férié],MATCH(D734,TabJoursFériés[Date jour férié],0)),\"\")","v":""},{"$f":"IFERROR(INDEX(TabJoursFériés[Jour férié],MATCH(E734,TabJoursFériés[Date jour férié],0)),\"\")","v":""},{"$f":"IFERROR(INDEX(TabJoursFériés[Jour férié],MATCH(F734,TabJoursFériés[Date jour férié],0)),\"\")","v":"Toussaint"},{"$f":"IFERROR(INDEX(TabJoursFériés[Jour férié],MATCH(G734,TabJoursFériés[Date jour férié],0)),\"\")","v":""},{"$f":"IFERROR(INDEX(TabJoursFériés[Jour férié],MATCH(H734,TabJoursFériés[Date jour férié],0)),\"\")","v":""}]
["Proposition menus journaliers."]
["Numéro du menu","MJ309","MJ310","MJ311","MJ312","MJ313","MJ314","MJ315"]
["Date du menu",{"$f":"H734+1","v":"2024-11-04"},{"$f":"B751+1","v":"2024-11-05"},"2024-11-06","2024-11-07","2024-11-08","2024-11-09","2024-11-10"]
["Référence légume",{"$f":"CHOOSE(WEEKDAY(B751,2),\"LSLM\",\"LSLM\",\"LSMJ\",\"LSMJ\",\"LSV\",\"LWES\",\"LWED\")","v":"LSLM"},{"$f":"CHOOSE(WEEKDAY(C751,2),\"LSLM\",\"LSLM\",\"LSMJ\",\"LSMJ\",\"LSV\",\"LWES\",\"LWED\")","v":"LSLM"},"LSMJ","LSMJ","LSV","LWES","LWED"]
["Légume"]
["Quantité légume"]
["Référence légume 2"]
["Légume 2"]
["Quantité légume 2"]
["Référence viande","VS","VS","VS","VS","VS","VS","VS"]
["Viande"]
["Quantité viande"]
["Référence dessert",{"$f":"IF(WEEKDAY(B751,2)<6,\"DS01\",\"DWE\")","v":"DS01"},{"$f":"IF(WEEKDAY(C751,2)<6,\"DS01\",\"DWE\")","v":"DS01"},"DS01","DS01","DS01","DWE","DWE"]
["Dessert",{"$f":"IF(WEEKDAY(B751,2)<6,\"Pomme\",\"\")","v":"Pomme"},{"$f":"IF(WEEKDAY(C751,2)<6,\"Pomme\",\"\")","v":"Pomme"},"Pomme","Pomme","Pomme","",""]
["Quantité dessert",{"$f":"IF(WEEKDAY(B751,2)<6,1,\"\")","v":1},{"$f":"IF(WEEKDAY(C751,2)<6,1,\"\")","v":1},1,1,1,"",""]
["Référence jour férié",{"$f":"IFERROR(\"JF\"&TEXT(MATCH(B751,TabJoursFériés[Date jour férié],0),\"00\"),\"\")","v":""},{"$f":"IFERROR(\"JF\"&TEXT(MATCH(C751,TabJoursFériés[Date jour férié],0),\"00\"),\"\")","v":""},{"$f":"IFERROR(\"JF\"&TEXT(MATCH(D751,TabJoursFériés[Date jour férié],0),\"00\"),\"\")","v":""},{"$f":"IFERROR(\"JF\"&TEXT(MATCH(E751,TabJoursFériés[Date jour férié],0),\"00\"),\"\")","v":""},{"$f":"IFERROR(\"JF\"&TEXT(MATCH(F751,TabJoursFériés[Date jour férié],0),\"00\"),\"\")","v":""},{"$f":"IFERROR(\"JF\"&TEXT(MATCH(G751,TabJoursFériés[Date jour férié],0),\"00\"),\"\")","v":""},{"$f":"IFERROR(\"JF\"&TEXT(MATCH(H751,TabJoursFériés[Date jour férié],0),\"00\"),\"\")","v":""}]
["Jour férié",{"$f":"IFERROR(INDEX(TabJoursFériés[Jour férié],MATCH(B751,TabJoursFériés[Date jour férié],0)),\"\")","v":""},{"$f":"IFERROR(INDEX(TabJoursFériés[Jour férié],MATCH(C751,TabJoursFériés[Date jour férié],0)),\"\")","v":""},{"$f":"IFERROR(INDEX(TabJoursFériés[Jour férié],MATCH(D751,TabJoursFériés[Date jour férié],0)),\"\")","v":""},{"$f":"IFERROR(INDEX(TabJoursFériés[Jour férié],MATCH(E751,TabJoursFériés[Date jour férié],0)),\"\")","v":""},{"$f":"IFERROR(INDEX(TabJoursFériés[Jour férié],MATCH(F751,TabJoursFériés[Date jour férié],0)),\"\")","v":""},{"$f":"IFERROR(INDEX(TabJoursFériés[Jour férié],MATCH(G751,TabJoursFériés[Date jour férié],0)),\"\")","v":""},{"$f":"IFERROR(INDEX(TabJoursFériés[Jour férié],MATCH(H751,TabJoursFériés[Date jour férié],0)),\"\")","v":""}]
["Proposition menus journaliers."]
["Numéro du menu","MJ316","MJ317","MJ318","MJ319","MJ320","MJ321","MJ322"]
["Date du menu",{"$f":"H751+1","v":"2024-11-11"},{"$f":"B768+1","v":"2024-11-12"},"2024-11-13","2024-11-14","2024-11-15","2024-11-16","2024-11-17"]
["Référence légume",{"$f":"CHOOSE(WEEKDAY(B768,2),\"LSLM\",\"LSLM\",\"LSMJ\",\"LSMJ\",\"LSV\",\"LWES\",\"LWED\")","v":"LSLM"},{"$f":"CHOOSE(WEEKDAY(C768,2),\"LSLM\",\"LSLM\",\"LSMJ\",\"LSMJ\",\"LSV\",\"LWES\",\"LWED\")","v":"LSLM"},"LSMJ","LSMJ","LSV","LWES","LWED"]
["Légume"]
["Quantité légume"]
["Référence légume 2"]
["Légume 2"]
["Quantité légume 2"]
["Référence viande","VS","VS","VS","VS","VS","VS","VS"]
["Viande"]
["Quantité viande"]
["Référence dessert",{"$f":"IF(WEEKDAY(B768,2)<6,\"DS01\",\"DWE\")","v":"DS01"},{"$f":"IF(WEEKDAY(C768,2)<6,\"DS01\",\"DWE\")","v":"DS01"},"DS01","DS01","DS01","DWE","DWE"]
["Dessert",{"$f":"IF(WEEKDAY(B768,2)<6,\"Pomme\",\"\")","v":"Pomme"},{"$f":"IF(WEEKDAY(C768,2)<6,\"Pomme\",\"\")","v":"Pomme"},"Pomme","Pomme","Pomme","",""]
["Quantité dessert",{"$f":"IF(WEEKDAY(B768,2)<6,1,\"\")","v":1},{"$f":"IF(WEEKDAY(C768,2)<6,1,\"\")","v":1},1,1,1,"",""]
["Référence jour férié",{"$f":"IFERROR(\"JF\"&TEXT(MATCH(B768,TabJoursFériés[Date jour férié],0),\"00\"),\"\")","v":"JF12"},{"$f":"IFERROR(\"JF\"&TEXT(MATCH(C768,TabJoursFériés[Date jour férié],0),\"00\"),\"\")","v":""},{"$f":"IFERROR(\"JF\"&TEXT(MATCH(D768,TabJoursFériés[Date jour férié],0),\"00\"),\"\")","v":""},{"$f":"IFERROR(\"JF\"&TEXT(MATCH(E768,TabJoursFériés[Date jour férié],0),\"00\"),\"\")","v":""},{"$f":"IFERROR(\"JF\"&TEXT(MATCH(F768,TabJoursFériés[Date jour férié],0),\"00\"),\"\")","v":""},{"$f":"IFERROR(\"JF\"&TEXT(MATCH(G768,TabJoursFériés[Date jour férié],0),\"00\"),\"\")","v":""},{"$f":"IFERROR(\"JF\"&TEXT(MATCH(H768,TabJoursFériés[Date jour férié],0),\"00\"),\"\")","v":""}]
["Jour férié",{"$f":"IFERROR(INDEX(TabJoursFériés[Jour férié],MATCH(B768,TabJoursFériés[Date jour férié],0)),\"\")","v":"Armistice 1918"},{"$f":"IFERROR(INDEX(TabJoursFériés[Jour férié],MATCH(C768,TabJoursFériés[Date jour férié],0)),\"\")","v":""},{"$f":"IFERROR(INDEX(TabJoursFériés[Jour férié],MATCH(D768,TabJoursFériés[Date jour férié],0)),\"\")","v":""},{"$f":"IFERROR(INDEX(TabJoursFériés[Jour férié],MATCH(E768,TabJoursFériés[Date jour férié],0)),\"\")","v":""},{"$f":"IFERROR(INDEX(TabJoursFériés[Jour férié],MATCH(F768,TabJoursFériés[Date jour férié],0)),\"\")","v":""},{"$f":"IFERROR(INDEX(TabJoursFériés[Jour férié],MATCH(G768,TabJoursFériés[Date jour férié],0)),\"\")","v":""},{"$f":"IFERROR(INDEX(TabJoursFériés[Jour férié],MATCH(H768,TabJoursFériés[Date jour férié],0)),\"\")","v":""}]
["Proposition menus journaliers."]
["Numéro du menu","MJ323","MJ324","MJ325","MJ326","MJ327","MJ328","MJ329"]
["Date du menu",{"$f":"H768+1","v":"2024-11-18"},{"$f":"B785+1","v":"2024-11-19"},"2024-11-20","2024-11-21","2024-11-22","2024-11-23","2024-11-24"]
["Référence légume",{"$f":"CHOOSE(WEEKDAY(B785,2),\"LSLM\",\"LSLM\",\"LSMJ\",\"LSMJ\",\"LSV\",\"LWES\",\"LWED\")","v":"LSLM"},{"$f":"CHOOSE(WEEKDAY(C785,2),\"LSLM\",\"LSLM\",\"LSMJ\",\"LSMJ\",\"LSV\",\"LWES\",\"LWED\")","v":"LSLM"},"LSMJ","LSMJ","LSV","LWES","LWED"]
["Légume"]
["Quantité légume"]
["Référence légume 2"]
["Légume 2"]
["Quantité légume 2"]
["Référence viande","VS","VS","VS","VS","VS","VS","VS"]
["Viande"]
["Quantité viande"]
["Référence dessert",{"$f":"IF(WEEKDAY(B785,2)<6,\"DS01\",\"DWE\")","v":"DS01"},{"$f":"IF(WEEKDAY(C785,2)<6,\"DS01\",\"DWE\")","v":"DS01"},"DS01","DS01","DS01","DWE","DWE"]
["Dessert",{"$f":"IF(WEEKDAY(B785,2)<6,\"Pomme\",\"\")","v":"Pomme"},{"$f":"IF(WEEKDAY(C785,2)<6,\"Pomme\",\"\")","v":"Pomme"},"Pomme","Pomme","Pomme","",""]
["Quantité dessert",{"$f":"IF(WEEKDAY(B785,2)<6,1,\"\")","v":1},{"$f":"IF(WEEKDAY(C785,2)<6,1,\"\")","v":1},1,1,1,"",""]
["Référence jour férié",{"$f":"IFERROR(\"JF\"&TEXT(MATCH(B785,TabJoursFériés[Date jour férié],0),\"00\"),\"\")","v":""},{"$f":"IFERROR(\"JF\"&TEXT(MATCH(C785,TabJoursFériés[Date jour férié],0),\"00\"),\"\")","v":""},{"$f":"IFERROR(\"JF\"&TEXT(MATCH(D785,TabJoursFériés[Date jour férié],0),\"00\"),\"\")","v":""},{"$f":"IFERROR(\"JF\"&TEXT(MATCH(E785,TabJoursFériés[Date jour férié],0),\"00\"),\"\")","v":""},{"$f":"IFERROR(\"JF\"&TEXT(MATCH(F785,TabJoursFériés[Date jour férié],0),\"00\"),\"\")","v":""},{"$f":"IFERROR(\"JF\"&TEXT(MATCH(G785,TabJoursFériés[Date jour férié],0),\"00\"),\"\")","v":""},{"$f":"IFERROR(\"JF\"&TEXT(MATCH(H785,TabJoursFériés[Date jour férié],0),\"00\"),\"\")","v":""}]
["Jour férié",{"$f":"IFERROR(INDEX(TabJoursFériés[Jour férié],MATCH(B785,TabJoursFériés[Date jour férié],0)),\"\")","v":""},{"$f":"IFERROR(INDEX(TabJoursFériés[Jour férié],MATCH(C785,TabJoursFériés[Date jour férié],0)),\"\")","v":""},{"$f":"IFERROR(INDEX(TabJoursFériés[Jour férié],MATCH(D785,TabJoursFériés[Date jour férié],0)),\"\")","v":""},{"$f":"IFERROR(INDEX(TabJoursFériés[Jour férié],MATCH(E785,TabJoursFériés[Date jour férié],0)),\"\")","v":""},{"$f":"IFERROR(INDEX(TabJoursFériés[Jour férié],MATCH(F785,TabJoursFériés[Date jour férié],0)),\"\")","v":""},{"$f":"IFERROR(INDEX(TabJoursFériés[Jour férié],MATCH(G785,TabJoursFériés[Date jour férié],0)),\"\")","v":""},{"$f":"IFERROR(INDEX(TabJoursFériés[Jour férié],MATCH(H785,TabJoursFériés[Date jour férié],0)),\"\")","v":""}]
["Proposition menus journaliers."]
["Numéro du menu","MJ330","MJ331","MJ332","MJ333","MJ334","MJ335","MJ336"]
["Date du menu",{"$f":"H785+1","v":"2024-11-25"},{"$f":"B802+1","v":"2024-11-26"},"2024-11-27","2024-11-28","2024-11-29","2024-11-30","2024-12-01"]
["Référence légume",{"$f":"CHOOSE(WEEKDAY(B802,2),\"LSLM\",\"LSLM\",\"LSMJ\",\"LSMJ\",\"LSV\",\"LWES\",\"LWED\")","v":"LSLM"},{"$f":"CHOOSE(WEEKDAY(C802,2),\"LSLM\",\"LSLM\",\"LSMJ\",\"LSMJ\",\"LSV\",\"LWES\",\"LWED\")","v":"LSLM"},"LSMJ","LSMJ","LSV","LWES","LWED"]
["Légume"]
["Quantité légume"]
["Référence légume 2"]
["Légume 2"]
["Quantité légume 2"]
["Référence viande","VS","VS","VS","VS","VS","VS","VS"]
["Viande"]
["Quantité viande"]
["Référence dessert",{"$f":"IF(WEEKDAY(B802,2)<6,\"DS01\",\"DWE\")","v":"DS01"},{"$f":"IF(WEEKDAY(C802,2)<6,\"DS01\",\"DWE\")","v":"DS01"},"DS01","DS01","DS01","DWE","DWE"]
["Dessert",{"$f":"IF(WEEKDAY(B802,2)<6,\"Pomme\",\"\")","v":"Pomme"},{"$f":"IF(WEEKDAY(C802,2)<6,\"Pomme\",\"\")","v":"Pomme"},"Pomme","Pomme","Pomme","",""]
["Quantité dessert",{"$f":"IF(WEEKDAY(B802,2)<6,1,\"\")","v":1},{"$f":"IF(WEEKDAY(C802,2)<6,1,\"\")","v":1},1,1,1,"",""]
["Référence jour férié",{"$f":"IFERROR(\"JF\"&TEXT(MATCH(B802,TabJoursFériés[Date jour férié],0),\"00\"),\"\")","v":""},{"$f":"IFERROR(\"JF\"&TEXT(MATCH(C802,TabJoursFériés[Date jour férié],0),\"00\"),\"\")","v":""},{"$f":"IFERROR(\"JF\"&TEXT(MATCH(D802,TabJoursFériés[Date jour férié],0),\"00\"),\"\")","v":""},{"$f":"IFERROR(\"JF\"&TEXT(MATCH(E802,TabJoursFériés[Date jour férié],0),\"00\"),\"\")","v":""},{"$f":"IFERROR(\"JF\"&TEXT(MATCH(F802,TabJoursFériés[Date jour férié],0),\"00\"),\"\")","v":""},{"$f":"IFERROR(\"JF\"&TEXT(MATCH(G802,TabJoursFériés[Date jour férié],0),\"00\"),\"\")","v":""},{"$f":"IFERROR(\"JF\"&TEXT(MATCH(H802,TabJoursFériés[Date jour férié],0),\"00\"),\"\")","v":""}]
["Jour férié",{"$f":"IFERROR(INDEX(TabJoursFériés[Jour férié],MATCH(B802,TabJoursFériés[Date jour férié],0)),\"\")","v":""},{"$f":"IFERROR(INDEX(TabJoursFériés[Jour férié],MATCH(C802,TabJoursFériés[Date jour férié],0)),\"\")","v":""},{"$f":"IFERROR(INDEX(TabJoursFériés[Jour férié],MATCH(D802,TabJoursFériés[Date jour férié],0)),\"\")","v":""},{"$f":"IFERROR(INDEX(TabJoursFériés[Jour férié],MATCH(E802,TabJoursFériés[Date jour férié],0)),\"\")","v":""},{"$f":"IFERROR(INDEX(TabJoursFériés[Jour férié],MATCH(F802,TabJoursFériés[Date jour férié],0)),\"\")","v":""},{"$f":"IFERROR(INDEX(TabJoursFériés[Jour férié],MATCH(G802,TabJoursFériés[Date jour férié],0)),\"\")","v":""},{"$f":"IFERROR(INDEX(TabJoursFériés[Jour férié],MATCH(H802,TabJoursFériés[Date jour férié],0)),\"\")","v":""}]
["Proposition menus journaliers."]
["Numéro du menu","MJ337","MJ338","MJ339","MJ340","MJ341","MJ342","MJ343"]
["Date du menu",{"$f":"H802+1","v":"2024-12-02"},{"$f":"B819+1","v":"2024-12-03"},"2024-12-04","2024-12-05","2024-12-06","2024-12-07","2024-12-08"]
["Référence légume",{"$f":"CHOOSE(WEEKDAY(B819,2),\"LSLM\",\"LSLM\",\"LSMJ\",\"LSMJ\",\"LSV\",\"LWES\",\"LWED\")","v":"LSLM"},{"$f":"CHOOSE(WEEKDAY(C819,2),\"LSLM\",\"LSLM\",\"LSMJ\",\"LSMJ\",\"LSV\",\"LWES\",\"LWED\")","v":"LSLM"},"LSMJ","LSMJ","LSV","LWES","LWED"]
["Légume"]
["Quantité légume"]
["Référence légume 2"]
["Légume 2"]
["Quantité légume 2"]
["Référence viande","VS","VS","VS","VS","VS","VS","VS"]
["Viande"]
["Quantité viande"]
["Référence dessert",{"$f":"IF(WEEKDAY(B819,2)<6,\"DS01\",\"DWE\")","v":"DS01"},{"$f":"IF(WEEKDAY(C819,2)<6,\"DS01\",\"DWE\")","v":"DS01"},"DS01","DS01","DS01","DWE","DWE"]
["Dessert",{"$f":"IF(WEEKDAY(B819,2)<6,\"Pomme\",\"\")","v":"Pomme"},{"$f":"IF(WEEKDAY(C819,2)<6,\"Pomme\",\"\")","v":"Pomme"},"Pomme","Pomme","Pomme","",""]
["Quantité dessert",{"$f":"IF(WEEKDAY(B819,2)<6,1,\"\")","v":1},{"$f":"IF(WEEKDAY(C819,2)<6,1,\"\")","v":1},1,1,1,"",""]
["Référence jour férié",{"$f":"IFERROR(\"JF\"&TEXT(MATCH(B819,TabJoursFériés[Date jour férié],0),\"00\"),\"\")","v":""},{"$f":"IFERROR(\"JF\"&TEXT(MATCH(C819,TabJoursFériés[Date jour férié],0),\"00\"),\"\")","v":""},{"$f":"IFERROR(\"JF\"&TEXT(MATCH(D819,TabJoursFériés[Date jour férié],0),\"00\"),\"\")","v":""},{"$f":"IFERROR(\"JF\"&TEXT(MATCH(E819,TabJoursFériés[Date jour férié],0),\"00\"),\"\")","v":""},{"$f":"IFERROR(\"JF\"&TEXT(MATCH(F819,TabJoursFériés[Date jour férié],0),\"00\"),\"\")","v":""},{"$f":"IFERROR(\"JF\"&TEXT(MATCH(G819,TabJoursFériés[Date jour férié],0),\"00\"),\"\")","v":""},{"$f":"IFERROR(\"JF\"&TEXT(MATCH(H819,TabJoursFériés[Date jour férié],0),\"00\"),\"\")","v":""}]
["Jour férié",{"$f":"IFERROR(INDEX(TabJoursFériés[Jour férié],MATCH(B819,TabJoursFériés[Date jour férié],0)),\"\")","v":""},{"$f":"IFERROR(INDEX(TabJoursFériés[Jour férié],MATCH(C819,TabJoursFériés[Date jour férié],0)),\"\")","v":""},{"$f":"IFERROR(INDEX(TabJoursFériés[Jour férié],MATCH(D819,TabJoursFériés[Date jour férié],0)),\"\")","v":""},{"$f":"IFERROR(INDEX(TabJoursFériés[Jour férié],MATCH(E819,TabJoursFériés[Date jour férié],0)),\"\")","v":""},{"$f":"IFERROR(INDEX(TabJoursFériés[Jour férié],MATCH(F819,TabJoursFériés[Date jour férié],0)),\"\")","v":""},{"$f":"IFERROR(INDEX(TabJoursFériés[Jour férié],MATCH(G819,TabJoursFériés[Date jour férié],0)),\"\")","v":""},{"$f":"IFERROR(INDEX(TabJoursFériés[Jour férié],MATCH(H819,TabJoursFériés[Date jour férié],0)),\"\")","v":""}]
["Proposition menus journaliers."]
["Numéro du menu","MJ344","MJ345","MJ346","MJ347","MJ348","MJ349","MJ350"]
["Date du menu",{"$f":"H819+1","v":"2024-12-09"},{"$f":"B836+1","v":"2024-12-10"},"2024-12-11","2024-12-12","2024-12-13","2024-12-14","2024-12-15"]
["Référence légume",{"$f":"CHOOSE(WEEKDAY(B836,2),\"LSLM\",\"LSLM\",\"LSMJ\",\"LSMJ\",\"LSV\",\"LWES\",\"LWED\")","v":"LSLM"},{"$f":"CHOOSE(WEEKDAY(C836,2),\"LSLM\",\"LSLM\",\"LSMJ\",\"LSMJ\",\"LSV\",\"LWES\",\"LWED\")","v":"LSLM"},"LSMJ","LSMJ","LSV","LWES","LWED"]
["Légume"]
["Quantité légume"]
["Référence légume 2"]
["Légume 2"]
["Quantité légume 2"]
["Référence viande","VS","VS","VS","VS","VS","VS","VS"]
["Viande"]
["Quantité viande"]
["Référence dessert",{"$f":"IF(WEEKDAY(B836,2)<6,\"DS01\",\"DWE\")","v":"DS01"},{"$f":"IF(WEEKDAY(C836,2)<6,\"DS01\",\"DWE\")","v":"DS01"},"DS01","DS01","DS01","DWE","DWE"]
["Dessert",{"$f":"IF(WEEKDAY(B836,2)<6,\"Pomme\",\"\")","v":"Pomme"},{"$f":"IF(WEEKDAY(C836,2)<6,\"Pomme\",\"\")","v":"Pomme"},"Pomme","Pomme","Pomme","",""]
["Quantité dessert",{"$f":"IF(WEEKDAY(B836,2)<6,1,\"\")","v":1},{"$f":"IF(WEEKDAY(C836,2)<6,1,\"\")","v":1},1,1,1,"",""]
["Référence jour férié",{"$f":"IFERROR(\"JF\"&TEXT(MATCH(B836,TabJoursFériés[Date jour férié],0),\"00\"),\"\")","v":""},{"$f":"IFERROR(\"JF\"&TEXT(MATCH(C836,TabJoursFériés[Date jour férié],0),\"00\"),\"\")","v":""},{"$f":"IFERROR(\"JF\"&TEXT(MATCH(D836,TabJoursFériés[Date jour férié],0),\"00\"),\"\")","v":""},{"$f":"IFERROR(\"JF\"&TEXT(MATCH(E836,TabJoursFériés[Date jour férié],0),\"00\"),\"\")","v":""},{"$f":"IFERROR(\"JF\"&TEXT(MATCH(F836,TabJoursFériés[Date jour férié],0),\"00\"),\"\")","v":""},{"$f":"IFERROR(\"JF\"&TEXT(MATCH(G836,TabJoursFériés[Date jour férié],0),\"00\"),\"\")","v":""},{"$f":"IFERROR(\"JF\"&TEXT(MATCH(H836,TabJoursFériés[Date jour férié],0),\"00\"),\"\")","v":""}]
["Jour férié",{"$f":"IFERROR(INDEX(TabJoursFériés[Jour férié],MATCH(B836,TabJoursFériés[Date jour férié],0)),\"\")","v":""},{"$f":"IFERROR(INDEX(TabJoursFériés[Jour férié],MATCH(C836,TabJoursFériés[Date jour férié],0)),\"\")","v":""},{"$f":"IFERROR(INDEX(TabJoursFériés[Jour férié],MATCH(D836,TabJoursFériés[Date jour férié],0)),\"\")","v":""},{"$f":"IFERROR(INDEX(TabJoursFériés[Jour férié],MATCH(E836,TabJoursFériés[Date jour férié],0)),\"\")","v":""},{"$f":"IFERROR(INDEX(TabJoursFériés[Jour férié],MATCH(F836,TabJoursFériés[Date jour férié],0)),\"\")","v":""},{"$f":"IFERROR(INDEX(TabJoursFériés[Jour férié],MATCH(G836,TabJoursFériés[Date jour férié],0)),\"\")","v":""},{"$f":"IFERROR(INDEX(TabJoursFériés[Jour férié],MATCH(H836,TabJoursFériés[Date jour férié],0)),\"\")","v":""}]
["Proposition menus journaliers."]
["Numéro du menu","MJ351","MJ352","MJ353","MJ354","MJ355","MJ356","MJ357"]
["Date du menu",{"$f":"H836+1","v":"2024-12-16"},{"$f":"B853+1","v":"2024-12-17"},"2024-12-18","2024-12-19","2024-12-20","2024-12-21","2024-12-22"]
["Référence légume",{"$f":"CHOOSE(WEEKDAY(B853,2),\"LSLM\",\"LSLM\",\"LSMJ\",\"LSMJ\",\"LSV\",\"LWES\",\"LWED\")","v":"LSLM"},{"$f":"CHOOSE(WEEKDAY(C853,2),\"LSLM\",\"LSLM\",\"LSMJ\",\"LSMJ\",\"LSV\",\"LWES\",\"LWED\")","v":"LSLM"},"LSMJ","LSMJ","LSV","LWES","LWED"]
["Légume"]
["Quantité légume"]
["Référence légume 2"]
["Légume 2"]
["Quantité légume 2"]
["Référence viande","VS","VS","VS","VS","VS","VS","VS"]
["Viande"]
["Quantité viande"]
["Référence dessert",{"$f":"IF(WEEKDAY(B853,2)<6,\"DS01\",\"DWE\")","v":"DS01"},{"$f":"IF(WEEKDAY(C853,2)<6,\"DS01\",\"DWE\")","v":"DS01"},"DS01","DS01","DS01","DWE","DWE"]
["Dessert",{"$f":"IF(WEEKDAY(B853,2)<6,\"Pomme\",\"\")","v":"Pomme"},{"$f":"IF(WEEKDAY(C853,2)<6,\"Pomme\",\"\")","v":"Pomme"},"Pomme","Pomme","Pomme","",""]
["Quantité dessert",{"$f":"IF(WEEKDAY(B853,2)<6,1,\"\")","v":1},{"$f":"IF(WEEKDAY(C853,2)<6,1,\"\")","v":1},1,1,1,"",""]
["Référence jour férié",{"$f":"IFERROR(\"JF\"&TEXT(MATCH(B853,TabJoursFériés[Date jour férié],0),\"00\"),\"\")","v":""},{"$f":"IFERROR(\"JF\"&TEXT(MATCH(C853,TabJoursFériés[Date jour férié],0),\"00\"),\"\")","v":""},{"$f":"IFERROR(\"JF\"&TEXT(MATCH(D853,TabJoursFériés[Date jour férié],0),\"00\"),\"\")","v":""},{"$f":"IFERROR(\"JF\"&TEXT(MATCH(E853,TabJoursFériés[Date jour férié],0),\"00\"),\"\")","v":""},{"$f":"IFERROR(\"JF\"&TEXT(MATCH(F853,TabJoursFériés[Date jour férié],0),\"00\"),\"\")","v":""},{"$f":"IFERROR(\"JF\"&TEXT(MATCH(G853,TabJoursFériés[Date jour férié],0),\"00\"),\"\")","v":""},{"$f":"IFERROR(\"JF\"&TEXT(MATCH(H853,TabJoursFériés[Date jour férié],0),\"00\"),\"\")","v":""}]
["Jour férié",{"$f":"IFERROR(INDEX(TabJoursFériés[Jour férié],MATCH(B853,TabJoursFériés[Date jour férié],0)),\"\")","v":""},{"$f":"IFERROR(INDEX(TabJoursFériés[Jour férié],MATCH(C853,TabJoursFériés[Date jour férié],0)),\"\")","v":""},{"$f":"IFERROR(INDEX(TabJoursFériés[Jour férié],MATCH(D853,TabJoursFériés[Date jour férié],0)),\"\")","v":""},{"$f":"IFERROR(INDEX(TabJoursFériés[Jour férié],MATCH(E853,TabJoursFériés[Date jour férié],0)),\"\")","v":""},{"$f":"IFERROR(INDEX(TabJoursFériés[Jour férié],MATCH(F853,TabJoursFériés[Date jour férié],0)),\"\")","v":""},{"$f":"IFERROR(INDEX(TabJoursFériés[Jour férié],MATCH(G853,TabJoursFériés[Date jour férié],0)),\"\")","v":""},{"$f":"IFERROR(INDEX(TabJoursFériés[Jour férié],MATCH(H853,TabJoursFériés[Date jour férié],0)),\"\")","v":""}]
["Proposition menus journaliers."]
["Numéro du menu","MJ358","MJ359","MJ360","MJ361","MJ362","MJ363","MJ364"]
["Date du menu",{"$f":"H853+1","v":"2024-12-23"},{"$f":"B870+1","v":"2024-12-24"},"2024-12-25","2024-12-26","2024-12-27","2024-12-28","2024-12-29"]
["Référence légume",{"$f":"CHOOSE(WEEKDAY(B870,2),\"LSLM\",\"LSLM\",\"LSMJ\",\"LSMJ\",\"LSV\",\"LWES\",\"LWED\")","v":"LSLM"},{"$f":"CHOOSE(WEEKDAY(C870,2),\"LSLM\",\"LSLM\",\"LSMJ\",\"LSMJ\",\"LSV\",\"LWES\",\"LWED\")","v":"LSLM"},"LSMJ","LSMJ","LSV","LWES","LWED"]
["Légume"]
["Quantité légume"]
["Référence légume 2"]
["Légume 2"]
["Quantité légume 2"]
["Référence viande","VS","VS","VS","VS","VS","VS","VS"]
["Viande"]
["Quantité viande"]
["Référence dessert",{"$f":"IF(WEEKDAY(B870,2)<6,\"DS01\",\"DWE\")","v":"DS01"},{"$f":"IF(WEEKDAY(C870,2)<6,\"DS01\",\"DWE\")","v":"DS01"},"DS01","DS01","DS01","DWE","DWE"]
["Dessert",{"$f":"IF(WEEKDAY(B870,2)<6,\"Pomme\",\"\")","v":"Pomme"},{"$f":"IF(WEEKDAY(C870,2)<6,\"Pomme\",\"\")","v":"Pomme"},"Pomme","Pomme","Pomme","",""]
["Quantité dessert",{"$f":"IF(WEEKDAY(B870,2)<6,1,\"\")","v":1},{"$f":"IF(WEEKDAY(C870,2)<6,1,\"\")","v":1},1,1,1,"",""]
["Référence jour férié",{"$f":"IFERROR(\"JF\"&TEXT(MATCH(B870,TabJoursFériés[Date jour férié],0),\"00\"),\"\")","v":""},{"$f":"IFERROR(\"JF\"&TEXT(MATCH(C870,TabJoursFériés[Date jour férié],0),\"00\"),\"\")","v":""},{"$f":"IFERROR(\"JF\"&TEXT(MATCH(D870,TabJoursFériés[Date jour férié],0),\"00\"),\"\")","v":"JF13"},{"$f":"IFERROR(\"JF\"&TEXT(MATCH(E870,TabJoursFériés[Date jour férié],0),\"00\"),\"\")","v":""},{"$f":"IFERROR(\"JF\"&TEXT(MATCH(F870,TabJoursFériés[Date jour férié],0),\"00\"),\"\")","v":""},{"$f":"IFERROR(\"JF\"&TEXT(MATCH(G870,TabJoursFériés[Date jour férié],0),\"00\"),\"\")","v":""},{"$f":"IFERROR(\"JF\"&TEXT(MATCH(H870,TabJoursFériés[Date jour férié],0),\"00\"),\"\")","v":""}]
["Jour férié",{"$f":"IFERROR(INDEX(TabJoursFériés[Jour férié],MATCH(B870,TabJoursFériés[Date jour férié],0)),\"\")","v":""},{"$f":"IFERROR(INDEX(TabJoursFériés[Jour férié],MATCH(C870,TabJoursFériés[Date jour férié],0)),\"\")","v":""},{"$f":"IFERROR(INDEX(TabJoursFériés[Jour férié],MATCH(D870,TabJoursFériés[Date jour férié],0)),\"\")","v":"Noël"},{"$f":"IFERROR(INDEX(TabJoursFériés[Jour férié],MATCH(E870,TabJoursFériés[Date jour férié],0)),\"\")","v":""},{"$f":"IFERROR(INDEX(TabJoursFériés[Jour férié],MATCH(F870,TabJoursFériés[Date jour férié],0)),\"\")","v":""},{"$f":"IFERROR(INDEX(TabJoursFériés[Jour férié],MATCH(G870,TabJoursFériés[Date jour férié],0)),\"\")","v":""},{"$f":"IFERROR(INDEX(TabJoursFériés[Jour férié],MATCH(H870,TabJoursFériés[Date jour férié],0)),\"\")","v":""}]
["Proposition menus journaliers."]
["Numéro du menu","MJ365","MJ366"]
["Date du menu",{"$f":"H870+1","v":"2024-12-30"},{"$f":"B887+1","v":"2024-12-31"}]
["Référence légume",{"$f":"CHOOSE(WEEKDAY(B887,2),\"LSLM\",\"LSLM\",\"LSMJ\",\"LSMJ\",\"LSV\",\"LWES\",\"LWED\")","v":"LSLM"},{"$f":"CHOOSE(WEEKDAY(C887,2),\"LSLM\",\"LSLM\",\"LSMJ\",\"LSMJ\",\"LSV\",\"LWES\",\"LWED\")","v":"LSLM"}]
["Légume"]
["Quantité légume"]
["Référence légume 2"]
["Légume 2"]
["Quantité légume 2"]
["Référence viande","VS","VS"]
["Viande"]
["Quantité viande"]
["Référence dessert",{"$f":"IF(WEEKDAY(B887,2)<6,\"DS01\",\"DWE\")","v":"DS01"},{"$f":"IF(WEEKDAY(C887,2)<6,\"DS01\",\"DWE\")","v":"DS01"}]
["Dessert",{"$f":"IF(WEEKDAY(B887,2)<6,\"Pomme\",\"\")","v":"Pomme"},{"$f":"IF(WEEKDAY(C887,2)<6,\"Pomme\",\"\")","v":"Pomme"}]
["Quantité dessert",{"$f":"IF(WEEKDAY(B887,2)<6,1,\"\")","v":1},{"$f":"IF(WEEKDAY(C887,2)<6,1,\"\")","v":1}]
["Référence jour férié",{"$f":"IFERROR(\"JF\"&TEXT(MATCH(B887,TabJoursFériés[Date jour férié],0),\"00\"),\"\")","v":""},{"$f":"IFERROR(\"JF\"&TEXT(MATCH(C887,TabJoursFériés[Date jour férié],0),\"00\"),\"\")","v":""}]
["Jour férié",{"$f":"IFERROR(INDEX(TabJoursFériés[Jour férié],MATCH(B887,TabJoursFériés[Date jour férié],0)),\"\")","v":""},{"$f":"IFERROR(INDEX(TabJoursFériés[Jour férié],MATCH(C887,TabJoursFériés[Date jour férié],0)),\"\")","v":""}]
[null,{"$f":"IFERROR(INDEX(TabJoursFériés[Jour férié],MATCH(B888,TabJoursFériés[Date jour férié],0)),\"\")","v":""}]

{"sheet":"Propositions MVMWE f","index":8,"n_rows":128,"n_cols":8,"rows_kept":128,"cut":false,"hidden":false,"merged":[[96,0,96,7],[104,0,104,7],[112,0,112,7],[48,0,48,7],[56,0,56,7],[64,0,64,7],[72,0,72,7],[80,0,80,7],[88,0,88,7],[40,0,40,7],[0,0,0,7],[8,0,8,7],[16,0,16,7],[24,0,24,7],[32,0,32,7]]}
["Proposition menus viandes midi weekend."]
["Numéro du menu","MVMWE01","MVMWE02","MVMWE03","MVMWE04","MVMWE05","MVMWE06","MVMWE07"]
["Date du menu","2024-01-06","2024-01-07",{"$f":"WORKDAY.INTL(#REF!,1,\"1111100\")","v":{"$error":"#NAME?"}},{"$f":"WORKDAY.INTL(D3,1,\"1111100\")","v":{"$error":"#NAME?"}},{"$error":"#NAME?"},{"$error":"#NAME?"},{"$error":"#NAME?"}]
["Référence viande",null,"VMWE","VMWE","VMWE","VMWE","VMWE","VMWE"]
["Viande"]
["Quantité viande",1,1,1,1,1,1,1]
["Référence jour férié",{"$f":"IFERROR(\"JF\"&TEXT(MATCH(B3,TabJoursFériés[Date jour férié],0),\"00\"),\"\")","v":""},{"$f":"IFERROR(\"JF\"&TEXT(MATCH(#REF!,TabJoursFériés[Date jour férié],0),\"00\"),\"\")","v":""},{"$f":"IFERROR(\"JF\"&TEXT(MATCH(D3,TabJoursFériés[Date jour férié],0),\"00\"),\"\")","v":""},{"$f":"IFERROR(\"JF\"&TEXT(MATCH(E3,TabJoursFériés[Date jour férié],0),\"00\"),\"\")","v":""},{"$f":"IFERROR(\"JF\"&TEXT(MATCH(F3,TabJoursFériés[Date jour férié],0),\"00\"),\"\")","v":""},{"$f":"IFERROR(\"JF\"&TEXT(MATCH(G3,TabJoursFériés[Date jour férié],0),\"00\"),\"\")","v":""},{"$f":"IFERROR(\"JF\"&TEXT(MATCH(H3,TabJoursFériés[Date jour férié],0),\"00\"),\"\")","v":""}]
["Jour férié",{"$f":"IFERROR(INDEX(TabJoursFériés[Jour férié],MATCH(B3,TabJoursFériés[Date jour férié],0)),\"\")","v":""},{"$f":"IFERROR(INDEX(TabJoursFériés[Jour férié],MATCH(#REF!,TabJoursFériés[Date jour férié],0)),\"\")","v":""},{"$f":"IFERROR(INDEX(TabJoursFériés[Jour férié],MATCH(D3,TabJoursFériés[Date jour férié],0)),\"\")","v":""},{"$f":"IFERROR(INDEX(TabJoursFériés[Jour férié],MATCH(E3,TabJoursFériés[Date jour férié],0)),\"\")","v":""},{"$f":"IFERROR(INDEX(TabJoursFériés[Jour férié],MATCH(F3,TabJoursFériés[Date jour férié],0)),\"\")","v":""},{"$f":"IFERROR(INDEX(TabJoursFériés[Jour férié],MATCH(G3,TabJoursFériés[Date jour férié],0)),\"\")","v":""},{"$f":"IFERROR(INDEX(TabJoursFériés[Jour férié],MATCH(H3,TabJoursFériés[Date jour férié],0)),\"\")","v":""}]
["Proposition menus viandes midi weekend."]
["Numéro du menu","MVMWE08","MVMWE09","MVMWE10","MVMWE11","MVMWE12","MVMWE13","MVMWE14"]
["Date du menu",{"$f":"WORKDAY.INTL(H3,1,\"1111100\")","v":{"$error":"#NAME?"}},{"$f":"WORKDAY.INTL(B11,1,\"1111100\")","v":{"$error":"#NAME?"}},{"$f":"WORKDAY.INTL(C11,1,\"1111100\")","v":{"$error":"#NAME?"}},{"$error":"#NAME?"},{"$error":"#NAME?"},{"$error":"#NAME?"},{"$error":"#NAME?"}]
["Référence viande","VMWE","VMWE","VMWE","VMWE","VMWE","VMWE","VMWE"]
["Viande"]
["Quantité viande",1,1,1,1,1,1,1]
["Référence jour férié",{"$f":"IFERROR(\"JF\"&TEXT(MATCH(B11,TabJoursFériés[Date jour férié],0),\"00\"),\"\")","v":""},{"$f":"IFERROR(\"JF\"&TEXT(MATCH(C11,TabJoursFériés[Date jour férié],0),\"00\"),\"\")","v":""},{"$f":"IFERROR(\"JF\"&TEXT(MATCH(D11,TabJoursFériés[Date jour férié],0),\"00\"),\"\")","v":""},{"$f":"IFERROR(\"JF\"&TEXT(MATCH(E11,TabJoursFériés[Date jour férié],0),\"00\"),\"\")","v":""},{"$f":"IFERROR(\"JF\"&TEXT(MATCH(F11,TabJoursFériés[Date jour férié],0),\"00\"),\"\")","v":""},{"$f":"IFERROR(\"JF\"&TEXT(MATCH(G11,TabJoursFériés[Date jour férié],0),\"00\"),\"\")","v":""},{"$f":"IFERROR(\"JF\"&TEXT(MATCH(H11,TabJoursFériés[Date jour férié],0),\"00\"),\"\")","v":""}]
["Jour férié",{"$f":"IFERROR(INDEX(TabJoursFériés[Jour férié],MATCH(B11,TabJoursFériés[Date jour férié],0)),\"\")","v":""},{"$f":"IFERROR(INDEX(TabJoursFériés[Jour férié],MATCH(C11,TabJoursFériés[Date jour férié],0)),\"\")","v":""},{"$f":"IFERROR(INDEX(TabJoursFériés[Jour férié],MATCH(D11,TabJoursFériés[Date jour férié],0)),\"\")","v":""},{"$f":"IFERROR(INDEX(TabJoursFériés[Jour férié],MATCH(E11,TabJoursFériés[Date jour férié],0)),\"\")","v":""},{"$f":"IFERROR(INDEX(TabJoursFériés[Jour férié],MATCH(F11,TabJoursFériés[Date jour férié],0)),\"\")","v":""},{"$f":"IFERROR(INDEX(TabJoursFériés[Jour férié],MATCH(G11,TabJoursFériés[Date jour férié],0)),\"\")","v":""},{"$f":"IFERROR(INDEX(TabJoursFériés[Jour férié],MATCH(H11,TabJoursFériés[Date jour férié],0)),\"\")","v":""}]
["Proposition menus viandes midi weekend."]
["Numéro du menu","MVMWE15","MVMWE16","MVMWE17","MVMWE18","MVMWE19","MVMWE20","MVMWE21"]
["Date du menu",{"$f":"WORKDAY.INTL(H11,1,\"1111100\")","v":{"$error":"#NAME?"}},{"$f":"WORKDAY.INTL(B19,1,\"1111100\")","v":{"$error":"#NAME?"}},{"$f":"WORKDAY.INTL(C19,1,\"1111100\")","v":{"$error":"#NAME?"}},{"$error":"#NAME?"},{"$error":"#NAME?"},{"$error":"#NAME?"},{"$error":"#NAME?"}]
["Référence viande","VMWE","VMWE","VMWE","VMWE","VMWE","VMWE","VMWE"]
["Viande"]
["Quantité viande",1,1,1,1,1,1,1]
["Référence jour férié",{"$f":"IFERROR(\"JF\"&TEXT(MATCH(B19,TabJoursFériés[Date jour férié],0),\"00\"),\"\")","v":""},{"$f":"IFERROR(\"JF\"&TEXT(MATCH(C19,TabJoursFériés[Date jour férié],0),\"00\"),\"\")","v":""},{"$f":"IFERROR(\"JF\"&TEXT(MATCH(D19,TabJoursFériés[Date jour férié],0),\"00\"),\"\")","v":""},{"$f":"IFERROR(\"JF\"&TEXT(MATCH(E19,TabJoursFériés[Date jour férié],0),\"00\"),\"\")","v":""},{"$f":"IFERROR(\"JF\"&TEXT(MATCH(F19,TabJoursFériés[Date jour férié],0),\"00\"),\"\")","v":""},{"$f":"IFERROR(\"JF\"&TEXT(MATCH(G19,TabJoursFériés[Date jour férié],0),\"00\"),\"\")","v":""},{"$f":"IFERROR(\"JF\"&TEXT(MATCH(H19,TabJoursFériés[Date jour férié],0),\"00\"),\"\")","v":""}]
["Jour férié",{"$f":"IFERROR(INDEX(TabJoursFériés[Jour férié],MATCH(B19,TabJoursFériés[Date jour férié],0)),\"\")","v":""},{"$f":"IFERROR(INDEX(TabJoursFériés[Jour férié],MATCH(C19,TabJoursFériés[Date jour férié],0)),\"\")","v":""},{"$f":"IFERROR(INDEX(TabJoursFériés[Jour férié],MATCH(D19,TabJoursFériés[Date jour férié],0)),\"\")","v":""},{"$f":"IFERROR(INDEX(TabJoursFériés[Jour férié],MATCH(E19,TabJoursFériés[Date jour férié],0)),\"\")","v":""},{"$f":"IFERROR(INDEX(TabJoursFériés[Jour férié],MATCH(F19,TabJoursFériés[Date jour férié],0)),\"\")","v":""},{"$f":"IFERROR(INDEX(TabJoursFériés[Jour férié],MATCH(G19,TabJoursFériés[Date jour férié],0)),\"\")","v":""},{"$f":"IFERROR(INDEX(TabJoursFériés[Jour férié],MATCH(H19,TabJoursFériés[Date jour férié],0)),\"\")","v":""}]
["Proposition menus viandes midi weekend."]
["Numéro du menu","MVMWE22","MVMWE23","MVMWE24","MVMWE25","MVMWE26","MVMWE27","MVMWE28"]
["Date du menu",{"$f":"WORKDAY.INTL(H19,1,\"1111100\")","v":{"$error":"#NAME?"}},{"$f":"WORKDAY.INTL(B27,1,\"1111100\")","v":{"$error":"#NAME?"}},{"$f":"WORKDAY.INTL(C27,1,\"1111100\")","v":{"$error":"#NAME?"}},{"$error":"#NAME?"},{"$error":"#NAME?"},{"$error":"#NAME?"},{"$error":"#NAME?"}]
["Référence viande","VMWE","VMWE","VMWE","VMWE","VMWE","VMWE","VMWE"]
["Viande"]
["Quantité viande",1,1,1,1,1,1,1]
["Référence jour férié",{"$f":"IFERROR(\"JF\"&TEXT(MATCH(B27,TabJoursFériés[Date jour férié],0),\"00\"),\"\")","v":""},{"$f":"IFERROR(\"JF\"&TEXT(MATCH(C27,TabJoursFériés[Date jour férié],0),\"00\"),\"\")","v":""},{"$f":"IFERROR(\"JF\"&TEXT(MATCH(D27,TabJoursFériés[Date jour férié],0),\"00\"),\"\")","v":""},{"$f":"IFERROR(\"JF\"&TEXT(MATCH(E27,TabJoursFériés[Date jour férié],0),\"00\"),\"\")","v":""},{"$f":"IFERROR(\"JF\"&TEXT(MATCH(F27,TabJoursFériés[Date jour férié],0),\"00\"),\"\")","v":""},{"$f":"IFERROR(\"JF\"&TEXT(MATCH(G27,TabJoursFériés[Date jour férié],0),\"00\"),\"\")","v":""},{"$f":"IFERROR(\"JF\"&TEXT(MATCH(H27,TabJoursFériés[Date jour férié],0),\"00\"),\"\")","v":""}]
["Jour férié",{"$f":"IFERROR(INDEX(TabJoursFériés[Jour férié],MATCH(B27,TabJoursFériés[Date jour férié],0)),\"\")","v":""},{"$f":"IFERROR(INDEX(TabJoursFériés[Jour férié],MATCH(C27,TabJoursFériés[Date jour férié],0)),\"\")","v":""},{"$f":"IFERROR(INDEX(TabJoursFériés[Jour férié],MATCH(D27,TabJoursFériés[Date jour férié],0)),\"\")","v":""},{"$f":"IFERROR(INDEX(TabJoursFériés[Jour férié],MATCH(E27,TabJoursFériés[Date jour férié],0)),\"\")","v":""},{"$f":"IFERROR(INDEX(TabJoursFériés[Jour férié],MATCH(F27,TabJoursFériés[Date jour férié],0)),\"\")","v":""},{"$f":"IFERROR(INDEX(TabJoursFériés[Jour férié],MATCH(G27,TabJoursFériés[Date jour férié],0)),\"\")","v":""},{"$f":"IFERROR(INDEX(TabJoursFériés[Jour férié],MATCH(H27,TabJoursFériés[Date jour férié],0)),\"\")","v":""}]
["Proposition menus viandes midi weekend."]
["Numéro du menu","MVMWE29","MVMWE30","MVMWE31","MVMWE32","MVMWE33","MVMWE34","MVMWE35"]
["Date du menu",{"$f":"WORKDAY.INTL(H27,1,\"1111100\")","v":{"$error":"#NAME?"}},{"$f":"WORKDAY.INTL(B35,1,\"1111100\")","v":{"$error":"#NAME?"}},{"$f":"WORKDAY.INTL(C35,1,\"1111100\")","v":{"$error":"#NAME?"}},{"$error":"#NAME?"},{"$error":"#NAME?"},{"$error":"#NAME?"},{"$error":"#NAME?"}]
["Référence viande","VMWE","VMWE","VMWE","VMWE","VMWE","VMWE","VMWE"]
["Viande"]
["Quantité viande",1,1,1,1,1,1,1]
["Référence jour férié",{"$f":"IFERROR(\"JF\"&TEXT(MATCH(B35,TabJoursFériés[Date jour férié],0),\"00\"),\"\")","v":""},{"$f":"IFERROR(\"JF\"&TEXT(MATCH(C35,TabJoursFériés[Date jour férié],0),\"00\"),\"\")","v":""},{"$f":"IFERROR(\"JF\"&TEXT(MATCH(D35,TabJoursFériés[Date jour férié],0),\"00\"),\"\")","v":""},{"$f":"IFERROR(\"JF\"&TEXT(MATCH(E35,TabJoursFériés[Date jour férié],0),\"00\"),\"\")","v":""},{"$f":"IFERROR(\"JF\"&TEXT(MATCH(F35,TabJoursFériés[Date jour férié],0),\"00\"),\"\")","v":""},{"$f":"IFERROR(\"JF\"&TEXT(MATCH(G35,TabJoursFériés[Date jour férié],0),\"00\"),\"\")","v":""},{"$f":"IFERROR(\"JF\"&TEXT(MATCH(H35,TabJoursFériés[Date jour férié],0),\"00\"),\"\")","v":""}]
["Jour férié",{"$f":"IFERROR(INDEX(TabJoursFériés[Jour férié],MATCH(B35,TabJoursFériés[Date jour férié],0)),\"\")","v":""},{"$f":"IFERROR(INDEX(TabJoursFériés[Jour férié],MATCH(C35,TabJoursFériés[Date jour férié],0)),\"\")","v":""},{"$f":"IFERROR(INDEX(TabJoursFériés[Jour férié],MATCH(D35,TabJoursFériés[Date jour férié],0)),\"\")","v":""},{"$f":"IFERROR(INDEX(TabJoursFériés[Jour férié],MATCH(E35,TabJoursFériés[Date jour férié],0)),\"\")","v":""},{"$f":"IFERROR(INDEX(TabJoursFériés[Jour férié],MATCH(F35,TabJoursFériés[Date jour férié],0)),\"\")","v":""},{"$f":"IFERROR(INDEX(TabJoursFériés[Jour férié],MATCH(G35,TabJoursFériés[Date jour férié],0)),\"\")","v":""},{"$f":"IFERROR(INDEX(TabJoursFériés[Jour férié],MATCH(H35,TabJoursFériés[Date jour férié],0)),\"\")","v":""}]
["Proposition menus viandes midi weekend."]
["Numéro du menu","MVMWE36","MVMWE37","MVMWE38","MVMWE39","MVMWE40","MVMWE41","MVMWE42"]
["Date du menu",{"$f":"WORKDAY.INTL(H35,1,\"1111100\")","v":{"$error":"#NAME?"}},{"$f":"WORKDAY.INTL(B43,1,\"1111100\")","v":{"$error":"#NAME?"}},{"$f":"WORKDAY.INTL(C43,1,\"1111100\")","v":{"$error":"#NAME?"}},{"$error":"#NAME?"},{"$error":"#NAME?"},{"$error":"#NAME?"},{"$error":"#NAME?"}]
["Référence viande","VMWE","VMWE","VMWE","VMWE","VMWE","VMWE","VMWE"]
["Viande"]
["Quantité viande",1,1,1,1,1,1,1]
["Référence jour férié",{"$f":"IFERROR(\"JF\"&TEXT(MATCH(B43,TabJoursFériés[Date jour férié],0),\"00\"),\"\")","v":""},{"$f":"IFERROR(\"JF\"&TEXT(MATCH(C43,TabJoursFériés[Date jour férié],0),\"00\"),\"\")","v":""},{"$f":"IFERROR(\"JF\"&TEXT(MATCH(D43,TabJoursFériés[Date jour férié],0),\"00\"),\"\")","v":""},{"$f":"IFERROR(\"JF\"&TEXT(MATCH(E43,TabJoursFériés[Date jour férié],0),\"00\"),\"\")","v":""},{"$f":"IFERROR(\"JF\"&TEXT(MATCH(F43,TabJoursFériés[Date jour férié],0),\"00\"),\"\")","v":""},{"$f":"IFERROR(\"JF\"&TEXT(MATCH(G43,TabJoursFériés[Date jour férié],0),\"00\"),\"\")","v":""},{"$f":"IFERROR(\"JF\"&TEXT(MATCH(H43,TabJoursFériés[Date jour férié],0),\"00\"),\"\")","v":""}]
["Jour férié",{"$f":"IFERROR(INDEX(TabJoursFériés[Jour férié],MATCH(B43,TabJoursFériés[Date jour férié],0)),\"\")","v":""},{"$f":"IFERROR(INDEX(TabJoursFériés[Jour férié],MATCH(C43,TabJoursFériés[Date jour férié],0)),\"\")","v":""},{"$f":"IFERROR(INDEX(TabJoursFériés[Jour férié],MATCH(D43,TabJoursFériés[Date jour férié],0)),\"\")","v":""},{"$f":"IFERROR(INDEX(TabJoursFériés[Jour férié],MATCH(E43,TabJoursFériés[Date jour férié],0)),\"\")","v":""},{"$f":"IFERROR(INDEX(TabJoursFériés[Jour férié],MATCH(F43,TabJoursFériés[Date jour férié],0)),\"\")","v":""},{"$f":"IFERROR(INDEX(TabJoursFériés[Jour férié],MATCH(G43,TabJoursFériés[Date jour férié],0)),\"\")","v":""},{"$f":"IFERROR(INDEX(TabJoursFériés[Jour férié],MATCH(H43,TabJoursFériés[Date jour férié],0)),\"\")","v":""}]
["Proposition menus viandes midi weekend."]
["Numéro du menu","MVMWE43","MVMWE44","MVMWE45","MVMWE46","MVMWE47","MVMWE48","MVMWE49"]
["Date du menu",{"$f":"WORKDAY.INTL(H43,1,\"1111100\")","v":{"$error":"#NAME?"}},{"$f":"WORKDAY.INTL(B51,1,\"1111100\")","v":{"$error":"#NAME?"}},{"$f":"WORKDAY.INTL(C51,1,\"1111100\")","v":{"$error":"#NAME?"}},{"$error":"#NAME?"},{"$error":"#NAME?"},{"$error":"#NAME?"},{"$error":"#NAME?"}]
["Référence viande","VMWE","VMWE","VMWE","VMWE","VMWE","VMWE","VMWE"]
["Viande"]
["Quantité viande",1,1,1,1,1,1,1]
["Référence jour férié",{"$f":"IFERROR(\"JF\"&TEXT(MATCH(B51,TabJoursFériés[Date jour férié],0),\"00\"),\"\")","v":""},{"$f":"IFERROR(\"JF\"&TEXT(MATCH(C51,TabJoursFériés[Date jour férié],0),\"00\"),\"\")","v":""},{"$f":"IFERROR(\"JF\"&TEXT(MATCH(D51,TabJoursFériés[Date jour férié],0),\"00\"),\"\")","v":""},{"$f":"IFERROR(\"JF\"&TEXT(MATCH(E51,TabJoursFériés[Date jour férié],0),\"00\"),\"\")","v":""},{"$f":"IFERROR(\"JF\"&TEXT(MATCH(F51,TabJoursFériés[Date jour férié],0),\"00\"),\"\")","v":""},{"$f":"IFERROR(\"JF\"&TEXT(MATCH(G51,TabJoursFériés[Date jour férié],0),\"00\"),\"\")","v":""},{"$f":"IFERROR(\"JF\"&TEXT(MATCH(H51,TabJoursFériés[Date jour férié],0),\"00\"),\"\")","v":""}]
["Jour férié",{"$f":"IFERROR(INDEX(TabJoursFériés[Jour férié],MATCH(B51,TabJoursFériés[Date jour férié],0)),\"\")","v":""},{"$f":"IFERROR(INDEX(TabJoursFériés[Jour férié],MATCH(C51,TabJoursFériés[Date jour férié],0)),\"\")","v":""},{"$f":"IFERROR(INDEX(TabJoursFériés[Jour férié],MATCH(D51,TabJoursFériés[Date jour férié],0)),\"\")","v":""},{"$f":"IFERROR(INDEX(TabJoursFériés[Jour férié],MATCH(E51,TabJoursFériés[Date jour férié],0)),\"\")","v":""},{"$f":"IFERROR(INDEX(TabJoursFériés[Jour férié],MATCH(F51,TabJoursFériés[Date jour férié],0)),\"\")","v":""},{"$f":"IFERROR(INDEX(TabJoursFériés[Jour férié],MATCH(G51,TabJoursFériés[Date jour férié],0)),\"\")","v":""},{"$f":"IFERROR(INDEX(TabJoursFériés[Jour férié],MATCH(H51,TabJoursFériés[Date jour férié],0)),\"\")","v":""}]
["Proposition menus viandes midi weekend."]
["Numéro du menu","MVMWE50","MVMWE51","MVMWE52","MVMWE53","MVMWE54","MVMWE55","MVMWE56"]
["Date du menu",{"$f":"WORKDAY.INTL(H51,1,\"1111100\")","v":{"$error":"#NAME?"}},{"$f":"WORKDAY.INTL(B59,1,\"1111100\")","v":{"$error":"#NAME?"}},{"$f":"WORKDAY.INTL(C59,1,\"1111100\")","v":{"$error":"#NAME?"}},{"$error":"#NAME?"},{"$error":"#NAME?"},{"$error":"#NAME?"},{"$error":"#NAME?"}]
["Référence viande","VMWE","VMWE","VMWE","VMWE","VMWE","VMWE","VMWE"]
["Viande"]
["Quantité viande",1,1,1,1,1,1,1]
["Référence jour férié",{"$f":"IFERROR(\"JF\"&TEXT(MATCH(B59,TabJoursFériés[Date jour férié],0),\"00\"),\"\")","v":""},{"$f":"IFERROR(\"JF\"&TEXT(MATCH(C59,TabJoursFériés[Date jour férié],0),\"00\"),\"\")","v":""},{"$f":"IFERROR(\"JF\"&TEXT(MATCH(D59,TabJoursFériés[Date jour férié],0),\"00\"),\"\")","v":""},{"$f":"IFERROR(\"JF\"&TEXT(MATCH(E59,TabJoursFériés[Date jour férié],0),\"00\"),\"\")","v":""},{"$f":"IFERROR(\"JF\"&TEXT(MATCH(F59,TabJoursFériés[Date jour férié],0),\"00\"),\"\")","v":""},{"$f":"IFERROR(\"JF\"&TEXT(MATCH(G59,TabJoursFériés[Date jour férié],0),\"00\"),\"\")","v":""},{"$f":"IFERROR(\"JF\"&TEXT(MATCH(H59,TabJoursFériés[Date jour férié],0),\"00\"),\"\")","v":""}]
["Jour férié",{"$f":"IFERROR(INDEX(TabJoursFériés[Jour férié],MATCH(B59,TabJoursFériés[Date jour férié],0)),\"\")","v":""},{"$f":"IFERROR(INDEX(TabJoursFériés[Jour férié],MATCH(C59,TabJoursFériés[Date jour férié],0)),\"\")","v":""},{"$f":"IFERROR(INDEX(TabJoursFériés[Jour férié],MATCH(D59,TabJoursFériés[Date jour férié],0)),\"\")","v":""},{"$f":"IFERROR(INDEX(TabJoursFériés[Jour férié],MATCH(E59,TabJoursFériés[Date jour férié],0)),\"\")","v":""},{"$f":"IFERROR(INDEX(TabJoursFériés[Jour férié],MATCH(F59,TabJoursFériés[Date jour férié],0)),\"\")","v":""},{"$f":"IFERROR(INDEX(TabJoursFériés[Jour férié],MATCH(G59,TabJoursFériés[Date jour férié],0)),\"\")","v":""},{"$f":"IFERROR(INDEX(TabJoursFériés[Jour férié],MATCH(H59,TabJoursFériés[Date jour férié],0)),\"\")","v":""}]
["Proposition menus viandes midi weekend."]
["Numéro du menu","MVMWE57","MVMWE58","MVMWE59","MVMWE60","MVMWE61","MVMWE62","MVMWE63"]
["Date du menu",{"$f":"WORKDAY.INTL(H59,1,\"1111100\")","v":{"$error":"#NAME?"}},{"$f":"WORKDAY.INTL(B67,1,\"1111100\")","v":{"$error":"#NAME?"}},{"$f":"WORKDAY.INTL(C67,1,\"1111100\")","v":{"$error":"#NAME?"}},{"$error":"#NAME?"},{"$error":"#NAME?"},{"$error":"#NAME?"},{"$error":"#NAME?"}]
["Référence viande","VMWE","VMWE","VMWE","VMWE","VMWE","VMWE","VMWE"]
["Viande"]
["Quantité viande",1,1,1,1,1,1,1]
["Référence jour férié",{"$f":"IFERROR(\"JF\"&TEXT(MATCH(B67,TabJoursFériés[Date jour férié],0),\"00\"),\"\")","v":""},{"$f":"IFERROR(\"JF\"&TEXT(MATCH(C67,TabJoursFériés[Date jour férié],0),\"00\"),\"\")","v":""},{"$f":"IFERROR(\"JF\"&TEXT(MATCH(D67,TabJoursFériés[Date jour férié],0),\"00\"),\"\")","v":""},{"$f":"IFERROR(\"JF\"&TEXT(MATCH(E67,TabJoursFériés[Date jour férié],0),\"00\"),\"\")","v":""},{"$f":"IFERROR(\"JF\"&TEXT(MATCH(F67,TabJoursFériés[Date jour férié],0),\"00\"),\"\")","v":""},{"$f":"IFERROR(\"JF\"&TEXT(MATCH(G67,TabJoursFériés[Date jour férié],0),\"00\"),\"\")","v":""},{"$f":"IFERROR(\"JF\"&TEXT(MATCH(H67,TabJoursFériés[Date jour férié],0),\"00\"),\"\")","v":""}]
["Jour férié",{"$f":"IFERROR(INDEX(TabJoursFériés[Jour férié],MATCH(B67,TabJoursFériés[Date jour férié],0)),\"\")","v":""},{"$f":"IFERROR(INDEX(TabJoursFériés[Jour férié],MATCH(C67,TabJoursFériés[Date jour férié],0)),\"\")","v":""},{"$f":"IFERROR(INDEX(TabJoursFériés[Jour férié],MATCH(D67,TabJoursFériés[Date jour férié],0)),\"\")","v":""},{"$f":"IFERROR(INDEX(TabJoursFériés[Jour férié],MATCH(E67,TabJoursFériés[Date jour férié],0)),\"\")","v":""},{"$f":"IFERROR(INDEX(TabJoursFériés[Jour férié],MATCH(F67,TabJoursFériés[Date jour férié],0)),\"\")","v":""},{"$f":"IFERROR(INDEX(TabJoursFériés[Jour férié],MATCH(G67,TabJoursFériés[Date jour férié],0)),\"\")","v":""},{"$f":"IFERROR(INDEX(TabJoursFériés[Jour férié],MATCH(H67,TabJoursFériés[Date jour férié],0)),\"\")","v":""}]
["Proposition menus viandes midi weekend."]
["Numéro du menu","MVMWE64","MVMWE65","MVMWE66","MVMWE67","MVMWE68","MVMWE69","MVMWE70"]
["Date du menu",{"$f":"WORKDAY.INTL(H67,1,\"1111100\")","v":{"$error":"#NAME?"}},{"$f":"WORKDAY.INTL(B75,1,\"1111100\")","v":{"$error":"#NAME?"}},{"$f":"WORKDAY.INTL(C75,1,\"1111100\")","v":{"$error":"#NAME?"}},{"$error":"#NAME?"},{"$error":"#NAME?"},{"$error":"#NAME?"},{"$error":"#NAME?"}]
["Référence viande","VMWE","VMWE","VMWE","VMWE","VMWE","VMWE","VMWE"]
["Viande"]
["Quantité viande",1,1,1,1,1,1,1]
["Référence jour férié",{"$f":"IFERROR(\"JF\"&TEXT(MATCH(B75,TabJoursFériés[Date jour férié],0),\"00\"),\"\")","v":""},{"$f":"IFERROR(\"JF\"&TEXT(MATCH(C75,TabJoursFériés[Date jour férié],0),\"00\"),\"\")","v":""},{"$f":"IFERROR(\"JF\"&TEXT(MATCH(D75,TabJoursFériés[Date jour férié],0),\"00\"),\"\")","v":""},{"$f":"IFERROR(\"JF\"&TEXT(MATCH(E75,TabJoursFériés[Date jour férié],0),\"00\"),\"\")","v":""},{"$f":"IFERROR(\"JF\"&TEXT(MATCH(F75,TabJoursFériés[Date jour férié],0),\"00\"),\"\")","v":""},{"$f":"IFERROR(\"JF\"&TEXT(MATCH(G75,TabJoursFériés[Date jour férié],0),\"00\"),\"\")","v":""},{"$f":"IFERROR(\"JF\"&TEXT(MATCH(H75,TabJoursFériés[Date jour férié],0),\"00\"),\"\")","v":""}]
["Jour férié",{"$f":"IFERROR(INDEX(TabJoursFériés[Jour férié],MATCH(B75,TabJoursFériés[Date jour férié],0)),\"\")","v":""},{"$f":"IFERROR(INDEX(TabJoursFériés[Jour férié],MATCH(C75,TabJoursFériés[Date jour férié],0)),\"\")","v":""},{"$f":"IFERROR(INDEX(TabJoursFériés[Jour férié],MATCH(D75,TabJoursFériés[Date jour férié],0)),\"\")","v":""},{"$f":"IFERROR(INDEX(TabJoursFériés[Jour férié],MATCH(E75,TabJoursFériés[Date jour férié],0)),\"\")","v":""},{"$f":"IFERROR(INDEX(TabJoursFériés[Jour férié],MATCH(F75,TabJoursFériés[Date jour férié],0)),\"\")","v":""},{"$f":"IFERROR(INDEX(TabJoursFériés[Jour férié],MATCH(G75,TabJoursFériés[Date jour férié],0)),\"\")","v":""},{"$f":"IFERROR(INDEX(TabJoursFériés[Jour férié],MATCH(H75,TabJoursFériés[Date jour férié],0)),\"\")","v":""}]
["Proposition menus viandes midi weekend."]
["Numéro du menu","MVMWE71","MVMWE72","MVMWE73","MVMWE74","MVMWE75","MVMWE76","MVMWE77"]
["Date du menu",{"$f":"WORKDAY.INTL(H75,1,\"1111100\")","v":{"$error":"#NAME?"}},{"$f":"WORKDAY.INTL(B83,1,\"1111100\")","v":{"$error":"#NAME?"}},{"$f":"WORKDAY.INTL(C83,1,\"1111100\")","v":{"$error":"#NAME?"}},{"$error":"#NAME?"},{"$error":"#NAME?"},{"$error":"#NAME?"},{"$error":"#NAME?"}]
["Référence viande","VMWE","VMWE","VMWE","VMWE","VMWE","VMWE","VMWE"]
["Viande"]
["Quantité viande",1,1,1,1,1,1,1]
["Référence jour férié",{"$f":"IFERROR(\"JF\"&TEXT(MATCH(B83,TabJoursFériés[Date jour férié],0),\"00\"),\"\")","v":""},{"$f":"IFERROR(\"JF\"&TEXT(MATCH(C83,TabJoursFériés[Date jour férié],0),\"00\"),\"\")","v":""},{"$f":"IFERROR(\"JF\"&TEXT(MATCH(D83,TabJoursFériés[Date jour férié],0),\"00\"),\"\")","v":""},{"$f":"IFERROR(\"JF\"&TEXT(MATCH(E83,TabJoursFériés[Date jour férié],0),\"00\"),\"\")","v":""},{"$f":"IFERROR(\"JF\"&TEXT(MATCH(F83,TabJoursFériés[Date jour férié],0),\"00\"),\"\")","v":""},{"$f":"IFERROR(\"JF\"&TEXT(MATCH(G83,TabJoursFériés[Date jour férié],0),\"00\"),\"\")","v":""},{"$f":"IFERROR(\"JF\"&TEXT(MATCH(H83,TabJoursFériés[Date jour férié],0),\"00\"),\"\")","v":""}]
["Jour férié",{"$f":"IFERROR(INDEX(TabJoursFériés[Jour férié],MATCH(B83,TabJoursFériés[Date jour férié],0)),\"\")","v":""},{"$f":"IFERROR(INDEX(TabJoursFériés[Jour férié],MATCH(C83,TabJoursFériés[Date jour férié],0)),\"\")","v":""},{"$f":"IFERROR(INDEX(TabJoursFériés[Jour férié],MATCH(D83,TabJoursFériés[Date jour férié],0)),\"\")","v":""},{"$f":"IFERROR(INDEX(TabJoursFériés[Jour férié],MATCH(E83,TabJoursFériés[Date jour férié],0)),\"\")","v":""},{"$f":"IFERROR(INDEX(TabJoursFériés[Jour férié],MATCH(F83,TabJoursFériés[Date jour férié],0)),\"\")","v":""},{"$f":"IFERROR(INDEX(TabJoursFériés[Jour férié],MATCH(G83,TabJoursFériés[Date jour férié],0)),\"\")","v":""},{"$f":"IFERROR(INDEX(TabJoursFériés[Jour férié],MATCH(H83,TabJoursFériés[Date jour férié],0)),\"\")","v":""}]
["Proposition menus viandes midi weekend."]
["Numéro du menu","MVMWE78","MVMWE79","MVMWE80","MVMWE81","MVMWE82","MVMWE83","MVMWE84"]
["Date du menu",{"$f":"WORKDAY.INTL(H83,1,\"1111100\")","v":{"$error":"#NAME?"}},{"$f":"WORKDAY.INTL(B91,1,\"1111100\")","v":{"$error":"#NAME?"}},{"$f":"WORKDAY.INTL(C91,1,\"1111100\")","v":{"$error":"#NAME?"}},{"$error":"#NAME?"},{"$error":"#NAME?"},{"$error":"#NAME?"},{"$error":"#NAME?"}]
["Référence viande","VMWE","VMWE","VMWE","VMWE","VMWE","VMWE","VMWE"]
["Viande"]
["Quantité viande",1,1,1,1,1,1,1]
["Référence jour férié",{"$f":"IFERROR(\"JF\"&TEXT(MATCH(B91,TabJoursFériés[Date jour férié],0),\"00\"),\"\")","v":""},{"$f":"IFERROR(\"JF\"&TEXT(MATCH(C91,TabJoursFériés[Date jour férié],0),\"00\"),\"\")","v":""},{"$f":"IFERROR(\"JF\"&TEXT(MATCH(D91,TabJoursFériés[Date jour férié],0),\"00\"),\"\")","v":""},{"$f":"IFERROR(\"JF\"&TEXT(MATCH(E91,TabJoursFériés[Date jour férié],0),\"00\"),\"\")","v":""},{"$f":"IFERROR(\"JF\"&TEXT(MATCH(F91,TabJoursFériés[Date jour férié],0),\"00\"),\"\")","v":""},{"$f":"IFERROR(\"JF\"&TEXT(MATCH(G91,TabJoursFériés[Date jour férié],0),\"00\"),\"\")","v":""},{"$f":"IFERROR(\"JF\"&TEXT(MATCH(H91,TabJoursFériés[Date jour férié],0),\"00\"),\"\")","v":""}]
["Jour férié",{"$f":"IFERROR(INDEX(TabJoursFériés[Jour férié],MATCH(B91,TabJoursFériés[Date jour férié],0)),\"\")","v":""},{"$f":"IFERROR(INDEX(TabJoursFériés[Jour férié],MATCH(C91,TabJoursFériés[Date jour férié],0)),\"\")","v":""},{"$f":"IFERROR(INDEX(TabJoursFériés[Jour férié],MATCH(D91,TabJoursFériés[Date jour férié],0)),\"\")","v":""},{"$f":"IFERROR(INDEX(TabJoursFériés[Jour férié],MATCH(E91,TabJoursFériés[Date jour férié],0)),\"\")","v":""},{"$f":"IFERROR(INDEX(TabJoursFériés[Jour férié],MATCH(F91,TabJoursFériés[Date jour férié],0)),\"\")","v":""},{"$f":"IFERROR(INDEX(TabJoursFériés[Jour férié],MATCH(G91,TabJoursFériés[Date jour férié],0)),\"\")","v":""},{"$f":"IFERROR(INDEX(TabJoursFériés[Jour férié],MATCH(H91,TabJoursFériés[Date jour férié],0)),\"\")","v":""}]
["Proposition menus viandes midi weekend."]
["Numéro du menu","MVMWE85","MVMWE86","MVMWE87","MVMWE88","MVMWE89","MVMWE90","MVMWE91"]
["Date du menu",{"$f":"WORKDAY.INTL(H91,1,\"1111100\")","v":{"$error":"#NAME?"}},{"$f":"WORKDAY.INTL(B99,1,\"1111100\")","v":{"$error":"#NAME?"}},{"$f":"WORKDAY.INTL(C99,1,\"1111100\")","v":{"$error":"#NAME?"}},{"$error":"#NAME?"},{"$error":"#NAME?"},{"$error":"#NAME?"},{"$error":"#NAME?"}]
["Référence viande","VMWE","VMWE","VMWE","VMWE","VMWE","VMWE","VMWE"]
["Viande"]
["Quantité viande",1,1,1,1,1,1,1]
["Référence jour férié",{"$f":"IFERROR(\"JF\"&TEXT(MATCH(B99,TabJoursFériés[Date jour férié],0),\"00\"),\"\")","v":""},{"$f":"IFERROR(\"JF\"&TEXT(MATCH(C99,TabJoursFériés[Date jour férié],0),\"00\"),\"\")","v":""},{"$f":"IFERROR(\"JF\"&TEXT(MATCH(D99,TabJoursFériés[Date jour férié],0),\"00\"),\"\")","v":""},{"$f":"IFERROR(\"JF\"&TEXT(MATCH(E99,TabJoursFériés[Date jour férié],0),\"00\"),\"\")","v":""},{"$f":"IFERROR(\"JF\"&TEXT(MATCH(F99,TabJoursFériés[Date jour férié],0),\"00\"),\"\")","v":""},{"$f":"IFERROR(\"JF\"&TEXT(MATCH(G99,TabJoursFériés[Date jour férié],0),\"00\"),\"\")","v":""},{"$f":"IFERROR(\"JF\"&TEXT(MATCH(H99,TabJoursFériés[Date jour férié],0),\"00\"),\"\")","v":""}]
["Jour férié",{"$f":"IFERROR(INDEX(TabJoursFériés[Jour férié],MATCH(B99,TabJoursFériés[Date jour férié],0)),\"\")","v":""},{"$f":"IFERROR(INDEX(TabJoursFériés[Jour férié],MATCH(C99,TabJoursFériés[Date jour férié],0)),\"\")","v":""},{"$f":"IFERROR(INDEX(TabJoursFériés[Jour férié],MATCH(D99,TabJoursFériés[Date jour férié],0)),\"\")","v":""},{"$f":"IFERROR(INDEX(TabJoursFériés[Jour férié],MATCH(E99,TabJoursFériés[Date jour férié],0)),\"\")","v":""},{"$f":"IFERROR(INDEX(TabJoursFériés[Jour férié],MATCH(F99,TabJoursFériés[Date jour férié],0)),\"\")","v":""},{"$f":"IFERROR(INDEX(TabJoursFériés[Jour férié],MATCH(G99,TabJoursFériés[Date jour férié],0)),\"\")","v":""},{"$f":"IFERROR(INDEX(TabJoursFériés[Jour férié],MATCH(H99,TabJoursFériés[Date jour férié],0)),\"\")","v":""}]
["Proposition menus viandes midi weekend."]
["Numéro du menu","MVMWE92","MVMWE93","MVMWE94","MVMWE95","MVMWE96","MVMWE97","MVMWE98"]
["Date du menu",{"$f":"WORKDAY.INTL(H99,1,\"1111100\")","v":{"$error":"#NAME?"}},{"$f":"WORKDAY.INTL(B107,1,\"1111100\")","v":{"$error":"#NAME?"}},{"$f":"WORKDAY.INTL(C107,1,\"1111100\")","v":{"$error":"#NAME?"}},{"$error":"#NAME?"},{"$error":"#NAME?"},{"$error":"#NAME?"},{"$error":"#NAME?"}]
["Référence viande","VMWE","VMWE","VMWE","VMWE","VMWE","VMWE","VMWE"]
["Viande"]
["Quantité viande",1,1,1,1,1,1,1]
["Référence jour férié",{"$f":"IFERROR(\"JF\"&TEXT(MATCH(B107,TabJoursFériés[Date jour férié],0),\"00\"),\"\")","v":""},{"$f":"IFERROR(\"JF\"&TEXT(MATCH(C107,TabJoursFériés[Date jour férié],0),\"00\"),\"\")","v":""},{"$f":"IFERROR(\"JF\"&TEXT(MATCH(D107,TabJoursFériés[Date jour férié],0),\"00\"),\"\")","v":""},{"$f":"IFERROR(\"JF\"&TEXT(MATCH(E107,TabJoursFériés[Date jour férié],0),\"00\"),\"\")","v":""},{"$f":"IFERROR(\"JF\"&TEXT(MATCH(F107,TabJoursFériés[Date jour férié],0),\"00\"),\"\")","v":""},{"$f":"IFERROR(\"JF\"&TEXT(MATCH(G107,TabJoursFériés[Date jour férié],0),\"00\"),\"\")","v":""},{"$f":"IFERROR(\"JF\"&TEXT(MATCH(H107,TabJoursFériés[Date jour férié],0),\"00\"),\"\")","v":""}]
["Jour férié",{"$f":"IFERROR(INDEX(TabJoursFériés[Jour férié],MATCH(B107,TabJoursFériés[Date jour férié],0)),\"\")","v":""},{"$f":"IFERROR(INDEX(TabJoursFériés[Jour férié],MATCH(C107,TabJoursFériés[Date jour férié],0)),\"\")","v":""},{"$f":"IFERROR(INDEX(TabJoursFériés[Jour férié],MATCH(D107,TabJoursFériés[Date jour férié],0)),\"\")","v":""},{"$f":"IFERROR(INDEX(TabJoursFériés[Jour férié],MATCH(E107,TabJoursFériés[Date jour férié],0)),\"\")","v":""},{"$f":"IFERROR(INDEX(TabJoursFériés[Jour férié],MATCH(F107,TabJoursFériés[Date jour férié],0)),\"\")","v":""},{"$f":"IFERROR(INDEX(TabJoursFériés[Jour férié],MATCH(G107,TabJoursFériés[Date jour férié],0)),\"\")","v":""},{"$f":"IFERROR(INDEX(TabJoursFériés[Jour férié],MATCH(H107,TabJoursFériés[Date jour férié],0)),\"\")","v":""}]
["Proposition menus viandes midi weekend."]
["Numéro du menu","MVMWE99","MVMWE100","MVMWE101","MVMWE102","MVMWE103","MVMWE104","MVMWE105"]
["Date du menu",{"$f":"WORKDAY.INTL(H107,1,\"1111100\")","v":{"$error":"#NAME?"}},{"$f":"WORKDAY.INTL(B115,1,\"1111100\")","v":{"$error":"#NAME?"}},{"$f":"WORKDAY.INTL(C115,1,\"1111100\")","v":{"$error":"#NAME?"}},{"$error":"#NAME?"},{"$error":"#NAME?"},{"$error":"#NAME?"},{"$error":"#NAME?"}]
["Référence viande","VMWE","VMWE","VMWE","VMWE","VMWE","VMWE","VMWE"]
["Viande"]
["Quantité viande",1,1,1,1,1,1,1]
["Référence jour férié",{"$f":"IFERROR(\"JF\"&TEXT(MATCH(B115,TabJoursFériés[Date jour férié],0),\"00\"),\"\")","v":""},{"$f":"IFERROR(\"JF\"&TEXT(MATCH(C115,TabJoursFériés[Date jour férié],0),\"00\"),\"\")","v":""},{"$f":"IFERROR(\"JF\"&TEXT(MATCH(D115,TabJoursFériés[Date jour férié],0),\"00\"),\"\")","v":""},{"$f":"IFERROR(\"JF\"&TEXT(MATCH(E115,TabJoursFériés[Date jour férié],0),\"00\"),\"\")","v":""},{"$f":"IFERROR(\"JF\"&TEXT(MATCH(F115,TabJoursFériés[Date jour férié],0),\"00\"),\"\")","v":""},{"$f":"IFERROR(\"JF\"&TEXT(MATCH(G115,TabJoursFériés[Date jour férié],0),\"00\"),\"\")","v":""},{"$f":"IFERROR(\"JF\"&TEXT(MATCH(H115,TabJoursFériés[Date jour férié],0),\"00\"),\"\")","v":""}]
["Jour férié",{"$f":"IFERROR(INDEX(TabJoursFériés[Jour férié],MATCH(B115,TabJoursFériés[Date jour férié],0)),\"\")","v":""},{"$f":"IFERROR(INDEX(TabJoursFériés[Jour férié],MATCH(C115,TabJoursFériés[Date jour férié],0)),\"\")","v":""},{"$f":"IFERROR(INDEX(TabJoursFériés[Jour férié],MATCH(D115,TabJoursFériés[Date jour férié],0)),\"\")","v":""},{"$f":"IFERROR(INDEX(TabJoursFériés[Jour férié],MATCH(E115,TabJoursFériés[Date jour férié],0)),\"\")","v":""},{"$f":"IFERROR(INDEX(TabJoursFériés[Jour férié],MATCH(F115,TabJoursFériés[Date jour férié],0)),\"\")","v":""},{"$f":"IFERROR(INDEX(TabJoursFériés[Jour férié],MATCH(G115,TabJoursFériés[Date jour férié],0)),\"\")","v":""},{"$f":"IFERROR(INDEX(TabJoursFériés[Jour férié],MATCH(H115,TabJoursFériés[Date jour férié],0)),\"\")","v":""}]
["Proposition menus viandes midi weekend."]
["Numéro du menu","MVMWE106"]
["Date du menu",{"$f":"WORKDAY.INTL(H115,1,\"1111100\")","v":{"$error":"#NAME?"}}]
["Référence viande","VMWE"]
["Viande"]
["Quantité viande",1]
["Référence jour férié",{"$f":"IFERROR(\"JF\"&TEXT(MATCH(B123,TabJoursFériés[Date jour férié],0),\"00\"),\"\")","v":""},{"$f":"IFERROR(\"JF\"&TEXT(MATCH(C123,TabJoursFériés[Date jour férié],0),\"00\"),\"\")","v":""},{"$f":"IFERROR(\"JF\"&TEXT(MATCH(D123,TabJoursFériés[Date jour férié],0),\"00\"),\"\")","v":""},{"$f":"IFERROR(\"JF\"&TEXT(MATCH(E123,TabJoursFériés[Date jour férié],0),\"00\"),\"\")","v":""},{"$f":"IFERROR(\"JF\"&TEXT(MATCH(F123,TabJoursFériés[Date jour férié],0),\"00\"),\"\")","v":""},{"$f":"IFERROR(\"JF\"&TEXT(MATCH(G123,TabJoursFériés[Date jour férié],0),\"00\"),\"\")","v":""},{"$f":"IFERROR(\"JF\"&TEXT(MATCH(H123,TabJoursFériés[Date jour férié],0),\"00\"),\"\")","v":""}]
["Jour férié",{"$f":"IFERROR(INDEX(TabJoursFériés[Jour férié],MATCH(B123,TabJoursFériés[Date jour férié],0)),\"\")","v":""},{"$f":"IFERROR(INDEX(TabJoursFériés[Jour férié],MATCH(C123,TabJoursFériés[Date jour férié],0)),\"\")","v":""},{"$f":"IFERROR(INDEX(TabJoursFériés[Jour férié],MATCH(D123,TabJoursFériés[Date jour férié],0)),\"\")","v":""},{"$f":"IFERROR(INDEX(TabJoursFériés[Jour férié],MATCH(E123,TabJoursFériés[Date jour férié],0)),\"\")","v":""},{"$f":"IFERROR(INDEX(TabJoursFériés[Jour férié],MATCH(F123,TabJoursFériés[Date jour férié],0)),\"\")","v":""},{"$f":"IFERROR(INDEX(TabJoursFériés[Jour férié],MATCH(G123,TabJoursFériés[Date jour férié],0)),\"\")","v":""},{"$f":"IFERROR(INDEX(TabJoursFériés[Jour férié],MATCH(H123,TabJoursFériés[Date jour férié],0)),\"\")","v":""}]